Workbook

Sheet Cover
A1: =CELL("address",'Input-Gen'!A1) -> '[SoW Model - Ferry Terminals (LGIP)_Sep 2017 PC Clean.xlsm]Input-Gen'!$A$1
D9: Brisbane City Council LGIP Schedule of Works Model Ferry Terminals Network DRAFT
D23: Model Name: | F23: =MID(A1,FIND("[",A1)+1,LEN(A1)-(FIND("$1",A1)-FIND("]",A1)+4)) -> SoW Model - Ferry Terminals (LGIP)_Sep 2017 PC Clean.xlsm
D24: Last Updated: | F24: 2017-10-18T16:10:36
D25: Last Modified By: | F25: Raffaele Nardi
C45: Admin Access Enabled? --> | F45: No
C46: V1.1

Sheet Inputs
F19: =MID(CELL("filename",A15),FIND("]",CELL("filename",A15))+1,256) -> Inputs

Sheet LGIP Existing infrastructure
A1: Existing trunk infrastructure value
A2: Ferry terminal network
B5: Service catchment | C5: Land cost | D5: Construction cost | E5: Total cost
B6: Citywide | C6: 0 | D6: 136452500 | E6: =C6+D6 -> 136452500
A8: Notes:
A9: Refer to the Transport network extrinsic material report for details on the valuation of existing assets for the ferry terminal network

Sheet LGIP future infrastructure
A1: LGIP ID (1) | B1: Map reference | C1: Suburb | D1: Project description | E1: Project type | F1: Estimated year of completion (2) | G1: Service catchment | H1: Direct construction cost ($) | I1: Indirect construction cost ($) (3) | J1: Project cost ($) (4) | K1: Construction contingency cost ($) (5) | L1: Total construction cost ($) (6) | M1: Value of the trunk infrastructure ($) (7) | N1: Establishment cost ($) (8)
A2: BNE-FT-004 | B2: APT193 | C2: Brisbane City | D2: Eagle Street Pier Ferry Terminal | E2: DDA compliance, flood resilience | F2: 2016 - 2021 | G2: Citywide | H2: 8020000 | I2: 1363400 | J2: 1219842 | K2: 795243 | L2: 11398485 | M2: 11398485 | N2: 11398485
A3: EAB-FT-001 | B3: APT193 | C3: East Brisbane | D3: Mowbray Park Ferry Terminal | E3: DDA compliance, flood resilience | F3: 2021 - 2026 | G3: Citywide | H3: 7740000 | I3: 1315800 | J3: 1177254 | K3: 1534958 | L3: 11768012 | M3: 11768012 | N3: 11768012
A4: KAN-FT-002 | B4: APT193 | C4: Kangaroo Point | D4: Thornton Street Ferry Terminal | E4: DDA compliance, flood resilience | F4: 2016 - 2021 | G4: Citywide | H4: 8675000 | I4: 1474750 | J4: 1319468 | K4: 860191 | L4: 12329409 | M4: 12329409 | N4: 12329409
A5: KAN-FT-003 | B5: APT193 | C5: Kangaroo Point | D5: Dockside Ferry Terminal | E5: DDA compliance, flood resilience | F5: 2016 - 2021 | G5: Citywide | H5: 8075000 | I5: 1372750 | J5: 1228208 | K5: 800697 | L5: 11476654 | M5: 11476654 | N5: 11476654
A6: NRP-FT-001 | B6: APT193 | C6: Norman Park | D6: Norman Park Ferry Terminal | E6: DDA compliance, flood resilience | F6: 2016 - 2021 | G6: Citywide | H6: 7865000 | I6: 1337050 | J6: 1196267 | K6: 779874 | L6: 11178190 | M6: 11178190 | N6: 11178190
A7: NWF-FT-002 | B7: APT193 | C7: New Farm | D7: New Farm Park Ferry Terminal | E7: DDA compliance, flood resilience | F7: 2021 - 2026 | G7: Citywide | H7: 7440000 | I7: 1264800 | J7: 1131624 | K7: 1475464 | L7: 11311888 | M7: 11311888 | N7: 11311888
A8: SBR-FT-002 | B8: APT192 | C8: South Brisbane | D8: South Bank 1 and 2 Ferry Terminal | E8: DDA compliance, flood resilience | F8: 2016 - 2021 | G8: Citywide | H8: 9600000 | I8: 1632000 | J8: 1460160 | K8: 951912 | L8: 13644072 | M8: 13644072 | N8: 13644072
A9: SBR-FT-003 | B9: APT192 | C9: South Brisbane | D9: South Bank 3 Ferry Terminal | E9: DDA compliance, flood resilience | F9: 2016 - 2021 | G9: Citywide | H9: 8100000 | I9: 1377000 | J9: 1232010 | K9: 803176 | L9: 11512186 | M9: 11512186 | N9: 11512186
A10: SLU-FT-002 | B10: APT212 | C10: St Lucia | D10: Guyatt Park Ferry Terminal | E10: DDA compliance, flood resilience | F10: 2021 - 2026 | G10: Citywide | H10: 7875000 | I10: 1338750 | J10: 1197788 | K10: 1561731 | L10: 11973268 | M10: 11973268 | N10: 11973268
G11: Total | H11: 73390000 | I11: 12476300 | J11: 11162621 | K11: 9563246 | L11: 106592164 | M11: 106592164 | N11: 106592164
A13: Notes-
A14: (1) Refer to the Local government infrastructure plan identifier (LGIP ID) when identifying the infrastructure projects on the plans for trunk infrastructure maps.
A15: (2) The estimated year of completion is an estimate of the earliest need for the project.
A16: (3) Indirect construction costs are on costs or overheads applied to the direct construction cost, to deliver the project. Indirect construction costs equate to 17% of the direct construction cost.
A17: (4) Project costs are on costs to undertake detailed design, survey, geotechnical investigations, project management, and supervision of construction works and obtain certification from a Registered Professional Engineer of Queensland. Project costs equate to 13% of the direct and indirect construction costs.
A18: (5) Contingency costs are based on the project delivery date, and applied to the direct construction cost, indirect construction cost and project cost. Contingencies equate to 7.5% for projects with a delivery date up to 2021 and 15% for projects with a delivery date up to 2026.
A19: (6) Total construction cost is the sum of direct construction cost, indirect construction cost, project cost and construction contingency cost, at 30 June 2016.
A20: (7) Value of the trunk infrastructure is the sum of land cost and total construction cost, at 30 June 2016.
A21: (8) Establishment cost is the total value of the trunk infrastructure item, comprising the total infrastructure cost, at 30 June 2016.
A22: (-) A dash denotes that the field is not applicable.

Sheet Input-Gen
F2: Brisbane City Council
F3: Schedule of Works Model - Ferry termainals network
F5: Input - General
G6: =IF(BaseCaseCheck=0,BaseCase,NotBaseCase) -> Please Note: Model is not currently applying Base Case parameter values
G7: =IF(Integrity=0,IntOK,IntErr) -> 
F15: General
G17: Timing & Structure
G19: Model Start Date | I19: dd-mmm-yy | M19: 2016-07-01
G20: Modelling Periods | I20: No. of Years | M20: =YEAR(M21)-YEAR(Model_Start_Date) -> 10
G21: Model End Date | I21: dd-mmm-yy | M21: =MAX(FY_End) -> 2026-06-30
G23: Months in Year | I23: months | M23: 12
G24: Duration between each planning period | I24: years | M24: 5
G25: Thousand Conversion | I25: # | M25: 1000
G27: On Costs and Contingencies - Constructed Assets Only
G29: Design and Supervision | I29: % build cost | M29: 0.1
F31: Other Conditions
G33: Land, cut-off date for inclusion in infrastructure charges | I33: dd-mmm-yy | M33: 00:00:00
G35: Maximum administration cost recoverable without approval from the Department of Infrastructure and Planning | I35: % | M35: 0
F37: Indexation/Discounting parameters
G39: Ferries Network
G42: Most recent PPI value | I42: # | M42: 110.5634114
G43: Base PPI value | I43: # | M43: 100.7685196
G45: Year of most recent PPI value | I45: year | M45: 2016
G46: Year of base PPI value | I46: year | M46: 2011
G48: Number of periods | I48: # | M48: =M45-M46 -> 5
G49: PPI Charge-rate indexation rate | I49: % | M49: =(M42/M43)^(1/M48)-1 -> 0.0187258123
G50: Over-ride default charge-rate indexation rate | M50: 0
G51: Comparison charge-rate indexation rate | I51: % | M51: 0.025
G53: Recommended premium to bond rate, post-tax nominal | I53: %
G55: ="Ten year bond rate, average 20 working days to" & TEXT(Model_Start_Date," dd-mmm-yy") -> Ten year bond rate, average 20 working days to 01-Jul-16 | I55: %
G56: Rate of return, post-tax nominal (Nominal WACC) | I56: % | M56: 0.0591
G57: Rate of return, post-tax real (Real WACC) | I57: % | M57: =(1+M56)/(1+RevEsc)-1 -> 0.0591
F59: Integrity
G61: Integrity OK message | I61: text | M61: Model integrity OK
G62: Integrity error message | I62: text | M62: Model integrity error
G63: Number of decimal places to which integrity checks are calculated | I63: # | M63: 2
G65: Base case message | I65: text | M65: Model is applying base case parameter values
G66: Alternative values message | I66: text | M66: Please Note: Model is not currently applying Base Case parameter values
F68: Input File References (not used in LGIP)
G70: General
G71: ID Number | I71: text
G72: Map Reference | I72: text
G73: Trunk Infrastructure Type | I73: text
G74: Catchment Type | I74: text
G76: Capacity
G77: Portion of existing asset in use at the beginning of the planning period | I77: text
G78: Spare capacity at end of planning period | I78: text
G79: Future costs to service existing demand | I79: text
G80: External Usage | I80: text
G82: Charge Area
G83: Local | I83: text
G84: Metropolitan | I84: text
G86: Land Information
G87: Acquired Area | I87: text
G88: Date of Acquisition | I88: text
G89: Acquisition Cost of Existing Land | I89: text
G90: ="Value of existing land as at "&TEXT(Model_Start_Date-1,"dd-mmm-yy") -> Value of existing land as at 30-Jun-16 | I90: text
G91: Contingency Cost | I91: text
G93: Constructed Asset Costs
G94: Expected Construction Completion / Commissioning Date | I94: text
G95: ="Actual / Expected Construction Cost at "&TEXT(Model_Start_Date-1,"dd-mmm-yy") -> Actual / Expected Construction Cost at 30-Jun-16 | I95: text
G96: ="Design & Supervision Cost "& TEXT(DSC,"##%")&" of Cost" -> Design & Supervision Cost 10% of Cost | I96: text
G97: Contingency Cost | I97: text
G99: Administration Costs
G100: Date of Administration Cost | I100: text
G101: (A) Percentage point of total Constructed Asset costs | I101: text
G102: ="(B) Defined Value as at "&TEXT(Model_Start_Date-1,"dd-mmm-yy") -> (B) Defined Value as at 30-Jun-16 | I102: text
G103: ="Subsidies / Grants as at "&TEXT(Model_Start_Date-1,"dd-mmm-yy") -> Subsidies / Grants as at 30-Jun-16 | I103: text
F107: End of Page

Sheet Input-Infra
F2: Brisbane City Council
F3: ='Input-Gen'!$F$3 -> Schedule of Works Model - Ferry termainals network
F5: Input - Infrastructure Details
G6: =IF(BaseCaseCheck=0,BaseCase,NotBaseCase) -> Please Note: Model is not currently applying Base Case parameter values
G7: =IF(Integrity=0,IntOK,IntErr) -> 
L10: General
S11: Capacity
Z12: Service catchment
AG13: Land Information
AQ14: Constructed Asset Costs (excld. Land and Admin costs)
BB15: Administration Costs (Not used in LGIP)
M17: LGIP ID Number | N17: LGIP Map Reference | O17: Trunk Infrastructure Type | P17: Catchment Type | T17: Portion of existing asset in use at the beginning of the planning period | U17: Terminal value adjustment | V17: Future costs to service existing demand | W17: External Usage | AA17: Citywide | AB17: Spare 1 | AD17: Total | AH17: Acquired Area | AI17: Date of Acquisition | AJ17: Acquisition Cost of Existing Land | AK17: ="Value of existing land at "& TEXT(Model_Start_Date-1,"dd-mmm-yy") -> Value of existing land at 30-Jun-16 | AL17: Spare column | AN17: Land Total | AR17: Expected Construction Completion / Commissioning Date | AS17: Direct construction cost | AT17: Construction allowances (including indirect construction costs, project cost and contingencies) | AU17: Spare column | AV17: ="Total @ "& TEXT(Model_Start_Date-1,"dd-mmm-yy")&" (Includes indirect cost, project cost, contingencies)" -> Total @ 30-Jun-16 (Includes indirect cost, project cost, contingencies) | AW17: Source (e.g. unit cost report, contract, asset register, etc.) | AY17: TOTAL (Land and Constructed Asset) | BC17: Date of Administration Cost | BD17: Methodology Option (A) = 0, (B) = 1 | BE17: (A) Percentage point of total Constructed Asset costs | BF17: ="(B) Defined Value at "& TEXT(Model_Start_Date-1,"dd-mmm-yy") -> (B) Defined Value at 30-Jun-16 | BG17: ="Check: If (B) value is greater than "&TEXT('Input-Gen'!M35,"0%")&" of total Constructed Asset cost" -> Check: If (B) value is greater than 0% of total Constructed Asset cost | BI17: ="Subsidies / Grants at "& TEXT(Model_Start_Date-1,"dd-mmm-yy") -> Subsidies / Grants at 30-Jun-16
G18: LGIP ID | T18: Not used in LGIP | U18: Unrecoverable costs due to unmet capacity | V18: Not used in LGIP | W18: Not used in LGIP | AA18: Proportion of total costs attributed to each service catchment
M19: # | N19: # | T19: % | U19: % | V19: % | W19: % | AA19: % | AB19: % | AH19: Ha | AI19: dd-mmm-yy | AJ19: $'000 | AK19: $'000 | AL19: $'000 | AR19: dd-mmm-yy | AS19: $'000 | AT19: $'000 | AU19: $'000 | AV19: $'000 | BD19: Select >>> | BE19: % | BF19: $'000 | BI19: $'000
F23: Existing Infrastructure
G25: Citywide Total | O25: Ferry terminal infrastructure | P25: Citywide | AA25: 1 | AB25: 0 | AD25: =SUM(AA25:AB25) -> 1 | AN25: =SUM(AK25:AL25) -> 0 | AS25: ='LGIP Existing infrastructure'!D6/1000 -> 136452.5 | AV25: =SUM(AS25:AU25) -> 136452.5 | AY25: =SUM(AV25,AN25) -> 136452.5 | BG25: =IF(BD25=1,IF(BF25>AY25*'Input-Gen'!$M$35,"Check Value","OK"),"") -> 
G26: Spare 1 | AD26: 0 | AN26: =SUM(AK26:AL26) -> 0 | AV26: =SUM(AS26:AU26) -> 0 | AY26: =SUM(AV26,AN26) -> 0
G27: Spare 2 | AD27: 0 | AN27: 0 | AV27: 0 | AY27: 0
G28: Spare 3 | AD28: 0 | AN28: 0 | AV28: 0 | AY28: 0
G29: Spare 4 | AD29: 0 | AN29: 0 | AV29: 0 | AY29: 0
G30: Spare 5 | AD30: 0 | AN30: 0 | AV30: 0 | AY30: 0
G31: Spare 6 | AD31: 0 | AN31: 0 | AV31: 0 | AY31: 0
G32: Spare 7 | AD32: 0 | AN32: 0 | AV32: 0 | AY32: 0
G33: Spare 8 | AD33: 0 | AN33: 0 | AV33: 0 | AY33: 0
G34: Spare 9 | AD34: 0 | AN34: 0 | AV34: 0 | AY34: 0
G35: Spare 10 | AD35: 0 | AN35: 0 | AV35: 0 | AY35: 0
G36: Spare 11 | AD36: 0 | AN36: 0 | AV36: 0 | AY36: 0
G37: Spare 12 | AD37: 0 | AN37: 0 | AV37: 0 | AY37: 0
G38: Spare 13 | AD38: 0 | AN38: 0 | AV38: 0 | AY38: 0
G39: Spare 14 | AD39: 0 | AN39: 0 | AV39: 0 | AY39: 0
G40: Spare 15 | AD40: 0 | AN40: 0 | AV40: 0 | AY40: 0
G41: Spare 16 | AD41: 0 | AN41: 0 | AV41: 0 | AY41: 0
G42: Spare 17 | AD42: 0 | AN42: 0 | AV42: 0 | AY42: 0
G43: Spare 18 | AD43: 0 | AN43: 0 | AV43: 0 | AY43: 0
G44: Spare 19 | AD44: 0 | AN44: 0 | AV44: 0 | AY44: 0
G45: Spare 20 | AD45: 0 | AN45: 0 | AV45: 0 | AY45: 0
G46: Spare 21 | AD46: 0 | AN46: 0 | AV46: 0 | AY46: 0
G47: Spare 22 | AD47: 0 | AN47: 0 | AV47: 0 | AY47: 0
G48: Spare 23 | AD48: 0 | AN48: 0 | AV48: 0 | AY48: 0
G49: Spare 24 | AD49: 0 | AN49: 0 | AV49: 0 | AY49: 0
G50: Spare 25 | AD50: 0 | AN50: 0 | AV50: 0 | AY50: 0
G51: Spare 26 | AD51: 0 | AN51: 0 | AV51: 0 | AY51: 0
G52: Spare 27 | AD52: 0 | AN52: 0 | AV52: =SUM(AS52:AU52) -> 0 | AY52: 0 | BG52: =IF(BD52=1,IF(BF52>AY52*'Input-Gen'!$M$35,"Check Value","OK"),"") -> 
G53: Spare 28 | AD53: 0 | AN53: 0 | AV53: 0 | AY53: 0 | BG53: =IF(BD53=1,IF(BF53>AY53*'Input-Gen'!$M$35,"Check Value","OK"),"") -> 
G54: Spare 29 | AD54: 0 | AN54: 0 | AV54: 0 | AY54: 0 | BG54: =IF(BD54=1,IF(BF54>AY54*'Input-Gen'!$M$35,"Check Value","OK"),"") -> 
G55: Spare 30 | AD55: 0 | AN55: 0 | AV55: 0 | AY55: 0 | BG55: =IF(BD55=1,IF(BF55>AY55*'Input-Gen'!$M$35,"Check Value","OK"),"") -> 
G56: Spare 31 | AD56: 0 | AN56: 0 | AV56: 0 | AY56: 0 | BG56: =IF(BD56=1,IF(BF56>AY56*'Input-Gen'!$M$35,"Check Value","OK"),"") -> 
G57: Spare 32 | AD57: 0 | AN57: 0 | AV57: 0 | AY57: 0 | BG57: =IF(BD57=1,IF(BF57>AY57*'Input-Gen'!$M$35,"Check Value","OK"),"") -> 
G58: Spare 33 | AD58: 0 | AN58: 0 | AV58: 0 | AY58: 0 | BG58: =IF(BD58=1,IF(BF58>AY58*'Input-Gen'!$M$35,"Check Value","OK"),"") -> 
G59: Spare 34 | AD59: 0 | AN59: 0 | AV59: 0 | AY59: 0 | BG59: =IF(BD59=1,IF(BF59>AY59*'Input-Gen'!$M$35,"Check Value","OK"),"") -> 
G60: Spare 35 | AD60: 0 | AN60: 0 | AV60: 0 | AY60: 0 | BG60: =IF(BD60=1,IF(BF60>AY60*'Input-Gen'!$M$35,"Check Value","OK"),"") -> 
G61: Spare 36 | AD61: 0 | AN61: 0 | AV61: 0 | AY61: 0 | BG61: =IF(BD61=1,IF(BF61>AY61*'Input-Gen'!$M$35,"Check Value","OK"),"") -> 
G62: Spare 37 | AD62: 0 | AN62: 0 | AV62: 0 | AY62: 0 | BG62: =IF(BD62=1,IF(BF62>AY62*'Input-Gen'!$M$35,"Check Value","OK"),"") -> 
G63: Spare 38 | AD63: 0 | AN63: 0 | AV63: 0 | AY63: 0 | BG63: =IF(BD63=1,IF(BF63>AY63*'Input-Gen'!$M$35,"Check Value","OK"),"") -> 
G64: Spare 39 | AD64: 0 | AN64: 0 | AV64: 0 | AY64: 0 | BG64: =IF(BD64=1,IF(BF64>AY64*'Input-Gen'!$M$35,"Check Value","OK"),"") -> 
G65: Spare 40 | AD65: 0 | AN65: 0 | AV65: 0 | AY65: 0 | BG65: =IF(BD65=1,IF(BF65>AY65*'Input-Gen'!$M$35,"Check Value","OK"),"") -> 
G66: Spare 41 | AD66: 0 | AN66: 0 | AV66: 0 | AY66: 0 | BG66: =IF(BD66=1,IF(BF66>AY66*'Input-Gen'!$M$35,"Check Value","OK"),"") -> 
G67: Spare 42 | AD67: 0 | AN67: 0 | AV67: 0 | AY67: 0 | BG67: =IF(BD67=1,IF(BF67>AY67*'Input-Gen'!$M$35,"Check Value","OK"),"") -> 
G68: Spare 43 | AD68: 0 | AN68: 0 | AV68: 0 | AY68: 0 | BG68: =IF(BD68=1,IF(BF68>AY68*'Input-Gen'!$M$35,"Check Value","OK"),"") -> 
G69: Spare 44 | AD69: 0 | AN69: 0 | AV69: 0 | AY69: 0 | BG69: =IF(BD69=1,IF(BF69>AY69*'Input-Gen'!$M$35,"Check Value","OK"),"") -> 
G70: Spare 45 | AD70: 0 | AN70: 0 | AV70: 0 | AY70: 0 | BG70: =IF(BD70=1,IF(BF70>AY70*'Input-Gen'!$M$35,"Check Value","OK"),"") -> 
G71: Spare 46 | AD71: 0 | AN71: 0 | AV71: 0 | AY71: 0 | BG71: =IF(BD71=1,IF(BF71>AY71*'Input-Gen'!$M$35,"Check Value","OK"),"") -> 
G73: Total | T73: =SUM(T25:T71) -> 0 | U73: =SUM(U25:U71) -> 0 | V73: =SUM(V25:V71) -> 0 | W73: =SUM(W25:W71) -> 0 | AA73: =SUM(AA25:AA71) -> 1 | AB73: =SUM(AB25:AB71) -> 0 | AD73: =(SUM(AD25:AD71)=SUM(AA73:AB73)) -> TRUE | AH73: =SUM(AH25:AH71) -> 0 | AJ73: =SUM(AJ25:AJ71) -> 0 | AK73: =SUM(AK25:AK71) -> 0 | AL73: =SUM(AL25:AL71) -> 0 | AN73: =SUM(AN25:AN71) -> 0 | AS73: =SUM(AS25:AS71) -> 136452.5 | AT73: =SUM(AT25:AT71) -> 0 | AU73: =SUM(AU25:AU71) -> 0 | AV73: =SUM(AV25:AV71) -> 136452.5 | AY73: =SUM(AY25:AY71) -> 136452.5 | BD73: =SUM(BD25:BD71) -> 0 | BF73: =SUM(BF25:BF71) -> 0 | BG73: =IF(BD73=1,IF(BF73>AY73*'Input-Gen'!$M$35,"Check Value","OK"),"") ->  | BI73: =SUM(BI25:BI71) -> 0
F76: Future Infrastructure
G78: ='LGIP future infrastructure'!A2 -> BNE-FT-004 | M78: =G78 -> BNE-FT-004 | N78: ='LGIP future infrastructure'!B2 -> APT193 | O78: ='LGIP future infrastructure'!E2 -> DDA compliance, flood resilience | P78: ='LGIP future infrastructure'!G2 -> Citywide | U78: 0 | AA78: 1 | AD78: =SUM(AA78:AB78) -> 1 | AH78: 0 | AI78: 00:00:00 | AJ78: 0 | AK78: 0 | AL78: 0 | AN78: =SUM(AK78:AL78) -> 0 | AR78: =IF('LGIP future infrastructure'!F2="2016 - 2021",DATE(2019,6,30),DATE(2024,6,30)) -> 2019-06-30 | AS78: ='LGIP future infrastructure'!H2/1000 -> 8020 | AT78: =SUM('LGIP future infrastructure'!I2:K2)/1000 -> 3378.485 | AV78: =SUM(AS78:AT78) -> 11398.485 | AY78: =SUM(AV78,AN78) -> 11398.485 | BC78: =MAX(AR78,AI78) -> 2019-06-30 | BG78: =IF(BD78=1,IF(BF78>AY78*'Input-Gen'!$M$35,"Check Value","OK"),"") ->  | BI78: 0
G79: ='LGIP future infrastructure'!A3 -> EAB-FT-001 | M79: =G79 -> EAB-FT-001 | N79: ='LGIP future infrastructure'!B3 -> APT193 | O79: ='LGIP future infrastructure'!E3 -> DDA compliance, flood resilience | P79: ='LGIP future infrastructure'!G3 -> Citywide | U79: 0.4042959814 | AA79: 1 | AD79: 1 | AH79: 0 | AI79: 00:00:00 | AJ79: 0 | AK79: 0 | AL79: 0 | AN79: =SUM(AK79:AL79) -> 0 | AR79: =IF('LGIP future infrastructure'!F3="2016 - 2021",DATE(2019,6,30),DATE(2024,6,30)) -> 2024-06-30 | AS79: ='LGIP future infrastructure'!H3/1000 -> 7740 | AT79: =SUM('LGIP future infrastructure'!I3:K3)/1000 -> 4028.012 | AV79: =SUM(AS79:AT79) -> 11768.012 | AY79: =SUM(AV79,AN79) -> 11768.012 | BC79: 2024-06-30 | BG79: =IF(BD79=1,IF(BF79>AY79*'Input-Gen'!$M$35,"Check Value","OK"),"") ->  | BI79: 0
G80: ='LGIP future infrastructure'!A4 -> KAN-FT-002 | M80: KAN-FT-002 | N80: ='LGIP future infrastructure'!B4 -> APT193 | O80: ='LGIP future infrastructure'!E4 -> DDA compliance, flood resilience | P80: ='LGIP future infrastructure'!G4 -> Citywide | U80: 0 | AA80: 1 | AD80: 1 | AH80: 0 | AI80: 00:00:00 | AJ80: 0 | AK80: 0 | AL80: 0 | AN80: 0 | AR80: =IF('LGIP future infrastructure'!F4="2016 - 2021",DATE(2019,6,30),DATE(2024,6,30)) -> 2019-06-30 | AS80: ='LGIP future infrastructure'!H4/1000 -> 8675 | AT80: =SUM('LGIP future infrastructure'!I4:K4)/1000 -> 3654.409 | AV80: 12329.409 | AY80: 12329.409 | BC80: 2019-06-30 | BG80: =IF(BD80=1,IF(BF80>AY80*'Input-Gen'!$M$35,"Check Value","OK"),"") ->  | BI80: 0
G81: ='LGIP future infrastructure'!A5 -> KAN-FT-003 | M81: KAN-FT-003 | N81: ='LGIP future infrastructure'!B5 -> APT193 | O81: ='LGIP future infrastructure'!E5 -> DDA compliance, flood resilience | P81: ='LGIP future infrastructure'!G5 -> Citywide | U81: 0 | AA81: 1 | AD81: 1 | AH81: 0 | AI81: 00:00:00 | AJ81: 0 | AK81: 0 | AL81: 0 | AN81: 0 | AR81: =IF('LGIP future infrastructure'!F5="2016 - 2021",DATE(2019,6,30),DATE(2024,6,30)) -> 2019-06-30 | AS81: ='LGIP future infrastructure'!H5/1000 -> 8075 | AT81: =SUM('LGIP future infrastructure'!I5:K5)/1000 -> 3401.655 | AV81: 11476.655 | AY81: 11476.655 | BC81: 2019-06-30 | BG81: =IF(BD81=1,IF(BF81>AY81*'Input-Gen'!$M$35,"Check Value","OK"),"") ->  | BI81: 0
G82: ='LGIP future infrastructure'!A6 -> NRP-FT-001 | M82: NRP-FT-001 | N82: ='LGIP future infrastructure'!B6 -> APT193 | O82: ='LGIP future infrastructure'!E6 -> DDA compliance, flood resilience | P82: ='LGIP future infrastructure'!G6 -> Citywide | U82: 0 | AA82: 1 | AD82: 1 | AH82: 0 | AI82: 00:00:00 | AJ82: 0 | AK82: 0 | AL82: 0 | AN82: 0 | AR82: =IF('LGIP future infrastructure'!F6="2016 - 2021",DATE(2019,6,30),DATE(2024,6,30)) -> 2019-06-30 | AS82: ='LGIP future infrastructure'!H6/1000 -> 7865 | AT82: =SUM('LGIP future infrastructure'!I6:K6)/1000 -> 3313.191 | AV82: 11178.191 | AY82: 11178.191 | BC82: 2019-06-30 | BG82: =IF(BD82=1,IF(BF82>AY82*'Input-Gen'!$M$35,"Check Value","OK"),"") ->  | BI82: 0
G83: ='LGIP future infrastructure'!A7 -> NWF-FT-002 | M83: NWF-FT-002 | N83: ='LGIP future infrastructure'!B7 -> APT193 | O83: ='LGIP future infrastructure'!E7 -> DDA compliance, flood resilience | P83: ='LGIP future infrastructure'!G7 -> Citywide | U83: 0.4042959814 | AA83: 1 | AD83: 1 | AH83: 0 | AI83: 00:00:00 | AJ83: 0 | AK83: 0 | AL83: 0 | AN83: 0 | AR83: =IF('LGIP future infrastructure'!F7="2016 - 2021",DATE(2019,6,30),DATE(2024,6,30)) -> 2024-06-30 | AS83: ='LGIP future infrastructure'!H7/1000 -> 7440 | AT83: =SUM('LGIP future infrastructure'!I7:K7)/1000 -> 3871.888 | AV83: 11311.888 | AY83: 11311.888 | BC83: 2024-06-30 | BG83: =IF(BD83=1,IF(BF83>AY83*'Input-Gen'!$M$35,"Check Value","OK"),"") ->  | BI83: 0
G84: ='LGIP future infrastructure'!A8 -> SBR-FT-002 | M84: SBR-FT-002 | N84: ='LGIP future infrastructure'!B8 -> APT192 | O84: ='LGIP future infrastructure'!E8 -> DDA compliance, flood resilience | P84: ='LGIP future infrastructure'!G8 -> Citywide | U84: 0 | AA84: 1 | AD84: 1 | AH84: 0 | AI84: 00:00:00 | AJ84: 0 | AK84: 0 | AL84: 0 | AN84: 0 | AR84: =IF('LGIP future infrastructure'!F8="2016 - 2021",DATE(2019,6,30),DATE(2024,6,30)) -> 2019-06-30 | AS84: ='LGIP future infrastructure'!H8/1000 -> 9600 | AT84: =SUM('LGIP future infrastructure'!I8:K8)/1000 -> 4044.072 | AV84: 13644.072 | AY84: 13644.072 | BC84: 2019-06-30 | BG84: =IF(BD84=1,IF(BF84>AY84*'Input-Gen'!$M$35,"Check Value","OK"),"") ->  | BI84: 0
G85: ='LGIP future infrastructure'!A9 -> SBR-FT-003 | M85: SBR-FT-003 | N85: ='LGIP future infrastructure'!B9 -> APT192 | O85: ='LGIP future infrastructure'!E9 -> DDA compliance, flood resilience | P85: ='LGIP future infrastructure'!G9 -> Citywide | U85: 0 | AA85: 1 | AD85: 1 | AH85: 0 | AI85: 00:00:00 | AJ85: 0 | AK85: 0 | AL85: 0 | AN85: 0 | AR85: =IF('LGIP future infrastructure'!F9="2016 - 2021",DATE(2019,6,30),DATE(2024,6,30)) -> 2019-06-30 | AS85: ='LGIP future infrastructure'!H9/1000 -> 8100 | AT85: =SUM('LGIP future infrastructure'!I9:K9)/1000 -> 3412.186 | AV85: 11512.186 | AY85: 11512.186 | BC85: 2019-06-30 | BG85: =IF(BD85=1,IF(BF85>AY85*'Input-Gen'!$M$35,"Check Value","OK"),"") ->  | BI85: 0
G86: ='LGIP future infrastructure'!A10 -> SLU-FT-002 | M86: SLU-FT-002 | N86: ='LGIP future infrastructure'!B10 -> APT212 | O86: ='LGIP future infrastructure'!E10 -> DDA compliance, flood resilience | P86: ='LGIP future infrastructure'!G10 -> Citywide | U86: 0.4042959814 | AA86: 1 | AD86: 1 | AH86: 0 | AI86: 00:00:00 | AJ86: 0 | AK86: 0 | AL86: 0 | AN86: 0 | AR86: =IF('LGIP future infrastructure'!F10="2016 - 2021",DATE(2019,6,30),DATE(2024,6,30)) -> 2024-06-30 | AS86: ='LGIP future infrastructure'!H10/1000 -> 7875 | AT86: =SUM('LGIP future infrastructure'!I10:K10)/1000 -> 4098.269 | AV86: 11973.269 | AY86: 11973.269 | BC86: 2024-06-30 | BG86: =IF(BD86=1,IF(BF86>AY86*'Input-Gen'!$M$35,"Check Value","OK"),"") ->  | BI86: 0
G87: =M87 -> Spare 1 | M87: Spare 1 | BG87: =IF(BD87=1,IF(BF87>AY87*'Input-Gen'!$M$35,"Check Value","OK"),"") -> 
G88: Spare 2 | M88: Spare 2 | BG88: =IF(BD88=1,IF(BF88>AY88*'Input-Gen'!$M$35,"Check Value","OK"),"") -> 
G89: Spare 3 | M89: Spare 3 | BG89: =IF(BD89=1,IF(BF89>AY89*'Input-Gen'!$M$35,"Check Value","OK"),"") -> 
G90: Spare 4 | M90: Spare 4 | BG90: =IF(BD90=1,IF(BF90>AY90*'Input-Gen'!$M$35,"Check Value","OK"),"") -> 
G91: Spare 5 | M91: Spare 5 | BG91: =IF(BD91=1,IF(BF91>AY91*'Input-Gen'!$M$35,"Check Value","OK"),"") -> 
G92: Spare 6 | M92: Spare 6 | BG92: =IF(BD92=1,IF(BF92>AY92*'Input-Gen'!$M$35,"Check Value","OK"),"") -> 
G93: Spare 7 | M93: Spare 7 | BG93: =IF(BD93=1,IF(BF93>AY93*'Input-Gen'!$M$35,"Check Value","OK"),"") -> 
G94: Spare 8 | M94: Spare 8 | BG94: =IF(BD94=1,IF(BF94>AY94*'Input-Gen'!$M$35,"Check Value","OK"),"") -> 
G96: Total | T96: =SUM(T$78:T$94) -> 0 | U96: =SUM(U$78:U$94) -> 1.212887944 | V96: =SUM(V$78:V$94) -> 0 | W96: =SUM(W$78:W$94) -> 0 | AA96: =SUM(AA$78:AA$94) -> 9 | AB96: =SUM(AB$78:AB$94) -> 0 | AD96: =(SUM(AD$78:AD$94)=SUM(AA96:AB96)) -> TRUE | AH96: =SUM(AH78:AH94) -> 0 | AJ96: =SUM(AJ78:AJ94) -> 0 | AK96: =SUM(AK78:AK94) -> 0 | AL96: =SUM(AL78:AL94) -> 0 | AN96: =SUM(AN78:AN94) -> 0 | AS96: =SUM(AS78:AS94) -> 73390 | AT96: =SUM(AT78:AT94) -> 33202.167 | AU96: =SUM(AU78:AU94) -> 0 | AV96: =SUM(AV78:AV94) -> 106592.167 | AY96: =SUM(AY78:AY94) -> 106592.167 | BF96: =SUM(BF78:BF94) -> 0 | BG96: =IF(BD96=1,IF(BF96>AY96*'Input-Gen'!$M$35,"Check Value","OK"),"") ->  | BI96: =SUM(BI78:BI94) -> 0
F98: End of Page

Sheet Input-Time Series
F2: Brisbane City Council
F3: ='Input-Gen'!$F$3 -> Schedule of Works Model - Ferry termainals network
F5: Input - Time Series
G6: =IF(BaseCaseCheck=0,BaseCase,NotBaseCase) -> Please Note: Model is not currently applying Base Case parameter values
G7: =IF(Integrity=0,IntOK,IntErr) -> 
G9: Period Number | K9: ="NPV as at" & " " & TEXT(Model_Start_Date-1,"dd-mmm-yyyy") -> NPV as at 30-Jun-2016 | S9: =S17 -> 0 | T9: =T17 -> 1 | U9: 2 | V9: 3 | W9: 4 | X9: 5 | Y9: 6 | Z9: 7 | AA9: 8 | AB9: 9 | AC9: 10 | AD9: 0 | AE9: 0 | AF9: 0 | AG9: 0 | AH9: 0 | AI9: 0 | AJ9: 0 | AK9: 0 | AL9: 0 | AM9: 0
G10: Period Beginning Date | M10: Total Nominal Demand | S10: =FY_Begin -> 2015-07-01 | T10: 2016-07-01 | U10: 2017-07-01 | V10: 2018-07-01 | W10: 2019-07-01 | X10: 2020-07-01 | Y10: 2021-07-01 | Z10: 2022-07-01 | AA10: 2023-07-01 | AB10: 2024-07-01 | AC10: 2025-07-01
G11: Period Ending Date | L11: 2005-06-30 | S11: =FY_End -> 2016-06-30 | T11: 2017-06-30 | U11: 2018-06-30 | V11: 2019-06-30 | W11: 2020-06-30 | X11: 2021-06-30 | Y11: 2022-06-30 | Z11: 2023-06-30 | AA11: 2024-06-30 | AB11: 2025-06-30 | AC11: 2026-06-30 | AO11: Source
F15: Timing and indexation calculations
G17: Period Number | I17: # | S17: 0 | T17: =S17+1 -> 1 | U17: =T17+1 -> 2 | V17: 3 | W17: 4 | X17: 5 | Y17: 6 | Z17: 7 | AA17: 8 | AB17: 9 | AC17: 10
G18: Financial Year Beginning | I18: dd-mmm-yy | S18: =EOMONTH(S19,-Months_in_Year)+1 -> 2015-07-01 | T18: 2016-07-01 | U18: 2017-07-01 | V18: 2018-07-01 | W18: 2019-07-01 | X18: 2020-07-01 | Y18: 2021-07-01 | Z18: 2022-07-01 | AA18: 2023-07-01 | AB18: 2024-07-01 | AC18: 2025-07-01
G19: Financial Year Ending | I19: dd-mmm-yy | S19: =IF(S17=0,Model_Start_Date-1,EOMONTH(R19,Months_in_Year)) -> 2016-06-30 | T19: 2017-06-30 | U19: 2018-06-30 | V19: 2019-06-30 | W19: 2020-06-30 | X19: 2021-06-30 | Y19: 2022-06-30 | Z19: 2023-06-30 | AA19: 2024-06-30 | AB19: 2025-06-30 | AC19: 2026-06-30
G21: Escalation Rate - Historical
G23: Consumer Price Index (CPI) | I23: % pa | T23: 0.025 | U23: 0.025 | V23: 0.025 | W23: 0.025 | X23: 0.025 | Y23: 0.025 | Z23: 0.025 | AA23: 0.025 | AB23: 0.025 | AC23: 0.025
G24: Land cost escalation | I24: % pa | T24: 0.025 | U24: 0.025 | V24: 0.025 | W24: 0.025 | X24: 0.025 | Y24: 0.025 | Z24: 0.025 | AA24: 0.025 | AB24: 0.025 | AC24: 0.025
G25: Constructed Asset cost escalation | I25: % pa | T25: 0.0187258123 | U25: 0.0187258123 | V25: 0.0187258123 | W25: 0.0187258123 | X25: 0.0187258123 | Y25: 0.0187258123 | Z25: 0.0187258123 | AA25: 0.0187258123 | AB25: 0.0187258123 | AC25: 0.0187258123
G26: Administration cost escalation | I26: % pa | T26: 0.0125 | U26: 0.03 | V26: 0.025 | W26: 0.025 | X26: 0.025 | Y26: 0.025 | Z26: 0.025 | AA26: 0.025 | AB26: 0.025 | AC26: 0.025
G27: Spare 1 cost escalation | I27: % pa
G29: Escalation Rate used in model
G31: Consumer Price Index (CPI) | I31: % pa | S31: =IF(S$17>0,(1+S23)*R31,1) -> 1 | T31: 1.025 | U31: 1.050625 | V31: 1.076890625 | W31: 1.103812891 | X31: 1.131408213 | Y31: 1.159693418 | Z31: 1.188685754 | AA31: 1.218402898 | AB31: 1.24886297 | AC31: 1.280084544
G32: Land cost escalation | I32: % pa | S32: =IF(S$17>0,(1+S24)*R32,1) -> 1 | T32: 1.025 | U32: 1.050625 | V32: 1.076890625 | W32: 1.103812891 | X32: 1.131408213 | Y32: 1.159693418 | Z32: 1.188685754 | AA32: 1.218402898 | AB32: 1.24886297 | AC32: 1.280084544
G33: Constructed Asset cost escalation | I33: % pa | S33: =IF(S$17>0,(1+S25)*R33,1) -> 1 | T33: 1.018725812 | U33: 1.037802281 | V33: 1.057235971 | W33: 1.077033574 | X33: 1.097201902 | Y33: 1.117747899 | Z33: 1.138678636 | AA33: 1.160001319 | AB33: 1.181723286 | AC33: 1.203852014
G34: Administration cost escalation | I34: % pa | S34: =IF(S$17>0,(1+S26)*R34,1) -> 1 | T34: 1.0125 | U34: 1.042875 | V34: 1.068946875 | W34: 1.095670547 | X34: 1.123062311 | Y34: 1.151138868 | Z34: 1.17991734 | AA34: 1.209415274 | AB34: 1.239650655 | AC34: 1.270641922
G35: Spare 1 cost escalation | I35: % pa | S35: =IF(S$17>0,(1+S27)*R35,1) -> 1 | T35: 1 | U35: 1 | V35: 1 | W35: 1 | X35: 1 | Y35: 1 | Z35: 1 | AA35: 1 | AB35: 1 | AC35: 1
G36: Revenue escalation | I36: % pa | S36: =IF(S$17>0,(1+RevEsc)*R36,1) -> 1 | T36: =IF(T$17>0,(1+RevEsc)*S36,1) -> 1 | U36: =IF(U$17>0,(1+RevEsc)*T36,1) -> 1 | V36: =IF(V$17>0,(1+RevEsc)*U36,1) -> 1 | W36: =IF(W$17>0,(1+RevEsc)*V36,1) -> 1 | X36: =IF(X$17>0,(1+RevEsc)*W36,1) -> 1 | Y36: =IF(Y$17>0,(1+RevEsc)*X36,1) -> 1 | Z36: =IF(Z$17>0,(1+RevEsc)*Y36,1) -> 1 | AA36: =IF(AA$17>0,(1+RevEsc)*Z36,1) -> 1 | AB36: =IF(AB$17>0,(1+RevEsc)*AA36,1) -> 1 | AC36: =IF(AC$17>0,(1+RevEsc)*AB36,1) -> 1
F39: Demand by Service Catchment
G41: Total Demand | AO41: Area | AP41: Growth Rate
G43: ='Input-Infra'!AA$17 -> Citywide | I43: Trips | S43: 89178 | X43: 95637 | AC43: 102026 | AO43: =G43 -> Citywide | AP43: =AM43/S43-1 -> -1
G44: ='Input-Infra'!AB$17 -> Spare 1 | I44: Trips | S44: 0 | X44: 0 | AC44: 0 | AO44: =G44 -> Spare 1 | AP44: =AM44/S44-1 -> 
G46: Total | I46: Trips | S46: =SUM(S43:S44) -> 89178 | T46: 0 | U46: 0 | V46: 0 | W46: 0 | X46: 95637 | Y46: 0 | Z46: 0 | AA46: 0 | AB46: 0 | AC46: 102026
G48: Existing Demand
G50: =G43 -> Citywide | I50: Trips | K50: =S50 -> 89178 | M50: =S50 -> 89178 | S50: =IF(S$17=0,S43,0) -> 89178 | T50: 0 | U50: 0 | V50: 0 | W50: 0 | X50: 0 | Y50: 0 | Z50: 0 | AA50: 0 | AB50: 0 | AC50: 0
G51: =G44 -> Spare 1 | I51: Trips | K51: =S51 -> 0 | M51: =S51 -> 0 | S51: =IF(S$17=0,S44,0) -> 0 | T51: =IF(T$17=0,T44,0) -> 0 | U51: 0 | V51: 0 | W51: 0 | X51: 0 | Y51: 0 | Z51: 0 | AA51: 0 | AB51: 0 | AC51: 0
G53: Total | I53: Trips | K53: =SUM(K50:K51) -> 89178 | M53: =SUM(M50:M51) -> 89178 | S53: =SUM(S50:S51) -> 89178 | T53: 0 | U53: 0 | V53: 0 | W53: 0 | X53: 0 | Y53: 0 | Z53: 0 | AA53: 0 | AB53: 0 | AC53: 0
G55: Future Demand
G57: Year of Next Input
G58: =G43 -> Citywide | I58: Trips | S58: =IF(S$9=MAX($S$9:$AM$9),S$9,SMALL((S$9:$AM$9)*ISNUMBER(S43:$AM43),SUM(IF((S$9:$AM$9)*ISNUMBER(S43:$AM43)=0,1,0))+1)) -> 5 | T58: =IF(T$9=MAX($S$9:$AM$9),T$9,SMALL((T$9:$AM$9)*ISNUMBER(T43:$AM43),SUM(IF((T$9:$AM$9)*ISNUMBER(T43:$AM43)=0,1,0))+1)) -> 5 | U58: =IF(U$9=MAX($S$9:$AM$9),U$9,SMALL((U$9:$AM$9)*ISNUMBER(U43:$AM43),SUM(IF((U$9:$AM$9)*ISNUMBER(U43:$AM43)=0,1,0))+1)) -> 5 | V58: =IF(V$9=MAX($S$9:$AM$9),V$9,SMALL((V$9:$AM$9)*ISNUMBER(V43:$AM43),SUM(IF((V$9:$AM$9)*ISNUMBER(V43:$AM43)=0,1,0))+1)) -> 5 | W58: =IF(W$9=MAX($S$9:$AM$9),W$9,SMALL((W$9:$AM$9)*ISNUMBER(W43:$AM43),SUM(IF((W$9:$AM$9)*ISNUMBER(W43:$AM43)=0,1,0))+1)) -> 5 | X58: =IF(X$9=MAX($S$9:$AM$9),X$9,SMALL((X$9:$AM$9)*ISNUMBER(X43:$AM43),SUM(IF((X$9:$AM$9)*ISNUMBER(X43:$AM43)=0,1,0))+1)) -> 5 | Y58: =IF(Y$9=MAX($S$9:$AM$9),Y$9,SMALL((Y$9:$AM$9)*ISNUMBER(Y43:$AM43),SUM(IF((Y$9:$AM$9)*ISNUMBER(Y43:$AM43)=0,1,0))+1)) -> 10 | Z58: =IF(Z$9=MAX($S$9:$AM$9),Z$9,SMALL((Z$9:$AM$9)*ISNUMBER(Z43:$AM43),SUM(IF((Z$9:$AM$9)*ISNUMBER(Z43:$AM43)=0,1,0))+1)) -> 10 | AA58: =IF(AA$9=MAX($S$9:$AM$9),AA$9,SMALL((AA$9:$AM$9)*ISNUMBER(AA43:$AM43),SUM(IF((AA$9:$AM$9)*ISNUMBER(AA43:$AM43)=0,1,0))+1)) -> 10 | AB58: =IF(AB$9=MAX($S$9:$AM$9),AB$9,SMALL((AB$9:$AM$9)*ISNUMBER(AB43:$AM43),SUM(IF((AB$9:$AM$9)*ISNUMBER(AB43:$AM43)=0,1,0))+1)) -> 10 | AC58: =IF(AC$9=MAX($S$9:$AM$9),AC$9,SMALL((AC$9:$AM$9)*ISNUMBER(AC43:$AM43),SUM(IF((AC$9:$AM$9)*ISNUMBER(AC43:$AM43)=0,1,0))+1)) -> 10
G59: =G44 -> Spare 1 | I59: Trips | S59: =IF(S$9=MAX($S$9:$AM$9),S$9,SMALL((S$9:$AM$9)*ISNUMBER(S44:$AM44),SUM(IF((S$9:$AM$9)*ISNUMBER(S44:$AM44)=0,1,0))+1)) -> 5 | T59: =IF(T$9=MAX($S$9:$AM$9),T$9,SMALL((T$9:$AM$9)*ISNUMBER(T44:$AM44),SUM(IF((T$9:$AM$9)*ISNUMBER(T44:$AM44)=0,1,0))+1)) -> 5 | U59: =IF(U$9=MAX($S$9:$AM$9),U$9,SMALL((U$9:$AM$9)*ISNUMBER(U44:$AM44),SUM(IF((U$9:$AM$9)*ISNUMBER(U44:$AM44)=0,1,0))+1)) -> 5 | V59: =IF(V$9=MAX($S$9:$AM$9),V$9,SMALL((V$9:$AM$9)*ISNUMBER(V44:$AM44),SUM(IF((V$9:$AM$9)*ISNUMBER(V44:$AM44)=0,1,0))+1)) -> 5 | W59: =IF(W$9=MAX($S$9:$AM$9),W$9,SMALL((W$9:$AM$9)*ISNUMBER(W44:$AM44),SUM(IF((W$9:$AM$9)*ISNUMBER(W44:$AM44)=0,1,0))+1)) -> 5 | X59: =IF(X$9=MAX($S$9:$AM$9),X$9,SMALL((X$9:$AM$9)*ISNUMBER(X44:$AM44),SUM(IF((X$9:$AM$9)*ISNUMBER(X44:$AM44)=0,1,0))+1)) -> 5 | Y59: =IF(Y$9=MAX($S$9:$AM$9),Y$9,SMALL((Y$9:$AM$9)*ISNUMBER(Y44:$AM44),SUM(IF((Y$9:$AM$9)*ISNUMBER(Y44:$AM44)=0,1,0))+1)) -> 10 | Z59: =IF(Z$9=MAX($S$9:$AM$9),Z$9,SMALL((Z$9:$AM$9)*ISNUMBER(Z44:$AM44),SUM(IF((Z$9:$AM$9)*ISNUMBER(Z44:$AM44)=0,1,0))+1)) -> 10 | AA59: =IF(AA$9=MAX($S$9:$AM$9),AA$9,SMALL((AA$9:$AM$9)*ISNUMBER(AA44:$AM44),SUM(IF((AA$9:$AM$9)*ISNUMBER(AA44:$AM44)=0,1,0))+1)) -> 10 | AB59: =IF(AB$9=MAX($S$9:$AM$9),AB$9,SMALL((AB$9:$AM$9)*ISNUMBER(AB44:$AM44),SUM(IF((AB$9:$AM$9)*ISNUMBER(AB44:$AM44)=0,1,0))+1)) -> 10 | AC59: =IF(AC$9=MAX($S$9:$AM$9),AC$9,SMALL((AC$9:$AM$9)*ISNUMBER(AC44:$AM44),SUM(IF((AC$9:$AM$9)*ISNUMBER(AC44:$AM44)=0,1,0))+1)) -> 10
G61: Year of Previous Input
G62: =G50 -> Citywide | I62: Trips | S62: =IFERROR(SMALL(($R$9:S$9)*ISNUMBER($R43:S43),SUM(IF(($R$9:S$9)*ISNUMBER($R43:S43)<S$9,1,0))),S$9) -> 0 | T62: =IFERROR(SMALL(($R$9:T$9)*ISNUMBER($R43:T43),SUM(IF(($R$9:T$9)*ISNUMBER($R43:T43)<T$9,1,0))),T$9) -> 0 | U62: =IFERROR(SMALL(($R$9:U$9)*ISNUMBER($R43:U43),SUM(IF(($R$9:U$9)*ISNUMBER($R43:U43)<U$9,1,0))),U$9) -> 0 | V62: =IFERROR(SMALL(($R$9:V$9)*ISNUMBER($R43:V43),SUM(IF(($R$9:V$9)*ISNUMBER($R43:V43)<V$9,1,0))),V$9) -> 0 | W62: =IFERROR(SMALL(($R$9:W$9)*ISNUMBER($R43:W43),SUM(IF(($R$9:W$9)*ISNUMBER($R43:W43)<W$9,1,0))),W$9) -> 0 | X62: =IFERROR(SMALL(($R$9:X$9)*ISNUMBER($R43:X43),SUM(IF(($R$9:X$9)*ISNUMBER($R43:X43)<X$9,1,0))),X$9) -> 0 | Y62: =IFERROR(SMALL(($R$9:Y$9)*ISNUMBER($R43:Y43),SUM(IF(($R$9:Y$9)*ISNUMBER($R43:Y43)<Y$9,1,0))),Y$9) -> 5 | Z62: =IFERROR(SMALL(($R$9:Z$9)*ISNUMBER($R43:Z43),SUM(IF(($R$9:Z$9)*ISNUMBER($R43:Z43)<Z$9,1,0))),Z$9) -> 5 | AA62: =IFERROR(SMALL(($R$9:AA$9)*ISNUMBER($R43:AA43),SUM(IF(($R$9:AA$9)*ISNUMBER($R43:AA43)<AA$9,1,0))),AA$9) -> 5 | AB62: =IFERROR(SMALL(($R$9:AB$9)*ISNUMBER($R43:AB43),SUM(IF(($R$9:AB$9)*ISNUMBER($R43:AB43)<AB$9,1,0))),AB$9) -> 5 | AC62: =IFERROR(SMALL(($R$9:AC$9)*ISNUMBER($R43:AC43),SUM(IF(($R$9:AC$9)*ISNUMBER($R43:AC43)<AC$9,1,0))),AC$9) -> 5
G63: =G51 -> Spare 1 | I63: Trips | S63: =IFERROR(SMALL(($R$9:S$9)*ISNUMBER($R44:S44),SUM(IF(($R$9:S$9)*ISNUMBER($R44:S44)<S$9,1,0))),S$9) -> 0 | T63: =IFERROR(SMALL(($R$9:T$9)*ISNUMBER($R44:T44),SUM(IF(($R$9:T$9)*ISNUMBER($R44:T44)<T$9,1,0))),T$9) -> 0 | U63: =IFERROR(SMALL(($R$9:U$9)*ISNUMBER($R44:U44),SUM(IF(($R$9:U$9)*ISNUMBER($R44:U44)<U$9,1,0))),U$9) -> 0 | V63: =IFERROR(SMALL(($R$9:V$9)*ISNUMBER($R44:V44),SUM(IF(($R$9:V$9)*ISNUMBER($R44:V44)<V$9,1,0))),V$9) -> 0 | W63: =IFERROR(SMALL(($R$9:W$9)*ISNUMBER($R44:W44),SUM(IF(($R$9:W$9)*ISNUMBER($R44:W44)<W$9,1,0))),W$9) -> 0 | X63: =IFERROR(SMALL(($R$9:X$9)*ISNUMBER($R44:X44),SUM(IF(($R$9:X$9)*ISNUMBER($R44:X44)<X$9,1,0))),X$9) -> 0 | Y63: =IFERROR(SMALL(($R$9:Y$9)*ISNUMBER($R44:Y44),SUM(IF(($R$9:Y$9)*ISNUMBER($R44:Y44)<Y$9,1,0))),Y$9) -> 5 | Z63: =IFERROR(SMALL(($R$9:Z$9)*ISNUMBER($R44:Z44),SUM(IF(($R$9:Z$9)*ISNUMBER($R44:Z44)<Z$9,1,0))),Z$9) -> 5 | AA63: =IFERROR(SMALL(($R$9:AA$9)*ISNUMBER($R44:AA44),SUM(IF(($R$9:AA$9)*ISNUMBER($R44:AA44)<AA$9,1,0))),AA$9) -> 5 | AB63: =IFERROR(SMALL(($R$9:AB$9)*ISNUMBER($R44:AB44),SUM(IF(($R$9:AB$9)*ISNUMBER($R44:AB44)<AB$9,1,0))),AB$9) -> 5 | AC63: =IFERROR(SMALL(($R$9:AC$9)*ISNUMBER($R44:AC44),SUM(IF(($R$9:AC$9)*ISNUMBER($R44:AC44)<AC$9,1,0))),AC$9) -> 5
G65: Annual Demand
G66: =G50 -> Citywide | I66: Trips | K66: =NPV(WACC_real,T66:$AC66) -> 9504.068783 | M66: =SUM(T66:AC66) -> 12848 | S66: =IF(S$9=MIN($S$9:$AM$9),0,(INDEX($S43:$AM43,,S58+1)-INDEX($S43:$AM43,,S62+1))/(S58-S62)) -> 0 | T66: =IF(T$9=MIN($S$9:$AM$9),0,(INDEX($S43:$AM43,,T58+1)-INDEX($S43:$AM43,,T62+1))/(T58-T62)) -> 1291.8 | U66: 1291.8 | V66: 1291.8 | W66: 1291.8 | X66: 1291.8 | Y66: 1277.8 | Z66: 1277.8 | AA66: 1277.8 | AB66: 1277.8 | AC66: 1277.8
G67: =G51 -> Spare 1 | I67: Trips | K67: =NPV(WACC_real,T67:$AC67) -> 0 | M67: =SUM(T67:AC67) -> 0 | S67: =IF(S$9=MIN($S$9:$AM$9),0,(INDEX($S44:$AM44,,S59+1)-INDEX($S44:$AM44,,S63+1))/(S59-S63)) -> 0 | T67: =IF(T$9=MIN($S$9:$AM$9),0,(INDEX($S44:$AM44,,T59+1)-INDEX($S44:$AM44,,T63+1))/(T59-T63)) -> 0 | U67: 0 | V67: 0 | W67: 0 | X67: 0 | Y67: 0 | Z67: 0 | AA67: 0 | AB67: 0 | AC67: 0
G69: Total | I69: Trips | K69: =SUM(K66:K67) -> 9504.068783 | M69: =SUM(M66:M67) -> 12848 | S69: =SUM(S66:S67) -> 0 | T69: 1291.8 | U69: 1291.8 | V69: 1291.8 | W69: 1291.8 | X69: 1291.8 | Y69: 1277.8 | Z69: 1277.8 | AA69: 1277.8 | AB69: 1277.8 | AC69: 1277.8
G71: Future Demand as a percentage of Ultimate Demand | I71: % | M71: =M69/AC46 -> 0.1259286848
G73: Cumulative Total
G75: =G66 -> Citywide | I75: Trips | K75: =K50+K66 -> 98682.06878 | M75: =M50+M66 -> 102026 | S75: =IF(S$17=0,S50,R75+S66) -> 89178 | T75: 90469.8 | U75: 91761.6 | V75: 93053.4 | W75: 94345.2 | X75: 95637 | Y75: 96914.8 | Z75: 98192.6 | AA75: 99470.4 | AB75: 100748.2 | AC75: 102026
G76: =G67 -> Spare 1 | I76: Trips | K76: =K51+K67 -> 0 | M76: =M51+M67 -> 0 | S76: =IF(S$17=0,S51,R76+S67) -> 0 | T76: 0 | U76: 0 | V76: 0 | W76: 0 | X76: 0 | Y76: 0 | Z76: 0 | AA76: 0 | AB76: 0 | AC76: 0
G78: Total | I78: Trips | K78: =SUM(K75:K76) -> 98682.06878 | M78: =SUM(M75:M76) -> 102026 | S78: =SUM(S75:S76) -> 89178 | T78: 90469.8 | U78: 91761.6 | V78: 93053.4 | W78: 94345.2 | X78: 95637 | Y78: 96914.8 | Z78: 98192.6 | AA78: 99470.4 | AB78: 100748.2 | AC78: 102026
G80: Internal checks | S80: =IF(S46>0,ROUND(S46-S78,IntAccuracy),0) -> 0 | T80: 0 | U80: 0 | V80: 0 | W80: 0 | X80: 0 | Y80: 0 | Z80: 0 | AA80: 0 | AB80: 0 | AC80: 0
F82: End of Page

Sheet Calculations
F19: =MID(CELL("filename",A15),FIND("]",CELL("filename",A15))+1,256) -> Calculations

Sheet Nominal cost (Ave)
F2: Brisbane City Council
F3: ='Input-Gen'!$F$3 -> Schedule of Works Model - Ferry termainals network
F5: Allocation | G5: NPV of Total Cost
G6: =IF(BaseCaseCheck=0,BaseCase,NotBaseCase) -> Please Note: Model is not currently applying Base Case parameter values
G7: =IF(Integrity=0,IntOK,IntErr) -> 
G9: Period Number | K9: ="NPV as at" & " " & TEXT(Model_Start_Date-1,"dd-mmm-yyyy") -> NPV as at 30-Jun-2016 | M9: Difference between Input Value & Nominal Value | Q9: Total Nominal Value | S9: =ForecastPeriod -> 0 | T9: 1 | U9: 2 | V9: 3 | W9: 4 | X9: 5 | Y9: 6 | Z9: 7 | AA9: 8 | AB9: 9 | AC9: 10 | AD9: 0 | AE9: 0 | AF9: 0 | AG9: 0 | AH9: 0 | AI9: 0 | AJ9: 0 | AK9: 0 | AL9: 0 | AM9: 0
G10: Period Beginning Date | S10: =FY_Begin -> 2015-07-01 | T10: 2016-07-01 | U10: 2017-07-01 | V10: 2018-07-01 | W10: 2019-07-01 | X10: 2020-07-01 | Y10: 2021-07-01 | Z10: 2022-07-01 | AA10: 2023-07-01 | AB10: 2024-07-01 | AC10: 2025-07-01
G11: Period Ending Date | S11: =FY_End -> 2016-06-30 | T11: 2017-06-30 | U11: 2018-06-30 | V11: 2019-06-30 | W11: 2020-06-30 | X11: 2021-06-30 | Y11: 2022-06-30 | Z11: 2023-06-30 | AA11: 2024-06-30 | AB11: 2025-06-30 | AC11: 2026-06-30
F15: Indexation Calculations
G17: Cost and Revenue Indices
G18: Consumer Price Index (CPI) | I18: # | S18: ='Input-Time Series'!S31 -> 1 | T18: ='Input-Time Series'!T31 -> 1.025 | U18: ='Input-Time Series'!U31 -> 1.050625 | V18: ='Input-Time Series'!V31 -> 1.076890625 | W18: ='Input-Time Series'!W31 -> 1.103812891 | X18: ='Input-Time Series'!X31 -> 1.131408213 | Y18: ='Input-Time Series'!Y31 -> 1.159693418 | Z18: ='Input-Time Series'!Z31 -> 1.188685754 | AA18: ='Input-Time Series'!AA31 -> 1.218402898 | AB18: ='Input-Time Series'!AB31 -> 1.24886297 | AC18: ='Input-Time Series'!AC31 -> 1.280084544
G19: Land cost escalation | I19: # | S19: ='Input-Time Series'!S32 -> 1 | T19: ='Input-Time Series'!T32 -> 1.025 | U19: ='Input-Time Series'!U32 -> 1.050625 | V19: ='Input-Time Series'!V32 -> 1.076890625 | W19: ='Input-Time Series'!W32 -> 1.103812891 | X19: ='Input-Time Series'!X32 -> 1.131408213 | Y19: ='Input-Time Series'!Y32 -> 1.159693418 | Z19: ='Input-Time Series'!Z32 -> 1.188685754 | AA19: ='Input-Time Series'!AA32 -> 1.218402898 | AB19: ='Input-Time Series'!AB32 -> 1.24886297 | AC19: ='Input-Time Series'!AC32 -> 1.280084544
G20: Constructed Asset cost escalation | I20: # | S20: ='Input-Time Series'!S33 -> 1 | T20: ='Input-Time Series'!T33 -> 1.018725812 | U20: ='Input-Time Series'!U33 -> 1.037802281 | V20: ='Input-Time Series'!V33 -> 1.057235971 | W20: ='Input-Time Series'!W33 -> 1.077033574 | X20: ='Input-Time Series'!X33 -> 1.097201902 | Y20: ='Input-Time Series'!Y33 -> 1.117747899 | Z20: ='Input-Time Series'!Z33 -> 1.138678636 | AA20: ='Input-Time Series'!AA33 -> 1.160001319 | AB20: ='Input-Time Series'!AB33 -> 1.181723286 | AC20: ='Input-Time Series'!AC33 -> 1.203852014
G21: Administration cost escalation | I21: # | S21: ='Input-Time Series'!S34 -> 1 | T21: ='Input-Time Series'!T34 -> 1.0125 | U21: ='Input-Time Series'!U34 -> 1.042875 | V21: ='Input-Time Series'!V34 -> 1.068946875 | W21: ='Input-Time Series'!W34 -> 1.095670547 | X21: ='Input-Time Series'!X34 -> 1.123062311 | Y21: ='Input-Time Series'!Y34 -> 1.151138868 | Z21: ='Input-Time Series'!Z34 -> 1.17991734 | AA21: ='Input-Time Series'!AA34 -> 1.209415274 | AB21: ='Input-Time Series'!AB34 -> 1.239650655 | AC21: ='Input-Time Series'!AC34 -> 1.270641922
G22: Spare 1 cost escalation | I22: # | S22: ='Input-Time Series'!S35 -> 1 | T22: ='Input-Time Series'!T35 -> 1 | U22: ='Input-Time Series'!U35 -> 1 | V22: ='Input-Time Series'!V35 -> 1 | W22: ='Input-Time Series'!W35 -> 1 | X22: ='Input-Time Series'!X35 -> 1 | Y22: ='Input-Time Series'!Y35 -> 1 | Z22: ='Input-Time Series'!Z35 -> 1 | AA22: ='Input-Time Series'!AA35 -> 1 | AB22: ='Input-Time Series'!AB35 -> 1 | AC22: ='Input-Time Series'!AC35 -> 1
G23: Revenue escalation | I23: # | S23: ='Input-Time Series'!S36 -> 1 | T23: ='Input-Time Series'!T36 -> 1 | U23: ='Input-Time Series'!U36 -> 1 | V23: ='Input-Time Series'!V36 -> 1 | W23: ='Input-Time Series'!W36 -> 1 | X23: ='Input-Time Series'!X36 -> 1 | Y23: ='Input-Time Series'!Y36 -> 1 | Z23: ='Input-Time Series'!Z36 -> 1 | AA23: ='Input-Time Series'!AA36 -> 1 | AB23: ='Input-Time Series'!AB36 -> 1 | AC23: ='Input-Time Series'!AC36 -> 1
F26: Total costs
G28: Existing Infrastructure
G30: =Existing -> Citywide Total | I30: $'000 | K30: =NPV(WACC_nom,T30:AC30)+S30 -> 136452.5 | Q30: =SUM(S30:AC30) -> 136452.5 | S30: =IF('Input-Infra'!$AI25>='Input-Gen'!$M$33,S109,0) + S206 + S364 -S443 -> 136452.5 | T30: =IF('Input-Infra'!$AI25>='Input-Gen'!$M$33,T109,0) + T206 + T364 -T443 -> 0 | U30: =IF('Input-Infra'!$AI25>='Input-Gen'!$M$33,U109,0) + U206 + U364 -U443 -> 0 | V30: =IF('Input-Infra'!$AI25>='Input-Gen'!$M$33,V109,0) + V206 + V364 -V443 -> 0 | W30: =IF('Input-Infra'!$AI25>='Input-Gen'!$M$33,W109,0) + W206 + W364 -W443 -> 0 | X30: =IF('Input-Infra'!$AI25>='Input-Gen'!$M$33,X109,0) + X206 + X364 -X443 -> 0 | Y30: =IF('Input-Infra'!$AI25>='Input-Gen'!$M$33,Y109,0) + Y206 + Y364 -Y443 -> 0 | Z30: =IF('Input-Infra'!$AI25>='Input-Gen'!$M$33,Z109,0) + Z206 + Z364 -Z443 -> 0 | AA30: =IF('Input-Infra'!$AI25>='Input-Gen'!$M$33,AA109,0) + AA206 + AA364 -AA443 -> 0 | AB30: =IF('Input-Infra'!$AI25>='Input-Gen'!$M$33,AB109,0) + AB206 + AB364 -AB443 -> 0 | AC30: =IF('Input-Infra'!$AI25>='Input-Gen'!$M$33,AC109,0) + AC206 + AC364 -AC443 -> 0
G31: Spare 1 | I31: $'000 | K31: 0 | Q31: =SUM(S31:AC31) -> 0 | S31: =IF('Input-Infra'!$AI26>='Input-Gen'!$M$33,S110,0) + S207 + S365 -S444 -> 0 | T31: =IF('Input-Infra'!$AI26>='Input-Gen'!$M$33,T110,0) + T207 + T365 -T444 -> 0 | U31: =IF('Input-Infra'!$AI26>='Input-Gen'!$M$33,U110,0) + U207 + U365 -U444 -> 0 | V31: =IF('Input-Infra'!$AI26>='Input-Gen'!$M$33,V110,0) + V207 + V365 -V444 -> 0 | W31: =IF('Input-Infra'!$AI26>='Input-Gen'!$M$33,W110,0) + W207 + W365 -W444 -> 0 | X31: =IF('Input-Infra'!$AI26>='Input-Gen'!$M$33,X110,0) + X207 + X365 -X444 -> 0 | Y31: =IF('Input-Infra'!$AI26>='Input-Gen'!$M$33,Y110,0) + Y207 + Y365 -Y444 -> 0 | Z31: =IF('Input-Infra'!$AI26>='Input-Gen'!$M$33,Z110,0) + Z207 + Z365 -Z444 -> 0 | AA31: =IF('Input-Infra'!$AI26>='Input-Gen'!$M$33,AA110,0) + AA207 + AA365 -AA444 -> 0 | AB31: =IF('Input-Infra'!$AI26>='Input-Gen'!$M$33,AB110,0) + AB207 + AB365 -AB444 -> 0 | AC31: =IF('Input-Infra'!$AI26>='Input-Gen'!$M$33,AC110,0) + AC207 + AC365 -AC444 -> 0
G32: Spare 2 | I32: $'000 | K32: 0 | Q32: 0 | S32: =IF('Input-Infra'!$AI27>='Input-Gen'!$M$33,S111,0) + S208 + S366 -S445 -> 0 | T32: =IF('Input-Infra'!$AI27>='Input-Gen'!$M$33,T111,0) + T208 + T366 -T445 -> 0 | U32: =IF('Input-Infra'!$AI27>='Input-Gen'!$M$33,U111,0) + U208 + U366 -U445 -> 0 | V32: =IF('Input-Infra'!$AI27>='Input-Gen'!$M$33,V111,0) + V208 + V366 -V445 -> 0 | W32: =IF('Input-Infra'!$AI27>='Input-Gen'!$M$33,W111,0) + W208 + W366 -W445 -> 0 | X32: =IF('Input-Infra'!$AI27>='Input-Gen'!$M$33,X111,0) + X208 + X366 -X445 -> 0 | Y32: =IF('Input-Infra'!$AI27>='Input-Gen'!$M$33,Y111,0) + Y208 + Y366 -Y445 -> 0 | Z32: =IF('Input-Infra'!$AI27>='Input-Gen'!$M$33,Z111,0) + Z208 + Z366 -Z445 -> 0 | AA32: =IF('Input-Infra'!$AI27>='Input-Gen'!$M$33,AA111,0) + AA208 + AA366 -AA445 -> 0 | AB32: =IF('Input-Infra'!$AI27>='Input-Gen'!$M$33,AB111,0) + AB208 + AB366 -AB445 -> 0 | AC32: =IF('Input-Infra'!$AI27>='Input-Gen'!$M$33,AC111,0) + AC208 + AC366 -AC445 -> 0
G33: Spare 3 | I33: $'000 | K33: 0 | Q33: 0 | S33: =IF('Input-Infra'!$AI28>='Input-Gen'!$M$33,S112,0) + S209 + S367 -S446 -> 0 | T33: =IF('Input-Infra'!$AI28>='Input-Gen'!$M$33,T112,0) + T209 + T367 -T446 -> 0 | U33: =IF('Input-Infra'!$AI28>='Input-Gen'!$M$33,U112,0) + U209 + U367 -U446 -> 0 | V33: =IF('Input-Infra'!$AI28>='Input-Gen'!$M$33,V112,0) + V209 + V367 -V446 -> 0 | W33: =IF('Input-Infra'!$AI28>='Input-Gen'!$M$33,W112,0) + W209 + W367 -W446 -> 0 | X33: =IF('Input-Infra'!$AI28>='Input-Gen'!$M$33,X112,0) + X209 + X367 -X446 -> 0 | Y33: =IF('Input-Infra'!$AI28>='Input-Gen'!$M$33,Y112,0) + Y209 + Y367 -Y446 -> 0 | Z33: =IF('Input-Infra'!$AI28>='Input-Gen'!$M$33,Z112,0) + Z209 + Z367 -Z446 -> 0 | AA33: =IF('Input-Infra'!$AI28>='Input-Gen'!$M$33,AA112,0) + AA209 + AA367 -AA446 -> 0 | AB33: =IF('Input-Infra'!$AI28>='Input-Gen'!$M$33,AB112,0) + AB209 + AB367 -AB446 -> 0 | AC33: =IF('Input-Infra'!$AI28>='Input-Gen'!$M$33,AC112,0) + AC209 + AC367 -AC446 -> 0
G34: Spare 4 | I34: $'000 | K34: 0 | Q34: 0 | S34: =IF('Input-Infra'!$AI29>='Input-Gen'!$M$33,S113,0) + S210 + S368 -S447 -> 0 | T34: =IF('Input-Infra'!$AI29>='Input-Gen'!$M$33,T113,0) + T210 + T368 -T447 -> 0 | U34: =IF('Input-Infra'!$AI29>='Input-Gen'!$M$33,U113,0) + U210 + U368 -U447 -> 0 | V34: =IF('Input-Infra'!$AI29>='Input-Gen'!$M$33,V113,0) + V210 + V368 -V447 -> 0 | W34: =IF('Input-Infra'!$AI29>='Input-Gen'!$M$33,W113,0) + W210 + W368 -W447 -> 0 | X34: =IF('Input-Infra'!$AI29>='Input-Gen'!$M$33,X113,0) + X210 + X368 -X447 -> 0 | Y34: =IF('Input-Infra'!$AI29>='Input-Gen'!$M$33,Y113,0) + Y210 + Y368 -Y447 -> 0 | Z34: =IF('Input-Infra'!$AI29>='Input-Gen'!$M$33,Z113,0) + Z210 + Z368 -Z447 -> 0 | AA34: =IF('Input-Infra'!$AI29>='Input-Gen'!$M$33,AA113,0) + AA210 + AA368 -AA447 -> 0 | AB34: =IF('Input-Infra'!$AI29>='Input-Gen'!$M$33,AB113,0) + AB210 + AB368 -AB447 -> 0 | AC34: =IF('Input-Infra'!$AI29>='Input-Gen'!$M$33,AC113,0) + AC210 + AC368 -AC447 -> 0
G35: Spare 5 | I35: $'000 | K35: 0 | Q35: 0 | S35: =IF('Input-Infra'!$AI30>='Input-Gen'!$M$33,S114,0) + S211 + S369 -S448 -> 0 | T35: =IF('Input-Infra'!$AI30>='Input-Gen'!$M$33,T114,0) + T211 + T369 -T448 -> 0 | U35: =IF('Input-Infra'!$AI30>='Input-Gen'!$M$33,U114,0) + U211 + U369 -U448 -> 0 | V35: =IF('Input-Infra'!$AI30>='Input-Gen'!$M$33,V114,0) + V211 + V369 -V448 -> 0 | W35: =IF('Input-Infra'!$AI30>='Input-Gen'!$M$33,W114,0) + W211 + W369 -W448 -> 0 | X35: =IF('Input-Infra'!$AI30>='Input-Gen'!$M$33,X114,0) + X211 + X369 -X448 -> 0 | Y35: =IF('Input-Infra'!$AI30>='Input-Gen'!$M$33,Y114,0) + Y211 + Y369 -Y448 -> 0 | Z35: =IF('Input-Infra'!$AI30>='Input-Gen'!$M$33,Z114,0) + Z211 + Z369 -Z448 -> 0 | AA35: =IF('Input-Infra'!$AI30>='Input-Gen'!$M$33,AA114,0) + AA211 + AA369 -AA448 -> 0 | AB35: =IF('Input-Infra'!$AI30>='Input-Gen'!$M$33,AB114,0) + AB211 + AB369 -AB448 -> 0 | AC35: =IF('Input-Infra'!$AI30>='Input-Gen'!$M$33,AC114,0) + AC211 + AC369 -AC448 -> 0
G36: Spare 6 | I36: $'000 | K36: 0 | Q36: 0 | S36: =IF('Input-Infra'!$AI31>='Input-Gen'!$M$33,S115,0) + S212 + S370 -S449 -> 0 | T36: =IF('Input-Infra'!$AI31>='Input-Gen'!$M$33,T115,0) + T212 + T370 -T449 -> 0 | U36: =IF('Input-Infra'!$AI31>='Input-Gen'!$M$33,U115,0) + U212 + U370 -U449 -> 0 | V36: =IF('Input-Infra'!$AI31>='Input-Gen'!$M$33,V115,0) + V212 + V370 -V449 -> 0 | W36: =IF('Input-Infra'!$AI31>='Input-Gen'!$M$33,W115,0) + W212 + W370 -W449 -> 0 | X36: =IF('Input-Infra'!$AI31>='Input-Gen'!$M$33,X115,0) + X212 + X370 -X449 -> 0 | Y36: =IF('Input-Infra'!$AI31>='Input-Gen'!$M$33,Y115,0) + Y212 + Y370 -Y449 -> 0 | Z36: =IF('Input-Infra'!$AI31>='Input-Gen'!$M$33,Z115,0) + Z212 + Z370 -Z449 -> 0 | AA36: =IF('Input-Infra'!$AI31>='Input-Gen'!$M$33,AA115,0) + AA212 + AA370 -AA449 -> 0 | AB36: =IF('Input-Infra'!$AI31>='Input-Gen'!$M$33,AB115,0) + AB212 + AB370 -AB449 -> 0 | AC36: =IF('Input-Infra'!$AI31>='Input-Gen'!$M$33,AC115,0) + AC212 + AC370 -AC449 -> 0
G37: Spare 7 | I37: $'000 | K37: 0 | Q37: 0 | S37: =IF('Input-Infra'!$AI32>='Input-Gen'!$M$33,S116,0) + S213 + S371 -S450 -> 0 | T37: =IF('Input-Infra'!$AI32>='Input-Gen'!$M$33,T116,0) + T213 + T371 -T450 -> 0 | U37: =IF('Input-Infra'!$AI32>='Input-Gen'!$M$33,U116,0) + U213 + U371 -U450 -> 0 | V37: =IF('Input-Infra'!$AI32>='Input-Gen'!$M$33,V116,0) + V213 + V371 -V450 -> 0 | W37: =IF('Input-Infra'!$AI32>='Input-Gen'!$M$33,W116,0) + W213 + W371 -W450 -> 0 | X37: =IF('Input-Infra'!$AI32>='Input-Gen'!$M$33,X116,0) + X213 + X371 -X450 -> 0 | Y37: =IF('Input-Infra'!$AI32>='Input-Gen'!$M$33,Y116,0) + Y213 + Y371 -Y450 -> 0 | Z37: =IF('Input-Infra'!$AI32>='Input-Gen'!$M$33,Z116,0) + Z213 + Z371 -Z450 -> 0 | AA37: =IF('Input-Infra'!$AI32>='Input-Gen'!$M$33,AA116,0) + AA213 + AA371 -AA450 -> 0 | AB37: =IF('Input-Infra'!$AI32>='Input-Gen'!$M$33,AB116,0) + AB213 + AB371 -AB450 -> 0 | AC37: =IF('Input-Infra'!$AI32>='Input-Gen'!$M$33,AC116,0) + AC213 + AC371 -AC450 -> 0
G38: Spare 8 | I38: $'000 | K38: 0 | Q38: 0 | S38: =IF('Input-Infra'!$AI33>='Input-Gen'!$M$33,S117,0) + S214 + S372 -S451 -> 0 | T38: =IF('Input-Infra'!$AI33>='Input-Gen'!$M$33,T117,0) + T214 + T372 -T451 -> 0 | U38: =IF('Input-Infra'!$AI33>='Input-Gen'!$M$33,U117,0) + U214 + U372 -U451 -> 0 | V38: =IF('Input-Infra'!$AI33>='Input-Gen'!$M$33,V117,0) + V214 + V372 -V451 -> 0 | W38: =IF('Input-Infra'!$AI33>='Input-Gen'!$M$33,W117,0) + W214 + W372 -W451 -> 0 | X38: =IF('Input-Infra'!$AI33>='Input-Gen'!$M$33,X117,0) + X214 + X372 -X451 -> 0 | Y38: =IF('Input-Infra'!$AI33>='Input-Gen'!$M$33,Y117,0) + Y214 + Y372 -Y451 -> 0 | Z38: =IF('Input-Infra'!$AI33>='Input-Gen'!$M$33,Z117,0) + Z214 + Z372 -Z451 -> 0 | AA38: =IF('Input-Infra'!$AI33>='Input-Gen'!$M$33,AA117,0) + AA214 + AA372 -AA451 -> 0 | AB38: =IF('Input-Infra'!$AI33>='Input-Gen'!$M$33,AB117,0) + AB214 + AB372 -AB451 -> 0 | AC38: =IF('Input-Infra'!$AI33>='Input-Gen'!$M$33,AC117,0) + AC214 + AC372 -AC451 -> 0
G39: Spare 9 | I39: $'000 | K39: 0 | Q39: 0 | S39: =IF('Input-Infra'!$AI34>='Input-Gen'!$M$33,S118,0) + S215 + S373 -S452 -> 0 | T39: =IF('Input-Infra'!$AI34>='Input-Gen'!$M$33,T118,0) + T215 + T373 -T452 -> 0 | U39: =IF('Input-Infra'!$AI34>='Input-Gen'!$M$33,U118,0) + U215 + U373 -U452 -> 0 | V39: =IF('Input-Infra'!$AI34>='Input-Gen'!$M$33,V118,0) + V215 + V373 -V452 -> 0 | W39: =IF('Input-Infra'!$AI34>='Input-Gen'!$M$33,W118,0) + W215 + W373 -W452 -> 0 | X39: =IF('Input-Infra'!$AI34>='Input-Gen'!$M$33,X118,0) + X215 + X373 -X452 -> 0 | Y39: =IF('Input-Infra'!$AI34>='Input-Gen'!$M$33,Y118,0) + Y215 + Y373 -Y452 -> 0 | Z39: =IF('Input-Infra'!$AI34>='Input-Gen'!$M$33,Z118,0) + Z215 + Z373 -Z452 -> 0 | AA39: =IF('Input-Infra'!$AI34>='Input-Gen'!$M$33,AA118,0) + AA215 + AA373 -AA452 -> 0 | AB39: =IF('Input-Infra'!$AI34>='Input-Gen'!$M$33,AB118,0) + AB215 + AB373 -AB452 -> 0 | AC39: =IF('Input-Infra'!$AI34>='Input-Gen'!$M$33,AC118,0) + AC215 + AC373 -AC452 -> 0
G40: Spare 10 | I40: $'000 | K40: 0 | Q40: 0 | S40: =IF('Input-Infra'!$AI35>='Input-Gen'!$M$33,S119,0) + S216 + S374 -S453 -> 0 | T40: =IF('Input-Infra'!$AI35>='Input-Gen'!$M$33,T119,0) + T216 + T374 -T453 -> 0 | U40: =IF('Input-Infra'!$AI35>='Input-Gen'!$M$33,U119,0) + U216 + U374 -U453 -> 0 | V40: =IF('Input-Infra'!$AI35>='Input-Gen'!$M$33,V119,0) + V216 + V374 -V453 -> 0 | W40: =IF('Input-Infra'!$AI35>='Input-Gen'!$M$33,W119,0) + W216 + W374 -W453 -> 0 | X40: =IF('Input-Infra'!$AI35>='Input-Gen'!$M$33,X119,0) + X216 + X374 -X453 -> 0 | Y40: =IF('Input-Infra'!$AI35>='Input-Gen'!$M$33,Y119,0) + Y216 + Y374 -Y453 -> 0 | Z40: =IF('Input-Infra'!$AI35>='Input-Gen'!$M$33,Z119,0) + Z216 + Z374 -Z453 -> 0 | AA40: =IF('Input-Infra'!$AI35>='Input-Gen'!$M$33,AA119,0) + AA216 + AA374 -AA453 -> 0 | AB40: =IF('Input-Infra'!$AI35>='Input-Gen'!$M$33,AB119,0) + AB216 + AB374 -AB453 -> 0 | AC40: =IF('Input-Infra'!$AI35>='Input-Gen'!$M$33,AC119,0) + AC216 + AC374 -AC453 -> 0
G41: Spare 11 | I41: $'000 | K41: 0 | Q41: 0 | S41: =IF('Input-Infra'!$AI36>='Input-Gen'!$M$33,S120,0) + S217 + S375 -S454 -> 0 | T41: =IF('Input-Infra'!$AI36>='Input-Gen'!$M$33,T120,0) + T217 + T375 -T454 -> 0 | U41: =IF('Input-Infra'!$AI36>='Input-Gen'!$M$33,U120,0) + U217 + U375 -U454 -> 0 | V41: =IF('Input-Infra'!$AI36>='Input-Gen'!$M$33,V120,0) + V217 + V375 -V454 -> 0 | W41: =IF('Input-Infra'!$AI36>='Input-Gen'!$M$33,W120,0) + W217 + W375 -W454 -> 0 | X41: =IF('Input-Infra'!$AI36>='Input-Gen'!$M$33,X120,0) + X217 + X375 -X454 -> 0 | Y41: =IF('Input-Infra'!$AI36>='Input-Gen'!$M$33,Y120,0) + Y217 + Y375 -Y454 -> 0 | Z41: =IF('Input-Infra'!$AI36>='Input-Gen'!$M$33,Z120,0) + Z217 + Z375 -Z454 -> 0 | AA41: =IF('Input-Infra'!$AI36>='Input-Gen'!$M$33,AA120,0) + AA217 + AA375 -AA454 -> 0 | AB41: =IF('Input-Infra'!$AI36>='Input-Gen'!$M$33,AB120,0) + AB217 + AB375 -AB454 -> 0 | AC41: =IF('Input-Infra'!$AI36>='Input-Gen'!$M$33,AC120,0) + AC217 + AC375 -AC454 -> 0
G42: Spare 12 | I42: $'000 | K42: 0 | Q42: 0 | S42: =IF('Input-Infra'!$AI37>='Input-Gen'!$M$33,S121,0) + S218 + S376 -S455 -> 0 | T42: =IF('Input-Infra'!$AI37>='Input-Gen'!$M$33,T121,0) + T218 + T376 -T455 -> 0 | U42: =IF('Input-Infra'!$AI37>='Input-Gen'!$M$33,U121,0) + U218 + U376 -U455 -> 0 | V42: =IF('Input-Infra'!$AI37>='Input-Gen'!$M$33,V121,0) + V218 + V376 -V455 -> 0 | W42: =IF('Input-Infra'!$AI37>='Input-Gen'!$M$33,W121,0) + W218 + W376 -W455 -> 0 | X42: =IF('Input-Infra'!$AI37>='Input-Gen'!$M$33,X121,0) + X218 + X376 -X455 -> 0 | Y42: =IF('Input-Infra'!$AI37>='Input-Gen'!$M$33,Y121,0) + Y218 + Y376 -Y455 -> 0 | Z42: =IF('Input-Infra'!$AI37>='Input-Gen'!$M$33,Z121,0) + Z218 + Z376 -Z455 -> 0 | AA42: =IF('Input-Infra'!$AI37>='Input-Gen'!$M$33,AA121,0) + AA218 + AA376 -AA455 -> 0 | AB42: =IF('Input-Infra'!$AI37>='Input-Gen'!$M$33,AB121,0) + AB218 + AB376 -AB455 -> 0 | AC42: =IF('Input-Infra'!$AI37>='Input-Gen'!$M$33,AC121,0) + AC218 + AC376 -AC455 -> 0
G43: Spare 13 | I43: $'000 | K43: 0 | Q43: 0 | S43: =IF('Input-Infra'!$AI38>='Input-Gen'!$M$33,S122,0) + S219 + S377 -S456 -> 0 | T43: =IF('Input-Infra'!$AI38>='Input-Gen'!$M$33,T122,0) + T219 + T377 -T456 -> 0 | U43: =IF('Input-Infra'!$AI38>='Input-Gen'!$M$33,U122,0) + U219 + U377 -U456 -> 0 | V43: =IF('Input-Infra'!$AI38>='Input-Gen'!$M$33,V122,0) + V219 + V377 -V456 -> 0 | W43: =IF('Input-Infra'!$AI38>='Input-Gen'!$M$33,W122,0) + W219 + W377 -W456 -> 0 | X43: =IF('Input-Infra'!$AI38>='Input-Gen'!$M$33,X122,0) + X219 + X377 -X456 -> 0 | Y43: =IF('Input-Infra'!$AI38>='Input-Gen'!$M$33,Y122,0) + Y219 + Y377 -Y456 -> 0 | Z43: =IF('Input-Infra'!$AI38>='Input-Gen'!$M$33,Z122,0) + Z219 + Z377 -Z456 -> 0 | AA43: =IF('Input-Infra'!$AI38>='Input-Gen'!$M$33,AA122,0) + AA219 + AA377 -AA456 -> 0 | AB43: =IF('Input-Infra'!$AI38>='Input-Gen'!$M$33,AB122,0) + AB219 + AB377 -AB456 -> 0 | AC43: =IF('Input-Infra'!$AI38>='Input-Gen'!$M$33,AC122,0) + AC219 + AC377 -AC456 -> 0
G44: Spare 14 | I44: $'000 | K44: 0 | Q44: 0 | S44: =IF('Input-Infra'!$AI39>='Input-Gen'!$M$33,S123,0) + S220 + S378 -S457 -> 0 | T44: =IF('Input-Infra'!$AI39>='Input-Gen'!$M$33,T123,0) + T220 + T378 -T457 -> 0 | U44: =IF('Input-Infra'!$AI39>='Input-Gen'!$M$33,U123,0) + U220 + U378 -U457 -> 0 | V44: =IF('Input-Infra'!$AI39>='Input-Gen'!$M$33,V123,0) + V220 + V378 -V457 -> 0 | W44: =IF('Input-Infra'!$AI39>='Input-Gen'!$M$33,W123,0) + W220 + W378 -W457 -> 0 | X44: =IF('Input-Infra'!$AI39>='Input-Gen'!$M$33,X123,0) + X220 + X378 -X457 -> 0 | Y44: =IF('Input-Infra'!$AI39>='Input-Gen'!$M$33,Y123,0) + Y220 + Y378 -Y457 -> 0 | Z44: =IF('Input-Infra'!$AI39>='Input-Gen'!$M$33,Z123,0) + Z220 + Z378 -Z457 -> 0 | AA44: =IF('Input-Infra'!$AI39>='Input-Gen'!$M$33,AA123,0) + AA220 + AA378 -AA457 -> 0 | AB44: =IF('Input-Infra'!$AI39>='Input-Gen'!$M$33,AB123,0) + AB220 + AB378 -AB457 -> 0 | AC44: =IF('Input-Infra'!$AI39>='Input-Gen'!$M$33,AC123,0) + AC220 + AC378 -AC457 -> 0
G45: Spare 15 | I45: $'000 | K45: 0 | Q45: 0 | S45: =IF('Input-Infra'!$AI40>='Input-Gen'!$M$33,S124,0) + S221 + S379 -S458 -> 0 | T45: =IF('Input-Infra'!$AI40>='Input-Gen'!$M$33,T124,0) + T221 + T379 -T458 -> 0 | U45: =IF('Input-Infra'!$AI40>='Input-Gen'!$M$33,U124,0) + U221 + U379 -U458 -> 0 | V45: =IF('Input-Infra'!$AI40>='Input-Gen'!$M$33,V124,0) + V221 + V379 -V458 -> 0 | W45: =IF('Input-Infra'!$AI40>='Input-Gen'!$M$33,W124,0) + W221 + W379 -W458 -> 0 | X45: =IF('Input-Infra'!$AI40>='Input-Gen'!$M$33,X124,0) + X221 + X379 -X458 -> 0 | Y45: =IF('Input-Infra'!$AI40>='Input-Gen'!$M$33,Y124,0) + Y221 + Y379 -Y458 -> 0 | Z45: =IF('Input-Infra'!$AI40>='Input-Gen'!$M$33,Z124,0) + Z221 + Z379 -Z458 -> 0 | AA45: =IF('Input-Infra'!$AI40>='Input-Gen'!$M$33,AA124,0) + AA221 + AA379 -AA458 -> 0 | AB45: =IF('Input-Infra'!$AI40>='Input-Gen'!$M$33,AB124,0) + AB221 + AB379 -AB458 -> 0 | AC45: =IF('Input-Infra'!$AI40>='Input-Gen'!$M$33,AC124,0) + AC221 + AC379 -AC458 -> 0
G46: Spare 16 | I46: $'000 | K46: 0 | Q46: 0 | S46: =IF('Input-Infra'!$AI41>='Input-Gen'!$M$33,S125,0) + S222 + S380 -S459 -> 0 | T46: =IF('Input-Infra'!$AI41>='Input-Gen'!$M$33,T125,0) + T222 + T380 -T459 -> 0 | U46: =IF('Input-Infra'!$AI41>='Input-Gen'!$M$33,U125,0) + U222 + U380 -U459 -> 0 | V46: =IF('Input-Infra'!$AI41>='Input-Gen'!$M$33,V125,0) + V222 + V380 -V459 -> 0 | W46: =IF('Input-Infra'!$AI41>='Input-Gen'!$M$33,W125,0) + W222 + W380 -W459 -> 0 | X46: =IF('Input-Infra'!$AI41>='Input-Gen'!$M$33,X125,0) + X222 + X380 -X459 -> 0 | Y46: =IF('Input-Infra'!$AI41>='Input-Gen'!$M$33,Y125,0) + Y222 + Y380 -Y459 -> 0 | Z46: =IF('Input-Infra'!$AI41>='Input-Gen'!$M$33,Z125,0) + Z222 + Z380 -Z459 -> 0 | AA46: =IF('Input-Infra'!$AI41>='Input-Gen'!$M$33,AA125,0) + AA222 + AA380 -AA459 -> 0 | AB46: =IF('Input-Infra'!$AI41>='Input-Gen'!$M$33,AB125,0) + AB222 + AB380 -AB459 -> 0 | AC46: =IF('Input-Infra'!$AI41>='Input-Gen'!$M$33,AC125,0) + AC222 + AC380 -AC459 -> 0
G47: Spare 17 | I47: $'000 | K47: 0 | Q47: 0 | S47: =IF('Input-Infra'!$AI42>='Input-Gen'!$M$33,S126,0) + S223 + S381 -S460 -> 0 | T47: =IF('Input-Infra'!$AI42>='Input-Gen'!$M$33,T126,0) + T223 + T381 -T460 -> 0 | U47: =IF('Input-Infra'!$AI42>='Input-Gen'!$M$33,U126,0) + U223 + U381 -U460 -> 0 | V47: =IF('Input-Infra'!$AI42>='Input-Gen'!$M$33,V126,0) + V223 + V381 -V460 -> 0 | W47: =IF('Input-Infra'!$AI42>='Input-Gen'!$M$33,W126,0) + W223 + W381 -W460 -> 0 | X47: =IF('Input-Infra'!$AI42>='Input-Gen'!$M$33,X126,0) + X223 + X381 -X460 -> 0 | Y47: =IF('Input-Infra'!$AI42>='Input-Gen'!$M$33,Y126,0) + Y223 + Y381 -Y460 -> 0 | Z47: =IF('Input-Infra'!$AI42>='Input-Gen'!$M$33,Z126,0) + Z223 + Z381 -Z460 -> 0 | AA47: =IF('Input-Infra'!$AI42>='Input-Gen'!$M$33,AA126,0) + AA223 + AA381 -AA460 -> 0 | AB47: =IF('Input-Infra'!$AI42>='Input-Gen'!$M$33,AB126,0) + AB223 + AB381 -AB460 -> 0 | AC47: =IF('Input-Infra'!$AI42>='Input-Gen'!$M$33,AC126,0) + AC223 + AC381 -AC460 -> 0
G48: Spare 18 | I48: $'000 | K48: 0 | Q48: 0 | S48: =IF('Input-Infra'!$AI43>='Input-Gen'!$M$33,S127,0) + S224 + S382 -S461 -> 0 | T48: =IF('Input-Infra'!$AI43>='Input-Gen'!$M$33,T127,0) + T224 + T382 -T461 -> 0 | U48: =IF('Input-Infra'!$AI43>='Input-Gen'!$M$33,U127,0) + U224 + U382 -U461 -> 0 | V48: =IF('Input-Infra'!$AI43>='Input-Gen'!$M$33,V127,0) + V224 + V382 -V461 -> 0 | W48: =IF('Input-Infra'!$AI43>='Input-Gen'!$M$33,W127,0) + W224 + W382 -W461 -> 0 | X48: =IF('Input-Infra'!$AI43>='Input-Gen'!$M$33,X127,0) + X224 + X382 -X461 -> 0 | Y48: =IF('Input-Infra'!$AI43>='Input-Gen'!$M$33,Y127,0) + Y224 + Y382 -Y461 -> 0 | Z48: =IF('Input-Infra'!$AI43>='Input-Gen'!$M$33,Z127,0) + Z224 + Z382 -Z461 -> 0 | AA48: =IF('Input-Infra'!$AI43>='Input-Gen'!$M$33,AA127,0) + AA224 + AA382 -AA461 -> 0 | AB48: =IF('Input-Infra'!$AI43>='Input-Gen'!$M$33,AB127,0) + AB224 + AB382 -AB461 -> 0 | AC48: =IF('Input-Infra'!$AI43>='Input-Gen'!$M$33,AC127,0) + AC224 + AC382 -AC461 -> 0
G49: Spare 19 | I49: $'000 | K49: 0 | Q49: 0 | S49: =IF('Input-Infra'!$AI44>='Input-Gen'!$M$33,S128,0) + S225 + S383 -S462 -> 0 | T49: =IF('Input-Infra'!$AI44>='Input-Gen'!$M$33,T128,0) + T225 + T383 -T462 -> 0 | U49: =IF('Input-Infra'!$AI44>='Input-Gen'!$M$33,U128,0) + U225 + U383 -U462 -> 0 | V49: =IF('Input-Infra'!$AI44>='Input-Gen'!$M$33,V128,0) + V225 + V383 -V462 -> 0 | W49: =IF('Input-Infra'!$AI44>='Input-Gen'!$M$33,W128,0) + W225 + W383 -W462 -> 0 | X49: =IF('Input-Infra'!$AI44>='Input-Gen'!$M$33,X128,0) + X225 + X383 -X462 -> 0 | Y49: =IF('Input-Infra'!$AI44>='Input-Gen'!$M$33,Y128,0) + Y225 + Y383 -Y462 -> 0 | Z49: =IF('Input-Infra'!$AI44>='Input-Gen'!$M$33,Z128,0) + Z225 + Z383 -Z462 -> 0 | AA49: =IF('Input-Infra'!$AI44>='Input-Gen'!$M$33,AA128,0) + AA225 + AA383 -AA462 -> 0 | AB49: =IF('Input-Infra'!$AI44>='Input-Gen'!$M$33,AB128,0) + AB225 + AB383 -AB462 -> 0 | AC49: =IF('Input-Infra'!$AI44>='Input-Gen'!$M$33,AC128,0) + AC225 + AC383 -AC462 -> 0
G50: Spare 20 | I50: $'000 | K50: 0 | Q50: 0 | S50: =IF('Input-Infra'!$AI45>='Input-Gen'!$M$33,S129,0) + S226 + S384 -S463 -> 0 | T50: =IF('Input-Infra'!$AI45>='Input-Gen'!$M$33,T129,0) + T226 + T384 -T463 -> 0 | U50: =IF('Input-Infra'!$AI45>='Input-Gen'!$M$33,U129,0) + U226 + U384 -U463 -> 0 | V50: =IF('Input-Infra'!$AI45>='Input-Gen'!$M$33,V129,0) + V226 + V384 -V463 -> 0 | W50: =IF('Input-Infra'!$AI45>='Input-Gen'!$M$33,W129,0) + W226 + W384 -W463 -> 0 | X50: =IF('Input-Infra'!$AI45>='Input-Gen'!$M$33,X129,0) + X226 + X384 -X463 -> 0 | Y50: =IF('Input-Infra'!$AI45>='Input-Gen'!$M$33,Y129,0) + Y226 + Y384 -Y463 -> 0 | Z50: =IF('Input-Infra'!$AI45>='Input-Gen'!$M$33,Z129,0) + Z226 + Z384 -Z463 -> 0 | AA50: =IF('Input-Infra'!$AI45>='Input-Gen'!$M$33,AA129,0) + AA226 + AA384 -AA463 -> 0 | AB50: =IF('Input-Infra'!$AI45>='Input-Gen'!$M$33,AB129,0) + AB226 + AB384 -AB463 -> 0 | AC50: =IF('Input-Infra'!$AI45>='Input-Gen'!$M$33,AC129,0) + AC226 + AC384 -AC463 -> 0
G51: Spare 21 | I51: $'000 | K51: 0 | Q51: 0 | S51: =IF('Input-Infra'!$AI46>='Input-Gen'!$M$33,S130,0) + S227 + S385 -S464 -> 0 | T51: =IF('Input-Infra'!$AI46>='Input-Gen'!$M$33,T130,0) + T227 + T385 -T464 -> 0 | U51: =IF('Input-Infra'!$AI46>='Input-Gen'!$M$33,U130,0) + U227 + U385 -U464 -> 0 | V51: =IF('Input-Infra'!$AI46>='Input-Gen'!$M$33,V130,0) + V227 + V385 -V464 -> 0 | W51: =IF('Input-Infra'!$AI46>='Input-Gen'!$M$33,W130,0) + W227 + W385 -W464 -> 0 | X51: =IF('Input-Infra'!$AI46>='Input-Gen'!$M$33,X130,0) + X227 + X385 -X464 -> 0 | Y51: =IF('Input-Infra'!$AI46>='Input-Gen'!$M$33,Y130,0) + Y227 + Y385 -Y464 -> 0 | Z51: =IF('Input-Infra'!$AI46>='Input-Gen'!$M$33,Z130,0) + Z227 + Z385 -Z464 -> 0 | AA51: =IF('Input-Infra'!$AI46>='Input-Gen'!$M$33,AA130,0) + AA227 + AA385 -AA464 -> 0 | AB51: =IF('Input-Infra'!$AI46>='Input-Gen'!$M$33,AB130,0) + AB227 + AB385 -AB464 -> 0 | AC51: =IF('Input-Infra'!$AI46>='Input-Gen'!$M$33,AC130,0) + AC227 + AC385 -AC464 -> 0
G52: Spare 22 | I52: $'000 | K52: 0 | Q52: 0 | S52: =IF('Input-Infra'!$AI47>='Input-Gen'!$M$33,S131,0) + S228 + S386 -S465 -> 0 | T52: =IF('Input-Infra'!$AI47>='Input-Gen'!$M$33,T131,0) + T228 + T386 -T465 -> 0 | U52: =IF('Input-Infra'!$AI47>='Input-Gen'!$M$33,U131,0) + U228 + U386 -U465 -> 0 | V52: =IF('Input-Infra'!$AI47>='Input-Gen'!$M$33,V131,0) + V228 + V386 -V465 -> 0 | W52: =IF('Input-Infra'!$AI47>='Input-Gen'!$M$33,W131,0) + W228 + W386 -W465 -> 0 | X52: =IF('Input-Infra'!$AI47>='Input-Gen'!$M$33,X131,0) + X228 + X386 -X465 -> 0 | Y52: =IF('Input-Infra'!$AI47>='Input-Gen'!$M$33,Y131,0) + Y228 + Y386 -Y465 -> 0 | Z52: =IF('Input-Infra'!$AI47>='Input-Gen'!$M$33,Z131,0) + Z228 + Z386 -Z465 -> 0 | AA52: =IF('Input-Infra'!$AI47>='Input-Gen'!$M$33,AA131,0) + AA228 + AA386 -AA465 -> 0 | AB52: =IF('Input-Infra'!$AI47>='Input-Gen'!$M$33,AB131,0) + AB228 + AB386 -AB465 -> 0 | AC52: =IF('Input-Infra'!$AI47>='Input-Gen'!$M$33,AC131,0) + AC228 + AC386 -AC465 -> 0
G53: Spare 23 | I53: $'000 | K53: 0 | Q53: 0 | S53: =IF('Input-Infra'!$AI48>='Input-Gen'!$M$33,S132,0) + S229 + S387 -S466 -> 0 | T53: =IF('Input-Infra'!$AI48>='Input-Gen'!$M$33,T132,0) + T229 + T387 -T466 -> 0 | U53: =IF('Input-Infra'!$AI48>='Input-Gen'!$M$33,U132,0) + U229 + U387 -U466 -> 0 | V53: =IF('Input-Infra'!$AI48>='Input-Gen'!$M$33,V132,0) + V229 + V387 -V466 -> 0 | W53: =IF('Input-Infra'!$AI48>='Input-Gen'!$M$33,W132,0) + W229 + W387 -W466 -> 0 | X53: =IF('Input-Infra'!$AI48>='Input-Gen'!$M$33,X132,0) + X229 + X387 -X466 -> 0 | Y53: =IF('Input-Infra'!$AI48>='Input-Gen'!$M$33,Y132,0) + Y229 + Y387 -Y466 -> 0 | Z53: =IF('Input-Infra'!$AI48>='Input-Gen'!$M$33,Z132,0) + Z229 + Z387 -Z466 -> 0 | AA53: =IF('Input-Infra'!$AI48>='Input-Gen'!$M$33,AA132,0) + AA229 + AA387 -AA466 -> 0 | AB53: =IF('Input-Infra'!$AI48>='Input-Gen'!$M$33,AB132,0) + AB229 + AB387 -AB466 -> 0 | AC53: =IF('Input-Infra'!$AI48>='Input-Gen'!$M$33,AC132,0) + AC229 + AC387 -AC466 -> 0
G54: Spare 24 | I54: $'000 | K54: 0 | Q54: 0 | S54: =IF('Input-Infra'!$AI49>='Input-Gen'!$M$33,S133,0) + S230 + S388 -S467 -> 0 | T54: =IF('Input-Infra'!$AI49>='Input-Gen'!$M$33,T133,0) + T230 + T388 -T467 -> 0 | U54: =IF('Input-Infra'!$AI49>='Input-Gen'!$M$33,U133,0) + U230 + U388 -U467 -> 0 | V54: =IF('Input-Infra'!$AI49>='Input-Gen'!$M$33,V133,0) + V230 + V388 -V467 -> 0 | W54: =IF('Input-Infra'!$AI49>='Input-Gen'!$M$33,W133,0) + W230 + W388 -W467 -> 0 | X54: =IF('Input-Infra'!$AI49>='Input-Gen'!$M$33,X133,0) + X230 + X388 -X467 -> 0 | Y54: =IF('Input-Infra'!$AI49>='Input-Gen'!$M$33,Y133,0) + Y230 + Y388 -Y467 -> 0 | Z54: =IF('Input-Infra'!$AI49>='Input-Gen'!$M$33,Z133,0) + Z230 + Z388 -Z467 -> 0 | AA54: =IF('Input-Infra'!$AI49>='Input-Gen'!$M$33,AA133,0) + AA230 + AA388 -AA467 -> 0 | AB54: =IF('Input-Infra'!$AI49>='Input-Gen'!$M$33,AB133,0) + AB230 + AB388 -AB467 -> 0 | AC54: =IF('Input-Infra'!$AI49>='Input-Gen'!$M$33,AC133,0) + AC230 + AC388 -AC467 -> 0
G55: Spare 25 | I55: $'000 | K55: 0 | Q55: 0 | S55: =IF('Input-Infra'!$AI50>='Input-Gen'!$M$33,S134,0) + S231 + S389 -S468 -> 0 | T55: =IF('Input-Infra'!$AI50>='Input-Gen'!$M$33,T134,0) + T231 + T389 -T468 -> 0 | U55: =IF('Input-Infra'!$AI50>='Input-Gen'!$M$33,U134,0) + U231 + U389 -U468 -> 0 | V55: =IF('Input-Infra'!$AI50>='Input-Gen'!$M$33,V134,0) + V231 + V389 -V468 -> 0 | W55: =IF('Input-Infra'!$AI50>='Input-Gen'!$M$33,W134,0) + W231 + W389 -W468 -> 0 | X55: =IF('Input-Infra'!$AI50>='Input-Gen'!$M$33,X134,0) + X231 + X389 -X468 -> 0 | Y55: =IF('Input-Infra'!$AI50>='Input-Gen'!$M$33,Y134,0) + Y231 + Y389 -Y468 -> 0 | Z55: =IF('Input-Infra'!$AI50>='Input-Gen'!$M$33,Z134,0) + Z231 + Z389 -Z468 -> 0 | AA55: =IF('Input-Infra'!$AI50>='Input-Gen'!$M$33,AA134,0) + AA231 + AA389 -AA468 -> 0 | AB55: =IF('Input-Infra'!$AI50>='Input-Gen'!$M$33,AB134,0) + AB231 + AB389 -AB468 -> 0 | AC55: =IF('Input-Infra'!$AI50>='Input-Gen'!$M$33,AC134,0) + AC231 + AC389 -AC468 -> 0
G56: Spare 26 | I56: $'000 | K56: 0 | Q56: 0 | S56: =IF('Input-Infra'!$AI51>='Input-Gen'!$M$33,S135,0) + S232 + S390 -S469 -> 0 | T56: =IF('Input-Infra'!$AI51>='Input-Gen'!$M$33,T135,0) + T232 + T390 -T469 -> 0 | U56: =IF('Input-Infra'!$AI51>='Input-Gen'!$M$33,U135,0) + U232 + U390 -U469 -> 0 | V56: =IF('Input-Infra'!$AI51>='Input-Gen'!$M$33,V135,0) + V232 + V390 -V469 -> 0 | W56: =IF('Input-Infra'!$AI51>='Input-Gen'!$M$33,W135,0) + W232 + W390 -W469 -> 0 | X56: =IF('Input-Infra'!$AI51>='Input-Gen'!$M$33,X135,0) + X232 + X390 -X469 -> 0 | Y56: =IF('Input-Infra'!$AI51>='Input-Gen'!$M$33,Y135,0) + Y232 + Y390 -Y469 -> 0 | Z56: =IF('Input-Infra'!$AI51>='Input-Gen'!$M$33,Z135,0) + Z232 + Z390 -Z469 -> 0 | AA56: =IF('Input-Infra'!$AI51>='Input-Gen'!$M$33,AA135,0) + AA232 + AA390 -AA469 -> 0 | AB56: =IF('Input-Infra'!$AI51>='Input-Gen'!$M$33,AB135,0) + AB232 + AB390 -AB469 -> 0 | AC56: =IF('Input-Infra'!$AI51>='Input-Gen'!$M$33,AC135,0) + AC232 + AC390 -AC469 -> 0
G57: Spare 27 | I57: $'000 | K57: 0 | Q57: 0 | S57: =IF('Input-Infra'!$AI52>='Input-Gen'!$M$33,S136,0) + S233 + S391 -S470 -> 0 | T57: =IF('Input-Infra'!$AI52>='Input-Gen'!$M$33,T136,0) + T233 + T391 -T470 -> 0 | U57: =IF('Input-Infra'!$AI52>='Input-Gen'!$M$33,U136,0) + U233 + U391 -U470 -> 0 | V57: =IF('Input-Infra'!$AI52>='Input-Gen'!$M$33,V136,0) + V233 + V391 -V470 -> 0 | W57: =IF('Input-Infra'!$AI52>='Input-Gen'!$M$33,W136,0) + W233 + W391 -W470 -> 0 | X57: =IF('Input-Infra'!$AI52>='Input-Gen'!$M$33,X136,0) + X233 + X391 -X470 -> 0 | Y57: =IF('Input-Infra'!$AI52>='Input-Gen'!$M$33,Y136,0) + Y233 + Y391 -Y470 -> 0 | Z57: =IF('Input-Infra'!$AI52>='Input-Gen'!$M$33,Z136,0) + Z233 + Z391 -Z470 -> 0 | AA57: =IF('Input-Infra'!$AI52>='Input-Gen'!$M$33,AA136,0) + AA233 + AA391 -AA470 -> 0 | AB57: =IF('Input-Infra'!$AI52>='Input-Gen'!$M$33,AB136,0) + AB233 + AB391 -AB470 -> 0 | AC57: =IF('Input-Infra'!$AI52>='Input-Gen'!$M$33,AC136,0) + AC233 + AC391 -AC470 -> 0
G58: Spare 28 | I58: $'000 | K58: 0 | Q58: 0 | S58: =IF('Input-Infra'!$AI53>='Input-Gen'!$M$33,S137,0) + S234 + S392 -S471 -> 0 | T58: =IF('Input-Infra'!$AI53>='Input-Gen'!$M$33,T137,0) + T234 + T392 -T471 -> 0 | U58: =IF('Input-Infra'!$AI53>='Input-Gen'!$M$33,U137,0) + U234 + U392 -U471 -> 0 | V58: =IF('Input-Infra'!$AI53>='Input-Gen'!$M$33,V137,0) + V234 + V392 -V471 -> 0 | W58: =IF('Input-Infra'!$AI53>='Input-Gen'!$M$33,W137,0) + W234 + W392 -W471 -> 0 | X58: =IF('Input-Infra'!$AI53>='Input-Gen'!$M$33,X137,0) + X234 + X392 -X471 -> 0 | Y58: =IF('Input-Infra'!$AI53>='Input-Gen'!$M$33,Y137,0) + Y234 + Y392 -Y471 -> 0 | Z58: =IF('Input-Infra'!$AI53>='Input-Gen'!$M$33,Z137,0) + Z234 + Z392 -Z471 -> 0 | AA58: =IF('Input-Infra'!$AI53>='Input-Gen'!$M$33,AA137,0) + AA234 + AA392 -AA471 -> 0 | AB58: =IF('Input-Infra'!$AI53>='Input-Gen'!$M$33,AB137,0) + AB234 + AB392 -AB471 -> 0 | AC58: =IF('Input-Infra'!$AI53>='Input-Gen'!$M$33,AC137,0) + AC234 + AC392 -AC471 -> 0
G59: Spare 29 | I59: $'000 | K59: 0 | Q59: 0 | S59: =IF('Input-Infra'!$AI54>='Input-Gen'!$M$33,S138,0) + S235 + S393 -S472 -> 0 | T59: =IF('Input-Infra'!$AI54>='Input-Gen'!$M$33,T138,0) + T235 + T393 -T472 -> 0 | U59: =IF('Input-Infra'!$AI54>='Input-Gen'!$M$33,U138,0) + U235 + U393 -U472 -> 0 | V59: =IF('Input-Infra'!$AI54>='Input-Gen'!$M$33,V138,0) + V235 + V393 -V472 -> 0 | W59: =IF('Input-Infra'!$AI54>='Input-Gen'!$M$33,W138,0) + W235 + W393 -W472 -> 0 | X59: =IF('Input-Infra'!$AI54>='Input-Gen'!$M$33,X138,0) + X235 + X393 -X472 -> 0 | Y59: =IF('Input-Infra'!$AI54>='Input-Gen'!$M$33,Y138,0) + Y235 + Y393 -Y472 -> 0 | Z59: =IF('Input-Infra'!$AI54>='Input-Gen'!$M$33,Z138,0) + Z235 + Z393 -Z472 -> 0 | AA59: =IF('Input-Infra'!$AI54>='Input-Gen'!$M$33,AA138,0) + AA235 + AA393 -AA472 -> 0 | AB59: =IF('Input-Infra'!$AI54>='Input-Gen'!$M$33,AB138,0) + AB235 + AB393 -AB472 -> 0 | AC59: =IF('Input-Infra'!$AI54>='Input-Gen'!$M$33,AC138,0) + AC235 + AC393 -AC472 -> 0
G60: Spare 30 | I60: $'000 | K60: 0 | Q60: 0 | S60: =IF('Input-Infra'!$AI55>='Input-Gen'!$M$33,S139,0) + S236 + S394 -S473 -> 0 | T60: =IF('Input-Infra'!$AI55>='Input-Gen'!$M$33,T139,0) + T236 + T394 -T473 -> 0 | U60: =IF('Input-Infra'!$AI55>='Input-Gen'!$M$33,U139,0) + U236 + U394 -U473 -> 0 | V60: =IF('Input-Infra'!$AI55>='Input-Gen'!$M$33,V139,0) + V236 + V394 -V473 -> 0 | W60: =IF('Input-Infra'!$AI55>='Input-Gen'!$M$33,W139,0) + W236 + W394 -W473 -> 0 | X60: =IF('Input-Infra'!$AI55>='Input-Gen'!$M$33,X139,0) + X236 + X394 -X473 -> 0 | Y60: =IF('Input-Infra'!$AI55>='Input-Gen'!$M$33,Y139,0) + Y236 + Y394 -Y473 -> 0 | Z60: =IF('Input-Infra'!$AI55>='Input-Gen'!$M$33,Z139,0) + Z236 + Z394 -Z473 -> 0 | AA60: =IF('Input-Infra'!$AI55>='Input-Gen'!$M$33,AA139,0) + AA236 + AA394 -AA473 -> 0 | AB60: =IF('Input-Infra'!$AI55>='Input-Gen'!$M$33,AB139,0) + AB236 + AB394 -AB473 -> 0 | AC60: =IF('Input-Infra'!$AI55>='Input-Gen'!$M$33,AC139,0) + AC236 + AC394 -AC473 -> 0
G61: Spare 31 | I61: $'000 | K61: 0 | Q61: 0 | S61: =IF('Input-Infra'!$AI56>='Input-Gen'!$M$33,S140,0) + S237 + S395 -S474 -> 0 | T61: =IF('Input-Infra'!$AI56>='Input-Gen'!$M$33,T140,0) + T237 + T395 -T474 -> 0 | U61: =IF('Input-Infra'!$AI56>='Input-Gen'!$M$33,U140,0) + U237 + U395 -U474 -> 0 | V61: =IF('Input-Infra'!$AI56>='Input-Gen'!$M$33,V140,0) + V237 + V395 -V474 -> 0 | W61: =IF('Input-Infra'!$AI56>='Input-Gen'!$M$33,W140,0) + W237 + W395 -W474 -> 0 | X61: =IF('Input-Infra'!$AI56>='Input-Gen'!$M$33,X140,0) + X237 + X395 -X474 -> 0 | Y61: =IF('Input-Infra'!$AI56>='Input-Gen'!$M$33,Y140,0) + Y237 + Y395 -Y474 -> 0 | Z61: =IF('Input-Infra'!$AI56>='Input-Gen'!$M$33,Z140,0) + Z237 + Z395 -Z474 -> 0 | AA61: =IF('Input-Infra'!$AI56>='Input-Gen'!$M$33,AA140,0) + AA237 + AA395 -AA474 -> 0 | AB61: =IF('Input-Infra'!$AI56>='Input-Gen'!$M$33,AB140,0) + AB237 + AB395 -AB474 -> 0 | AC61: =IF('Input-Infra'!$AI56>='Input-Gen'!$M$33,AC140,0) + AC237 + AC395 -AC474 -> 0
G62: Spare 32 | I62: $'000 | K62: 0 | Q62: 0 | S62: =IF('Input-Infra'!$AI57>='Input-Gen'!$M$33,S141,0) + S238 + S396 -S475 -> 0 | T62: =IF('Input-Infra'!$AI57>='Input-Gen'!$M$33,T141,0) + T238 + T396 -T475 -> 0 | U62: =IF('Input-Infra'!$AI57>='Input-Gen'!$M$33,U141,0) + U238 + U396 -U475 -> 0 | V62: =IF('Input-Infra'!$AI57>='Input-Gen'!$M$33,V141,0) + V238 + V396 -V475 -> 0 | W62: =IF('Input-Infra'!$AI57>='Input-Gen'!$M$33,W141,0) + W238 + W396 -W475 -> 0 | X62: =IF('Input-Infra'!$AI57>='Input-Gen'!$M$33,X141,0) + X238 + X396 -X475 -> 0 | Y62: =IF('Input-Infra'!$AI57>='Input-Gen'!$M$33,Y141,0) + Y238 + Y396 -Y475 -> 0 | Z62: =IF('Input-Infra'!$AI57>='Input-Gen'!$M$33,Z141,0) + Z238 + Z396 -Z475 -> 0 | AA62: =IF('Input-Infra'!$AI57>='Input-Gen'!$M$33,AA141,0) + AA238 + AA396 -AA475 -> 0 | AB62: =IF('Input-Infra'!$AI57>='Input-Gen'!$M$33,AB141,0) + AB238 + AB396 -AB475 -> 0 | AC62: =IF('Input-Infra'!$AI57>='Input-Gen'!$M$33,AC141,0) + AC238 + AC396 -AC475 -> 0
G63: Spare 33 | I63: $'000 | K63: 0 | Q63: 0 | S63: =IF('Input-Infra'!$AI58>='Input-Gen'!$M$33,S142,0) + S239 + S397 -S476 -> 0 | T63: =IF('Input-Infra'!$AI58>='Input-Gen'!$M$33,T142,0) + T239 + T397 -T476 -> 0 | U63: =IF('Input-Infra'!$AI58>='Input-Gen'!$M$33,U142,0) + U239 + U397 -U476 -> 0 | V63: =IF('Input-Infra'!$AI58>='Input-Gen'!$M$33,V142,0) + V239 + V397 -V476 -> 0 | W63: =IF('Input-Infra'!$AI58>='Input-Gen'!$M$33,W142,0) + W239 + W397 -W476 -> 0 | X63: =IF('Input-Infra'!$AI58>='Input-Gen'!$M$33,X142,0) + X239 + X397 -X476 -> 0 | Y63: =IF('Input-Infra'!$AI58>='Input-Gen'!$M$33,Y142,0) + Y239 + Y397 -Y476 -> 0 | Z63: =IF('Input-Infra'!$AI58>='Input-Gen'!$M$33,Z142,0) + Z239 + Z397 -Z476 -> 0 | AA63: =IF('Input-Infra'!$AI58>='Input-Gen'!$M$33,AA142,0) + AA239 + AA397 -AA476 -> 0 | AB63: =IF('Input-Infra'!$AI58>='Input-Gen'!$M$33,AB142,0) + AB239 + AB397 -AB476 -> 0 | AC63: =IF('Input-Infra'!$AI58>='Input-Gen'!$M$33,AC142,0) + AC239 + AC397 -AC476 -> 0
G64: Spare 34 | I64: $'000 | K64: 0 | Q64: 0 | S64: =IF('Input-Infra'!$AI59>='Input-Gen'!$M$33,S143,0) + S240 + S398 -S477 -> 0 | T64: =IF('Input-Infra'!$AI59>='Input-Gen'!$M$33,T143,0) + T240 + T398 -T477 -> 0 | U64: =IF('Input-Infra'!$AI59>='Input-Gen'!$M$33,U143,0) + U240 + U398 -U477 -> 0 | V64: =IF('Input-Infra'!$AI59>='Input-Gen'!$M$33,V143,0) + V240 + V398 -V477 -> 0 | W64: =IF('Input-Infra'!$AI59>='Input-Gen'!$M$33,W143,0) + W240 + W398 -W477 -> 0 | X64: =IF('Input-Infra'!$AI59>='Input-Gen'!$M$33,X143,0) + X240 + X398 -X477 -> 0 | Y64: =IF('Input-Infra'!$AI59>='Input-Gen'!$M$33,Y143,0) + Y240 + Y398 -Y477 -> 0 | Z64: =IF('Input-Infra'!$AI59>='Input-Gen'!$M$33,Z143,0) + Z240 + Z398 -Z477 -> 0 | AA64: =IF('Input-Infra'!$AI59>='Input-Gen'!$M$33,AA143,0) + AA240 + AA398 -AA477 -> 0 | AB64: =IF('Input-Infra'!$AI59>='Input-Gen'!$M$33,AB143,0) + AB240 + AB398 -AB477 -> 0 | AC64: =IF('Input-Infra'!$AI59>='Input-Gen'!$M$33,AC143,0) + AC240 + AC398 -AC477 -> 0
G65: Spare 35 | I65: $'000 | K65: 0 | Q65: 0 | S65: =IF('Input-Infra'!$AI60>='Input-Gen'!$M$33,S144,0) + S241 + S399 -S478 -> 0 | T65: =IF('Input-Infra'!$AI60>='Input-Gen'!$M$33,T144,0) + T241 + T399 -T478 -> 0 | U65: =IF('Input-Infra'!$AI60>='Input-Gen'!$M$33,U144,0) + U241 + U399 -U478 -> 0 | V65: =IF('Input-Infra'!$AI60>='Input-Gen'!$M$33,V144,0) + V241 + V399 -V478 -> 0 | W65: =IF('Input-Infra'!$AI60>='Input-Gen'!$M$33,W144,0) + W241 + W399 -W478 -> 0 | X65: =IF('Input-Infra'!$AI60>='Input-Gen'!$M$33,X144,0) + X241 + X399 -X478 -> 0 | Y65: =IF('Input-Infra'!$AI60>='Input-Gen'!$M$33,Y144,0) + Y241 + Y399 -Y478 -> 0 | Z65: =IF('Input-Infra'!$AI60>='Input-Gen'!$M$33,Z144,0) + Z241 + Z399 -Z478 -> 0 | AA65: =IF('Input-Infra'!$AI60>='Input-Gen'!$M$33,AA144,0) + AA241 + AA399 -AA478 -> 0 | AB65: =IF('Input-Infra'!$AI60>='Input-Gen'!$M$33,AB144,0) + AB241 + AB399 -AB478 -> 0 | AC65: =IF('Input-Infra'!$AI60>='Input-Gen'!$M$33,AC144,0) + AC241 + AC399 -AC478 -> 0
G66: Spare 36 | I66: $'000 | K66: 0 | Q66: 0 | S66: =IF('Input-Infra'!$AI61>='Input-Gen'!$M$33,S145,0) + S242 + S400 -S479 -> 0 | T66: =IF('Input-Infra'!$AI61>='Input-Gen'!$M$33,T145,0) + T242 + T400 -T479 -> 0 | U66: =IF('Input-Infra'!$AI61>='Input-Gen'!$M$33,U145,0) + U242 + U400 -U479 -> 0 | V66: =IF('Input-Infra'!$AI61>='Input-Gen'!$M$33,V145,0) + V242 + V400 -V479 -> 0 | W66: =IF('Input-Infra'!$AI61>='Input-Gen'!$M$33,W145,0) + W242 + W400 -W479 -> 0 | X66: =IF('Input-Infra'!$AI61>='Input-Gen'!$M$33,X145,0) + X242 + X400 -X479 -> 0 | Y66: =IF('Input-Infra'!$AI61>='Input-Gen'!$M$33,Y145,0) + Y242 + Y400 -Y479 -> 0 | Z66: =IF('Input-Infra'!$AI61>='Input-Gen'!$M$33,Z145,0) + Z242 + Z400 -Z479 -> 0 | AA66: =IF('Input-Infra'!$AI61>='Input-Gen'!$M$33,AA145,0) + AA242 + AA400 -AA479 -> 0 | AB66: =IF('Input-Infra'!$AI61>='Input-Gen'!$M$33,AB145,0) + AB242 + AB400 -AB479 -> 0 | AC66: =IF('Input-Infra'!$AI61>='Input-Gen'!$M$33,AC145,0) + AC242 + AC400 -AC479 -> 0
G67: Spare 37 | I67: $'000 | K67: 0 | Q67: 0 | S67: =IF('Input-Infra'!$AI62>='Input-Gen'!$M$33,S146,0) + S243 + S401 -S480 -> 0 | T67: =IF('Input-Infra'!$AI62>='Input-Gen'!$M$33,T146,0) + T243 + T401 -T480 -> 0 | U67: =IF('Input-Infra'!$AI62>='Input-Gen'!$M$33,U146,0) + U243 + U401 -U480 -> 0 | V67: =IF('Input-Infra'!$AI62>='Input-Gen'!$M$33,V146,0) + V243 + V401 -V480 -> 0 | W67: =IF('Input-Infra'!$AI62>='Input-Gen'!$M$33,W146,0) + W243 + W401 -W480 -> 0 | X67: =IF('Input-Infra'!$AI62>='Input-Gen'!$M$33,X146,0) + X243 + X401 -X480 -> 0 | Y67: =IF('Input-Infra'!$AI62>='Input-Gen'!$M$33,Y146,0) + Y243 + Y401 -Y480 -> 0 | Z67: =IF('Input-Infra'!$AI62>='Input-Gen'!$M$33,Z146,0) + Z243 + Z401 -Z480 -> 0 | AA67: =IF('Input-Infra'!$AI62>='Input-Gen'!$M$33,AA146,0) + AA243 + AA401 -AA480 -> 0 | AB67: =IF('Input-Infra'!$AI62>='Input-Gen'!$M$33,AB146,0) + AB243 + AB401 -AB480 -> 0 | AC67: =IF('Input-Infra'!$AI62>='Input-Gen'!$M$33,AC146,0) + AC243 + AC401 -AC480 -> 0
G68: Spare 38 | I68: $'000 | K68: 0 | Q68: 0 | S68: =IF('Input-Infra'!$AI63>='Input-Gen'!$M$33,S147,0) + S244 + S402 -S481 -> 0 | T68: =IF('Input-Infra'!$AI63>='Input-Gen'!$M$33,T147,0) + T244 + T402 -T481 -> 0 | U68: =IF('Input-Infra'!$AI63>='Input-Gen'!$M$33,U147,0) + U244 + U402 -U481 -> 0 | V68: =IF('Input-Infra'!$AI63>='Input-Gen'!$M$33,V147,0) + V244 + V402 -V481 -> 0 | W68: =IF('Input-Infra'!$AI63>='Input-Gen'!$M$33,W147,0) + W244 + W402 -W481 -> 0 | X68: =IF('Input-Infra'!$AI63>='Input-Gen'!$M$33,X147,0) + X244 + X402 -X481 -> 0 | Y68: =IF('Input-Infra'!$AI63>='Input-Gen'!$M$33,Y147,0) + Y244 + Y402 -Y481 -> 0 | Z68: =IF('Input-Infra'!$AI63>='Input-Gen'!$M$33,Z147,0) + Z244 + Z402 -Z481 -> 0 | AA68: =IF('Input-Infra'!$AI63>='Input-Gen'!$M$33,AA147,0) + AA244 + AA402 -AA481 -> 0 | AB68: =IF('Input-Infra'!$AI63>='Input-Gen'!$M$33,AB147,0) + AB244 + AB402 -AB481 -> 0 | AC68: =IF('Input-Infra'!$AI63>='Input-Gen'!$M$33,AC147,0) + AC244 + AC402 -AC481 -> 0
G69: Spare 39 | I69: $'000 | K69: 0 | Q69: 0 | S69: =IF('Input-Infra'!$AI64>='Input-Gen'!$M$33,S148,0) + S245 + S403 -S482 -> 0 | T69: =IF('Input-Infra'!$AI64>='Input-Gen'!$M$33,T148,0) + T245 + T403 -T482 -> 0 | U69: =IF('Input-Infra'!$AI64>='Input-Gen'!$M$33,U148,0) + U245 + U403 -U482 -> 0 | V69: =IF('Input-Infra'!$AI64>='Input-Gen'!$M$33,V148,0) + V245 + V403 -V482 -> 0 | W69: =IF('Input-Infra'!$AI64>='Input-Gen'!$M$33,W148,0) + W245 + W403 -W482 -> 0 | X69: =IF('Input-Infra'!$AI64>='Input-Gen'!$M$33,X148,0) + X245 + X403 -X482 -> 0 | Y69: =IF('Input-Infra'!$AI64>='Input-Gen'!$M$33,Y148,0) + Y245 + Y403 -Y482 -> 0 | Z69: =IF('Input-Infra'!$AI64>='Input-Gen'!$M$33,Z148,0) + Z245 + Z403 -Z482 -> 0 | AA69: =IF('Input-Infra'!$AI64>='Input-Gen'!$M$33,AA148,0) + AA245 + AA403 -AA482 -> 0 | AB69: =IF('Input-Infra'!$AI64>='Input-Gen'!$M$33,AB148,0) + AB245 + AB403 -AB482 -> 0 | AC69: =IF('Input-Infra'!$AI64>='Input-Gen'!$M$33,AC148,0) + AC245 + AC403 -AC482 -> 0
G70: Spare 40 | I70: $'000 | K70: 0 | Q70: 0 | S70: =IF('Input-Infra'!$AI65>='Input-Gen'!$M$33,S149,0) + S246 + S404 -S483 -> 0 | T70: =IF('Input-Infra'!$AI65>='Input-Gen'!$M$33,T149,0) + T246 + T404 -T483 -> 0 | U70: =IF('Input-Infra'!$AI65>='Input-Gen'!$M$33,U149,0) + U246 + U404 -U483 -> 0 | V70: =IF('Input-Infra'!$AI65>='Input-Gen'!$M$33,V149,0) + V246 + V404 -V483 -> 0 | W70: =IF('Input-Infra'!$AI65>='Input-Gen'!$M$33,W149,0) + W246 + W404 -W483 -> 0 | X70: =IF('Input-Infra'!$AI65>='Input-Gen'!$M$33,X149,0) + X246 + X404 -X483 -> 0 | Y70: =IF('Input-Infra'!$AI65>='Input-Gen'!$M$33,Y149,0) + Y246 + Y404 -Y483 -> 0 | Z70: =IF('Input-Infra'!$AI65>='Input-Gen'!$M$33,Z149,0) + Z246 + Z404 -Z483 -> 0 | AA70: =IF('Input-Infra'!$AI65>='Input-Gen'!$M$33,AA149,0) + AA246 + AA404 -AA483 -> 0 | AB70: =IF('Input-Infra'!$AI65>='Input-Gen'!$M$33,AB149,0) + AB246 + AB404 -AB483 -> 0 | AC70: =IF('Input-Infra'!$AI65>='Input-Gen'!$M$33,AC149,0) + AC246 + AC404 -AC483 -> 0
G71: Spare 41 | I71: $'000 | K71: 0 | Q71: 0 | S71: =IF('Input-Infra'!$AI66>='Input-Gen'!$M$33,S150,0) + S247 + S405 -S484 -> 0 | T71: =IF('Input-Infra'!$AI66>='Input-Gen'!$M$33,T150,0) + T247 + T405 -T484 -> 0 | U71: =IF('Input-Infra'!$AI66>='Input-Gen'!$M$33,U150,0) + U247 + U405 -U484 -> 0 | V71: =IF('Input-Infra'!$AI66>='Input-Gen'!$M$33,V150,0) + V247 + V405 -V484 -> 0 | W71: =IF('Input-Infra'!$AI66>='Input-Gen'!$M$33,W150,0) + W247 + W405 -W484 -> 0 | X71: =IF('Input-Infra'!$AI66>='Input-Gen'!$M$33,X150,0) + X247 + X405 -X484 -> 0 | Y71: =IF('Input-Infra'!$AI66>='Input-Gen'!$M$33,Y150,0) + Y247 + Y405 -Y484 -> 0 | Z71: =IF('Input-Infra'!$AI66>='Input-Gen'!$M$33,Z150,0) + Z247 + Z405 -Z484 -> 0 | AA71: =IF('Input-Infra'!$AI66>='Input-Gen'!$M$33,AA150,0) + AA247 + AA405 -AA484 -> 0 | AB71: =IF('Input-Infra'!$AI66>='Input-Gen'!$M$33,AB150,0) + AB247 + AB405 -AB484 -> 0 | AC71: =IF('Input-Infra'!$AI66>='Input-Gen'!$M$33,AC150,0) + AC247 + AC405 -AC484 -> 0
G72: Spare 42 | I72: $'000 | K72: 0 | Q72: 0 | S72: =IF('Input-Infra'!$AI67>='Input-Gen'!$M$33,S151,0) + S248 + S406 -S485 -> 0 | T72: =IF('Input-Infra'!$AI67>='Input-Gen'!$M$33,T151,0) + T248 + T406 -T485 -> 0 | U72: =IF('Input-Infra'!$AI67>='Input-Gen'!$M$33,U151,0) + U248 + U406 -U485 -> 0 | V72: =IF('Input-Infra'!$AI67>='Input-Gen'!$M$33,V151,0) + V248 + V406 -V485 -> 0 | W72: =IF('Input-Infra'!$AI67>='Input-Gen'!$M$33,W151,0) + W248 + W406 -W485 -> 0 | X72: =IF('Input-Infra'!$AI67>='Input-Gen'!$M$33,X151,0) + X248 + X406 -X485 -> 0 | Y72: =IF('Input-Infra'!$AI67>='Input-Gen'!$M$33,Y151,0) + Y248 + Y406 -Y485 -> 0 | Z72: =IF('Input-Infra'!$AI67>='Input-Gen'!$M$33,Z151,0) + Z248 + Z406 -Z485 -> 0 | AA72: =IF('Input-Infra'!$AI67>='Input-Gen'!$M$33,AA151,0) + AA248 + AA406 -AA485 -> 0 | AB72: =IF('Input-Infra'!$AI67>='Input-Gen'!$M$33,AB151,0) + AB248 + AB406 -AB485 -> 0 | AC72: =IF('Input-Infra'!$AI67>='Input-Gen'!$M$33,AC151,0) + AC248 + AC406 -AC485 -> 0
G73: Spare 43 | I73: $'000 | K73: 0 | Q73: 0 | S73: =IF('Input-Infra'!$AI68>='Input-Gen'!$M$33,S152,0) + S249 + S407 -S486 -> 0 | T73: =IF('Input-Infra'!$AI68>='Input-Gen'!$M$33,T152,0) + T249 + T407 -T486 -> 0 | U73: =IF('Input-Infra'!$AI68>='Input-Gen'!$M$33,U152,0) + U249 + U407 -U486 -> 0 | V73: =IF('Input-Infra'!$AI68>='Input-Gen'!$M$33,V152,0) + V249 + V407 -V486 -> 0 | W73: =IF('Input-Infra'!$AI68>='Input-Gen'!$M$33,W152,0) + W249 + W407 -W486 -> 0 | X73: =IF('Input-Infra'!$AI68>='Input-Gen'!$M$33,X152,0) + X249 + X407 -X486 -> 0 | Y73: =IF('Input-Infra'!$AI68>='Input-Gen'!$M$33,Y152,0) + Y249 + Y407 -Y486 -> 0 | Z73: =IF('Input-Infra'!$AI68>='Input-Gen'!$M$33,Z152,0) + Z249 + Z407 -Z486 -> 0 | AA73: =IF('Input-Infra'!$AI68>='Input-Gen'!$M$33,AA152,0) + AA249 + AA407 -AA486 -> 0 | AB73: =IF('Input-Infra'!$AI68>='Input-Gen'!$M$33,AB152,0) + AB249 + AB407 -AB486 -> 0 | AC73: =IF('Input-Infra'!$AI68>='Input-Gen'!$M$33,AC152,0) + AC249 + AC407 -AC486 -> 0
G74: Spare 44 | I74: $'000 | K74: 0 | Q74: 0 | S74: =IF('Input-Infra'!$AI69>='Input-Gen'!$M$33,S153,0) + S250 + S408 -S487 -> 0 | T74: =IF('Input-Infra'!$AI69>='Input-Gen'!$M$33,T153,0) + T250 + T408 -T487 -> 0 | U74: =IF('Input-Infra'!$AI69>='Input-Gen'!$M$33,U153,0) + U250 + U408 -U487 -> 0 | V74: =IF('Input-Infra'!$AI69>='Input-Gen'!$M$33,V153,0) + V250 + V408 -V487 -> 0 | W74: =IF('Input-Infra'!$AI69>='Input-Gen'!$M$33,W153,0) + W250 + W408 -W487 -> 0 | X74: =IF('Input-Infra'!$AI69>='Input-Gen'!$M$33,X153,0) + X250 + X408 -X487 -> 0 | Y74: =IF('Input-Infra'!$AI69>='Input-Gen'!$M$33,Y153,0) + Y250 + Y408 -Y487 -> 0 | Z74: =IF('Input-Infra'!$AI69>='Input-Gen'!$M$33,Z153,0) + Z250 + Z408 -Z487 -> 0 | AA74: =IF('Input-Infra'!$AI69>='Input-Gen'!$M$33,AA153,0) + AA250 + AA408 -AA487 -> 0 | AB74: =IF('Input-Infra'!$AI69>='Input-Gen'!$M$33,AB153,0) + AB250 + AB408 -AB487 -> 0 | AC74: =IF('Input-Infra'!$AI69>='Input-Gen'!$M$33,AC153,0) + AC250 + AC408 -AC487 -> 0
G75: Spare 45 | I75: $'000 | K75: 0 | Q75: 0 | S75: =IF('Input-Infra'!$AI70>='Input-Gen'!$M$33,S154,0) + S251 + S409 -S488 -> 0 | T75: =IF('Input-Infra'!$AI70>='Input-Gen'!$M$33,T154,0) + T251 + T409 -T488 -> 0 | U75: =IF('Input-Infra'!$AI70>='Input-Gen'!$M$33,U154,0) + U251 + U409 -U488 -> 0 | V75: =IF('Input-Infra'!$AI70>='Input-Gen'!$M$33,V154,0) + V251 + V409 -V488 -> 0 | W75: =IF('Input-Infra'!$AI70>='Input-Gen'!$M$33,W154,0) + W251 + W409 -W488 -> 0 | X75: =IF('Input-Infra'!$AI70>='Input-Gen'!$M$33,X154,0) + X251 + X409 -X488 -> 0 | Y75: =IF('Input-Infra'!$AI70>='Input-Gen'!$M$33,Y154,0) + Y251 + Y409 -Y488 -> 0 | Z75: =IF('Input-Infra'!$AI70>='Input-Gen'!$M$33,Z154,0) + Z251 + Z409 -Z488 -> 0 | AA75: =IF('Input-Infra'!$AI70>='Input-Gen'!$M$33,AA154,0) + AA251 + AA409 -AA488 -> 0 | AB75: =IF('Input-Infra'!$AI70>='Input-Gen'!$M$33,AB154,0) + AB251 + AB409 -AB488 -> 0 | AC75: =IF('Input-Infra'!$AI70>='Input-Gen'!$M$33,AC154,0) + AC251 + AC409 -AC488 -> 0
G76: Spare 46 | I76: $'000 | K76: 0 | Q76: 0 | S76: =IF('Input-Infra'!$AI71>='Input-Gen'!$M$33,S155,0) + S252 + S410 -S489 -> 0 | T76: =IF('Input-Infra'!$AI71>='Input-Gen'!$M$33,T155,0) + T252 + T410 -T489 -> 0 | U76: =IF('Input-Infra'!$AI71>='Input-Gen'!$M$33,U155,0) + U252 + U410 -U489 -> 0 | V76: =IF('Input-Infra'!$AI71>='Input-Gen'!$M$33,V155,0) + V252 + V410 -V489 -> 0 | W76: =IF('Input-Infra'!$AI71>='Input-Gen'!$M$33,W155,0) + W252 + W410 -W489 -> 0 | X76: =IF('Input-Infra'!$AI71>='Input-Gen'!$M$33,X155,0) + X252 + X410 -X489 -> 0 | Y76: =IF('Input-Infra'!$AI71>='Input-Gen'!$M$33,Y155,0) + Y252 + Y410 -Y489 -> 0 | Z76: =IF('Input-Infra'!$AI71>='Input-Gen'!$M$33,Z155,0) + Z252 + Z410 -Z489 -> 0 | AA76: =IF('Input-Infra'!$AI71>='Input-Gen'!$M$33,AA155,0) + AA252 + AA410 -AA489 -> 0 | AB76: =IF('Input-Infra'!$AI71>='Input-Gen'!$M$33,AB155,0) + AB252 + AB410 -AB489 -> 0 | AC76: =IF('Input-Infra'!$AI71>='Input-Gen'!$M$33,AC155,0) + AC252 + AC410 -AC489 -> 0
G78: Subtotal | I78: $'000 | K78: =SUM(K30:K76) -> 136452.5 | M78: 0 | Q78: =SUM(Q30:Q76) -> 136452.5 | S78: =SUM(S30:S76) -> 136452.5 | T78: 0 | U78: 0 | V78: 0 | W78: 0 | X78: 0 | Y78: 0 | Z78: 0 | AA78: 0 | AB78: 0 | AC78: 0
G80: Future Infrastructure
G82: =Future -> BNE-FT-004 | I82: $'000 | K82: =NPV(WACC_nom,T82:AC82)+S82 -> 10143.97474 | M82: ='Input-Infra'!AY78-Q82 -> -652.4033609 | Q82: =SUM(S82:AC82) -> 12050.88836 | S82: =IF('Input-Infra'!$AI78>='Input-Gen'!$M$33,S161,0) + S258 + S416 - S495 -> 0 | T82: =IF('Input-Infra'!$AI78>='Input-Gen'!$M$33,T161,0) + T258 + T416 - T495 -> 0 | U82: =IF('Input-Infra'!$AI78>='Input-Gen'!$M$33,U161,0) + U258 + U416 - U495 -> 0 | V82: =IF('Input-Infra'!$AI78>='Input-Gen'!$M$33,V161,0) + V258 + V416 - V495 -> 12050.88836 | W82: =IF('Input-Infra'!$AI78>='Input-Gen'!$M$33,W161,0) + W258 + W416 - W495 -> 0 | X82: =IF('Input-Infra'!$AI78>='Input-Gen'!$M$33,X161,0) + X258 + X416 - X495 -> 0 | Y82: =IF('Input-Infra'!$AI78>='Input-Gen'!$M$33,Y161,0) + Y258 + Y416 - Y495 -> 0 | Z82: =IF('Input-Infra'!$AI78>='Input-Gen'!$M$33,Z161,0) + Z258 + Z416 - Z495 -> 0 | AA82: =IF('Input-Infra'!$AI78>='Input-Gen'!$M$33,AA161,0) + AA258 + AA416 - AA495 -> 0 | AB82: =IF('Input-Infra'!$AI78>='Input-Gen'!$M$33,AB161,0) + AB258 + AB416 - AB495 -> 0 | AC82: =IF('Input-Infra'!$AI78>='Input-Gen'!$M$33,AC161,0) + AC258 + AC416 - AC495 -> 0
G83: EAB-FT-001 | I83: $'000 | K83: 8623.148025 | M83: ='Input-Infra'!AY79-Q83 -> -1882.897441 | Q83: =SUM(S83:AC83) -> 13650.90944 | S83: =IF('Input-Infra'!$AI79>='Input-Gen'!$M$33,S162,0) + S259 + S417 - S496 -> 0 | T83: =IF('Input-Infra'!$AI79>='Input-Gen'!$M$33,T162,0) + T259 + T417 - T496 -> 0 | U83: =IF('Input-Infra'!$AI79>='Input-Gen'!$M$33,U162,0) + U259 + U417 - U496 -> 0 | V83: =IF('Input-Infra'!$AI79>='Input-Gen'!$M$33,V162,0) + V259 + V417 - V496 -> 0 | W83: =IF('Input-Infra'!$AI79>='Input-Gen'!$M$33,W162,0) + W259 + W417 - W496 -> 0 | X83: =IF('Input-Infra'!$AI79>='Input-Gen'!$M$33,X162,0) + X259 + X417 - X496 -> 0 | Y83: =IF('Input-Infra'!$AI79>='Input-Gen'!$M$33,Y162,0) + Y259 + Y417 - Y496 -> 0 | Z83: =IF('Input-Infra'!$AI79>='Input-Gen'!$M$33,Z162,0) + Z259 + Z417 - Z496 -> 0 | AA83: =IF('Input-Infra'!$AI79>='Input-Gen'!$M$33,AA162,0) + AA259 + AA417 - AA496 -> 13650.90944 | AB83: =IF('Input-Infra'!$AI79>='Input-Gen'!$M$33,AB162,0) + AB259 + AB417 - AB496 -> 0 | AC83: =IF('Input-Infra'!$AI79>='Input-Gen'!$M$33,AC162,0) + AC259 + AC417 - AC496 -> 0
G84: KAN-FT-002 | I84: $'000 | K84: 10972.44182 | M84: ='Input-Infra'!AY80-Q84 -> -705.6857003 | Q84: 13035.0947 | S84: =IF('Input-Infra'!$AI80>='Input-Gen'!$M$33,S163,0) + S260 + S418 - S497 -> 0 | T84: =IF('Input-Infra'!$AI80>='Input-Gen'!$M$33,T163,0) + T260 + T418 - T497 -> 0 | U84: =IF('Input-Infra'!$AI80>='Input-Gen'!$M$33,U163,0) + U260 + U418 - U497 -> 0 | V84: =IF('Input-Infra'!$AI80>='Input-Gen'!$M$33,V163,0) + V260 + V418 - V497 -> 13035.0947 | W84: =IF('Input-Infra'!$AI80>='Input-Gen'!$M$33,W163,0) + W260 + W418 - W497 -> 0 | X84: =IF('Input-Infra'!$AI80>='Input-Gen'!$M$33,X163,0) + X260 + X418 - X497 -> 0 | Y84: =IF('Input-Infra'!$AI80>='Input-Gen'!$M$33,Y163,0) + Y260 + Y418 - Y497 -> 0 | Z84: =IF('Input-Infra'!$AI80>='Input-Gen'!$M$33,Z163,0) + Z260 + Z418 - Z497 -> 0 | AA84: =IF('Input-Infra'!$AI80>='Input-Gen'!$M$33,AA163,0) + AA260 + AA418 - AA497 -> 0 | AB84: =IF('Input-Infra'!$AI80>='Input-Gen'!$M$33,AB163,0) + AB260 + AB418 - AB497 -> 0 | AC84: =IF('Input-Infra'!$AI80>='Input-Gen'!$M$33,AC163,0) + AC260 + AC418 - AC497 -> 0
G85: KAN-FT-003 | I85: $'000 | K85: 10213.5414 | M85: ='Input-Infra'!AY81-Q85 -> -656.8774968 | Q85: 12133.5325 | S85: =IF('Input-Infra'!$AI81>='Input-Gen'!$M$33,S164,0) + S261 + S419 - S498 -> 0 | T85: =IF('Input-Infra'!$AI81>='Input-Gen'!$M$33,T164,0) + T261 + T419 - T498 -> 0 | U85: =IF('Input-Infra'!$AI81>='Input-Gen'!$M$33,U164,0) + U261 + U419 - U498 -> 0 | V85: =IF('Input-Infra'!$AI81>='Input-Gen'!$M$33,V164,0) + V261 + V419 - V498 -> 12133.5325 | W85: =IF('Input-Infra'!$AI81>='Input-Gen'!$M$33,W164,0) + W261 + W419 - W498 -> 0 | X85: =IF('Input-Infra'!$AI81>='Input-Gen'!$M$33,X164,0) + X261 + X419 - X498 -> 0 | Y85: =IF('Input-Infra'!$AI81>='Input-Gen'!$M$33,Y164,0) + Y261 + Y419 - Y498 -> 0 | Z85: =IF('Input-Infra'!$AI81>='Input-Gen'!$M$33,Z164,0) + Z261 + Z419 - Z498 -> 0 | AA85: =IF('Input-Infra'!$AI81>='Input-Gen'!$M$33,AA164,0) + AA261 + AA419 - AA498 -> 0 | AB85: =IF('Input-Infra'!$AI81>='Input-Gen'!$M$33,AB164,0) + AB261 + AB419 - AB498 -> 0 | AC85: =IF('Input-Infra'!$AI81>='Input-Gen'!$M$33,AC164,0) + AC261 + AC419 - AC498 -> 0
G86: NRP-FT-001 | I86: $'000 | K86: 9947.926162 | M86: ='Input-Infra'!AY82-Q86 -> -639.7946198 | Q86: 11817.98562 | S86: =IF('Input-Infra'!$AI82>='Input-Gen'!$M$33,S165,0) + S262 + S420 - S499 -> 0 | T86: =IF('Input-Infra'!$AI82>='Input-Gen'!$M$33,T165,0) + T262 + T420 - T499 -> 0 | U86: =IF('Input-Infra'!$AI82>='Input-Gen'!$M$33,U165,0) + U262 + U420 - U499 -> 0 | V86: =IF('Input-Infra'!$AI82>='Input-Gen'!$M$33,V165,0) + V262 + V420 - V499 -> 11817.98562 | W86: =IF('Input-Infra'!$AI82>='Input-Gen'!$M$33,W165,0) + W262 + W420 - W499 -> 0 | X86: =IF('Input-Infra'!$AI82>='Input-Gen'!$M$33,X165,0) + X262 + X420 - X499 -> 0 | Y86: =IF('Input-Infra'!$AI82>='Input-Gen'!$M$33,Y165,0) + Y262 + Y420 - Y499 -> 0 | Z86: =IF('Input-Infra'!$AI82>='Input-Gen'!$M$33,Z165,0) + Z262 + Z420 - Z499 -> 0 | AA86: =IF('Input-Infra'!$AI82>='Input-Gen'!$M$33,AA165,0) + AA262 + AA420 - AA499 -> 0 | AB86: =IF('Input-Infra'!$AI82>='Input-Gen'!$M$33,AB165,0) + AB262 + AB420 - AB499 -> 0 | AC86: =IF('Input-Infra'!$AI82>='Input-Gen'!$M$33,AC165,0) + AC262 + AC420 - AC499 -> 0
G87: NWF-FT-002 | I87: $'000 | K87: 8288.917845 | M87: ='Input-Infra'!AY83-Q87 -> -1809.916999 | Q87: 13121.805 | S87: =IF('Input-Infra'!$AI83>='Input-Gen'!$M$33,S166,0) + S263 + S421 - S500 -> 0 | T87: =IF('Input-Infra'!$AI83>='Input-Gen'!$M$33,T166,0) + T263 + T421 - T500 -> 0 | U87: =IF('Input-Infra'!$AI83>='Input-Gen'!$M$33,U166,0) + U263 + U421 - U500 -> 0 | V87: =IF('Input-Infra'!$AI83>='Input-Gen'!$M$33,V166,0) + V263 + V421 - V500 -> 0 | W87: =IF('Input-Infra'!$AI83>='Input-Gen'!$M$33,W166,0) + W263 + W421 - W500 -> 0 | X87: =IF('Input-Infra'!$AI83>='Input-Gen'!$M$33,X166,0) + X263 + X421 - X500 -> 0 | Y87: =IF('Input-Infra'!$AI83>='Input-Gen'!$M$33,Y166,0) + Y263 + Y421 - Y500 -> 0 | Z87: =IF('Input-Infra'!$AI83>='Input-Gen'!$M$33,Z166,0) + Z263 + Z421 - Z500 -> 0 | AA87: =IF('Input-Infra'!$AI83>='Input-Gen'!$M$33,AA166,0) + AA263 + AA421 - AA500 -> 13121.805 | AB87: =IF('Input-Infra'!$AI83>='Input-Gen'!$M$33,AB166,0) + AB263 + AB421 - AB500 -> 0 | AC87: =IF('Input-Infra'!$AI83>='Input-Gen'!$M$33,AC166,0) + AC263 + AC421 - AC500 -> 0
G88: SBR-FT-002 | I88: $'000 | K88: 12142.41381 | M88: ='Input-Infra'!AY84-Q88 -> -780.9317141 | Q88: 14425.00371 | S88: =IF('Input-Infra'!$AI84>='Input-Gen'!$M$33,S167,0) + S264 + S422 - S501 -> 0 | T88: =IF('Input-Infra'!$AI84>='Input-Gen'!$M$33,T167,0) + T264 + T422 - T501 -> 0 | U88: =IF('Input-Infra'!$AI84>='Input-Gen'!$M$33,U167,0) + U264 + U422 - U501 -> 0 | V88: =IF('Input-Infra'!$AI84>='Input-Gen'!$M$33,V167,0) + V264 + V422 - V501 -> 14425.00371 | W88: =IF('Input-Infra'!$AI84>='Input-Gen'!$M$33,W167,0) + W264 + W422 - W501 -> 0 | X88: =IF('Input-Infra'!$AI84>='Input-Gen'!$M$33,X167,0) + X264 + X422 - X501 -> 0 | Y88: =IF('Input-Infra'!$AI84>='Input-Gen'!$M$33,Y167,0) + Y264 + Y422 - Y501 -> 0 | Z88: =IF('Input-Infra'!$AI84>='Input-Gen'!$M$33,Z167,0) + Z264 + Z422 - Z501 -> 0 | AA88: =IF('Input-Infra'!$AI84>='Input-Gen'!$M$33,AA167,0) + AA264 + AA422 - AA501 -> 0 | AB88: =IF('Input-Infra'!$AI84>='Input-Gen'!$M$33,AB167,0) + AB264 + AB422 - AB501 -> 0 | AC88: =IF('Input-Infra'!$AI84>='Input-Gen'!$M$33,AC167,0) + AC264 + AC422 - AC501 -> 0
G89: SBR-FT-003 | I89: $'000 | K89: 10245.16188 | M89: ='Input-Infra'!AY85-Q89 -> -658.9111481 | Q89: 12171.09715 | S89: =IF('Input-Infra'!$AI85>='Input-Gen'!$M$33,S168,0) + S265 + S423 - S502 -> 0 | T89: =IF('Input-Infra'!$AI85>='Input-Gen'!$M$33,T168,0) + T265 + T423 - T502 -> 0 | U89: =IF('Input-Infra'!$AI85>='Input-Gen'!$M$33,U168,0) + U265 + U423 - U502 -> 0 | V89: =IF('Input-Infra'!$AI85>='Input-Gen'!$M$33,V168,0) + V265 + V423 - V502 -> 12171.09715 | W89: =IF('Input-Infra'!$AI85>='Input-Gen'!$M$33,W168,0) + W265 + W423 - W502 -> 0 | X89: =IF('Input-Infra'!$AI85>='Input-Gen'!$M$33,X168,0) + X265 + X423 - X502 -> 0 | Y89: =IF('Input-Infra'!$AI85>='Input-Gen'!$M$33,Y168,0) + Y265 + Y423 - Y502 -> 0 | Z89: =IF('Input-Infra'!$AI85>='Input-Gen'!$M$33,Z168,0) + Z265 + Z423 - Z502 -> 0 | AA89: =IF('Input-Infra'!$AI85>='Input-Gen'!$M$33,AA168,0) + AA265 + AA423 - AA502 -> 0 | AB89: =IF('Input-Infra'!$AI85>='Input-Gen'!$M$33,AB168,0) + AB265 + AB423 - AB502 -> 0 | AC89: =IF('Input-Infra'!$AI85>='Input-Gen'!$M$33,AC168,0) + AC265 + AC423 - AC502 -> 0
G90: SLU-FT-002 | I90: $'000 | K90: 8773.552486 | M90: ='Input-Infra'!AY86-Q90 -> -1915.738831 | Q90: 13889.00783 | S90: =IF('Input-Infra'!$AI86>='Input-Gen'!$M$33,S169,0) + S266 + S424 - S503 -> 0 | T90: =IF('Input-Infra'!$AI86>='Input-Gen'!$M$33,T169,0) + T266 + T424 - T503 -> 0 | U90: =IF('Input-Infra'!$AI86>='Input-Gen'!$M$33,U169,0) + U266 + U424 - U503 -> 0 | V90: =IF('Input-Infra'!$AI86>='Input-Gen'!$M$33,V169,0) + V266 + V424 - V503 -> 0 | W90: =IF('Input-Infra'!$AI86>='Input-Gen'!$M$33,W169,0) + W266 + W424 - W503 -> 0 | X90: =IF('Input-Infra'!$AI86>='Input-Gen'!$M$33,X169,0) + X266 + X424 - X503 -> 0 | Y90: =IF('Input-Infra'!$AI86>='Input-Gen'!$M$33,Y169,0) + Y266 + Y424 - Y503 -> 0 | Z90: =IF('Input-Infra'!$AI86>='Input-Gen'!$M$33,Z169,0) + Z266 + Z424 - Z503 -> 0 | AA90: =IF('Input-Infra'!$AI86>='Input-Gen'!$M$33,AA169,0) + AA266 + AA424 - AA503 -> 13889.00783 | AB90: =IF('Input-Infra'!$AI86>='Input-Gen'!$M$33,AB169,0) + AB266 + AB424 - AB503 -> 0 | AC90: =IF('Input-Infra'!$AI86>='Input-Gen'!$M$33,AC169,0) + AC266 + AC424 - AC503 -> 0
G91: Spare 1 | I91: $'000 | K91: 0 | M91: ='Input-Infra'!AY87-Q91 -> 0 | Q91: 0 | S91: 0 | T91: 0 | U91: 0 | V91: 0 | W91: 0 | X91: 0 | Y91: 0 | Z91: 0 | AA91: 0 | AB91: 0 | AC91: 0
G92: Spare 2 | I92: $'000 | K92: 0 | M92: ='Input-Infra'!AY88-Q92 -> 0 | Q92: 0 | S92: 0 | T92: 0 | U92: 0 | V92: 0 | W92: 0 | X92: 0 | Y92: 0 | Z92: 0 | AA92: 0 | AB92: 0 | AC92: 0
G93: Spare 3 | I93: $'000 | K93: 0 | M93: ='Input-Infra'!AY89-Q93 -> 0 | Q93: 0 | S93: 0 | T93: 0 | U93: 0 | V93: 0 | W93: 0 | X93: 0 | Y93: 0 | Z93: 0 | AA93: 0 | AB93: 0 | AC93: 0
G94: Spare 4 | I94: $'000 | K94: 0 | M94: ='Input-Infra'!AY90-Q94 -> 0 | Q94: 0 | S94: 0 | T94: 0 | U94: 0 | V94: 0 | W94: 0 | X94: 0 | Y94: 0 | Z94: 0 | AA94: 0 | AB94: 0 | AC94: 0
G95: Spare 5 | I95: $'000 | K95: 0 | M95: ='Input-Infra'!AY91-Q95 -> 0 | Q95: 0 | S95: 0 | T95: 0 | U95: 0 | V95: 0 | W95: 0 | X95: 0 | Y95: 0 | Z95: 0 | AA95: 0 | AB95: 0 | AC95: 0
G96: Spare 6 | I96: $'000 | K96: 0 | M96: ='Input-Infra'!AY92-Q96 -> 0 | Q96: 0 | S96: 0 | T96: 0 | U96: 0 | V96: 0 | W96: 0 | X96: 0 | Y96: 0 | Z96: 0 | AA96: 0 | AB96: 0 | AC96: 0
G97: Spare 7 | I97: $'000 | K97: 0 | M97: ='Input-Infra'!AY93-Q97 -> 0 | Q97: 0 | S97: 0 | T97: 0 | U97: 0 | V97: 0 | W97: 0 | X97: 0 | Y97: 0 | Z97: 0 | AA97: 0 | AB97: 0 | AC97: 0
G98: Spare 8 | I98: $'000 | K98: 0 | M98: ='Input-Infra'!AY94-Q98 -> 0 | Q98: 0 | S98: 0 | T98: 0 | U98: 0 | V98: 0 | W98: 0 | X98: 0 | Y98: 0 | Z98: 0 | AA98: 0 | AB98: 0 | AC98: 0
G100: =G78 -> Subtotal | I100: $'000 | K100: =SUM(K82:K98) -> 89351.07816 | L100: =SUM(L82:L98) -> 0 | M100: =SUM(M82:M98) -> -9703.157311 | Q100: =SUM(S100:AC100) -> 116295.3243 | S100: =SUM(S82:S98) -> 0 | T100: 0 | U100: 0 | V100: 75633.60204 | W100: 0 | X100: 0 | Y100: 0 | Z100: 0 | AA100: 40661.72227 | AB100: 0 | AC100: 0
G102: Total | I102: $'000 | K102: =SUM(K78,K100) -> 225803.5782 | M102: =SUM(M78,M100) -> -9703.157311 | Q102: =SUM(Q78,Q100) -> 252747.8243 | S102: =SUM(S78,S100) -> 136452.5 | T102: 0 | U102: 0 | V102: 75633.60204 | W102: 0 | X102: 0 | Y102: 0 | Z102: 0 | AA102: 40661.72227 | AB102: 0 | AC102: 0
F105: Land Costs
G107: Existing Infrastructure
G109: =Existing -> Citywide Total | I109: $'000 | K109: =NPV(WACC_nom,T109:AM109)+S109 -> 0 | M109: ='Input-Infra'!AK25-Q109 -> 0 | Q109: =SUM(S109:AM109) -> 0 | S109: =IF(S$9=0,'Input-Infra'!$AN25*S$19,0) -> 0 | T109: =IF(T$9=0,'Input-Infra'!$AN25*T$19,0) -> 0 | U109: =IF(U$9=0,'Input-Infra'!$AN25*U$19,0) -> 0 | V109: =IF(V$9=0,'Input-Infra'!$AN25*V$19,0) -> 0 | W109: =IF(W$9=0,'Input-Infra'!$AN25*W$19,0) -> 0 | X109: =IF(X$9=0,'Input-Infra'!$AN25*X$19,0) -> 0 | Y109: =IF(Y$9=0,'Input-Infra'!$AN25*Y$19,0) -> 0 | Z109: =IF(Z$9=0,'Input-Infra'!$AN25*Z$19,0) -> 0 | AA109: =IF(AA$9=0,'Input-Infra'!$AN25*AA$19,0) -> 0 | AB109: =IF(AB$9=0,'Input-Infra'!$AN25*AB$19,0) -> 0 | AC109: =IF(AC$9=0,'Input-Infra'!$AN25*AC$19,0) -> 0
G110: Spare 1 | I110: $'000 | K110: 0 | M110: ='Input-Infra'!AK26-Q110 -> 0 | Q110: 0 | S110: =IF(S$9=0,'Input-Infra'!$AN26*S$19,0) -> 0 | T110: =IF(T$9=0,'Input-Infra'!$AN26*T$19,0) -> 0 | U110: =IF(U$9=0,'Input-Infra'!$AN26*U$19,0) -> 0 | V110: =IF(V$9=0,'Input-Infra'!$AN26*V$19,0) -> 0 | W110: =IF(W$9=0,'Input-Infra'!$AN26*W$19,0) -> 0 | X110: =IF(X$9=0,'Input-Infra'!$AN26*X$19,0) -> 0 | Y110: =IF(Y$9=0,'Input-Infra'!$AN26*Y$19,0) -> 0 | Z110: =IF(Z$9=0,'Input-Infra'!$AN26*Z$19,0) -> 0 | AA110: =IF(AA$9=0,'Input-Infra'!$AN26*AA$19,0) -> 0 | AB110: =IF(AB$9=0,'Input-Infra'!$AN26*AB$19,0) -> 0 | AC110: =IF(AC$9=0,'Input-Infra'!$AN26*AC$19,0) -> 0
G111: Spare 2 | I111: $'000 | K111: 0 | M111: ='Input-Infra'!AK27-Q111 -> 0 | Q111: 0 | S111: =IF(S$9=0,'Input-Infra'!$AN27*S$19,0) -> 0 | T111: =IF(T$9=0,'Input-Infra'!$AN27*T$19,0) -> 0 | U111: =IF(U$9=0,'Input-Infra'!$AN27*U$19,0) -> 0 | V111: =IF(V$9=0,'Input-Infra'!$AN27*V$19,0) -> 0 | W111: =IF(W$9=0,'Input-Infra'!$AN27*W$19,0) -> 0 | X111: =IF(X$9=0,'Input-Infra'!$AN27*X$19,0) -> 0 | Y111: =IF(Y$9=0,'Input-Infra'!$AN27*Y$19,0) -> 0 | Z111: =IF(Z$9=0,'Input-Infra'!$AN27*Z$19,0) -> 0 | AA111: =IF(AA$9=0,'Input-Infra'!$AN27*AA$19,0) -> 0 | AB111: =IF(AB$9=0,'Input-Infra'!$AN27*AB$19,0) -> 0 | AC111: =IF(AC$9=0,'Input-Infra'!$AN27*AC$19,0) -> 0
G112: Spare 3 | I112: $'000 | K112: 0 | M112: ='Input-Infra'!AK28-Q112 -> 0 | Q112: 0 | S112: =IF(S$9=0,'Input-Infra'!$AN28*S$19,0) -> 0 | T112: =IF(T$9=0,'Input-Infra'!$AN28*T$19,0) -> 0 | U112: =IF(U$9=0,'Input-Infra'!$AN28*U$19,0) -> 0 | V112: =IF(V$9=0,'Input-Infra'!$AN28*V$19,0) -> 0 | W112: =IF(W$9=0,'Input-Infra'!$AN28*W$19,0) -> 0 | X112: =IF(X$9=0,'Input-Infra'!$AN28*X$19,0) -> 0 | Y112: =IF(Y$9=0,'Input-Infra'!$AN28*Y$19,0) -> 0 | Z112: =IF(Z$9=0,'Input-Infra'!$AN28*Z$19,0) -> 0 | AA112: =IF(AA$9=0,'Input-Infra'!$AN28*AA$19,0) -> 0 | AB112: =IF(AB$9=0,'Input-Infra'!$AN28*AB$19,0) -> 0 | AC112: =IF(AC$9=0,'Input-Infra'!$AN28*AC$19,0) -> 0
G113: Spare 4 | I113: $'000 | K113: 0 | M113: ='Input-Infra'!AK29-Q113 -> 0 | Q113: 0 | S113: =IF(S$9=0,'Input-Infra'!$AN29*S$19,0) -> 0 | T113: =IF(T$9=0,'Input-Infra'!$AN29*T$19,0) -> 0 | U113: =IF(U$9=0,'Input-Infra'!$AN29*U$19,0) -> 0 | V113: =IF(V$9=0,'Input-Infra'!$AN29*V$19,0) -> 0 | W113: =IF(W$9=0,'Input-Infra'!$AN29*W$19,0) -> 0 | X113: =IF(X$9=0,'Input-Infra'!$AN29*X$19,0) -> 0 | Y113: =IF(Y$9=0,'Input-Infra'!$AN29*Y$19,0) -> 0 | Z113: =IF(Z$9=0,'Input-Infra'!$AN29*Z$19,0) -> 0 | AA113: =IF(AA$9=0,'Input-Infra'!$AN29*AA$19,0) -> 0 | AB113: =IF(AB$9=0,'Input-Infra'!$AN29*AB$19,0) -> 0 | AC113: =IF(AC$9=0,'Input-Infra'!$AN29*AC$19,0) -> 0
G114: Spare 5 | I114: $'000 | K114: 0 | M114: ='Input-Infra'!AK30-Q114 -> 0 | Q114: 0 | S114: =IF(S$9=0,'Input-Infra'!$AN30*S$19,0) -> 0 | T114: =IF(T$9=0,'Input-Infra'!$AN30*T$19,0) -> 0 | U114: =IF(U$9=0,'Input-Infra'!$AN30*U$19,0) -> 0 | V114: =IF(V$9=0,'Input-Infra'!$AN30*V$19,0) -> 0 | W114: =IF(W$9=0,'Input-Infra'!$AN30*W$19,0) -> 0 | X114: =IF(X$9=0,'Input-Infra'!$AN30*X$19,0) -> 0 | Y114: =IF(Y$9=0,'Input-Infra'!$AN30*Y$19,0) -> 0 | Z114: =IF(Z$9=0,'Input-Infra'!$AN30*Z$19,0) -> 0 | AA114: =IF(AA$9=0,'Input-Infra'!$AN30*AA$19,0) -> 0 | AB114: =IF(AB$9=0,'Input-Infra'!$AN30*AB$19,0) -> 0 | AC114: =IF(AC$9=0,'Input-Infra'!$AN30*AC$19,0) -> 0
G115: Spare 6 | I115: $'000 | K115: 0 | M115: ='Input-Infra'!AK31-Q115 -> 0 | Q115: 0 | S115: =IF(S$9=0,'Input-Infra'!$AN31*S$19,0) -> 0 | T115: =IF(T$9=0,'Input-Infra'!$AN31*T$19,0) -> 0 | U115: =IF(U$9=0,'Input-Infra'!$AN31*U$19,0) -> 0 | V115: =IF(V$9=0,'Input-Infra'!$AN31*V$19,0) -> 0 | W115: =IF(W$9=0,'Input-Infra'!$AN31*W$19,0) -> 0 | X115: =IF(X$9=0,'Input-Infra'!$AN31*X$19,0) -> 0 | Y115: =IF(Y$9=0,'Input-Infra'!$AN31*Y$19,0) -> 0 | Z115: =IF(Z$9=0,'Input-Infra'!$AN31*Z$19,0) -> 0 | AA115: =IF(AA$9=0,'Input-Infra'!$AN31*AA$19,0) -> 0 | AB115: =IF(AB$9=0,'Input-Infra'!$AN31*AB$19,0) -> 0 | AC115: =IF(AC$9=0,'Input-Infra'!$AN31*AC$19,0) -> 0
G116: Spare 7 | I116: $'000 | K116: 0 | M116: ='Input-Infra'!AK32-Q116 -> 0 | Q116: 0 | S116: =IF(S$9=0,'Input-Infra'!$AN32*S$19,0) -> 0 | T116: =IF(T$9=0,'Input-Infra'!$AN32*T$19,0) -> 0 | U116: =IF(U$9=0,'Input-Infra'!$AN32*U$19,0) -> 0 | V116: =IF(V$9=0,'Input-Infra'!$AN32*V$19,0) -> 0 | W116: =IF(W$9=0,'Input-Infra'!$AN32*W$19,0) -> 0 | X116: =IF(X$9=0,'Input-Infra'!$AN32*X$19,0) -> 0 | Y116: =IF(Y$9=0,'Input-Infra'!$AN32*Y$19,0) -> 0 | Z116: =IF(Z$9=0,'Input-Infra'!$AN32*Z$19,0) -> 0 | AA116: =IF(AA$9=0,'Input-Infra'!$AN32*AA$19,0) -> 0 | AB116: =IF(AB$9=0,'Input-Infra'!$AN32*AB$19,0) -> 0 | AC116: =IF(AC$9=0,'Input-Infra'!$AN32*AC$19,0) -> 0
G117: Spare 8 | I117: $'000 | K117: 0 | M117: ='Input-Infra'!AK33-Q117 -> 0 | Q117: 0 | S117: =IF(S$9=0,'Input-Infra'!$AN33*S$19,0) -> 0 | T117: =IF(T$9=0,'Input-Infra'!$AN33*T$19,0) -> 0 | U117: =IF(U$9=0,'Input-Infra'!$AN33*U$19,0) -> 0 | V117: =IF(V$9=0,'Input-Infra'!$AN33*V$19,0) -> 0 | W117: =IF(W$9=0,'Input-Infra'!$AN33*W$19,0) -> 0 | X117: =IF(X$9=0,'Input-Infra'!$AN33*X$19,0) -> 0 | Y117: =IF(Y$9=0,'Input-Infra'!$AN33*Y$19,0) -> 0 | Z117: =IF(Z$9=0,'Input-Infra'!$AN33*Z$19,0) -> 0 | AA117: =IF(AA$9=0,'Input-Infra'!$AN33*AA$19,0) -> 0 | AB117: =IF(AB$9=0,'Input-Infra'!$AN33*AB$19,0) -> 0 | AC117: =IF(AC$9=0,'Input-Infra'!$AN33*AC$19,0) -> 0
G118: Spare 9 | I118: $'000 | K118: 0 | M118: ='Input-Infra'!AK34-Q118 -> 0 | Q118: 0 | S118: =IF(S$9=0,'Input-Infra'!$AN34*S$19,0) -> 0 | T118: =IF(T$9=0,'Input-Infra'!$AN34*T$19,0) -> 0 | U118: =IF(U$9=0,'Input-Infra'!$AN34*U$19,0) -> 0 | V118: =IF(V$9=0,'Input-Infra'!$AN34*V$19,0) -> 0 | W118: =IF(W$9=0,'Input-Infra'!$AN34*W$19,0) -> 0 | X118: =IF(X$9=0,'Input-Infra'!$AN34*X$19,0) -> 0 | Y118: =IF(Y$9=0,'Input-Infra'!$AN34*Y$19,0) -> 0 | Z118: =IF(Z$9=0,'Input-Infra'!$AN34*Z$19,0) -> 0 | AA118: =IF(AA$9=0,'Input-Infra'!$AN34*AA$19,0) -> 0 | AB118: =IF(AB$9=0,'Input-Infra'!$AN34*AB$19,0) -> 0 | AC118: =IF(AC$9=0,'Input-Infra'!$AN34*AC$19,0) -> 0
G119: Spare 10 | I119: $'000 | K119: 0 | M119: ='Input-Infra'!AK35-Q119 -> 0 | Q119: 0 | S119: =IF(S$9=0,'Input-Infra'!$AN35*S$19,0) -> 0 | T119: =IF(T$9=0,'Input-Infra'!$AN35*T$19,0) -> 0 | U119: =IF(U$9=0,'Input-Infra'!$AN35*U$19,0) -> 0 | V119: =IF(V$9=0,'Input-Infra'!$AN35*V$19,0) -> 0 | W119: =IF(W$9=0,'Input-Infra'!$AN35*W$19,0) -> 0 | X119: =IF(X$9=0,'Input-Infra'!$AN35*X$19,0) -> 0 | Y119: =IF(Y$9=0,'Input-Infra'!$AN35*Y$19,0) -> 0 | Z119: =IF(Z$9=0,'Input-Infra'!$AN35*Z$19,0) -> 0 | AA119: =IF(AA$9=0,'Input-Infra'!$AN35*AA$19,0) -> 0 | AB119: =IF(AB$9=0,'Input-Infra'!$AN35*AB$19,0) -> 0 | AC119: =IF(AC$9=0,'Input-Infra'!$AN35*AC$19,0) -> 0
G120: Spare 11 | I120: $'000 | K120: 0 | M120: ='Input-Infra'!AK36-Q120 -> 0 | Q120: 0 | S120: =IF(S$9=0,'Input-Infra'!$AN36*S$19,0) -> 0 | T120: =IF(T$9=0,'Input-Infra'!$AN36*T$19,0) -> 0 | U120: =IF(U$9=0,'Input-Infra'!$AN36*U$19,0) -> 0 | V120: =IF(V$9=0,'Input-Infra'!$AN36*V$19,0) -> 0 | W120: =IF(W$9=0,'Input-Infra'!$AN36*W$19,0) -> 0 | X120: =IF(X$9=0,'Input-Infra'!$AN36*X$19,0) -> 0 | Y120: =IF(Y$9=0,'Input-Infra'!$AN36*Y$19,0) -> 0 | Z120: =IF(Z$9=0,'Input-Infra'!$AN36*Z$19,0) -> 0 | AA120: =IF(AA$9=0,'Input-Infra'!$AN36*AA$19,0) -> 0 | AB120: =IF(AB$9=0,'Input-Infra'!$AN36*AB$19,0) -> 0 | AC120: =IF(AC$9=0,'Input-Infra'!$AN36*AC$19,0) -> 0
G121: Spare 12 | I121: $'000 | K121: 0 | M121: ='Input-Infra'!AK37-Q121 -> 0 | Q121: 0 | S121: =IF(S$9=0,'Input-Infra'!$AN37*S$19,0) -> 0 | T121: =IF(T$9=0,'Input-Infra'!$AN37*T$19,0) -> 0 | U121: =IF(U$9=0,'Input-Infra'!$AN37*U$19,0) -> 0 | V121: =IF(V$9=0,'Input-Infra'!$AN37*V$19,0) -> 0 | W121: =IF(W$9=0,'Input-Infra'!$AN37*W$19,0) -> 0 | X121: =IF(X$9=0,'Input-Infra'!$AN37*X$19,0) -> 0 | Y121: =IF(Y$9=0,'Input-Infra'!$AN37*Y$19,0) -> 0 | Z121: =IF(Z$9=0,'Input-Infra'!$AN37*Z$19,0) -> 0 | AA121: =IF(AA$9=0,'Input-Infra'!$AN37*AA$19,0) -> 0 | AB121: =IF(AB$9=0,'Input-Infra'!$AN37*AB$19,0) -> 0 | AC121: =IF(AC$9=0,'Input-Infra'!$AN37*AC$19,0) -> 0
G122: Spare 13 | I122: $'000 | K122: 0 | M122: ='Input-Infra'!AK38-Q122 -> 0 | Q122: 0 | S122: =IF(S$9=0,'Input-Infra'!$AN38*S$19,0) -> 0 | T122: =IF(T$9=0,'Input-Infra'!$AN38*T$19,0) -> 0 | U122: =IF(U$9=0,'Input-Infra'!$AN38*U$19,0) -> 0 | V122: =IF(V$9=0,'Input-Infra'!$AN38*V$19,0) -> 0 | W122: =IF(W$9=0,'Input-Infra'!$AN38*W$19,0) -> 0 | X122: =IF(X$9=0,'Input-Infra'!$AN38*X$19,0) -> 0 | Y122: =IF(Y$9=0,'Input-Infra'!$AN38*Y$19,0) -> 0 | Z122: =IF(Z$9=0,'Input-Infra'!$AN38*Z$19,0) -> 0 | AA122: =IF(AA$9=0,'Input-Infra'!$AN38*AA$19,0) -> 0 | AB122: =IF(AB$9=0,'Input-Infra'!$AN38*AB$19,0) -> 0 | AC122: =IF(AC$9=0,'Input-Infra'!$AN38*AC$19,0) -> 0
G123: Spare 14 | I123: $'000 | K123: 0 | M123: ='Input-Infra'!AK39-Q123 -> 0 | Q123: 0 | S123: =IF(S$9=0,'Input-Infra'!$AN39*S$19,0) -> 0 | T123: =IF(T$9=0,'Input-Infra'!$AN39*T$19,0) -> 0 | U123: =IF(U$9=0,'Input-Infra'!$AN39*U$19,0) -> 0 | V123: =IF(V$9=0,'Input-Infra'!$AN39*V$19,0) -> 0 | W123: =IF(W$9=0,'Input-Infra'!$AN39*W$19,0) -> 0 | X123: =IF(X$9=0,'Input-Infra'!$AN39*X$19,0) -> 0 | Y123: =IF(Y$9=0,'Input-Infra'!$AN39*Y$19,0) -> 0 | Z123: =IF(Z$9=0,'Input-Infra'!$AN39*Z$19,0) -> 0 | AA123: =IF(AA$9=0,'Input-Infra'!$AN39*AA$19,0) -> 0 | AB123: =IF(AB$9=0,'Input-Infra'!$AN39*AB$19,0) -> 0 | AC123: =IF(AC$9=0,'Input-Infra'!$AN39*AC$19,0) -> 0
G124: Spare 15 | I124: $'000 | K124: 0 | M124: ='Input-Infra'!AK40-Q124 -> 0 | Q124: 0 | S124: =IF(S$9=0,'Input-Infra'!$AN40*S$19,0) -> 0 | T124: =IF(T$9=0,'Input-Infra'!$AN40*T$19,0) -> 0 | U124: =IF(U$9=0,'Input-Infra'!$AN40*U$19,0) -> 0 | V124: =IF(V$9=0,'Input-Infra'!$AN40*V$19,0) -> 0 | W124: =IF(W$9=0,'Input-Infra'!$AN40*W$19,0) -> 0 | X124: =IF(X$9=0,'Input-Infra'!$AN40*X$19,0) -> 0 | Y124: =IF(Y$9=0,'Input-Infra'!$AN40*Y$19,0) -> 0 | Z124: =IF(Z$9=0,'Input-Infra'!$AN40*Z$19,0) -> 0 | AA124: =IF(AA$9=0,'Input-Infra'!$AN40*AA$19,0) -> 0 | AB124: =IF(AB$9=0,'Input-Infra'!$AN40*AB$19,0) -> 0 | AC124: =IF(AC$9=0,'Input-Infra'!$AN40*AC$19,0) -> 0
G125: Spare 16 | I125: $'000 | K125: 0 | M125: ='Input-Infra'!AK41-Q125 -> 0 | Q125: 0 | S125: =IF(S$9=0,'Input-Infra'!$AN41*S$19,0) -> 0 | T125: =IF(T$9=0,'Input-Infra'!$AN41*T$19,0) -> 0 | U125: =IF(U$9=0,'Input-Infra'!$AN41*U$19,0) -> 0 | V125: =IF(V$9=0,'Input-Infra'!$AN41*V$19,0) -> 0 | W125: =IF(W$9=0,'Input-Infra'!$AN41*W$19,0) -> 0 | X125: =IF(X$9=0,'Input-Infra'!$AN41*X$19,0) -> 0 | Y125: =IF(Y$9=0,'Input-Infra'!$AN41*Y$19,0) -> 0 | Z125: =IF(Z$9=0,'Input-Infra'!$AN41*Z$19,0) -> 0 | AA125: =IF(AA$9=0,'Input-Infra'!$AN41*AA$19,0) -> 0 | AB125: =IF(AB$9=0,'Input-Infra'!$AN41*AB$19,0) -> 0 | AC125: =IF(AC$9=0,'Input-Infra'!$AN41*AC$19,0) -> 0
G126: Spare 17 | I126: $'000 | K126: 0 | M126: ='Input-Infra'!AK42-Q126 -> 0 | Q126: 0 | S126: =IF(S$9=0,'Input-Infra'!$AN42*S$19,0) -> 0 | T126: =IF(T$9=0,'Input-Infra'!$AN42*T$19,0) -> 0 | U126: =IF(U$9=0,'Input-Infra'!$AN42*U$19,0) -> 0 | V126: =IF(V$9=0,'Input-Infra'!$AN42*V$19,0) -> 0 | W126: =IF(W$9=0,'Input-Infra'!$AN42*W$19,0) -> 0 | X126: =IF(X$9=0,'Input-Infra'!$AN42*X$19,0) -> 0 | Y126: =IF(Y$9=0,'Input-Infra'!$AN42*Y$19,0) -> 0 | Z126: =IF(Z$9=0,'Input-Infra'!$AN42*Z$19,0) -> 0 | AA126: =IF(AA$9=0,'Input-Infra'!$AN42*AA$19,0) -> 0 | AB126: =IF(AB$9=0,'Input-Infra'!$AN42*AB$19,0) -> 0 | AC126: =IF(AC$9=0,'Input-Infra'!$AN42*AC$19,0) -> 0
G127: Spare 18 | I127: $'000 | K127: 0 | M127: ='Input-Infra'!AK43-Q127 -> 0 | Q127: 0 | S127: =IF(S$9=0,'Input-Infra'!$AN43*S$19,0) -> 0 | T127: =IF(T$9=0,'Input-Infra'!$AN43*T$19,0) -> 0 | U127: =IF(U$9=0,'Input-Infra'!$AN43*U$19,0) -> 0 | V127: =IF(V$9=0,'Input-Infra'!$AN43*V$19,0) -> 0 | W127: =IF(W$9=0,'Input-Infra'!$AN43*W$19,0) -> 0 | X127: =IF(X$9=0,'Input-Infra'!$AN43*X$19,0) -> 0 | Y127: =IF(Y$9=0,'Input-Infra'!$AN43*Y$19,0) -> 0 | Z127: =IF(Z$9=0,'Input-Infra'!$AN43*Z$19,0) -> 0 | AA127: =IF(AA$9=0,'Input-Infra'!$AN43*AA$19,0) -> 0 | AB127: =IF(AB$9=0,'Input-Infra'!$AN43*AB$19,0) -> 0 | AC127: =IF(AC$9=0,'Input-Infra'!$AN43*AC$19,0) -> 0
G128: Spare 19 | I128: $'000 | K128: 0 | M128: ='Input-Infra'!AK44-Q128 -> 0 | Q128: 0 | S128: =IF(S$9=0,'Input-Infra'!$AN44*S$19,0) -> 0 | T128: =IF(T$9=0,'Input-Infra'!$AN44*T$19,0) -> 0 | U128: =IF(U$9=0,'Input-Infra'!$AN44*U$19,0) -> 0 | V128: =IF(V$9=0,'Input-Infra'!$AN44*V$19,0) -> 0 | W128: =IF(W$9=0,'Input-Infra'!$AN44*W$19,0) -> 0 | X128: =IF(X$9=0,'Input-Infra'!$AN44*X$19,0) -> 0 | Y128: =IF(Y$9=0,'Input-Infra'!$AN44*Y$19,0) -> 0 | Z128: =IF(Z$9=0,'Input-Infra'!$AN44*Z$19,0) -> 0 | AA128: =IF(AA$9=0,'Input-Infra'!$AN44*AA$19,0) -> 0 | AB128: =IF(AB$9=0,'Input-Infra'!$AN44*AB$19,0) -> 0 | AC128: =IF(AC$9=0,'Input-Infra'!$AN44*AC$19,0) -> 0
G129: Spare 20 | I129: $'000 | K129: 0 | M129: ='Input-Infra'!AK45-Q129 -> 0 | Q129: 0 | S129: =IF(S$9=0,'Input-Infra'!$AN45*S$19,0) -> 0 | T129: =IF(T$9=0,'Input-Infra'!$AN45*T$19,0) -> 0 | U129: =IF(U$9=0,'Input-Infra'!$AN45*U$19,0) -> 0 | V129: =IF(V$9=0,'Input-Infra'!$AN45*V$19,0) -> 0 | W129: =IF(W$9=0,'Input-Infra'!$AN45*W$19,0) -> 0 | X129: =IF(X$9=0,'Input-Infra'!$AN45*X$19,0) -> 0 | Y129: =IF(Y$9=0,'Input-Infra'!$AN45*Y$19,0) -> 0 | Z129: =IF(Z$9=0,'Input-Infra'!$AN45*Z$19,0) -> 0 | AA129: =IF(AA$9=0,'Input-Infra'!$AN45*AA$19,0) -> 0 | AB129: =IF(AB$9=0,'Input-Infra'!$AN45*AB$19,0) -> 0 | AC129: =IF(AC$9=0,'Input-Infra'!$AN45*AC$19,0) -> 0
G130: Spare 21 | I130: $'000 | K130: 0 | M130: ='Input-Infra'!AK46-Q130 -> 0 | Q130: 0 | S130: =IF(S$9=0,'Input-Infra'!$AN46*S$19,0) -> 0 | T130: =IF(T$9=0,'Input-Infra'!$AN46*T$19,0) -> 0 | U130: =IF(U$9=0,'Input-Infra'!$AN46*U$19,0) -> 0 | V130: =IF(V$9=0,'Input-Infra'!$AN46*V$19,0) -> 0 | W130: =IF(W$9=0,'Input-Infra'!$AN46*W$19,0) -> 0 | X130: =IF(X$9=0,'Input-Infra'!$AN46*X$19,0) -> 0 | Y130: =IF(Y$9=0,'Input-Infra'!$AN46*Y$19,0) -> 0 | Z130: =IF(Z$9=0,'Input-Infra'!$AN46*Z$19,0) -> 0 | AA130: =IF(AA$9=0,'Input-Infra'!$AN46*AA$19,0) -> 0 | AB130: =IF(AB$9=0,'Input-Infra'!$AN46*AB$19,0) -> 0 | AC130: =IF(AC$9=0,'Input-Infra'!$AN46*AC$19,0) -> 0
G131: Spare 22 | I131: $'000 | K131: 0 | M131: ='Input-Infra'!AK47-Q131 -> 0 | Q131: 0 | S131: =IF(S$9=0,'Input-Infra'!$AN47*S$19,0) -> 0 | T131: =IF(T$9=0,'Input-Infra'!$AN47*T$19,0) -> 0 | U131: =IF(U$9=0,'Input-Infra'!$AN47*U$19,0) -> 0 | V131: =IF(V$9=0,'Input-Infra'!$AN47*V$19,0) -> 0 | W131: =IF(W$9=0,'Input-Infra'!$AN47*W$19,0) -> 0 | X131: =IF(X$9=0,'Input-Infra'!$AN47*X$19,0) -> 0 | Y131: =IF(Y$9=0,'Input-Infra'!$AN47*Y$19,0) -> 0 | Z131: =IF(Z$9=0,'Input-Infra'!$AN47*Z$19,0) -> 0 | AA131: =IF(AA$9=0,'Input-Infra'!$AN47*AA$19,0) -> 0 | AB131: =IF(AB$9=0,'Input-Infra'!$AN47*AB$19,0) -> 0 | AC131: =IF(AC$9=0,'Input-Infra'!$AN47*AC$19,0) -> 0
G132: Spare 23 | I132: $'000 | K132: 0 | M132: ='Input-Infra'!AK48-Q132 -> 0 | Q132: 0 | S132: =IF(S$9=0,'Input-Infra'!$AN48*S$19,0) -> 0 | T132: =IF(T$9=0,'Input-Infra'!$AN48*T$19,0) -> 0 | U132: =IF(U$9=0,'Input-Infra'!$AN48*U$19,0) -> 0 | V132: =IF(V$9=0,'Input-Infra'!$AN48*V$19,0) -> 0 | W132: =IF(W$9=0,'Input-Infra'!$AN48*W$19,0) -> 0 | X132: =IF(X$9=0,'Input-Infra'!$AN48*X$19,0) -> 0 | Y132: =IF(Y$9=0,'Input-Infra'!$AN48*Y$19,0) -> 0 | Z132: =IF(Z$9=0,'Input-Infra'!$AN48*Z$19,0) -> 0 | AA132: =IF(AA$9=0,'Input-Infra'!$AN48*AA$19,0) -> 0 | AB132: =IF(AB$9=0,'Input-Infra'!$AN48*AB$19,0) -> 0 | AC132: =IF(AC$9=0,'Input-Infra'!$AN48*AC$19,0) -> 0
G133: Spare 24 | I133: $'000 | K133: 0 | M133: ='Input-Infra'!AK49-Q133 -> 0 | Q133: 0 | S133: =IF(S$9=0,'Input-Infra'!$AN49*S$19,0) -> 0 | T133: =IF(T$9=0,'Input-Infra'!$AN49*T$19,0) -> 0 | U133: =IF(U$9=0,'Input-Infra'!$AN49*U$19,0) -> 0 | V133: =IF(V$9=0,'Input-Infra'!$AN49*V$19,0) -> 0 | W133: =IF(W$9=0,'Input-Infra'!$AN49*W$19,0) -> 0 | X133: =IF(X$9=0,'Input-Infra'!$AN49*X$19,0) -> 0 | Y133: =IF(Y$9=0,'Input-Infra'!$AN49*Y$19,0) -> 0 | Z133: =IF(Z$9=0,'Input-Infra'!$AN49*Z$19,0) -> 0 | AA133: =IF(AA$9=0,'Input-Infra'!$AN49*AA$19,0) -> 0 | AB133: =IF(AB$9=0,'Input-Infra'!$AN49*AB$19,0) -> 0 | AC133: =IF(AC$9=0,'Input-Infra'!$AN49*AC$19,0) -> 0
G134: Spare 25 | I134: $'000 | K134: 0 | M134: ='Input-Infra'!AK50-Q134 -> 0 | Q134: 0 | S134: =IF(S$9=0,'Input-Infra'!$AN50*S$19,0) -> 0 | T134: =IF(T$9=0,'Input-Infra'!$AN50*T$19,0) -> 0 | U134: =IF(U$9=0,'Input-Infra'!$AN50*U$19,0) -> 0 | V134: =IF(V$9=0,'Input-Infra'!$AN50*V$19,0) -> 0 | W134: =IF(W$9=0,'Input-Infra'!$AN50*W$19,0) -> 0 | X134: =IF(X$9=0,'Input-Infra'!$AN50*X$19,0) -> 0 | Y134: =IF(Y$9=0,'Input-Infra'!$AN50*Y$19,0) -> 0 | Z134: =IF(Z$9=0,'Input-Infra'!$AN50*Z$19,0) -> 0 | AA134: =IF(AA$9=0,'Input-Infra'!$AN50*AA$19,0) -> 0 | AB134: =IF(AB$9=0,'Input-Infra'!$AN50*AB$19,0) -> 0 | AC134: =IF(AC$9=0,'Input-Infra'!$AN50*AC$19,0) -> 0
G135: Spare 26 | I135: $'000 | K135: 0 | M135: ='Input-Infra'!AK51-Q135 -> 0 | Q135: 0 | S135: =IF(S$9=0,'Input-Infra'!$AN51*S$19,0) -> 0 | T135: =IF(T$9=0,'Input-Infra'!$AN51*T$19,0) -> 0 | U135: =IF(U$9=0,'Input-Infra'!$AN51*U$19,0) -> 0 | V135: =IF(V$9=0,'Input-Infra'!$AN51*V$19,0) -> 0 | W135: =IF(W$9=0,'Input-Infra'!$AN51*W$19,0) -> 0 | X135: =IF(X$9=0,'Input-Infra'!$AN51*X$19,0) -> 0 | Y135: =IF(Y$9=0,'Input-Infra'!$AN51*Y$19,0) -> 0 | Z135: =IF(Z$9=0,'Input-Infra'!$AN51*Z$19,0) -> 0 | AA135: =IF(AA$9=0,'Input-Infra'!$AN51*AA$19,0) -> 0 | AB135: =IF(AB$9=0,'Input-Infra'!$AN51*AB$19,0) -> 0 | AC135: =IF(AC$9=0,'Input-Infra'!$AN51*AC$19,0) -> 0
G136: Spare 27 | I136: $'000 | K136: 0 | M136: ='Input-Infra'!AK52-Q136 -> 0 | Q136: 0 | S136: =IF(S$9=0,'Input-Infra'!$AN52*S$19,0) -> 0 | T136: =IF(T$9=0,'Input-Infra'!$AN52*T$19,0) -> 0 | U136: =IF(U$9=0,'Input-Infra'!$AN52*U$19,0) -> 0 | V136: =IF(V$9=0,'Input-Infra'!$AN52*V$19,0) -> 0 | W136: =IF(W$9=0,'Input-Infra'!$AN52*W$19,0) -> 0 | X136: =IF(X$9=0,'Input-Infra'!$AN52*X$19,0) -> 0 | Y136: =IF(Y$9=0,'Input-Infra'!$AN52*Y$19,0) -> 0 | Z136: =IF(Z$9=0,'Input-Infra'!$AN52*Z$19,0) -> 0 | AA136: =IF(AA$9=0,'Input-Infra'!$AN52*AA$19,0) -> 0 | AB136: =IF(AB$9=0,'Input-Infra'!$AN52*AB$19,0) -> 0 | AC136: =IF(AC$9=0,'Input-Infra'!$AN52*AC$19,0) -> 0
G137: Spare 28 | I137: $'000 | K137: 0 | M137: ='Input-Infra'!AK53-Q137 -> 0 | Q137: 0 | S137: =IF(S$9=0,'Input-Infra'!$AN53*S$19,0) -> 0 | T137: =IF(T$9=0,'Input-Infra'!$AN53*T$19,0) -> 0 | U137: =IF(U$9=0,'Input-Infra'!$AN53*U$19,0) -> 0 | V137: =IF(V$9=0,'Input-Infra'!$AN53*V$19,0) -> 0 | W137: =IF(W$9=0,'Input-Infra'!$AN53*W$19,0) -> 0 | X137: =IF(X$9=0,'Input-Infra'!$AN53*X$19,0) -> 0 | Y137: =IF(Y$9=0,'Input-Infra'!$AN53*Y$19,0) -> 0 | Z137: =IF(Z$9=0,'Input-Infra'!$AN53*Z$19,0) -> 0 | AA137: =IF(AA$9=0,'Input-Infra'!$AN53*AA$19,0) -> 0 | AB137: =IF(AB$9=0,'Input-Infra'!$AN53*AB$19,0) -> 0 | AC137: =IF(AC$9=0,'Input-Infra'!$AN53*AC$19,0) -> 0
G138: Spare 29 | I138: $'000 | K138: 0 | M138: ='Input-Infra'!AK54-Q138 -> 0 | Q138: 0 | S138: =IF(S$9=0,'Input-Infra'!$AN54*S$19,0) -> 0 | T138: =IF(T$9=0,'Input-Infra'!$AN54*T$19,0) -> 0 | U138: =IF(U$9=0,'Input-Infra'!$AN54*U$19,0) -> 0 | V138: =IF(V$9=0,'Input-Infra'!$AN54*V$19,0) -> 0 | W138: =IF(W$9=0,'Input-Infra'!$AN54*W$19,0) -> 0 | X138: =IF(X$9=0,'Input-Infra'!$AN54*X$19,0) -> 0 | Y138: =IF(Y$9=0,'Input-Infra'!$AN54*Y$19,0) -> 0 | Z138: =IF(Z$9=0,'Input-Infra'!$AN54*Z$19,0) -> 0 | AA138: =IF(AA$9=0,'Input-Infra'!$AN54*AA$19,0) -> 0 | AB138: =IF(AB$9=0,'Input-Infra'!$AN54*AB$19,0) -> 0 | AC138: =IF(AC$9=0,'Input-Infra'!$AN54*AC$19,0) -> 0
G139: Spare 30 | I139: $'000 | K139: 0 | M139: ='Input-Infra'!AK55-Q139 -> 0 | Q139: 0 | S139: =IF(S$9=0,'Input-Infra'!$AN55*S$19,0) -> 0 | T139: =IF(T$9=0,'Input-Infra'!$AN55*T$19,0) -> 0 | U139: =IF(U$9=0,'Input-Infra'!$AN55*U$19,0) -> 0 | V139: =IF(V$9=0,'Input-Infra'!$AN55*V$19,0) -> 0 | W139: =IF(W$9=0,'Input-Infra'!$AN55*W$19,0) -> 0 | X139: =IF(X$9=0,'Input-Infra'!$AN55*X$19,0) -> 0 | Y139: =IF(Y$9=0,'Input-Infra'!$AN55*Y$19,0) -> 0 | Z139: =IF(Z$9=0,'Input-Infra'!$AN55*Z$19,0) -> 0 | AA139: =IF(AA$9=0,'Input-Infra'!$AN55*AA$19,0) -> 0 | AB139: =IF(AB$9=0,'Input-Infra'!$AN55*AB$19,0) -> 0 | AC139: =IF(AC$9=0,'Input-Infra'!$AN55*AC$19,0) -> 0
G140: Spare 31 | I140: $'000 | K140: 0 | M140: ='Input-Infra'!AK56-Q140 -> 0 | Q140: 0 | S140: =IF(S$9=0,'Input-Infra'!$AN56*S$19,0) -> 0 | T140: =IF(T$9=0,'Input-Infra'!$AN56*T$19,0) -> 0 | U140: =IF(U$9=0,'Input-Infra'!$AN56*U$19,0) -> 0 | V140: =IF(V$9=0,'Input-Infra'!$AN56*V$19,0) -> 0 | W140: =IF(W$9=0,'Input-Infra'!$AN56*W$19,0) -> 0 | X140: =IF(X$9=0,'Input-Infra'!$AN56*X$19,0) -> 0 | Y140: =IF(Y$9=0,'Input-Infra'!$AN56*Y$19,0) -> 0 | Z140: =IF(Z$9=0,'Input-Infra'!$AN56*Z$19,0) -> 0 | AA140: =IF(AA$9=0,'Input-Infra'!$AN56*AA$19,0) -> 0 | AB140: =IF(AB$9=0,'Input-Infra'!$AN56*AB$19,0) -> 0 | AC140: =IF(AC$9=0,'Input-Infra'!$AN56*AC$19,0) -> 0
G141: Spare 32 | I141: $'000 | K141: 0 | M141: ='Input-Infra'!AK57-Q141 -> 0 | Q141: 0 | S141: =IF(S$9=0,'Input-Infra'!$AN57*S$19,0) -> 0 | T141: =IF(T$9=0,'Input-Infra'!$AN57*T$19,0) -> 0 | U141: =IF(U$9=0,'Input-Infra'!$AN57*U$19,0) -> 0 | V141: =IF(V$9=0,'Input-Infra'!$AN57*V$19,0) -> 0 | W141: =IF(W$9=0,'Input-Infra'!$AN57*W$19,0) -> 0 | X141: =IF(X$9=0,'Input-Infra'!$AN57*X$19,0) -> 0 | Y141: =IF(Y$9=0,'Input-Infra'!$AN57*Y$19,0) -> 0 | Z141: =IF(Z$9=0,'Input-Infra'!$AN57*Z$19,0) -> 0 | AA141: =IF(AA$9=0,'Input-Infra'!$AN57*AA$19,0) -> 0 | AB141: =IF(AB$9=0,'Input-Infra'!$AN57*AB$19,0) -> 0 | AC141: =IF(AC$9=0,'Input-Infra'!$AN57*AC$19,0) -> 0
G142: Spare 33 | I142: $'000 | K142: 0 | M142: ='Input-Infra'!AK58-Q142 -> 0 | Q142: 0 | S142: =IF(S$9=0,'Input-Infra'!$AN58*S$19,0) -> 0 | T142: =IF(T$9=0,'Input-Infra'!$AN58*T$19,0) -> 0 | U142: =IF(U$9=0,'Input-Infra'!$AN58*U$19,0) -> 0 | V142: =IF(V$9=0,'Input-Infra'!$AN58*V$19,0) -> 0 | W142: =IF(W$9=0,'Input-Infra'!$AN58*W$19,0) -> 0 | X142: =IF(X$9=0,'Input-Infra'!$AN58*X$19,0) -> 0 | Y142: =IF(Y$9=0,'Input-Infra'!$AN58*Y$19,0) -> 0 | Z142: =IF(Z$9=0,'Input-Infra'!$AN58*Z$19,0) -> 0 | AA142: =IF(AA$9=0,'Input-Infra'!$AN58*AA$19,0) -> 0 | AB142: =IF(AB$9=0,'Input-Infra'!$AN58*AB$19,0) -> 0 | AC142: =IF(AC$9=0,'Input-Infra'!$AN58*AC$19,0) -> 0
G143: Spare 34 | I143: $'000 | K143: 0 | M143: ='Input-Infra'!AK59-Q143 -> 0 | Q143: 0 | S143: =IF(S$9=0,'Input-Infra'!$AN59*S$19,0) -> 0 | T143: =IF(T$9=0,'Input-Infra'!$AN59*T$19,0) -> 0 | U143: =IF(U$9=0,'Input-Infra'!$AN59*U$19,0) -> 0 | V143: =IF(V$9=0,'Input-Infra'!$AN59*V$19,0) -> 0 | W143: =IF(W$9=0,'Input-Infra'!$AN59*W$19,0) -> 0 | X143: =IF(X$9=0,'Input-Infra'!$AN59*X$19,0) -> 0 | Y143: =IF(Y$9=0,'Input-Infra'!$AN59*Y$19,0) -> 0 | Z143: =IF(Z$9=0,'Input-Infra'!$AN59*Z$19,0) -> 0 | AA143: =IF(AA$9=0,'Input-Infra'!$AN59*AA$19,0) -> 0 | AB143: =IF(AB$9=0,'Input-Infra'!$AN59*AB$19,0) -> 0 | AC143: =IF(AC$9=0,'Input-Infra'!$AN59*AC$19,0) -> 0
G144: Spare 35 | I144: $'000 | K144: 0 | M144: ='Input-Infra'!AK60-Q144 -> 0 | Q144: 0 | S144: =IF(S$9=0,'Input-Infra'!$AN60*S$19,0) -> 0 | T144: =IF(T$9=0,'Input-Infra'!$AN60*T$19,0) -> 0 | U144: =IF(U$9=0,'Input-Infra'!$AN60*U$19,0) -> 0 | V144: =IF(V$9=0,'Input-Infra'!$AN60*V$19,0) -> 0 | W144: =IF(W$9=0,'Input-Infra'!$AN60*W$19,0) -> 0 | X144: =IF(X$9=0,'Input-Infra'!$AN60*X$19,0) -> 0 | Y144: =IF(Y$9=0,'Input-Infra'!$AN60*Y$19,0) -> 0 | Z144: =IF(Z$9=0,'Input-Infra'!$AN60*Z$19,0) -> 0 | AA144: =IF(AA$9=0,'Input-Infra'!$AN60*AA$19,0) -> 0 | AB144: =IF(AB$9=0,'Input-Infra'!$AN60*AB$19,0) -> 0 | AC144: =IF(AC$9=0,'Input-Infra'!$AN60*AC$19,0) -> 0
G145: Spare 36 | I145: $'000 | K145: 0 | M145: ='Input-Infra'!AK61-Q145 -> 0 | Q145: 0 | S145: =IF(S$9=0,'Input-Infra'!$AN61*S$19,0) -> 0 | T145: =IF(T$9=0,'Input-Infra'!$AN61*T$19,0) -> 0 | U145: =IF(U$9=0,'Input-Infra'!$AN61*U$19,0) -> 0 | V145: =IF(V$9=0,'Input-Infra'!$AN61*V$19,0) -> 0 | W145: =IF(W$9=0,'Input-Infra'!$AN61*W$19,0) -> 0 | X145: =IF(X$9=0,'Input-Infra'!$AN61*X$19,0) -> 0 | Y145: =IF(Y$9=0,'Input-Infra'!$AN61*Y$19,0) -> 0 | Z145: =IF(Z$9=0,'Input-Infra'!$AN61*Z$19,0) -> 0 | AA145: =IF(AA$9=0,'Input-Infra'!$AN61*AA$19,0) -> 0 | AB145: =IF(AB$9=0,'Input-Infra'!$AN61*AB$19,0) -> 0 | AC145: =IF(AC$9=0,'Input-Infra'!$AN61*AC$19,0) -> 0
G146: Spare 37 | I146: $'000 | K146: 0 | M146: ='Input-Infra'!AK62-Q146 -> 0 | Q146: 0 | S146: =IF(S$9=0,'Input-Infra'!$AN62*S$19,0) -> 0 | T146: =IF(T$9=0,'Input-Infra'!$AN62*T$19,0) -> 0 | U146: =IF(U$9=0,'Input-Infra'!$AN62*U$19,0) -> 0 | V146: =IF(V$9=0,'Input-Infra'!$AN62*V$19,0) -> 0 | W146: =IF(W$9=0,'Input-Infra'!$AN62*W$19,0) -> 0 | X146: =IF(X$9=0,'Input-Infra'!$AN62*X$19,0) -> 0 | Y146: =IF(Y$9=0,'Input-Infra'!$AN62*Y$19,0) -> 0 | Z146: =IF(Z$9=0,'Input-Infra'!$AN62*Z$19,0) -> 0 | AA146: =IF(AA$9=0,'Input-Infra'!$AN62*AA$19,0) -> 0 | AB146: =IF(AB$9=0,'Input-Infra'!$AN62*AB$19,0) -> 0 | AC146: =IF(AC$9=0,'Input-Infra'!$AN62*AC$19,0) -> 0
G147: Spare 38 | I147: $'000 | K147: 0 | M147: ='Input-Infra'!AK63-Q147 -> 0 | Q147: 0 | S147: =IF(S$9=0,'Input-Infra'!$AN63*S$19,0) -> 0 | T147: =IF(T$9=0,'Input-Infra'!$AN63*T$19,0) -> 0 | U147: =IF(U$9=0,'Input-Infra'!$AN63*U$19,0) -> 0 | V147: =IF(V$9=0,'Input-Infra'!$AN63*V$19,0) -> 0 | W147: =IF(W$9=0,'Input-Infra'!$AN63*W$19,0) -> 0 | X147: =IF(X$9=0,'Input-Infra'!$AN63*X$19,0) -> 0 | Y147: =IF(Y$9=0,'Input-Infra'!$AN63*Y$19,0) -> 0 | Z147: =IF(Z$9=0,'Input-Infra'!$AN63*Z$19,0) -> 0 | AA147: =IF(AA$9=0,'Input-Infra'!$AN63*AA$19,0) -> 0 | AB147: =IF(AB$9=0,'Input-Infra'!$AN63*AB$19,0) -> 0 | AC147: =IF(AC$9=0,'Input-Infra'!$AN63*AC$19,0) -> 0
G148: Spare 39 | I148: $'000 | K148: 0 | M148: ='Input-Infra'!AK64-Q148 -> 0 | Q148: 0 | S148: =IF(S$9=0,'Input-Infra'!$AN64*S$19,0) -> 0 | T148: =IF(T$9=0,'Input-Infra'!$AN64*T$19,0) -> 0 | U148: =IF(U$9=0,'Input-Infra'!$AN64*U$19,0) -> 0 | V148: =IF(V$9=0,'Input-Infra'!$AN64*V$19,0) -> 0 | W148: =IF(W$9=0,'Input-Infra'!$AN64*W$19,0) -> 0 | X148: =IF(X$9=0,'Input-Infra'!$AN64*X$19,0) -> 0 | Y148: =IF(Y$9=0,'Input-Infra'!$AN64*Y$19,0) -> 0 | Z148: =IF(Z$9=0,'Input-Infra'!$AN64*Z$19,0) -> 0 | AA148: =IF(AA$9=0,'Input-Infra'!$AN64*AA$19,0) -> 0 | AB148: =IF(AB$9=0,'Input-Infra'!$AN64*AB$19,0) -> 0 | AC148: =IF(AC$9=0,'Input-Infra'!$AN64*AC$19,0) -> 0
G149: Spare 40 | I149: $'000 | K149: 0 | M149: ='Input-Infra'!AK65-Q149 -> 0 | Q149: 0 | S149: =IF(S$9=0,'Input-Infra'!$AN65*S$19,0) -> 0 | T149: =IF(T$9=0,'Input-Infra'!$AN65*T$19,0) -> 0 | U149: =IF(U$9=0,'Input-Infra'!$AN65*U$19,0) -> 0 | V149: =IF(V$9=0,'Input-Infra'!$AN65*V$19,0) -> 0 | W149: =IF(W$9=0,'Input-Infra'!$AN65*W$19,0) -> 0 | X149: =IF(X$9=0,'Input-Infra'!$AN65*X$19,0) -> 0 | Y149: =IF(Y$9=0,'Input-Infra'!$AN65*Y$19,0) -> 0 | Z149: =IF(Z$9=0,'Input-Infra'!$AN65*Z$19,0) -> 0 | AA149: =IF(AA$9=0,'Input-Infra'!$AN65*AA$19,0) -> 0 | AB149: =IF(AB$9=0,'Input-Infra'!$AN65*AB$19,0) -> 0 | AC149: =IF(AC$9=0,'Input-Infra'!$AN65*AC$19,0) -> 0
G150: Spare 41 | I150: $'000 | K150: 0 | M150: ='Input-Infra'!AK66-Q150 -> 0 | Q150: 0 | S150: =IF(S$9=0,'Input-Infra'!$AN66*S$19,0) -> 0 | T150: =IF(T$9=0,'Input-Infra'!$AN66*T$19,0) -> 0 | U150: =IF(U$9=0,'Input-Infra'!$AN66*U$19,0) -> 0 | V150: =IF(V$9=0,'Input-Infra'!$AN66*V$19,0) -> 0 | W150: =IF(W$9=0,'Input-Infra'!$AN66*W$19,0) -> 0 | X150: =IF(X$9=0,'Input-Infra'!$AN66*X$19,0) -> 0 | Y150: =IF(Y$9=0,'Input-Infra'!$AN66*Y$19,0) -> 0 | Z150: =IF(Z$9=0,'Input-Infra'!$AN66*Z$19,0) -> 0 | AA150: =IF(AA$9=0,'Input-Infra'!$AN66*AA$19,0) -> 0 | AB150: =IF(AB$9=0,'Input-Infra'!$AN66*AB$19,0) -> 0 | AC150: =IF(AC$9=0,'Input-Infra'!$AN66*AC$19,0) -> 0
G151: Spare 42 | I151: $'000 | K151: 0 | M151: ='Input-Infra'!AK67-Q151 -> 0 | Q151: 0 | S151: =IF(S$9=0,'Input-Infra'!$AN67*S$19,0) -> 0 | T151: =IF(T$9=0,'Input-Infra'!$AN67*T$19,0) -> 0 | U151: =IF(U$9=0,'Input-Infra'!$AN67*U$19,0) -> 0 | V151: =IF(V$9=0,'Input-Infra'!$AN67*V$19,0) -> 0 | W151: =IF(W$9=0,'Input-Infra'!$AN67*W$19,0) -> 0 | X151: =IF(X$9=0,'Input-Infra'!$AN67*X$19,0) -> 0 | Y151: =IF(Y$9=0,'Input-Infra'!$AN67*Y$19,0) -> 0 | Z151: =IF(Z$9=0,'Input-Infra'!$AN67*Z$19,0) -> 0 | AA151: =IF(AA$9=0,'Input-Infra'!$AN67*AA$19,0) -> 0 | AB151: =IF(AB$9=0,'Input-Infra'!$AN67*AB$19,0) -> 0 | AC151: =IF(AC$9=0,'Input-Infra'!$AN67*AC$19,0) -> 0
G152: Spare 43 | I152: $'000 | K152: 0 | M152: ='Input-Infra'!AK68-Q152 -> 0 | Q152: 0 | S152: =IF(S$9=0,'Input-Infra'!$AN68*S$19,0) -> 0 | T152: =IF(T$9=0,'Input-Infra'!$AN68*T$19,0) -> 0 | U152: =IF(U$9=0,'Input-Infra'!$AN68*U$19,0) -> 0 | V152: =IF(V$9=0,'Input-Infra'!$AN68*V$19,0) -> 0 | W152: =IF(W$9=0,'Input-Infra'!$AN68*W$19,0) -> 0 | X152: =IF(X$9=0,'Input-Infra'!$AN68*X$19,0) -> 0 | Y152: =IF(Y$9=0,'Input-Infra'!$AN68*Y$19,0) -> 0 | Z152: =IF(Z$9=0,'Input-Infra'!$AN68*Z$19,0) -> 0 | AA152: =IF(AA$9=0,'Input-Infra'!$AN68*AA$19,0) -> 0 | AB152: =IF(AB$9=0,'Input-Infra'!$AN68*AB$19,0) -> 0 | AC152: =IF(AC$9=0,'Input-Infra'!$AN68*AC$19,0) -> 0
G153: Spare 44 | I153: $'000 | K153: 0 | M153: ='Input-Infra'!AK69-Q153 -> 0 | Q153: 0 | S153: =IF(S$9=0,'Input-Infra'!$AN69*S$19,0) -> 0 | T153: =IF(T$9=0,'Input-Infra'!$AN69*T$19,0) -> 0 | U153: =IF(U$9=0,'Input-Infra'!$AN69*U$19,0) -> 0 | V153: =IF(V$9=0,'Input-Infra'!$AN69*V$19,0) -> 0 | W153: =IF(W$9=0,'Input-Infra'!$AN69*W$19,0) -> 0 | X153: =IF(X$9=0,'Input-Infra'!$AN69*X$19,0) -> 0 | Y153: =IF(Y$9=0,'Input-Infra'!$AN69*Y$19,0) -> 0 | Z153: =IF(Z$9=0,'Input-Infra'!$AN69*Z$19,0) -> 0 | AA153: =IF(AA$9=0,'Input-Infra'!$AN69*AA$19,0) -> 0 | AB153: =IF(AB$9=0,'Input-Infra'!$AN69*AB$19,0) -> 0 | AC153: =IF(AC$9=0,'Input-Infra'!$AN69*AC$19,0) -> 0
G154: Spare 45 | I154: $'000 | K154: 0 | M154: ='Input-Infra'!AK70-Q154 -> 0 | Q154: 0 | S154: =IF(S$9=0,'Input-Infra'!$AN70*S$19,0) -> 0 | T154: =IF(T$9=0,'Input-Infra'!$AN70*T$19,0) -> 0 | U154: =IF(U$9=0,'Input-Infra'!$AN70*U$19,0) -> 0 | V154: =IF(V$9=0,'Input-Infra'!$AN70*V$19,0) -> 0 | W154: =IF(W$9=0,'Input-Infra'!$AN70*W$19,0) -> 0 | X154: =IF(X$9=0,'Input-Infra'!$AN70*X$19,0) -> 0 | Y154: =IF(Y$9=0,'Input-Infra'!$AN70*Y$19,0) -> 0 | Z154: =IF(Z$9=0,'Input-Infra'!$AN70*Z$19,0) -> 0 | AA154: =IF(AA$9=0,'Input-Infra'!$AN70*AA$19,0) -> 0 | AB154: =IF(AB$9=0,'Input-Infra'!$AN70*AB$19,0) -> 0 | AC154: =IF(AC$9=0,'Input-Infra'!$AN70*AC$19,0) -> 0
G155: Spare 46 | I155: $'000 | K155: 0 | M155: ='Input-Infra'!AK71-Q155 -> 0 | Q155: 0 | S155: =IF(S$9=0,'Input-Infra'!$AN71*S$19,0) -> 0 | T155: =IF(T$9=0,'Input-Infra'!$AN71*T$19,0) -> 0 | U155: =IF(U$9=0,'Input-Infra'!$AN71*U$19,0) -> 0 | V155: =IF(V$9=0,'Input-Infra'!$AN71*V$19,0) -> 0 | W155: =IF(W$9=0,'Input-Infra'!$AN71*W$19,0) -> 0 | X155: =IF(X$9=0,'Input-Infra'!$AN71*X$19,0) -> 0 | Y155: =IF(Y$9=0,'Input-Infra'!$AN71*Y$19,0) -> 0 | Z155: =IF(Z$9=0,'Input-Infra'!$AN71*Z$19,0) -> 0 | AA155: =IF(AA$9=0,'Input-Infra'!$AN71*AA$19,0) -> 0 | AB155: =IF(AB$9=0,'Input-Infra'!$AN71*AB$19,0) -> 0 | AC155: =IF(AC$9=0,'Input-Infra'!$AN71*AC$19,0) -> 0
G157: Subtotal | I157: $'000 | K157: =SUM(K109:K155) -> 0 | M157: =SUM(M109:M155) -> 0 | Q157: =SUM(S157:AM157) -> 0 | S157: =SUM(S109:S155) -> 0 | T157: 0 | U157: 0 | V157: 0 | W157: 0 | X157: 0 | Y157: 0 | Z157: 0 | AA157: 0 | AB157: 0 | AC157: 0
G159: Future Infrastructure
G161: =Future -> BNE-FT-004 | I161: $'000 | K161: =NPV(WACC_nom,T161:AC161)+S161 -> 0 | M161: ='Input-Infra'!AK78-Q161 -> 0 | Q161: =SUM(S161:AC161) -> 0 | S161: =IF(AND('Input-Infra'!$AI78>=S$10, 'Input-Infra'!$AI78<=S$11),'Input-Infra'!$AN78*S$19,0) -> 0 | T161: =IF(AND('Input-Infra'!$AI78>=T$10, 'Input-Infra'!$AI78<=T$11),'Input-Infra'!$AN78*T$19,0) -> 0 | U161: =IF(AND('Input-Infra'!$AI78>=U$10, 'Input-Infra'!$AI78<=U$11),'Input-Infra'!$AN78*U$19,0) -> 0 | V161: =IF(AND('Input-Infra'!$AI78>=V$10, 'Input-Infra'!$AI78<=V$11),'Input-Infra'!$AN78*V$19,0) -> 0 | W161: =IF(AND('Input-Infra'!$AI78>=W$10, 'Input-Infra'!$AI78<=W$11),'Input-Infra'!$AN78*W$19,0) -> 0 | X161: =IF(AND('Input-Infra'!$AI78>=X$10, 'Input-Infra'!$AI78<=X$11),'Input-Infra'!$AN78*X$19,0) -> 0 | Y161: =IF(AND('Input-Infra'!$AI78>=Y$10, 'Input-Infra'!$AI78<=Y$11),'Input-Infra'!$AN78*Y$19,0) -> 0 | Z161: =IF(AND('Input-Infra'!$AI78>=Z$10, 'Input-Infra'!$AI78<=Z$11),'Input-Infra'!$AN78*Z$19,0) -> 0 | AA161: =IF(AND('Input-Infra'!$AI78>=AA$10, 'Input-Infra'!$AI78<=AA$11),'Input-Infra'!$AN78*AA$19,0) -> 0 | AB161: =IF(AND('Input-Infra'!$AI78>=AB$10, 'Input-Infra'!$AI78<=AB$11),'Input-Infra'!$AN78*AB$19,0) -> 0 | AC161: =IF(AND('Input-Infra'!$AI78>=AC$10, 'Input-Infra'!$AI78<=AC$11),'Input-Infra'!$AN78*AC$19,0) -> 0
G162: EAB-FT-001 | I162: $'000 | K162: 0 | M162: ='Input-Infra'!AK79-Q162 -> 0 | Q162: =SUM(S162:AC162) -> 0 | S162: =IF(AND('Input-Infra'!$AI79>=S$10, 'Input-Infra'!$AI79<=S$11),'Input-Infra'!$AN79*S$19,0) -> 0 | T162: =IF(AND('Input-Infra'!$AI79>=T$10, 'Input-Infra'!$AI79<=T$11),'Input-Infra'!$AN79*T$19,0) -> 0 | U162: =IF(AND('Input-Infra'!$AI79>=U$10, 'Input-Infra'!$AI79<=U$11),'Input-Infra'!$AN79*U$19,0) -> 0 | V162: =IF(AND('Input-Infra'!$AI79>=V$10, 'Input-Infra'!$AI79<=V$11),'Input-Infra'!$AN79*V$19,0) -> 0 | W162: =IF(AND('Input-Infra'!$AI79>=W$10, 'Input-Infra'!$AI79<=W$11),'Input-Infra'!$AN79*W$19,0) -> 0 | X162: =IF(AND('Input-Infra'!$AI79>=X$10, 'Input-Infra'!$AI79<=X$11),'Input-Infra'!$AN79*X$19,0) -> 0 | Y162: =IF(AND('Input-Infra'!$AI79>=Y$10, 'Input-Infra'!$AI79<=Y$11),'Input-Infra'!$AN79*Y$19,0) -> 0 | Z162: =IF(AND('Input-Infra'!$AI79>=Z$10, 'Input-Infra'!$AI79<=Z$11),'Input-Infra'!$AN79*Z$19,0) -> 0 | AA162: =IF(AND('Input-Infra'!$AI79>=AA$10, 'Input-Infra'!$AI79<=AA$11),'Input-Infra'!$AN79*AA$19,0) -> 0 | AB162: =IF(AND('Input-Infra'!$AI79>=AB$10, 'Input-Infra'!$AI79<=AB$11),'Input-Infra'!$AN79*AB$19,0) -> 0 | AC162: =IF(AND('Input-Infra'!$AI79>=AC$10, 'Input-Infra'!$AI79<=AC$11),'Input-Infra'!$AN79*AC$19,0) -> 0
G163: KAN-FT-002 | I163: $'000 | K163: 0 | M163: ='Input-Infra'!AK80-Q163 -> 0 | Q163: 0 | S163: =IF(AND('Input-Infra'!$AI80>=S$10, 'Input-Infra'!$AI80<=S$11),'Input-Infra'!$AN80*S$19,0) -> 0 | T163: =IF(AND('Input-Infra'!$AI80>=T$10, 'Input-Infra'!$AI80<=T$11),'Input-Infra'!$AN80*T$19,0) -> 0 | U163: =IF(AND('Input-Infra'!$AI80>=U$10, 'Input-Infra'!$AI80<=U$11),'Input-Infra'!$AN80*U$19,0) -> 0 | V163: =IF(AND('Input-Infra'!$AI80>=V$10, 'Input-Infra'!$AI80<=V$11),'Input-Infra'!$AN80*V$19,0) -> 0 | W163: =IF(AND('Input-Infra'!$AI80>=W$10, 'Input-Infra'!$AI80<=W$11),'Input-Infra'!$AN80*W$19,0) -> 0 | X163: =IF(AND('Input-Infra'!$AI80>=X$10, 'Input-Infra'!$AI80<=X$11),'Input-Infra'!$AN80*X$19,0) -> 0 | Y163: =IF(AND('Input-Infra'!$AI80>=Y$10, 'Input-Infra'!$AI80<=Y$11),'Input-Infra'!$AN80*Y$19,0) -> 0 | Z163: =IF(AND('Input-Infra'!$AI80>=Z$10, 'Input-Infra'!$AI80<=Z$11),'Input-Infra'!$AN80*Z$19,0) -> 0 | AA163: =IF(AND('Input-Infra'!$AI80>=AA$10, 'Input-Infra'!$AI80<=AA$11),'Input-Infra'!$AN80*AA$19,0) -> 0 | AB163: =IF(AND('Input-Infra'!$AI80>=AB$10, 'Input-Infra'!$AI80<=AB$11),'Input-Infra'!$AN80*AB$19,0) -> 0 | AC163: =IF(AND('Input-Infra'!$AI80>=AC$10, 'Input-Infra'!$AI80<=AC$11),'Input-Infra'!$AN80*AC$19,0) -> 0
G164: KAN-FT-003 | I164: $'000 | K164: 0 | M164: ='Input-Infra'!AK81-Q164 -> 0 | Q164: 0 | S164: =IF(AND('Input-Infra'!$AI81>=S$10, 'Input-Infra'!$AI81<=S$11),'Input-Infra'!$AN81*S$19,0) -> 0 | T164: =IF(AND('Input-Infra'!$AI81>=T$10, 'Input-Infra'!$AI81<=T$11),'Input-Infra'!$AN81*T$19,0) -> 0 | U164: =IF(AND('Input-Infra'!$AI81>=U$10, 'Input-Infra'!$AI81<=U$11),'Input-Infra'!$AN81*U$19,0) -> 0 | V164: =IF(AND('Input-Infra'!$AI81>=V$10, 'Input-Infra'!$AI81<=V$11),'Input-Infra'!$AN81*V$19,0) -> 0 | W164: =IF(AND('Input-Infra'!$AI81>=W$10, 'Input-Infra'!$AI81<=W$11),'Input-Infra'!$AN81*W$19,0) -> 0 | X164: =IF(AND('Input-Infra'!$AI81>=X$10, 'Input-Infra'!$AI81<=X$11),'Input-Infra'!$AN81*X$19,0) -> 0 | Y164: =IF(AND('Input-Infra'!$AI81>=Y$10, 'Input-Infra'!$AI81<=Y$11),'Input-Infra'!$AN81*Y$19,0) -> 0 | Z164: =IF(AND('Input-Infra'!$AI81>=Z$10, 'Input-Infra'!$AI81<=Z$11),'Input-Infra'!$AN81*Z$19,0) -> 0 | AA164: =IF(AND('Input-Infra'!$AI81>=AA$10, 'Input-Infra'!$AI81<=AA$11),'Input-Infra'!$AN81*AA$19,0) -> 0 | AB164: =IF(AND('Input-Infra'!$AI81>=AB$10, 'Input-Infra'!$AI81<=AB$11),'Input-Infra'!$AN81*AB$19,0) -> 0 | AC164: =IF(AND('Input-Infra'!$AI81>=AC$10, 'Input-Infra'!$AI81<=AC$11),'Input-Infra'!$AN81*AC$19,0) -> 0
G165: NRP-FT-001 | I165: $'000 | K165: 0 | M165: ='Input-Infra'!AK82-Q165 -> 0 | Q165: 0 | S165: =IF(AND('Input-Infra'!$AI82>=S$10, 'Input-Infra'!$AI82<=S$11),'Input-Infra'!$AN82*S$19,0) -> 0 | T165: =IF(AND('Input-Infra'!$AI82>=T$10, 'Input-Infra'!$AI82<=T$11),'Input-Infra'!$AN82*T$19,0) -> 0 | U165: =IF(AND('Input-Infra'!$AI82>=U$10, 'Input-Infra'!$AI82<=U$11),'Input-Infra'!$AN82*U$19,0) -> 0 | V165: =IF(AND('Input-Infra'!$AI82>=V$10, 'Input-Infra'!$AI82<=V$11),'Input-Infra'!$AN82*V$19,0) -> 0 | W165: =IF(AND('Input-Infra'!$AI82>=W$10, 'Input-Infra'!$AI82<=W$11),'Input-Infra'!$AN82*W$19,0) -> 0 | X165: =IF(AND('Input-Infra'!$AI82>=X$10, 'Input-Infra'!$AI82<=X$11),'Input-Infra'!$AN82*X$19,0) -> 0 | Y165: =IF(AND('Input-Infra'!$AI82>=Y$10, 'Input-Infra'!$AI82<=Y$11),'Input-Infra'!$AN82*Y$19,0) -> 0 | Z165: =IF(AND('Input-Infra'!$AI82>=Z$10, 'Input-Infra'!$AI82<=Z$11),'Input-Infra'!$AN82*Z$19,0) -> 0 | AA165: =IF(AND('Input-Infra'!$AI82>=AA$10, 'Input-Infra'!$AI82<=AA$11),'Input-Infra'!$AN82*AA$19,0) -> 0 | AB165: =IF(AND('Input-Infra'!$AI82>=AB$10, 'Input-Infra'!$AI82<=AB$11),'Input-Infra'!$AN82*AB$19,0) -> 0 | AC165: =IF(AND('Input-Infra'!$AI82>=AC$10, 'Input-Infra'!$AI82<=AC$11),'Input-Infra'!$AN82*AC$19,0) -> 0
G166: NWF-FT-002 | I166: $'000 | K166: 0 | M166: ='Input-Infra'!AK83-Q166 -> 0 | Q166: 0 | S166: =IF(AND('Input-Infra'!$AI83>=S$10, 'Input-Infra'!$AI83<=S$11),'Input-Infra'!$AN83*S$19,0) -> 0 | T166: =IF(AND('Input-Infra'!$AI83>=T$10, 'Input-Infra'!$AI83<=T$11),'Input-Infra'!$AN83*T$19,0) -> 0 | U166: =IF(AND('Input-Infra'!$AI83>=U$10, 'Input-Infra'!$AI83<=U$11),'Input-Infra'!$AN83*U$19,0) -> 0 | V166: =IF(AND('Input-Infra'!$AI83>=V$10, 'Input-Infra'!$AI83<=V$11),'Input-Infra'!$AN83*V$19,0) -> 0 | W166: =IF(AND('Input-Infra'!$AI83>=W$10, 'Input-Infra'!$AI83<=W$11),'Input-Infra'!$AN83*W$19,0) -> 0 | X166: =IF(AND('Input-Infra'!$AI83>=X$10, 'Input-Infra'!$AI83<=X$11),'Input-Infra'!$AN83*X$19,0) -> 0 | Y166: =IF(AND('Input-Infra'!$AI83>=Y$10, 'Input-Infra'!$AI83<=Y$11),'Input-Infra'!$AN83*Y$19,0) -> 0 | Z166: =IF(AND('Input-Infra'!$AI83>=Z$10, 'Input-Infra'!$AI83<=Z$11),'Input-Infra'!$AN83*Z$19,0) -> 0 | AA166: =IF(AND('Input-Infra'!$AI83>=AA$10, 'Input-Infra'!$AI83<=AA$11),'Input-Infra'!$AN83*AA$19,0) -> 0 | AB166: =IF(AND('Input-Infra'!$AI83>=AB$10, 'Input-Infra'!$AI83<=AB$11),'Input-Infra'!$AN83*AB$19,0) -> 0 | AC166: =IF(AND('Input-Infra'!$AI83>=AC$10, 'Input-Infra'!$AI83<=AC$11),'Input-Infra'!$AN83*AC$19,0) -> 0
G167: SBR-FT-002 | I167: $'000 | K167: 0 | M167: ='Input-Infra'!AK84-Q167 -> 0 | Q167: 0 | S167: =IF(AND('Input-Infra'!$AI84>=S$10, 'Input-Infra'!$AI84<=S$11),'Input-Infra'!$AN84*S$19,0) -> 0 | T167: =IF(AND('Input-Infra'!$AI84>=T$10, 'Input-Infra'!$AI84<=T$11),'Input-Infra'!$AN84*T$19,0) -> 0 | U167: =IF(AND('Input-Infra'!$AI84>=U$10, 'Input-Infra'!$AI84<=U$11),'Input-Infra'!$AN84*U$19,0) -> 0 | V167: =IF(AND('Input-Infra'!$AI84>=V$10, 'Input-Infra'!$AI84<=V$11),'Input-Infra'!$AN84*V$19,0) -> 0 | W167: =IF(AND('Input-Infra'!$AI84>=W$10, 'Input-Infra'!$AI84<=W$11),'Input-Infra'!$AN84*W$19,0) -> 0 | X167: =IF(AND('Input-Infra'!$AI84>=X$10, 'Input-Infra'!$AI84<=X$11),'Input-Infra'!$AN84*X$19,0) -> 0 | Y167: =IF(AND('Input-Infra'!$AI84>=Y$10, 'Input-Infra'!$AI84<=Y$11),'Input-Infra'!$AN84*Y$19,0) -> 0 | Z167: =IF(AND('Input-Infra'!$AI84>=Z$10, 'Input-Infra'!$AI84<=Z$11),'Input-Infra'!$AN84*Z$19,0) -> 0 | AA167: =IF(AND('Input-Infra'!$AI84>=AA$10, 'Input-Infra'!$AI84<=AA$11),'Input-Infra'!$AN84*AA$19,0) -> 0 | AB167: =IF(AND('Input-Infra'!$AI84>=AB$10, 'Input-Infra'!$AI84<=AB$11),'Input-Infra'!$AN84*AB$19,0) -> 0 | AC167: =IF(AND('Input-Infra'!$AI84>=AC$10, 'Input-Infra'!$AI84<=AC$11),'Input-Infra'!$AN84*AC$19,0) -> 0
G168: SBR-FT-003 | I168: $'000 | K168: 0 | M168: ='Input-Infra'!AK85-Q168 -> 0 | Q168: 0 | S168: =IF(AND('Input-Infra'!$AI85>=S$10, 'Input-Infra'!$AI85<=S$11),'Input-Infra'!$AN85*S$19,0) -> 0 | T168: =IF(AND('Input-Infra'!$AI85>=T$10, 'Input-Infra'!$AI85<=T$11),'Input-Infra'!$AN85*T$19,0) -> 0 | U168: =IF(AND('Input-Infra'!$AI85>=U$10, 'Input-Infra'!$AI85<=U$11),'Input-Infra'!$AN85*U$19,0) -> 0 | V168: =IF(AND('Input-Infra'!$AI85>=V$10, 'Input-Infra'!$AI85<=V$11),'Input-Infra'!$AN85*V$19,0) -> 0 | W168: =IF(AND('Input-Infra'!$AI85>=W$10, 'Input-Infra'!$AI85<=W$11),'Input-Infra'!$AN85*W$19,0) -> 0 | X168: =IF(AND('Input-Infra'!$AI85>=X$10, 'Input-Infra'!$AI85<=X$11),'Input-Infra'!$AN85*X$19,0) -> 0 | Y168: =IF(AND('Input-Infra'!$AI85>=Y$10, 'Input-Infra'!$AI85<=Y$11),'Input-Infra'!$AN85*Y$19,0) -> 0 | Z168: =IF(AND('Input-Infra'!$AI85>=Z$10, 'Input-Infra'!$AI85<=Z$11),'Input-Infra'!$AN85*Z$19,0) -> 0 | AA168: =IF(AND('Input-Infra'!$AI85>=AA$10, 'Input-Infra'!$AI85<=AA$11),'Input-Infra'!$AN85*AA$19,0) -> 0 | AB168: =IF(AND('Input-Infra'!$AI85>=AB$10, 'Input-Infra'!$AI85<=AB$11),'Input-Infra'!$AN85*AB$19,0) -> 0 | AC168: =IF(AND('Input-Infra'!$AI85>=AC$10, 'Input-Infra'!$AI85<=AC$11),'Input-Infra'!$AN85*AC$19,0) -> 0
G169: SLU-FT-002 | I169: $'000 | K169: 0 | M169: ='Input-Infra'!AK86-Q169 -> 0 | Q169: 0 | S169: =IF(AND('Input-Infra'!$AI86>=S$10, 'Input-Infra'!$AI86<=S$11),'Input-Infra'!$AN86*S$19,0) -> 0 | T169: =IF(AND('Input-Infra'!$AI86>=T$10, 'Input-Infra'!$AI86<=T$11),'Input-Infra'!$AN86*T$19,0) -> 0 | U169: =IF(AND('Input-Infra'!$AI86>=U$10, 'Input-Infra'!$AI86<=U$11),'Input-Infra'!$AN86*U$19,0) -> 0 | V169: =IF(AND('Input-Infra'!$AI86>=V$10, 'Input-Infra'!$AI86<=V$11),'Input-Infra'!$AN86*V$19,0) -> 0 | W169: =IF(AND('Input-Infra'!$AI86>=W$10, 'Input-Infra'!$AI86<=W$11),'Input-Infra'!$AN86*W$19,0) -> 0 | X169: =IF(AND('Input-Infra'!$AI86>=X$10, 'Input-Infra'!$AI86<=X$11),'Input-Infra'!$AN86*X$19,0) -> 0 | Y169: =IF(AND('Input-Infra'!$AI86>=Y$10, 'Input-Infra'!$AI86<=Y$11),'Input-Infra'!$AN86*Y$19,0) -> 0 | Z169: =IF(AND('Input-Infra'!$AI86>=Z$10, 'Input-Infra'!$AI86<=Z$11),'Input-Infra'!$AN86*Z$19,0) -> 0 | AA169: =IF(AND('Input-Infra'!$AI86>=AA$10, 'Input-Infra'!$AI86<=AA$11),'Input-Infra'!$AN86*AA$19,0) -> 0 | AB169: =IF(AND('Input-Infra'!$AI86>=AB$10, 'Input-Infra'!$AI86<=AB$11),'Input-Infra'!$AN86*AB$19,0) -> 0 | AC169: =IF(AND('Input-Infra'!$AI86>=AC$10, 'Input-Infra'!$AI86<=AC$11),'Input-Infra'!$AN86*AC$19,0) -> 0
G170: Spare 1 | I170: $'000 | K170: 0 | M170: 0 | Q170: 0 | S170: 0 | T170: 0 | U170: 0 | V170: 0 | W170: 0 | X170: 0 | Y170: 0 | Z170: 0 | AA170: 0 | AB170: 0 | AC170: 0
G171: Spare 2 | I171: $'000 | K171: 0 | M171: 0 | Q171: 0 | S171: 0 | T171: 0 | U171: 0 | V171: 0 | W171: 0 | X171: 0 | Y171: 0 | Z171: 0 | AA171: 0 | AB171: 0 | AC171: 0
G172: Spare 3 | I172: $'000 | K172: 0 | M172: 0 | Q172: 0 | S172: 0 | T172: 0 | U172: 0 | V172: 0 | W172: 0 | X172: 0 | Y172: 0 | Z172: 0 | AA172: 0 | AB172: 0 | AC172: 0
G173: Spare 4 | I173: $'000 | K173: 0 | M173: 0 | Q173: 0 | S173: 0 | T173: 0 | U173: 0 | V173: 0 | W173: 0 | X173: 0 | Y173: 0 | Z173: 0 | AA173: 0 | AB173: 0 | AC173: 0
G174: Spare 5 | I174: $'000 | K174: 0 | M174: 0 | Q174: 0 | S174: 0 | T174: 0 | U174: 0 | V174: 0 | W174: 0 | X174: 0 | Y174: 0 | Z174: 0 | AA174: 0 | AB174: 0 | AC174: 0
G175: Spare 6 | I175: $'000 | K175: 0 | M175: 0 | Q175: 0 | S175: 0 | T175: 0 | U175: 0 | V175: 0 | W175: 0 | X175: 0 | Y175: 0 | Z175: 0 | AA175: 0 | AB175: 0 | AC175: 0
G176: Spare 7 | I176: $'000 | K176: 0 | M176: 0 | Q176: 0 | S176: 0 | T176: 0 | U176: 0 | V176: 0 | W176: 0 | X176: 0 | Y176: 0 | Z176: 0 | AA176: 0 | AB176: 0 | AC176: 0
G177: Spare 8 | I177: $'000 | K177: 0 | M177: 0 | Q177: 0 | S177: 0 | T177: 0 | U177: 0 | V177: 0 | W177: 0 | X177: 0 | Y177: 0 | Z177: 0 | AA177: 0 | AB177: 0 | AC177: 0
I178: $'000 | K178: 0 | M178: 0 | Q178: 0 | S178: 0 | T178: 0 | U178: 0 | V178: 0 | W178: 0 | X178: 0 | Y178: 0 | Z178: 0 | AA178: 0 | AB178: 0 | AC178: 0
I179: $'000 | K179: 0 | M179: 0 | Q179: 0 | S179: 0 | T179: 0 | U179: 0 | V179: 0 | W179: 0 | X179: 0 | Y179: 0 | Z179: 0 | AA179: 0 | AB179: 0 | AC179: 0
I180: $'000 | K180: 0 | M180: 0 | Q180: 0 | S180: 0 | T180: 0 | U180: 0 | V180: 0 | W180: 0 | X180: 0 | Y180: 0 | Z180: 0 | AA180: 0 | AB180: 0 | AC180: 0
I181: $'000 | K181: 0 | M181: 0 | Q181: 0 | S181: 0 | T181: 0 | U181: 0 | V181: 0 | W181: 0 | X181: 0 | Y181: 0 | Z181: 0 | AA181: 0 | AB181: 0 | AC181: 0
I182: $'000 | K182: 0 | M182: 0 | Q182: 0 | S182: 0 | T182: 0 | U182: 0 | V182: 0 | W182: 0 | X182: 0 | Y182: 0 | Z182: 0 | AA182: 0 | AB182: 0 | AC182: 0
I183: $'000 | K183: 0 | M183: 0 | Q183: 0 | S183: 0 | T183: 0 | U183: 0 | V183: 0 | W183: 0 | X183: 0 | Y183: 0 | Z183: 0 | AA183: 0 | AB183: 0 | AC183: 0
I184: $'000 | K184: 0 | M184: 0 | Q184: 0 | S184: 0 | T184: 0 | U184: 0 | V184: 0 | W184: 0 | X184: 0 | Y184: 0 | Z184: 0 | AA184: 0 | AB184: 0 | AC184: 0
I185: $'000 | K185: 0 | M185: 0 | Q185: 0 | S185: 0 | T185: 0 | U185: 0 | V185: 0 | W185: 0 | X185: 0 | Y185: 0 | Z185: 0 | AA185: 0 | AB185: 0 | AC185: 0
I186: $'000 | K186: 0 | M186: 0 | Q186: 0 | S186: 0 | T186: 0 | U186: 0 | V186: 0 | W186: 0 | X186: 0 | Y186: 0 | Z186: 0 | AA186: 0 | AB186: 0 | AC186: 0
I187: $'000 | K187: 0 | M187: 0 | Q187: 0 | S187: 0 | T187: 0 | U187: 0 | V187: 0 | W187: 0 | X187: 0 | Y187: 0 | Z187: 0 | AA187: 0 | AB187: 0 | AC187: 0
I188: $'000 | K188: 0 | M188: ='Input-Infra'!AK87-Q188 -> 0 | Q188: 0 | S188: =IF(AND('Input-Infra'!$AI87>=S$10, 'Input-Infra'!$AI87<=S$11),'Input-Infra'!$AN87*S$19,0) -> 0 | T188: =IF(AND('Input-Infra'!$AI87>=T$10, 'Input-Infra'!$AI87<=T$11),'Input-Infra'!$AN87*T$19,0) -> 0 | U188: =IF(AND('Input-Infra'!$AI87>=U$10, 'Input-Infra'!$AI87<=U$11),'Input-Infra'!$AN87*U$19,0) -> 0 | V188: =IF(AND('Input-Infra'!$AI87>=V$10, 'Input-Infra'!$AI87<=V$11),'Input-Infra'!$AN87*V$19,0) -> 0 | W188: =IF(AND('Input-Infra'!$AI87>=W$10, 'Input-Infra'!$AI87<=W$11),'Input-Infra'!$AN87*W$19,0) -> 0 | X188: =IF(AND('Input-Infra'!$AI87>=X$10, 'Input-Infra'!$AI87<=X$11),'Input-Infra'!$AN87*X$19,0) -> 0 | Y188: =IF(AND('Input-Infra'!$AI87>=Y$10, 'Input-Infra'!$AI87<=Y$11),'Input-Infra'!$AN87*Y$19,0) -> 0 | Z188: =IF(AND('Input-Infra'!$AI87>=Z$10, 'Input-Infra'!$AI87<=Z$11),'Input-Infra'!$AN87*Z$19,0) -> 0 | AA188: =IF(AND('Input-Infra'!$AI87>=AA$10, 'Input-Infra'!$AI87<=AA$11),'Input-Infra'!$AN87*AA$19,0) -> 0 | AB188: =IF(AND('Input-Infra'!$AI87>=AB$10, 'Input-Infra'!$AI87<=AB$11),'Input-Infra'!$AN87*AB$19,0) -> 0 | AC188: =IF(AND('Input-Infra'!$AI87>=AC$10, 'Input-Infra'!$AI87<=AC$11),'Input-Infra'!$AN87*AC$19,0) -> 0
I189: $'000 | K189: 0 | M189: ='Input-Infra'!AK88-Q189 -> 0 | Q189: 0 | S189: =IF(AND('Input-Infra'!$AI88>=S$10, 'Input-Infra'!$AI88<=S$11),'Input-Infra'!$AN88*S$19,0) -> 0 | T189: =IF(AND('Input-Infra'!$AI88>=T$10, 'Input-Infra'!$AI88<=T$11),'Input-Infra'!$AN88*T$19,0) -> 0 | U189: =IF(AND('Input-Infra'!$AI88>=U$10, 'Input-Infra'!$AI88<=U$11),'Input-Infra'!$AN88*U$19,0) -> 0 | V189: =IF(AND('Input-Infra'!$AI88>=V$10, 'Input-Infra'!$AI88<=V$11),'Input-Infra'!$AN88*V$19,0) -> 0 | W189: =IF(AND('Input-Infra'!$AI88>=W$10, 'Input-Infra'!$AI88<=W$11),'Input-Infra'!$AN88*W$19,0) -> 0 | X189: =IF(AND('Input-Infra'!$AI88>=X$10, 'Input-Infra'!$AI88<=X$11),'Input-Infra'!$AN88*X$19,0) -> 0 | Y189: =IF(AND('Input-Infra'!$AI88>=Y$10, 'Input-Infra'!$AI88<=Y$11),'Input-Infra'!$AN88*Y$19,0) -> 0 | Z189: =IF(AND('Input-Infra'!$AI88>=Z$10, 'Input-Infra'!$AI88<=Z$11),'Input-Infra'!$AN88*Z$19,0) -> 0 | AA189: =IF(AND('Input-Infra'!$AI88>=AA$10, 'Input-Infra'!$AI88<=AA$11),'Input-Infra'!$AN88*AA$19,0) -> 0 | AB189: =IF(AND('Input-Infra'!$AI88>=AB$10, 'Input-Infra'!$AI88<=AB$11),'Input-Infra'!$AN88*AB$19,0) -> 0 | AC189: =IF(AND('Input-Infra'!$AI88>=AC$10, 'Input-Infra'!$AI88<=AC$11),'Input-Infra'!$AN88*AC$19,0) -> 0
I190: $'000 | K190: 0 | M190: ='Input-Infra'!AK89-Q190 -> 0 | Q190: 0 | S190: =IF(AND('Input-Infra'!$AI89>=S$10, 'Input-Infra'!$AI89<=S$11),'Input-Infra'!$AN89*S$19,0) -> 0 | T190: =IF(AND('Input-Infra'!$AI89>=T$10, 'Input-Infra'!$AI89<=T$11),'Input-Infra'!$AN89*T$19,0) -> 0 | U190: =IF(AND('Input-Infra'!$AI89>=U$10, 'Input-Infra'!$AI89<=U$11),'Input-Infra'!$AN89*U$19,0) -> 0 | V190: =IF(AND('Input-Infra'!$AI89>=V$10, 'Input-Infra'!$AI89<=V$11),'Input-Infra'!$AN89*V$19,0) -> 0 | W190: =IF(AND('Input-Infra'!$AI89>=W$10, 'Input-Infra'!$AI89<=W$11),'Input-Infra'!$AN89*W$19,0) -> 0 | X190: =IF(AND('Input-Infra'!$AI89>=X$10, 'Input-Infra'!$AI89<=X$11),'Input-Infra'!$AN89*X$19,0) -> 0 | Y190: =IF(AND('Input-Infra'!$AI89>=Y$10, 'Input-Infra'!$AI89<=Y$11),'Input-Infra'!$AN89*Y$19,0) -> 0 | Z190: =IF(AND('Input-Infra'!$AI89>=Z$10, 'Input-Infra'!$AI89<=Z$11),'Input-Infra'!$AN89*Z$19,0) -> 0 | AA190: =IF(AND('Input-Infra'!$AI89>=AA$10, 'Input-Infra'!$AI89<=AA$11),'Input-Infra'!$AN89*AA$19,0) -> 0 | AB190: =IF(AND('Input-Infra'!$AI89>=AB$10, 'Input-Infra'!$AI89<=AB$11),'Input-Infra'!$AN89*AB$19,0) -> 0 | AC190: =IF(AND('Input-Infra'!$AI89>=AC$10, 'Input-Infra'!$AI89<=AC$11),'Input-Infra'!$AN89*AC$19,0) -> 0
I191: $'000 | K191: 0 | M191: ='Input-Infra'!AK90-Q191 -> 0 | Q191: 0 | S191: =IF(AND('Input-Infra'!$AI90>=S$10, 'Input-Infra'!$AI90<=S$11),'Input-Infra'!$AN90*S$19,0) -> 0 | T191: =IF(AND('Input-Infra'!$AI90>=T$10, 'Input-Infra'!$AI90<=T$11),'Input-Infra'!$AN90*T$19,0) -> 0 | U191: =IF(AND('Input-Infra'!$AI90>=U$10, 'Input-Infra'!$AI90<=U$11),'Input-Infra'!$AN90*U$19,0) -> 0 | V191: =IF(AND('Input-Infra'!$AI90>=V$10, 'Input-Infra'!$AI90<=V$11),'Input-Infra'!$AN90*V$19,0) -> 0 | W191: =IF(AND('Input-Infra'!$AI90>=W$10, 'Input-Infra'!$AI90<=W$11),'Input-Infra'!$AN90*W$19,0) -> 0 | X191: =IF(AND('Input-Infra'!$AI90>=X$10, 'Input-Infra'!$AI90<=X$11),'Input-Infra'!$AN90*X$19,0) -> 0 | Y191: =IF(AND('Input-Infra'!$AI90>=Y$10, 'Input-Infra'!$AI90<=Y$11),'Input-Infra'!$AN90*Y$19,0) -> 0 | Z191: =IF(AND('Input-Infra'!$AI90>=Z$10, 'Input-Infra'!$AI90<=Z$11),'Input-Infra'!$AN90*Z$19,0) -> 0 | AA191: =IF(AND('Input-Infra'!$AI90>=AA$10, 'Input-Infra'!$AI90<=AA$11),'Input-Infra'!$AN90*AA$19,0) -> 0 | AB191: =IF(AND('Input-Infra'!$AI90>=AB$10, 'Input-Infra'!$AI90<=AB$11),'Input-Infra'!$AN90*AB$19,0) -> 0 | AC191: =IF(AND('Input-Infra'!$AI90>=AC$10, 'Input-Infra'!$AI90<=AC$11),'Input-Infra'!$AN90*AC$19,0) -> 0
I192: $'000 | K192: 0 | M192: ='Input-Infra'!AK91-Q192 -> 0 | Q192: 0 | S192: =IF(AND('Input-Infra'!$AI91>=S$10, 'Input-Infra'!$AI91<=S$11),'Input-Infra'!$AN91*S$19,0) -> 0 | T192: =IF(AND('Input-Infra'!$AI91>=T$10, 'Input-Infra'!$AI91<=T$11),'Input-Infra'!$AN91*T$19,0) -> 0 | U192: =IF(AND('Input-Infra'!$AI91>=U$10, 'Input-Infra'!$AI91<=U$11),'Input-Infra'!$AN91*U$19,0) -> 0 | V192: =IF(AND('Input-Infra'!$AI91>=V$10, 'Input-Infra'!$AI91<=V$11),'Input-Infra'!$AN91*V$19,0) -> 0 | W192: =IF(AND('Input-Infra'!$AI91>=W$10, 'Input-Infra'!$AI91<=W$11),'Input-Infra'!$AN91*W$19,0) -> 0 | X192: =IF(AND('Input-Infra'!$AI91>=X$10, 'Input-Infra'!$AI91<=X$11),'Input-Infra'!$AN91*X$19,0) -> 0 | Y192: =IF(AND('Input-Infra'!$AI91>=Y$10, 'Input-Infra'!$AI91<=Y$11),'Input-Infra'!$AN91*Y$19,0) -> 0 | Z192: =IF(AND('Input-Infra'!$AI91>=Z$10, 'Input-Infra'!$AI91<=Z$11),'Input-Infra'!$AN91*Z$19,0) -> 0 | AA192: =IF(AND('Input-Infra'!$AI91>=AA$10, 'Input-Infra'!$AI91<=AA$11),'Input-Infra'!$AN91*AA$19,0) -> 0 | AB192: =IF(AND('Input-Infra'!$AI91>=AB$10, 'Input-Infra'!$AI91<=AB$11),'Input-Infra'!$AN91*AB$19,0) -> 0 | AC192: =IF(AND('Input-Infra'!$AI91>=AC$10, 'Input-Infra'!$AI91<=AC$11),'Input-Infra'!$AN91*AC$19,0) -> 0
I193: $'000 | K193: 0 | M193: ='Input-Infra'!AK92-Q193 -> 0 | Q193: 0 | S193: =IF(AND('Input-Infra'!$AI92>=S$10, 'Input-Infra'!$AI92<=S$11),'Input-Infra'!$AN92*S$19,0) -> 0 | T193: =IF(AND('Input-Infra'!$AI92>=T$10, 'Input-Infra'!$AI92<=T$11),'Input-Infra'!$AN92*T$19,0) -> 0 | U193: =IF(AND('Input-Infra'!$AI92>=U$10, 'Input-Infra'!$AI92<=U$11),'Input-Infra'!$AN92*U$19,0) -> 0 | V193: =IF(AND('Input-Infra'!$AI92>=V$10, 'Input-Infra'!$AI92<=V$11),'Input-Infra'!$AN92*V$19,0) -> 0 | W193: =IF(AND('Input-Infra'!$AI92>=W$10, 'Input-Infra'!$AI92<=W$11),'Input-Infra'!$AN92*W$19,0) -> 0 | X193: =IF(AND('Input-Infra'!$AI92>=X$10, 'Input-Infra'!$AI92<=X$11),'Input-Infra'!$AN92*X$19,0) -> 0 | Y193: =IF(AND('Input-Infra'!$AI92>=Y$10, 'Input-Infra'!$AI92<=Y$11),'Input-Infra'!$AN92*Y$19,0) -> 0 | Z193: =IF(AND('Input-Infra'!$AI92>=Z$10, 'Input-Infra'!$AI92<=Z$11),'Input-Infra'!$AN92*Z$19,0) -> 0 | AA193: =IF(AND('Input-Infra'!$AI92>=AA$10, 'Input-Infra'!$AI92<=AA$11),'Input-Infra'!$AN92*AA$19,0) -> 0 | AB193: =IF(AND('Input-Infra'!$AI92>=AB$10, 'Input-Infra'!$AI92<=AB$11),'Input-Infra'!$AN92*AB$19,0) -> 0 | AC193: =IF(AND('Input-Infra'!$AI92>=AC$10, 'Input-Infra'!$AI92<=AC$11),'Input-Infra'!$AN92*AC$19,0) -> 0
I194: $'000 | K194: 0 | M194: ='Input-Infra'!AK93-Q194 -> 0 | Q194: 0 | S194: =IF(AND('Input-Infra'!$AI93>=S$10, 'Input-Infra'!$AI93<=S$11),'Input-Infra'!$AN93*S$19,0) -> 0 | T194: =IF(AND('Input-Infra'!$AI93>=T$10, 'Input-Infra'!$AI93<=T$11),'Input-Infra'!$AN93*T$19,0) -> 0 | U194: =IF(AND('Input-Infra'!$AI93>=U$10, 'Input-Infra'!$AI93<=U$11),'Input-Infra'!$AN93*U$19,0) -> 0 | V194: =IF(AND('Input-Infra'!$AI93>=V$10, 'Input-Infra'!$AI93<=V$11),'Input-Infra'!$AN93*V$19,0) -> 0 | W194: =IF(AND('Input-Infra'!$AI93>=W$10, 'Input-Infra'!$AI93<=W$11),'Input-Infra'!$AN93*W$19,0) -> 0 | X194: =IF(AND('Input-Infra'!$AI93>=X$10, 'Input-Infra'!$AI93<=X$11),'Input-Infra'!$AN93*X$19,0) -> 0 | Y194: =IF(AND('Input-Infra'!$AI93>=Y$10, 'Input-Infra'!$AI93<=Y$11),'Input-Infra'!$AN93*Y$19,0) -> 0 | Z194: =IF(AND('Input-Infra'!$AI93>=Z$10, 'Input-Infra'!$AI93<=Z$11),'Input-Infra'!$AN93*Z$19,0) -> 0 | AA194: =IF(AND('Input-Infra'!$AI93>=AA$10, 'Input-Infra'!$AI93<=AA$11),'Input-Infra'!$AN93*AA$19,0) -> 0 | AB194: =IF(AND('Input-Infra'!$AI93>=AB$10, 'Input-Infra'!$AI93<=AB$11),'Input-Infra'!$AN93*AB$19,0) -> 0 | AC194: =IF(AND('Input-Infra'!$AI93>=AC$10, 'Input-Infra'!$AI93<=AC$11),'Input-Infra'!$AN93*AC$19,0) -> 0
I195: $'000 | K195: 0 | M195: ='Input-Infra'!AK94-Q195 -> 0 | Q195: 0 | S195: =IF(AND('Input-Infra'!$AI94>=S$10, 'Input-Infra'!$AI94<=S$11),'Input-Infra'!$AN94*S$19,0) -> 0 | T195: =IF(AND('Input-Infra'!$AI94>=T$10, 'Input-Infra'!$AI94<=T$11),'Input-Infra'!$AN94*T$19,0) -> 0 | U195: =IF(AND('Input-Infra'!$AI94>=U$10, 'Input-Infra'!$AI94<=U$11),'Input-Infra'!$AN94*U$19,0) -> 0 | V195: =IF(AND('Input-Infra'!$AI94>=V$10, 'Input-Infra'!$AI94<=V$11),'Input-Infra'!$AN94*V$19,0) -> 0 | W195: =IF(AND('Input-Infra'!$AI94>=W$10, 'Input-Infra'!$AI94<=W$11),'Input-Infra'!$AN94*W$19,0) -> 0 | X195: =IF(AND('Input-Infra'!$AI94>=X$10, 'Input-Infra'!$AI94<=X$11),'Input-Infra'!$AN94*X$19,0) -> 0 | Y195: =IF(AND('Input-Infra'!$AI94>=Y$10, 'Input-Infra'!$AI94<=Y$11),'Input-Infra'!$AN94*Y$19,0) -> 0 | Z195: =IF(AND('Input-Infra'!$AI94>=Z$10, 'Input-Infra'!$AI94<=Z$11),'Input-Infra'!$AN94*Z$19,0) -> 0 | AA195: =IF(AND('Input-Infra'!$AI94>=AA$10, 'Input-Infra'!$AI94<=AA$11),'Input-Infra'!$AN94*AA$19,0) -> 0 | AB195: =IF(AND('Input-Infra'!$AI94>=AB$10, 'Input-Infra'!$AI94<=AB$11),'Input-Infra'!$AN94*AB$19,0) -> 0 | AC195: =IF(AND('Input-Infra'!$AI94>=AC$10, 'Input-Infra'!$AI94<=AC$11),'Input-Infra'!$AN94*AC$19,0) -> 0
G197: Subtotal | I197: $'000 | K197: =SUM(K161:K195) -> 0 | M197: =SUM(M161:M195) -> 0 | Q197: =SUM(S197:AC197) -> 0 | S197: =SUM(S161:S195) -> 0 | T197: 0 | U197: 0 | V197: 0 | W197: 0 | X197: 0 | Y197: 0 | Z197: 0 | AA197: 0 | AB197: 0 | AC197: 0
G199: Total | I199: $'000 | K199: =SUM(K157,K197) -> 0 | M199: =SUM(M157,M197) -> 0 | Q199: =SUM(Q157,Q197) -> 0 | S199: =SUM(S157,S197) -> 0 | T199: 0 | U199: 0 | V199: 0 | W199: 0 | X199: 0 | Y199: 0 | Z199: 0 | AA199: 0 | AB199: 0 | AC199: 0
F202: Constructed Asset Costs, excluding Land and Administration Costs
G204: Existing Infrastructure
G206: =Existing -> Citywide Total | I206: $'000 | K206: =NPV(WACC_nom,T206:AC206)+S206 -> 136452.5 | M206: ='Input-Infra'!AV25-Q206 -> 0 | Q206: =SUM(S206:AC206) -> 136452.5 | S206: =IF(S$9=0,'Input-Infra'!$AV25*S$20,0) -> 136452.5 | T206: =IF(T$9=0,'Input-Infra'!$AV25*T$20,0) -> 0 | U206: =IF(U$9=0,'Input-Infra'!$AV25*U$20,0) -> 0 | V206: =IF(V$9=0,'Input-Infra'!$AV25*V$20,0) -> 0 | W206: =IF(W$9=0,'Input-Infra'!$AV25*W$20,0) -> 0 | X206: =IF(X$9=0,'Input-Infra'!$AV25*X$20,0) -> 0 | Y206: =IF(Y$9=0,'Input-Infra'!$AV25*Y$20,0) -> 0 | Z206: =IF(Z$9=0,'Input-Infra'!$AV25*Z$20,0) -> 0 | AA206: =IF(AA$9=0,'Input-Infra'!$AV25*AA$20,0) -> 0 | AB206: =IF(AB$9=0,'Input-Infra'!$AV25*AB$20,0) -> 0 | AC206: =IF(AC$9=0,'Input-Infra'!$AV25*AC$20,0) -> 0
G207: Spare 1 | I207: $'000 | K207: 0 | M207: ='Input-Infra'!AV26-Q207 -> 0 | Q207: =SUM(S207:AC207) -> 0 | S207: =IF(S$9=0,'Input-Infra'!$AV26*S$20,0) -> 0 | T207: =IF(T$9=0,'Input-Infra'!$AV26*T$20,0) -> 0 | U207: =IF(U$9=0,'Input-Infra'!$AV26*U$20,0) -> 0 | V207: =IF(V$9=0,'Input-Infra'!$AV26*V$20,0) -> 0 | W207: =IF(W$9=0,'Input-Infra'!$AV26*W$20,0) -> 0 | X207: =IF(X$9=0,'Input-Infra'!$AV26*X$20,0) -> 0 | Y207: =IF(Y$9=0,'Input-Infra'!$AV26*Y$20,0) -> 0 | Z207: =IF(Z$9=0,'Input-Infra'!$AV26*Z$20,0) -> 0 | AA207: =IF(AA$9=0,'Input-Infra'!$AV26*AA$20,0) -> 0 | AB207: =IF(AB$9=0,'Input-Infra'!$AV26*AB$20,0) -> 0 | AC207: =IF(AC$9=0,'Input-Infra'!$AV26*AC$20,0) -> 0
G208: Spare 2 | I208: $'000 | K208: 0 | M208: ='Input-Infra'!AV27-Q208 -> 0 | Q208: 0 | S208: =IF(S$9=0,'Input-Infra'!$AV27*S$20,0) -> 0 | T208: =IF(T$9=0,'Input-Infra'!$AV27*T$20,0) -> 0 | U208: =IF(U$9=0,'Input-Infra'!$AV27*U$20,0) -> 0 | V208: =IF(V$9=0,'Input-Infra'!$AV27*V$20,0) -> 0 | W208: =IF(W$9=0,'Input-Infra'!$AV27*W$20,0) -> 0 | X208: =IF(X$9=0,'Input-Infra'!$AV27*X$20,0) -> 0 | Y208: =IF(Y$9=0,'Input-Infra'!$AV27*Y$20,0) -> 0 | Z208: =IF(Z$9=0,'Input-Infra'!$AV27*Z$20,0) -> 0 | AA208: =IF(AA$9=0,'Input-Infra'!$AV27*AA$20,0) -> 0 | AB208: =IF(AB$9=0,'Input-Infra'!$AV27*AB$20,0) -> 0 | AC208: =IF(AC$9=0,'Input-Infra'!$AV27*AC$20,0) -> 0
G209: Spare 3 | I209: $'000 | K209: 0 | M209: ='Input-Infra'!AV28-Q209 -> 0 | Q209: 0 | S209: =IF(S$9=0,'Input-Infra'!$AV28*S$20,0) -> 0 | T209: =IF(T$9=0,'Input-Infra'!$AV28*T$20,0) -> 0 | U209: =IF(U$9=0,'Input-Infra'!$AV28*U$20,0) -> 0 | V209: =IF(V$9=0,'Input-Infra'!$AV28*V$20,0) -> 0 | W209: =IF(W$9=0,'Input-Infra'!$AV28*W$20,0) -> 0 | X209: =IF(X$9=0,'Input-Infra'!$AV28*X$20,0) -> 0 | Y209: =IF(Y$9=0,'Input-Infra'!$AV28*Y$20,0) -> 0 | Z209: =IF(Z$9=0,'Input-Infra'!$AV28*Z$20,0) -> 0 | AA209: =IF(AA$9=0,'Input-Infra'!$AV28*AA$20,0) -> 0 | AB209: =IF(AB$9=0,'Input-Infra'!$AV28*AB$20,0) -> 0 | AC209: =IF(AC$9=0,'Input-Infra'!$AV28*AC$20,0) -> 0
G210: Spare 4 | I210: $'000 | K210: 0 | M210: ='Input-Infra'!AV29-Q210 -> 0 | Q210: 0 | S210: =IF(S$9=0,'Input-Infra'!$AV29*S$20,0) -> 0 | T210: =IF(T$9=0,'Input-Infra'!$AV29*T$20,0) -> 0 | U210: =IF(U$9=0,'Input-Infra'!$AV29*U$20,0) -> 0 | V210: =IF(V$9=0,'Input-Infra'!$AV29*V$20,0) -> 0 | W210: =IF(W$9=0,'Input-Infra'!$AV29*W$20,0) -> 0 | X210: =IF(X$9=0,'Input-Infra'!$AV29*X$20,0) -> 0 | Y210: =IF(Y$9=0,'Input-Infra'!$AV29*Y$20,0) -> 0 | Z210: =IF(Z$9=0,'Input-Infra'!$AV29*Z$20,0) -> 0 | AA210: =IF(AA$9=0,'Input-Infra'!$AV29*AA$20,0) -> 0 | AB210: =IF(AB$9=0,'Input-Infra'!$AV29*AB$20,0) -> 0 | AC210: =IF(AC$9=0,'Input-Infra'!$AV29*AC$20,0) -> 0
G211: Spare 5 | I211: $'000 | K211: 0 | M211: ='Input-Infra'!AV30-Q211 -> 0 | Q211: 0 | S211: =IF(S$9=0,'Input-Infra'!$AV30*S$20,0) -> 0 | T211: =IF(T$9=0,'Input-Infra'!$AV30*T$20,0) -> 0 | U211: =IF(U$9=0,'Input-Infra'!$AV30*U$20,0) -> 0 | V211: =IF(V$9=0,'Input-Infra'!$AV30*V$20,0) -> 0 | W211: =IF(W$9=0,'Input-Infra'!$AV30*W$20,0) -> 0 | X211: =IF(X$9=0,'Input-Infra'!$AV30*X$20,0) -> 0 | Y211: =IF(Y$9=0,'Input-Infra'!$AV30*Y$20,0) -> 0 | Z211: =IF(Z$9=0,'Input-Infra'!$AV30*Z$20,0) -> 0 | AA211: =IF(AA$9=0,'Input-Infra'!$AV30*AA$20,0) -> 0 | AB211: =IF(AB$9=0,'Input-Infra'!$AV30*AB$20,0) -> 0 | AC211: =IF(AC$9=0,'Input-Infra'!$AV30*AC$20,0) -> 0
G212: Spare 6 | I212: $'000 | K212: 0 | M212: ='Input-Infra'!AV31-Q212 -> 0 | Q212: 0 | S212: =IF(S$9=0,'Input-Infra'!$AV31*S$20,0) -> 0 | T212: =IF(T$9=0,'Input-Infra'!$AV31*T$20,0) -> 0 | U212: =IF(U$9=0,'Input-Infra'!$AV31*U$20,0) -> 0 | V212: =IF(V$9=0,'Input-Infra'!$AV31*V$20,0) -> 0 | W212: =IF(W$9=0,'Input-Infra'!$AV31*W$20,0) -> 0 | X212: =IF(X$9=0,'Input-Infra'!$AV31*X$20,0) -> 0 | Y212: =IF(Y$9=0,'Input-Infra'!$AV31*Y$20,0) -> 0 | Z212: =IF(Z$9=0,'Input-Infra'!$AV31*Z$20,0) -> 0 | AA212: =IF(AA$9=0,'Input-Infra'!$AV31*AA$20,0) -> 0 | AB212: =IF(AB$9=0,'Input-Infra'!$AV31*AB$20,0) -> 0 | AC212: =IF(AC$9=0,'Input-Infra'!$AV31*AC$20,0) -> 0
G213: Spare 7 | I213: $'000 | K213: 0 | M213: ='Input-Infra'!AV32-Q213 -> 0 | Q213: 0 | S213: =IF(S$9=0,'Input-Infra'!$AV32*S$20,0) -> 0 | T213: =IF(T$9=0,'Input-Infra'!$AV32*T$20,0) -> 0 | U213: =IF(U$9=0,'Input-Infra'!$AV32*U$20,0) -> 0 | V213: =IF(V$9=0,'Input-Infra'!$AV32*V$20,0) -> 0 | W213: =IF(W$9=0,'Input-Infra'!$AV32*W$20,0) -> 0 | X213: =IF(X$9=0,'Input-Infra'!$AV32*X$20,0) -> 0 | Y213: =IF(Y$9=0,'Input-Infra'!$AV32*Y$20,0) -> 0 | Z213: =IF(Z$9=0,'Input-Infra'!$AV32*Z$20,0) -> 0 | AA213: =IF(AA$9=0,'Input-Infra'!$AV32*AA$20,0) -> 0 | AB213: =IF(AB$9=0,'Input-Infra'!$AV32*AB$20,0) -> 0 | AC213: =IF(AC$9=0,'Input-Infra'!$AV32*AC$20,0) -> 0
G214: Spare 8 | I214: $'000 | K214: 0 | M214: ='Input-Infra'!AV33-Q214 -> 0 | Q214: 0 | S214: =IF(S$9=0,'Input-Infra'!$AV33*S$20,0) -> 0 | T214: =IF(T$9=0,'Input-Infra'!$AV33*T$20,0) -> 0 | U214: =IF(U$9=0,'Input-Infra'!$AV33*U$20,0) -> 0 | V214: =IF(V$9=0,'Input-Infra'!$AV33*V$20,0) -> 0 | W214: =IF(W$9=0,'Input-Infra'!$AV33*W$20,0) -> 0 | X214: =IF(X$9=0,'Input-Infra'!$AV33*X$20,0) -> 0 | Y214: =IF(Y$9=0,'Input-Infra'!$AV33*Y$20,0) -> 0 | Z214: =IF(Z$9=0,'Input-Infra'!$AV33*Z$20,0) -> 0 | AA214: =IF(AA$9=0,'Input-Infra'!$AV33*AA$20,0) -> 0 | AB214: =IF(AB$9=0,'Input-Infra'!$AV33*AB$20,0) -> 0 | AC214: =IF(AC$9=0,'Input-Infra'!$AV33*AC$20,0) -> 0
G215: Spare 9 | I215: $'000 | K215: 0 | M215: ='Input-Infra'!AV34-Q215 -> 0 | Q215: 0 | S215: =IF(S$9=0,'Input-Infra'!$AV34*S$20,0) -> 0 | T215: =IF(T$9=0,'Input-Infra'!$AV34*T$20,0) -> 0 | U215: =IF(U$9=0,'Input-Infra'!$AV34*U$20,0) -> 0 | V215: =IF(V$9=0,'Input-Infra'!$AV34*V$20,0) -> 0 | W215: =IF(W$9=0,'Input-Infra'!$AV34*W$20,0) -> 0 | X215: =IF(X$9=0,'Input-Infra'!$AV34*X$20,0) -> 0 | Y215: =IF(Y$9=0,'Input-Infra'!$AV34*Y$20,0) -> 0 | Z215: =IF(Z$9=0,'Input-Infra'!$AV34*Z$20,0) -> 0 | AA215: =IF(AA$9=0,'Input-Infra'!$AV34*AA$20,0) -> 0 | AB215: =IF(AB$9=0,'Input-Infra'!$AV34*AB$20,0) -> 0 | AC215: =IF(AC$9=0,'Input-Infra'!$AV34*AC$20,0) -> 0
G216: Spare 10 | I216: $'000 | K216: 0 | M216: ='Input-Infra'!AV35-Q216 -> 0 | Q216: 0 | S216: =IF(S$9=0,'Input-Infra'!$AV35*S$20,0) -> 0 | T216: =IF(T$9=0,'Input-Infra'!$AV35*T$20,0) -> 0 | U216: =IF(U$9=0,'Input-Infra'!$AV35*U$20,0) -> 0 | V216: =IF(V$9=0,'Input-Infra'!$AV35*V$20,0) -> 0 | W216: =IF(W$9=0,'Input-Infra'!$AV35*W$20,0) -> 0 | X216: =IF(X$9=0,'Input-Infra'!$AV35*X$20,0) -> 0 | Y216: =IF(Y$9=0,'Input-Infra'!$AV35*Y$20,0) -> 0 | Z216: =IF(Z$9=0,'Input-Infra'!$AV35*Z$20,0) -> 0 | AA216: =IF(AA$9=0,'Input-Infra'!$AV35*AA$20,0) -> 0 | AB216: =IF(AB$9=0,'Input-Infra'!$AV35*AB$20,0) -> 0 | AC216: =IF(AC$9=0,'Input-Infra'!$AV35*AC$20,0) -> 0
G217: Spare 11 | I217: $'000 | K217: 0 | M217: ='Input-Infra'!AV36-Q217 -> 0 | Q217: 0 | S217: =IF(S$9=0,'Input-Infra'!$AV36*S$20,0) -> 0 | T217: =IF(T$9=0,'Input-Infra'!$AV36*T$20,0) -> 0 | U217: =IF(U$9=0,'Input-Infra'!$AV36*U$20,0) -> 0 | V217: =IF(V$9=0,'Input-Infra'!$AV36*V$20,0) -> 0 | W217: =IF(W$9=0,'Input-Infra'!$AV36*W$20,0) -> 0 | X217: =IF(X$9=0,'Input-Infra'!$AV36*X$20,0) -> 0 | Y217: =IF(Y$9=0,'Input-Infra'!$AV36*Y$20,0) -> 0 | Z217: =IF(Z$9=0,'Input-Infra'!$AV36*Z$20,0) -> 0 | AA217: =IF(AA$9=0,'Input-Infra'!$AV36*AA$20,0) -> 0 | AB217: =IF(AB$9=0,'Input-Infra'!$AV36*AB$20,0) -> 0 | AC217: =IF(AC$9=0,'Input-Infra'!$AV36*AC$20,0) -> 0
G218: Spare 12 | I218: $'000 | K218: 0 | M218: ='Input-Infra'!AV37-Q218 -> 0 | Q218: 0 | S218: =IF(S$9=0,'Input-Infra'!$AV37*S$20,0) -> 0 | T218: =IF(T$9=0,'Input-Infra'!$AV37*T$20,0) -> 0 | U218: =IF(U$9=0,'Input-Infra'!$AV37*U$20,0) -> 0 | V218: =IF(V$9=0,'Input-Infra'!$AV37*V$20,0) -> 0 | W218: =IF(W$9=0,'Input-Infra'!$AV37*W$20,0) -> 0 | X218: =IF(X$9=0,'Input-Infra'!$AV37*X$20,0) -> 0 | Y218: =IF(Y$9=0,'Input-Infra'!$AV37*Y$20,0) -> 0 | Z218: =IF(Z$9=0,'Input-Infra'!$AV37*Z$20,0) -> 0 | AA218: =IF(AA$9=0,'Input-Infra'!$AV37*AA$20,0) -> 0 | AB218: =IF(AB$9=0,'Input-Infra'!$AV37*AB$20,0) -> 0 | AC218: =IF(AC$9=0,'Input-Infra'!$AV37*AC$20,0) -> 0
G219: Spare 13 | I219: $'000 | K219: 0 | M219: ='Input-Infra'!AV38-Q219 -> 0 | Q219: 0 | S219: =IF(S$9=0,'Input-Infra'!$AV38*S$20,0) -> 0 | T219: =IF(T$9=0,'Input-Infra'!$AV38*T$20,0) -> 0 | U219: =IF(U$9=0,'Input-Infra'!$AV38*U$20,0) -> 0 | V219: =IF(V$9=0,'Input-Infra'!$AV38*V$20,0) -> 0 | W219: =IF(W$9=0,'Input-Infra'!$AV38*W$20,0) -> 0 | X219: =IF(X$9=0,'Input-Infra'!$AV38*X$20,0) -> 0 | Y219: =IF(Y$9=0,'Input-Infra'!$AV38*Y$20,0) -> 0 | Z219: =IF(Z$9=0,'Input-Infra'!$AV38*Z$20,0) -> 0 | AA219: =IF(AA$9=0,'Input-Infra'!$AV38*AA$20,0) -> 0 | AB219: =IF(AB$9=0,'Input-Infra'!$AV38*AB$20,0) -> 0 | AC219: =IF(AC$9=0,'Input-Infra'!$AV38*AC$20,0) -> 0
G220: Spare 14 | I220: $'000 | K220: 0 | M220: ='Input-Infra'!AV39-Q220 -> 0 | Q220: 0 | S220: =IF(S$9=0,'Input-Infra'!$AV39*S$20,0) -> 0 | T220: =IF(T$9=0,'Input-Infra'!$AV39*T$20,0) -> 0 | U220: =IF(U$9=0,'Input-Infra'!$AV39*U$20,0) -> 0 | V220: =IF(V$9=0,'Input-Infra'!$AV39*V$20,0) -> 0 | W220: =IF(W$9=0,'Input-Infra'!$AV39*W$20,0) -> 0 | X220: =IF(X$9=0,'Input-Infra'!$AV39*X$20,0) -> 0 | Y220: =IF(Y$9=0,'Input-Infra'!$AV39*Y$20,0) -> 0 | Z220: =IF(Z$9=0,'Input-Infra'!$AV39*Z$20,0) -> 0 | AA220: =IF(AA$9=0,'Input-Infra'!$AV39*AA$20,0) -> 0 | AB220: =IF(AB$9=0,'Input-Infra'!$AV39*AB$20,0) -> 0 | AC220: =IF(AC$9=0,'Input-Infra'!$AV39*AC$20,0) -> 0
G221: Spare 15 | I221: $'000 | K221: 0 | M221: ='Input-Infra'!AV40-Q221 -> 0 | Q221: 0 | S221: =IF(S$9=0,'Input-Infra'!$AV40*S$20,0) -> 0 | T221: =IF(T$9=0,'Input-Infra'!$AV40*T$20,0) -> 0 | U221: =IF(U$9=0,'Input-Infra'!$AV40*U$20,0) -> 0 | V221: =IF(V$9=0,'Input-Infra'!$AV40*V$20,0) -> 0 | W221: =IF(W$9=0,'Input-Infra'!$AV40*W$20,0) -> 0 | X221: =IF(X$9=0,'Input-Infra'!$AV40*X$20,0) -> 0 | Y221: =IF(Y$9=0,'Input-Infra'!$AV40*Y$20,0) -> 0 | Z221: =IF(Z$9=0,'Input-Infra'!$AV40*Z$20,0) -> 0 | AA221: =IF(AA$9=0,'Input-Infra'!$AV40*AA$20,0) -> 0 | AB221: =IF(AB$9=0,'Input-Infra'!$AV40*AB$20,0) -> 0 | AC221: =IF(AC$9=0,'Input-Infra'!$AV40*AC$20,0) -> 0
G222: Spare 16 | I222: $'000 | K222: 0 | M222: ='Input-Infra'!AV41-Q222 -> 0 | Q222: 0 | S222: =IF(S$9=0,'Input-Infra'!$AV41*S$20,0) -> 0 | T222: =IF(T$9=0,'Input-Infra'!$AV41*T$20,0) -> 0 | U222: =IF(U$9=0,'Input-Infra'!$AV41*U$20,0) -> 0 | V222: =IF(V$9=0,'Input-Infra'!$AV41*V$20,0) -> 0 | W222: =IF(W$9=0,'Input-Infra'!$AV41*W$20,0) -> 0 | X222: =IF(X$9=0,'Input-Infra'!$AV41*X$20,0) -> 0 | Y222: =IF(Y$9=0,'Input-Infra'!$AV41*Y$20,0) -> 0 | Z222: =IF(Z$9=0,'Input-Infra'!$AV41*Z$20,0) -> 0 | AA222: =IF(AA$9=0,'Input-Infra'!$AV41*AA$20,0) -> 0 | AB222: =IF(AB$9=0,'Input-Infra'!$AV41*AB$20,0) -> 0 | AC222: =IF(AC$9=0,'Input-Infra'!$AV41*AC$20,0) -> 0
G223: Spare 17 | I223: $'000 | K223: 0 | M223: ='Input-Infra'!AV42-Q223 -> 0 | Q223: 0 | S223: =IF(S$9=0,'Input-Infra'!$AV42*S$20,0) -> 0 | T223: =IF(T$9=0,'Input-Infra'!$AV42*T$20,0) -> 0 | U223: =IF(U$9=0,'Input-Infra'!$AV42*U$20,0) -> 0 | V223: =IF(V$9=0,'Input-Infra'!$AV42*V$20,0) -> 0 | W223: =IF(W$9=0,'Input-Infra'!$AV42*W$20,0) -> 0 | X223: =IF(X$9=0,'Input-Infra'!$AV42*X$20,0) -> 0 | Y223: =IF(Y$9=0,'Input-Infra'!$AV42*Y$20,0) -> 0 | Z223: =IF(Z$9=0,'Input-Infra'!$AV42*Z$20,0) -> 0 | AA223: =IF(AA$9=0,'Input-Infra'!$AV42*AA$20,0) -> 0 | AB223: =IF(AB$9=0,'Input-Infra'!$AV42*AB$20,0) -> 0 | AC223: =IF(AC$9=0,'Input-Infra'!$AV42*AC$20,0) -> 0
G224: Spare 18 | I224: $'000 | K224: 0 | M224: ='Input-Infra'!AV43-Q224 -> 0 | Q224: 0 | S224: =IF(S$9=0,'Input-Infra'!$AV43*S$20,0) -> 0 | T224: =IF(T$9=0,'Input-Infra'!$AV43*T$20,0) -> 0 | U224: =IF(U$9=0,'Input-Infra'!$AV43*U$20,0) -> 0 | V224: =IF(V$9=0,'Input-Infra'!$AV43*V$20,0) -> 0 | W224: =IF(W$9=0,'Input-Infra'!$AV43*W$20,0) -> 0 | X224: =IF(X$9=0,'Input-Infra'!$AV43*X$20,0) -> 0 | Y224: =IF(Y$9=0,'Input-Infra'!$AV43*Y$20,0) -> 0 | Z224: =IF(Z$9=0,'Input-Infra'!$AV43*Z$20,0) -> 0 | AA224: =IF(AA$9=0,'Input-Infra'!$AV43*AA$20,0) -> 0 | AB224: =IF(AB$9=0,'Input-Infra'!$AV43*AB$20,0) -> 0 | AC224: =IF(AC$9=0,'Input-Infra'!$AV43*AC$20,0) -> 0
G225: Spare 19 | I225: $'000 | K225: 0 | M225: ='Input-Infra'!AV44-Q225 -> 0 | Q225: 0 | S225: =IF(S$9=0,'Input-Infra'!$AV44*S$20,0) -> 0 | T225: =IF(T$9=0,'Input-Infra'!$AV44*T$20,0) -> 0 | U225: =IF(U$9=0,'Input-Infra'!$AV44*U$20,0) -> 0 | V225: =IF(V$9=0,'Input-Infra'!$AV44*V$20,0) -> 0 | W225: =IF(W$9=0,'Input-Infra'!$AV44*W$20,0) -> 0 | X225: =IF(X$9=0,'Input-Infra'!$AV44*X$20,0) -> 0 | Y225: =IF(Y$9=0,'Input-Infra'!$AV44*Y$20,0) -> 0 | Z225: =IF(Z$9=0,'Input-Infra'!$AV44*Z$20,0) -> 0 | AA225: =IF(AA$9=0,'Input-Infra'!$AV44*AA$20,0) -> 0 | AB225: =IF(AB$9=0,'Input-Infra'!$AV44*AB$20,0) -> 0 | AC225: =IF(AC$9=0,'Input-Infra'!$AV44*AC$20,0) -> 0
G226: Spare 20 | I226: $'000 | K226: 0 | M226: ='Input-Infra'!AV45-Q226 -> 0 | Q226: 0 | S226: =IF(S$9=0,'Input-Infra'!$AV45*S$20,0) -> 0 | T226: =IF(T$9=0,'Input-Infra'!$AV45*T$20,0) -> 0 | U226: =IF(U$9=0,'Input-Infra'!$AV45*U$20,0) -> 0 | V226: =IF(V$9=0,'Input-Infra'!$AV45*V$20,0) -> 0 | W226: =IF(W$9=0,'Input-Infra'!$AV45*W$20,0) -> 0 | X226: =IF(X$9=0,'Input-Infra'!$AV45*X$20,0) -> 0 | Y226: =IF(Y$9=0,'Input-Infra'!$AV45*Y$20,0) -> 0 | Z226: =IF(Z$9=0,'Input-Infra'!$AV45*Z$20,0) -> 0 | AA226: =IF(AA$9=0,'Input-Infra'!$AV45*AA$20,0) -> 0 | AB226: =IF(AB$9=0,'Input-Infra'!$AV45*AB$20,0) -> 0 | AC226: =IF(AC$9=0,'Input-Infra'!$AV45*AC$20,0) -> 0
G227: Spare 21 | I227: $'000 | K227: 0 | M227: ='Input-Infra'!AV46-Q227 -> 0 | Q227: 0 | S227: =IF(S$9=0,'Input-Infra'!$AV46*S$20,0) -> 0 | T227: =IF(T$9=0,'Input-Infra'!$AV46*T$20,0) -> 0 | U227: =IF(U$9=0,'Input-Infra'!$AV46*U$20,0) -> 0 | V227: =IF(V$9=0,'Input-Infra'!$AV46*V$20,0) -> 0 | W227: =IF(W$9=0,'Input-Infra'!$AV46*W$20,0) -> 0 | X227: =IF(X$9=0,'Input-Infra'!$AV46*X$20,0) -> 0 | Y227: =IF(Y$9=0,'Input-Infra'!$AV46*Y$20,0) -> 0 | Z227: =IF(Z$9=0,'Input-Infra'!$AV46*Z$20,0) -> 0 | AA227: =IF(AA$9=0,'Input-Infra'!$AV46*AA$20,0) -> 0 | AB227: =IF(AB$9=0,'Input-Infra'!$AV46*AB$20,0) -> 0 | AC227: =IF(AC$9=0,'Input-Infra'!$AV46*AC$20,0) -> 0
G228: Spare 22 | I228: $'000 | K228: 0 | M228: ='Input-Infra'!AV47-Q228 -> 0 | Q228: 0 | S228: =IF(S$9=0,'Input-Infra'!$AV47*S$20,0) -> 0 | T228: =IF(T$9=0,'Input-Infra'!$AV47*T$20,0) -> 0 | U228: =IF(U$9=0,'Input-Infra'!$AV47*U$20,0) -> 0 | V228: =IF(V$9=0,'Input-Infra'!$AV47*V$20,0) -> 0 | W228: =IF(W$9=0,'Input-Infra'!$AV47*W$20,0) -> 0 | X228: =IF(X$9=0,'Input-Infra'!$AV47*X$20,0) -> 0 | Y228: =IF(Y$9=0,'Input-Infra'!$AV47*Y$20,0) -> 0 | Z228: =IF(Z$9=0,'Input-Infra'!$AV47*Z$20,0) -> 0 | AA228: =IF(AA$9=0,'Input-Infra'!$AV47*AA$20,0) -> 0 | AB228: =IF(AB$9=0,'Input-Infra'!$AV47*AB$20,0) -> 0 | AC228: =IF(AC$9=0,'Input-Infra'!$AV47*AC$20,0) -> 0
G229: Spare 23 | I229: $'000 | K229: 0 | M229: ='Input-Infra'!AV48-Q229 -> 0 | Q229: 0 | S229: =IF(S$9=0,'Input-Infra'!$AV48*S$20,0) -> 0 | T229: =IF(T$9=0,'Input-Infra'!$AV48*T$20,0) -> 0 | U229: =IF(U$9=0,'Input-Infra'!$AV48*U$20,0) -> 0 | V229: =IF(V$9=0,'Input-Infra'!$AV48*V$20,0) -> 0 | W229: =IF(W$9=0,'Input-Infra'!$AV48*W$20,0) -> 0 | X229: =IF(X$9=0,'Input-Infra'!$AV48*X$20,0) -> 0 | Y229: =IF(Y$9=0,'Input-Infra'!$AV48*Y$20,0) -> 0 | Z229: =IF(Z$9=0,'Input-Infra'!$AV48*Z$20,0) -> 0 | AA229: =IF(AA$9=0,'Input-Infra'!$AV48*AA$20,0) -> 0 | AB229: =IF(AB$9=0,'Input-Infra'!$AV48*AB$20,0) -> 0 | AC229: =IF(AC$9=0,'Input-Infra'!$AV48*AC$20,0) -> 0
... 256 more rows

Sheet Recoverable Cost
F2: Brisbane City Council
F3: ='Input-Gen'!$F$3 -> Schedule of Works Model - Ferry termainals network
F5: Allocation | G5: Recoverable Cost - Average Approach
G9: Period Number | K9: ="NPV as at" & " " & TEXT(Model_Start_Date-1,"dd-mmm-yyyy") -> NPV as at 30-Jun-2016 | M9: Difference between Input Value & Nominal Value | Q9: Total Nominal Value | S9: =ForecastPeriod -> 0 | T9: 1 | U9: 2 | V9: 3 | W9: 4 | X9: 5 | Y9: 6 | Z9: 7 | AA9: 8 | AB9: 9 | AC9: 10 | AD9: 0 | AE9: 0 | AF9: 0 | AG9: 0 | AH9: 0 | AI9: 0 | AJ9: 0 | AK9: 0 | AL9: 0 | AM9: 0
G10: Period Beginning Date | S10: =FY_Begin -> 2015-07-01 | T10: =FY_Begin -> 2016-07-01 | U10: 2017-07-01 | V10: 2018-07-01 | W10: 2019-07-01 | X10: 2020-07-01 | Y10: 2021-07-01 | Z10: 2022-07-01 | AA10: 2023-07-01 | AB10: 2024-07-01 | AC10: 2025-07-01
G11: Period Ending Date | S11: =FY_End -> 2016-06-30 | T11: =FY_End -> 2017-06-30 | U11: 2018-06-30 | V11: 2019-06-30 | W11: 2020-06-30 | X11: 2021-06-30 | Y11: 2022-06-30 | Z11: 2023-06-30 | AA11: 2024-06-30 | AB11: 2025-06-30 | AC11: 2026-06-30
F15: Timing and Index Calculations
G17: Cost Indices
G19: Consumer Price Index (CPI) | S19: ='Input-Time Series'!S31 -> 1 | T19: ='Input-Time Series'!T31 -> 1.025 | U19: ='Input-Time Series'!U31 -> 1.050625 | V19: ='Input-Time Series'!V31 -> 1.076890625 | W19: ='Input-Time Series'!W31 -> 1.103812891 | X19: ='Input-Time Series'!X31 -> 1.131408213 | Y19: ='Input-Time Series'!Y31 -> 1.159693418 | Z19: ='Input-Time Series'!Z31 -> 1.188685754 | AA19: ='Input-Time Series'!AA31 -> 1.218402898 | AB19: ='Input-Time Series'!AB31 -> 1.24886297 | AC19: ='Input-Time Series'!AC31 -> 1.280084544
G20: Land cost escalation | S20: ='Input-Time Series'!S32 -> 1 | T20: ='Input-Time Series'!T32 -> 1.025 | U20: ='Input-Time Series'!U32 -> 1.050625 | V20: ='Input-Time Series'!V32 -> 1.076890625 | W20: ='Input-Time Series'!W32 -> 1.103812891 | X20: ='Input-Time Series'!X32 -> 1.131408213 | Y20: ='Input-Time Series'!Y32 -> 1.159693418 | Z20: ='Input-Time Series'!Z32 -> 1.188685754 | AA20: ='Input-Time Series'!AA32 -> 1.218402898 | AB20: ='Input-Time Series'!AB32 -> 1.24886297 | AC20: ='Input-Time Series'!AC32 -> 1.280084544
G21: Constructed Asset cost escalation | S21: ='Input-Time Series'!S33 -> 1 | T21: ='Input-Time Series'!T33 -> 1.018725812 | U21: ='Input-Time Series'!U33 -> 1.037802281 | V21: ='Input-Time Series'!V33 -> 1.057235971 | W21: ='Input-Time Series'!W33 -> 1.077033574 | X21: ='Input-Time Series'!X33 -> 1.097201902 | Y21: ='Input-Time Series'!Y33 -> 1.117747899 | Z21: ='Input-Time Series'!Z33 -> 1.138678636 | AA21: ='Input-Time Series'!AA33 -> 1.160001319 | AB21: ='Input-Time Series'!AB33 -> 1.181723286 | AC21: ='Input-Time Series'!AC33 -> 1.203852014
G22: Administration cost escalation | S22: ='Input-Time Series'!S34 -> 1 | T22: ='Input-Time Series'!T34 -> 1.0125 | U22: ='Input-Time Series'!U34 -> 1.042875 | V22: ='Input-Time Series'!V34 -> 1.068946875 | W22: ='Input-Time Series'!W34 -> 1.095670547 | X22: ='Input-Time Series'!X34 -> 1.123062311 | Y22: ='Input-Time Series'!Y34 -> 1.151138868 | Z22: ='Input-Time Series'!Z34 -> 1.17991734 | AA22: ='Input-Time Series'!AA34 -> 1.209415274 | AB22: ='Input-Time Series'!AB34 -> 1.239650655 | AC22: ='Input-Time Series'!AC34 -> 1.270641922
G23: Spare 1 cost escalation | S23: ='Input-Time Series'!S35 -> 1 | T23: ='Input-Time Series'!T35 -> 1 | U23: ='Input-Time Series'!U35 -> 1 | V23: ='Input-Time Series'!V35 -> 1 | W23: ='Input-Time Series'!W35 -> 1 | X23: ='Input-Time Series'!X35 -> 1 | Y23: ='Input-Time Series'!Y35 -> 1 | Z23: ='Input-Time Series'!Z35 -> 1 | AA23: ='Input-Time Series'!AA35 -> 1 | AB23: ='Input-Time Series'!AB35 -> 1 | AC23: ='Input-Time Series'!AC35 -> 1
G24: Revenue escalation | I24: # | S24: ='Input-Time Series'!S36 -> 1 | T24: ='Input-Time Series'!T36 -> 1 | U24: ='Input-Time Series'!U36 -> 1 | V24: ='Input-Time Series'!V36 -> 1 | W24: ='Input-Time Series'!W36 -> 1 | X24: ='Input-Time Series'!X36 -> 1 | Y24: ='Input-Time Series'!Y36 -> 1 | Z24: ='Input-Time Series'!Z36 -> 1 | AA24: ='Input-Time Series'!AA36 -> 1 | AB24: ='Input-Time Series'!AB36 -> 1 | AC24: ='Input-Time Series'!AC36 -> 1
F26: Total costs to be recovered
G28: Existing Infrastructure
G30: ='Input-Infra'!G25 -> Citywide Total | I30: $'000 | K30: =NPV(WACC_nom,T30:AC30)+S30 -> 136452.5 | Q30: =SUM(S30:AC30) -> 136452.5 | S30: =IF('Input-Infra'!$AI25>='Input-Gen'!$M$33,S109,0) + S188 + S346 -S425 -> 136452.5 | T30: =IF('Input-Infra'!$AI25>='Input-Gen'!$M$33,T109,0) + T188 + T346 -T425 -> 0 | U30: =IF('Input-Infra'!$AI25>='Input-Gen'!$M$33,U109,0) + U188 + U346 -U425 -> 0 | V30: =IF('Input-Infra'!$AI25>='Input-Gen'!$M$33,V109,0) + V188 + V346 -V425 -> 0 | W30: =IF('Input-Infra'!$AI25>='Input-Gen'!$M$33,W109,0) + W188 + W346 -W425 -> 0 | X30: =IF('Input-Infra'!$AI25>='Input-Gen'!$M$33,X109,0) + X188 + X346 -X425 -> 0 | Y30: =IF('Input-Infra'!$AI25>='Input-Gen'!$M$33,Y109,0) + Y188 + Y346 -Y425 -> 0 | Z30: =IF('Input-Infra'!$AI25>='Input-Gen'!$M$33,Z109,0) + Z188 + Z346 -Z425 -> 0 | AA30: =IF('Input-Infra'!$AI25>='Input-Gen'!$M$33,AA109,0) + AA188 + AA346 -AA425 -> 0 | AB30: =IF('Input-Infra'!$AI25>='Input-Gen'!$M$33,AB109,0) + AB188 + AB346 -AB425 -> 0 | AC30: =IF('Input-Infra'!$AI25>='Input-Gen'!$M$33,AC109,0) + AC188 + AC346 -AC425 -> 0
G31: ='Input-Infra'!G26 -> Spare 1 | I31: $'000 | K31: 0 | Q31: =SUM(S31:AC31) -> 0 | S31: =IF('Input-Infra'!$AI26>='Input-Gen'!$M$33,S110,0) + S189 + S347 -S426 -> 0 | T31: =IF('Input-Infra'!$AI26>='Input-Gen'!$M$33,T110,0) + T189 + T347 -T426 -> 0 | U31: =IF('Input-Infra'!$AI26>='Input-Gen'!$M$33,U110,0) + U189 + U347 -U426 -> 0 | V31: =IF('Input-Infra'!$AI26>='Input-Gen'!$M$33,V110,0) + V189 + V347 -V426 -> 0 | W31: =IF('Input-Infra'!$AI26>='Input-Gen'!$M$33,W110,0) + W189 + W347 -W426 -> 0 | X31: =IF('Input-Infra'!$AI26>='Input-Gen'!$M$33,X110,0) + X189 + X347 -X426 -> 0 | Y31: =IF('Input-Infra'!$AI26>='Input-Gen'!$M$33,Y110,0) + Y189 + Y347 -Y426 -> 0 | Z31: =IF('Input-Infra'!$AI26>='Input-Gen'!$M$33,Z110,0) + Z189 + Z347 -Z426 -> 0 | AA31: =IF('Input-Infra'!$AI26>='Input-Gen'!$M$33,AA110,0) + AA189 + AA347 -AA426 -> 0 | AB31: =IF('Input-Infra'!$AI26>='Input-Gen'!$M$33,AB110,0) + AB189 + AB347 -AB426 -> 0 | AC31: =IF('Input-Infra'!$AI26>='Input-Gen'!$M$33,AC110,0) + AC189 + AC347 -AC426 -> 0
G32: ='Input-Infra'!G27 -> Spare 2 | I32: $'000 | K32: 0 | Q32: 0 | S32: =IF('Input-Infra'!$AI27>='Input-Gen'!$M$33,S111,0) + S190 + S348 -S427 -> 0 | T32: =IF('Input-Infra'!$AI27>='Input-Gen'!$M$33,T111,0) + T190 + T348 -T427 -> 0 | U32: =IF('Input-Infra'!$AI27>='Input-Gen'!$M$33,U111,0) + U190 + U348 -U427 -> 0 | V32: =IF('Input-Infra'!$AI27>='Input-Gen'!$M$33,V111,0) + V190 + V348 -V427 -> 0 | W32: =IF('Input-Infra'!$AI27>='Input-Gen'!$M$33,W111,0) + W190 + W348 -W427 -> 0 | X32: =IF('Input-Infra'!$AI27>='Input-Gen'!$M$33,X111,0) + X190 + X348 -X427 -> 0 | Y32: =IF('Input-Infra'!$AI27>='Input-Gen'!$M$33,Y111,0) + Y190 + Y348 -Y427 -> 0 | Z32: =IF('Input-Infra'!$AI27>='Input-Gen'!$M$33,Z111,0) + Z190 + Z348 -Z427 -> 0 | AA32: =IF('Input-Infra'!$AI27>='Input-Gen'!$M$33,AA111,0) + AA190 + AA348 -AA427 -> 0 | AB32: =IF('Input-Infra'!$AI27>='Input-Gen'!$M$33,AB111,0) + AB190 + AB348 -AB427 -> 0 | AC32: =IF('Input-Infra'!$AI27>='Input-Gen'!$M$33,AC111,0) + AC190 + AC348 -AC427 -> 0
G33: ='Input-Infra'!G28 -> Spare 3 | I33: $'000 | K33: 0 | Q33: 0 | S33: =IF('Input-Infra'!$AI28>='Input-Gen'!$M$33,S112,0) + S191 + S349 -S428 -> 0 | T33: =IF('Input-Infra'!$AI28>='Input-Gen'!$M$33,T112,0) + T191 + T349 -T428 -> 0 | U33: =IF('Input-Infra'!$AI28>='Input-Gen'!$M$33,U112,0) + U191 + U349 -U428 -> 0 | V33: =IF('Input-Infra'!$AI28>='Input-Gen'!$M$33,V112,0) + V191 + V349 -V428 -> 0 | W33: =IF('Input-Infra'!$AI28>='Input-Gen'!$M$33,W112,0) + W191 + W349 -W428 -> 0 | X33: =IF('Input-Infra'!$AI28>='Input-Gen'!$M$33,X112,0) + X191 + X349 -X428 -> 0 | Y33: =IF('Input-Infra'!$AI28>='Input-Gen'!$M$33,Y112,0) + Y191 + Y349 -Y428 -> 0 | Z33: =IF('Input-Infra'!$AI28>='Input-Gen'!$M$33,Z112,0) + Z191 + Z349 -Z428 -> 0 | AA33: =IF('Input-Infra'!$AI28>='Input-Gen'!$M$33,AA112,0) + AA191 + AA349 -AA428 -> 0 | AB33: =IF('Input-Infra'!$AI28>='Input-Gen'!$M$33,AB112,0) + AB191 + AB349 -AB428 -> 0 | AC33: =IF('Input-Infra'!$AI28>='Input-Gen'!$M$33,AC112,0) + AC191 + AC349 -AC428 -> 0
G34: ='Input-Infra'!G29 -> Spare 4 | I34: $'000 | K34: 0 | Q34: 0 | S34: =IF('Input-Infra'!$AI29>='Input-Gen'!$M$33,S113,0) + S192 + S350 -S429 -> 0 | T34: =IF('Input-Infra'!$AI29>='Input-Gen'!$M$33,T113,0) + T192 + T350 -T429 -> 0 | U34: =IF('Input-Infra'!$AI29>='Input-Gen'!$M$33,U113,0) + U192 + U350 -U429 -> 0 | V34: =IF('Input-Infra'!$AI29>='Input-Gen'!$M$33,V113,0) + V192 + V350 -V429 -> 0 | W34: =IF('Input-Infra'!$AI29>='Input-Gen'!$M$33,W113,0) + W192 + W350 -W429 -> 0 | X34: =IF('Input-Infra'!$AI29>='Input-Gen'!$M$33,X113,0) + X192 + X350 -X429 -> 0 | Y34: =IF('Input-Infra'!$AI29>='Input-Gen'!$M$33,Y113,0) + Y192 + Y350 -Y429 -> 0 | Z34: =IF('Input-Infra'!$AI29>='Input-Gen'!$M$33,Z113,0) + Z192 + Z350 -Z429 -> 0 | AA34: =IF('Input-Infra'!$AI29>='Input-Gen'!$M$33,AA113,0) + AA192 + AA350 -AA429 -> 0 | AB34: =IF('Input-Infra'!$AI29>='Input-Gen'!$M$33,AB113,0) + AB192 + AB350 -AB429 -> 0 | AC34: =IF('Input-Infra'!$AI29>='Input-Gen'!$M$33,AC113,0) + AC192 + AC350 -AC429 -> 0
G35: ='Input-Infra'!G30 -> Spare 5 | I35: $'000 | K35: 0 | Q35: 0 | S35: =IF('Input-Infra'!$AI30>='Input-Gen'!$M$33,S114,0) + S193 + S351 -S430 -> 0 | T35: =IF('Input-Infra'!$AI30>='Input-Gen'!$M$33,T114,0) + T193 + T351 -T430 -> 0 | U35: =IF('Input-Infra'!$AI30>='Input-Gen'!$M$33,U114,0) + U193 + U351 -U430 -> 0 | V35: =IF('Input-Infra'!$AI30>='Input-Gen'!$M$33,V114,0) + V193 + V351 -V430 -> 0 | W35: =IF('Input-Infra'!$AI30>='Input-Gen'!$M$33,W114,0) + W193 + W351 -W430 -> 0 | X35: =IF('Input-Infra'!$AI30>='Input-Gen'!$M$33,X114,0) + X193 + X351 -X430 -> 0 | Y35: =IF('Input-Infra'!$AI30>='Input-Gen'!$M$33,Y114,0) + Y193 + Y351 -Y430 -> 0 | Z35: =IF('Input-Infra'!$AI30>='Input-Gen'!$M$33,Z114,0) + Z193 + Z351 -Z430 -> 0 | AA35: =IF('Input-Infra'!$AI30>='Input-Gen'!$M$33,AA114,0) + AA193 + AA351 -AA430 -> 0 | AB35: =IF('Input-Infra'!$AI30>='Input-Gen'!$M$33,AB114,0) + AB193 + AB351 -AB430 -> 0 | AC35: =IF('Input-Infra'!$AI30>='Input-Gen'!$M$33,AC114,0) + AC193 + AC351 -AC430 -> 0
G36: ='Input-Infra'!G31 -> Spare 6 | I36: $'000 | K36: 0 | Q36: 0 | S36: =IF('Input-Infra'!$AI31>='Input-Gen'!$M$33,S115,0) + S194 + S352 -S431 -> 0 | T36: =IF('Input-Infra'!$AI31>='Input-Gen'!$M$33,T115,0) + T194 + T352 -T431 -> 0 | U36: =IF('Input-Infra'!$AI31>='Input-Gen'!$M$33,U115,0) + U194 + U352 -U431 -> 0 | V36: =IF('Input-Infra'!$AI31>='Input-Gen'!$M$33,V115,0) + V194 + V352 -V431 -> 0 | W36: =IF('Input-Infra'!$AI31>='Input-Gen'!$M$33,W115,0) + W194 + W352 -W431 -> 0 | X36: =IF('Input-Infra'!$AI31>='Input-Gen'!$M$33,X115,0) + X194 + X352 -X431 -> 0 | Y36: =IF('Input-Infra'!$AI31>='Input-Gen'!$M$33,Y115,0) + Y194 + Y352 -Y431 -> 0 | Z36: =IF('Input-Infra'!$AI31>='Input-Gen'!$M$33,Z115,0) + Z194 + Z352 -Z431 -> 0 | AA36: =IF('Input-Infra'!$AI31>='Input-Gen'!$M$33,AA115,0) + AA194 + AA352 -AA431 -> 0 | AB36: =IF('Input-Infra'!$AI31>='Input-Gen'!$M$33,AB115,0) + AB194 + AB352 -AB431 -> 0 | AC36: =IF('Input-Infra'!$AI31>='Input-Gen'!$M$33,AC115,0) + AC194 + AC352 -AC431 -> 0
G37: ='Input-Infra'!G32 -> Spare 7 | I37: $'000 | K37: 0 | Q37: 0 | S37: =IF('Input-Infra'!$AI32>='Input-Gen'!$M$33,S116,0) + S195 + S353 -S432 -> 0 | T37: =IF('Input-Infra'!$AI32>='Input-Gen'!$M$33,T116,0) + T195 + T353 -T432 -> 0 | U37: =IF('Input-Infra'!$AI32>='Input-Gen'!$M$33,U116,0) + U195 + U353 -U432 -> 0 | V37: =IF('Input-Infra'!$AI32>='Input-Gen'!$M$33,V116,0) + V195 + V353 -V432 -> 0 | W37: =IF('Input-Infra'!$AI32>='Input-Gen'!$M$33,W116,0) + W195 + W353 -W432 -> 0 | X37: =IF('Input-Infra'!$AI32>='Input-Gen'!$M$33,X116,0) + X195 + X353 -X432 -> 0 | Y37: =IF('Input-Infra'!$AI32>='Input-Gen'!$M$33,Y116,0) + Y195 + Y353 -Y432 -> 0 | Z37: =IF('Input-Infra'!$AI32>='Input-Gen'!$M$33,Z116,0) + Z195 + Z353 -Z432 -> 0 | AA37: =IF('Input-Infra'!$AI32>='Input-Gen'!$M$33,AA116,0) + AA195 + AA353 -AA432 -> 0 | AB37: =IF('Input-Infra'!$AI32>='Input-Gen'!$M$33,AB116,0) + AB195 + AB353 -AB432 -> 0 | AC37: =IF('Input-Infra'!$AI32>='Input-Gen'!$M$33,AC116,0) + AC195 + AC353 -AC432 -> 0
G38: ='Input-Infra'!G33 -> Spare 8 | I38: $'000 | K38: 0 | Q38: 0 | S38: =IF('Input-Infra'!$AI33>='Input-Gen'!$M$33,S117,0) + S196 + S354 -S433 -> 0 | T38: =IF('Input-Infra'!$AI33>='Input-Gen'!$M$33,T117,0) + T196 + T354 -T433 -> 0 | U38: =IF('Input-Infra'!$AI33>='Input-Gen'!$M$33,U117,0) + U196 + U354 -U433 -> 0 | V38: =IF('Input-Infra'!$AI33>='Input-Gen'!$M$33,V117,0) + V196 + V354 -V433 -> 0 | W38: =IF('Input-Infra'!$AI33>='Input-Gen'!$M$33,W117,0) + W196 + W354 -W433 -> 0 | X38: =IF('Input-Infra'!$AI33>='Input-Gen'!$M$33,X117,0) + X196 + X354 -X433 -> 0 | Y38: =IF('Input-Infra'!$AI33>='Input-Gen'!$M$33,Y117,0) + Y196 + Y354 -Y433 -> 0 | Z38: =IF('Input-Infra'!$AI33>='Input-Gen'!$M$33,Z117,0) + Z196 + Z354 -Z433 -> 0 | AA38: =IF('Input-Infra'!$AI33>='Input-Gen'!$M$33,AA117,0) + AA196 + AA354 -AA433 -> 0 | AB38: =IF('Input-Infra'!$AI33>='Input-Gen'!$M$33,AB117,0) + AB196 + AB354 -AB433 -> 0 | AC38: =IF('Input-Infra'!$AI33>='Input-Gen'!$M$33,AC117,0) + AC196 + AC354 -AC433 -> 0
G39: ='Input-Infra'!G34 -> Spare 9 | I39: $'000 | K39: 0 | Q39: 0 | S39: =IF('Input-Infra'!$AI34>='Input-Gen'!$M$33,S118,0) + S197 + S355 -S434 -> 0 | T39: =IF('Input-Infra'!$AI34>='Input-Gen'!$M$33,T118,0) + T197 + T355 -T434 -> 0 | U39: =IF('Input-Infra'!$AI34>='Input-Gen'!$M$33,U118,0) + U197 + U355 -U434 -> 0 | V39: =IF('Input-Infra'!$AI34>='Input-Gen'!$M$33,V118,0) + V197 + V355 -V434 -> 0 | W39: =IF('Input-Infra'!$AI34>='Input-Gen'!$M$33,W118,0) + W197 + W355 -W434 -> 0 | X39: =IF('Input-Infra'!$AI34>='Input-Gen'!$M$33,X118,0) + X197 + X355 -X434 -> 0 | Y39: =IF('Input-Infra'!$AI34>='Input-Gen'!$M$33,Y118,0) + Y197 + Y355 -Y434 -> 0 | Z39: =IF('Input-Infra'!$AI34>='Input-Gen'!$M$33,Z118,0) + Z197 + Z355 -Z434 -> 0 | AA39: =IF('Input-Infra'!$AI34>='Input-Gen'!$M$33,AA118,0) + AA197 + AA355 -AA434 -> 0 | AB39: =IF('Input-Infra'!$AI34>='Input-Gen'!$M$33,AB118,0) + AB197 + AB355 -AB434 -> 0 | AC39: =IF('Input-Infra'!$AI34>='Input-Gen'!$M$33,AC118,0) + AC197 + AC355 -AC434 -> 0
G40: ='Input-Infra'!G35 -> Spare 10 | I40: $'000 | K40: 0 | Q40: 0 | S40: =IF('Input-Infra'!$AI35>='Input-Gen'!$M$33,S119,0) + S198 + S356 -S435 -> 0 | T40: =IF('Input-Infra'!$AI35>='Input-Gen'!$M$33,T119,0) + T198 + T356 -T435 -> 0 | U40: =IF('Input-Infra'!$AI35>='Input-Gen'!$M$33,U119,0) + U198 + U356 -U435 -> 0 | V40: =IF('Input-Infra'!$AI35>='Input-Gen'!$M$33,V119,0) + V198 + V356 -V435 -> 0 | W40: =IF('Input-Infra'!$AI35>='Input-Gen'!$M$33,W119,0) + W198 + W356 -W435 -> 0 | X40: =IF('Input-Infra'!$AI35>='Input-Gen'!$M$33,X119,0) + X198 + X356 -X435 -> 0 | Y40: =IF('Input-Infra'!$AI35>='Input-Gen'!$M$33,Y119,0) + Y198 + Y356 -Y435 -> 0 | Z40: =IF('Input-Infra'!$AI35>='Input-Gen'!$M$33,Z119,0) + Z198 + Z356 -Z435 -> 0 | AA40: =IF('Input-Infra'!$AI35>='Input-Gen'!$M$33,AA119,0) + AA198 + AA356 -AA435 -> 0 | AB40: =IF('Input-Infra'!$AI35>='Input-Gen'!$M$33,AB119,0) + AB198 + AB356 -AB435 -> 0 | AC40: =IF('Input-Infra'!$AI35>='Input-Gen'!$M$33,AC119,0) + AC198 + AC356 -AC435 -> 0
G41: ='Input-Infra'!G36 -> Spare 11 | I41: $'000 | K41: 0 | Q41: 0 | S41: =IF('Input-Infra'!$AI36>='Input-Gen'!$M$33,S120,0) + S199 + S357 -S436 -> 0 | T41: =IF('Input-Infra'!$AI36>='Input-Gen'!$M$33,T120,0) + T199 + T357 -T436 -> 0 | U41: =IF('Input-Infra'!$AI36>='Input-Gen'!$M$33,U120,0) + U199 + U357 -U436 -> 0 | V41: =IF('Input-Infra'!$AI36>='Input-Gen'!$M$33,V120,0) + V199 + V357 -V436 -> 0 | W41: =IF('Input-Infra'!$AI36>='Input-Gen'!$M$33,W120,0) + W199 + W357 -W436 -> 0 | X41: =IF('Input-Infra'!$AI36>='Input-Gen'!$M$33,X120,0) + X199 + X357 -X436 -> 0 | Y41: =IF('Input-Infra'!$AI36>='Input-Gen'!$M$33,Y120,0) + Y199 + Y357 -Y436 -> 0 | Z41: =IF('Input-Infra'!$AI36>='Input-Gen'!$M$33,Z120,0) + Z199 + Z357 -Z436 -> 0 | AA41: =IF('Input-Infra'!$AI36>='Input-Gen'!$M$33,AA120,0) + AA199 + AA357 -AA436 -> 0 | AB41: =IF('Input-Infra'!$AI36>='Input-Gen'!$M$33,AB120,0) + AB199 + AB357 -AB436 -> 0 | AC41: =IF('Input-Infra'!$AI36>='Input-Gen'!$M$33,AC120,0) + AC199 + AC357 -AC436 -> 0
G42: ='Input-Infra'!G37 -> Spare 12 | I42: $'000 | K42: 0 | Q42: 0 | S42: =IF('Input-Infra'!$AI37>='Input-Gen'!$M$33,S121,0) + S200 + S358 -S437 -> 0 | T42: =IF('Input-Infra'!$AI37>='Input-Gen'!$M$33,T121,0) + T200 + T358 -T437 -> 0 | U42: =IF('Input-Infra'!$AI37>='Input-Gen'!$M$33,U121,0) + U200 + U358 -U437 -> 0 | V42: =IF('Input-Infra'!$AI37>='Input-Gen'!$M$33,V121,0) + V200 + V358 -V437 -> 0 | W42: =IF('Input-Infra'!$AI37>='Input-Gen'!$M$33,W121,0) + W200 + W358 -W437 -> 0 | X42: =IF('Input-Infra'!$AI37>='Input-Gen'!$M$33,X121,0) + X200 + X358 -X437 -> 0 | Y42: =IF('Input-Infra'!$AI37>='Input-Gen'!$M$33,Y121,0) + Y200 + Y358 -Y437 -> 0 | Z42: =IF('Input-Infra'!$AI37>='Input-Gen'!$M$33,Z121,0) + Z200 + Z358 -Z437 -> 0 | AA42: =IF('Input-Infra'!$AI37>='Input-Gen'!$M$33,AA121,0) + AA200 + AA358 -AA437 -> 0 | AB42: =IF('Input-Infra'!$AI37>='Input-Gen'!$M$33,AB121,0) + AB200 + AB358 -AB437 -> 0 | AC42: =IF('Input-Infra'!$AI37>='Input-Gen'!$M$33,AC121,0) + AC200 + AC358 -AC437 -> 0
G43: ='Input-Infra'!G38 -> Spare 13 | I43: $'000 | K43: 0 | Q43: 0 | S43: =IF('Input-Infra'!$AI38>='Input-Gen'!$M$33,S122,0) + S201 + S359 -S438 -> 0 | T43: =IF('Input-Infra'!$AI38>='Input-Gen'!$M$33,T122,0) + T201 + T359 -T438 -> 0 | U43: =IF('Input-Infra'!$AI38>='Input-Gen'!$M$33,U122,0) + U201 + U359 -U438 -> 0 | V43: =IF('Input-Infra'!$AI38>='Input-Gen'!$M$33,V122,0) + V201 + V359 -V438 -> 0 | W43: =IF('Input-Infra'!$AI38>='Input-Gen'!$M$33,W122,0) + W201 + W359 -W438 -> 0 | X43: =IF('Input-Infra'!$AI38>='Input-Gen'!$M$33,X122,0) + X201 + X359 -X438 -> 0 | Y43: =IF('Input-Infra'!$AI38>='Input-Gen'!$M$33,Y122,0) + Y201 + Y359 -Y438 -> 0 | Z43: =IF('Input-Infra'!$AI38>='Input-Gen'!$M$33,Z122,0) + Z201 + Z359 -Z438 -> 0 | AA43: =IF('Input-Infra'!$AI38>='Input-Gen'!$M$33,AA122,0) + AA201 + AA359 -AA438 -> 0 | AB43: =IF('Input-Infra'!$AI38>='Input-Gen'!$M$33,AB122,0) + AB201 + AB359 -AB438 -> 0 | AC43: =IF('Input-Infra'!$AI38>='Input-Gen'!$M$33,AC122,0) + AC201 + AC359 -AC438 -> 0
G44: ='Input-Infra'!G39 -> Spare 14 | I44: $'000 | K44: 0 | Q44: 0 | S44: =IF('Input-Infra'!$AI39>='Input-Gen'!$M$33,S123,0) + S202 + S360 -S439 -> 0 | T44: =IF('Input-Infra'!$AI39>='Input-Gen'!$M$33,T123,0) + T202 + T360 -T439 -> 0 | U44: =IF('Input-Infra'!$AI39>='Input-Gen'!$M$33,U123,0) + U202 + U360 -U439 -> 0 | V44: =IF('Input-Infra'!$AI39>='Input-Gen'!$M$33,V123,0) + V202 + V360 -V439 -> 0 | W44: =IF('Input-Infra'!$AI39>='Input-Gen'!$M$33,W123,0) + W202 + W360 -W439 -> 0 | X44: =IF('Input-Infra'!$AI39>='Input-Gen'!$M$33,X123,0) + X202 + X360 -X439 -> 0 | Y44: =IF('Input-Infra'!$AI39>='Input-Gen'!$M$33,Y123,0) + Y202 + Y360 -Y439 -> 0 | Z44: =IF('Input-Infra'!$AI39>='Input-Gen'!$M$33,Z123,0) + Z202 + Z360 -Z439 -> 0 | AA44: =IF('Input-Infra'!$AI39>='Input-Gen'!$M$33,AA123,0) + AA202 + AA360 -AA439 -> 0 | AB44: =IF('Input-Infra'!$AI39>='Input-Gen'!$M$33,AB123,0) + AB202 + AB360 -AB439 -> 0 | AC44: =IF('Input-Infra'!$AI39>='Input-Gen'!$M$33,AC123,0) + AC202 + AC360 -AC439 -> 0
G45: ='Input-Infra'!G40 -> Spare 15 | I45: $'000 | K45: 0 | Q45: 0 | S45: =IF('Input-Infra'!$AI40>='Input-Gen'!$M$33,S124,0) + S203 + S361 -S440 -> 0 | T45: =IF('Input-Infra'!$AI40>='Input-Gen'!$M$33,T124,0) + T203 + T361 -T440 -> 0 | U45: =IF('Input-Infra'!$AI40>='Input-Gen'!$M$33,U124,0) + U203 + U361 -U440 -> 0 | V45: =IF('Input-Infra'!$AI40>='Input-Gen'!$M$33,V124,0) + V203 + V361 -V440 -> 0 | W45: =IF('Input-Infra'!$AI40>='Input-Gen'!$M$33,W124,0) + W203 + W361 -W440 -> 0 | X45: =IF('Input-Infra'!$AI40>='Input-Gen'!$M$33,X124,0) + X203 + X361 -X440 -> 0 | Y45: =IF('Input-Infra'!$AI40>='Input-Gen'!$M$33,Y124,0) + Y203 + Y361 -Y440 -> 0 | Z45: =IF('Input-Infra'!$AI40>='Input-Gen'!$M$33,Z124,0) + Z203 + Z361 -Z440 -> 0 | AA45: =IF('Input-Infra'!$AI40>='Input-Gen'!$M$33,AA124,0) + AA203 + AA361 -AA440 -> 0 | AB45: =IF('Input-Infra'!$AI40>='Input-Gen'!$M$33,AB124,0) + AB203 + AB361 -AB440 -> 0 | AC45: =IF('Input-Infra'!$AI40>='Input-Gen'!$M$33,AC124,0) + AC203 + AC361 -AC440 -> 0
G46: ='Input-Infra'!G41 -> Spare 16 | I46: $'000 | K46: 0 | Q46: 0 | S46: =IF('Input-Infra'!$AI41>='Input-Gen'!$M$33,S125,0) + S204 + S362 -S441 -> 0 | T46: =IF('Input-Infra'!$AI41>='Input-Gen'!$M$33,T125,0) + T204 + T362 -T441 -> 0 | U46: =IF('Input-Infra'!$AI41>='Input-Gen'!$M$33,U125,0) + U204 + U362 -U441 -> 0 | V46: =IF('Input-Infra'!$AI41>='Input-Gen'!$M$33,V125,0) + V204 + V362 -V441 -> 0 | W46: =IF('Input-Infra'!$AI41>='Input-Gen'!$M$33,W125,0) + W204 + W362 -W441 -> 0 | X46: =IF('Input-Infra'!$AI41>='Input-Gen'!$M$33,X125,0) + X204 + X362 -X441 -> 0 | Y46: =IF('Input-Infra'!$AI41>='Input-Gen'!$M$33,Y125,0) + Y204 + Y362 -Y441 -> 0 | Z46: =IF('Input-Infra'!$AI41>='Input-Gen'!$M$33,Z125,0) + Z204 + Z362 -Z441 -> 0 | AA46: =IF('Input-Infra'!$AI41>='Input-Gen'!$M$33,AA125,0) + AA204 + AA362 -AA441 -> 0 | AB46: =IF('Input-Infra'!$AI41>='Input-Gen'!$M$33,AB125,0) + AB204 + AB362 -AB441 -> 0 | AC46: =IF('Input-Infra'!$AI41>='Input-Gen'!$M$33,AC125,0) + AC204 + AC362 -AC441 -> 0
G47: ='Input-Infra'!G42 -> Spare 17 | I47: $'000 | K47: 0 | Q47: 0 | S47: =IF('Input-Infra'!$AI42>='Input-Gen'!$M$33,S126,0) + S205 + S363 -S442 -> 0 | T47: =IF('Input-Infra'!$AI42>='Input-Gen'!$M$33,T126,0) + T205 + T363 -T442 -> 0 | U47: =IF('Input-Infra'!$AI42>='Input-Gen'!$M$33,U126,0) + U205 + U363 -U442 -> 0 | V47: =IF('Input-Infra'!$AI42>='Input-Gen'!$M$33,V126,0) + V205 + V363 -V442 -> 0 | W47: =IF('Input-Infra'!$AI42>='Input-Gen'!$M$33,W126,0) + W205 + W363 -W442 -> 0 | X47: =IF('Input-Infra'!$AI42>='Input-Gen'!$M$33,X126,0) + X205 + X363 -X442 -> 0 | Y47: =IF('Input-Infra'!$AI42>='Input-Gen'!$M$33,Y126,0) + Y205 + Y363 -Y442 -> 0 | Z47: =IF('Input-Infra'!$AI42>='Input-Gen'!$M$33,Z126,0) + Z205 + Z363 -Z442 -> 0 | AA47: =IF('Input-Infra'!$AI42>='Input-Gen'!$M$33,AA126,0) + AA205 + AA363 -AA442 -> 0 | AB47: =IF('Input-Infra'!$AI42>='Input-Gen'!$M$33,AB126,0) + AB205 + AB363 -AB442 -> 0 | AC47: =IF('Input-Infra'!$AI42>='Input-Gen'!$M$33,AC126,0) + AC205 + AC363 -AC442 -> 0
G48: ='Input-Infra'!G43 -> Spare 18 | I48: $'000 | K48: 0 | Q48: 0 | S48: =IF('Input-Infra'!$AI43>='Input-Gen'!$M$33,S127,0) + S206 + S364 -S443 -> 0 | T48: =IF('Input-Infra'!$AI43>='Input-Gen'!$M$33,T127,0) + T206 + T364 -T443 -> 0 | U48: =IF('Input-Infra'!$AI43>='Input-Gen'!$M$33,U127,0) + U206 + U364 -U443 -> 0 | V48: =IF('Input-Infra'!$AI43>='Input-Gen'!$M$33,V127,0) + V206 + V364 -V443 -> 0 | W48: =IF('Input-Infra'!$AI43>='Input-Gen'!$M$33,W127,0) + W206 + W364 -W443 -> 0 | X48: =IF('Input-Infra'!$AI43>='Input-Gen'!$M$33,X127,0) + X206 + X364 -X443 -> 0 | Y48: =IF('Input-Infra'!$AI43>='Input-Gen'!$M$33,Y127,0) + Y206 + Y364 -Y443 -> 0 | Z48: =IF('Input-Infra'!$AI43>='Input-Gen'!$M$33,Z127,0) + Z206 + Z364 -Z443 -> 0 | AA48: =IF('Input-Infra'!$AI43>='Input-Gen'!$M$33,AA127,0) + AA206 + AA364 -AA443 -> 0 | AB48: =IF('Input-Infra'!$AI43>='Input-Gen'!$M$33,AB127,0) + AB206 + AB364 -AB443 -> 0 | AC48: =IF('Input-Infra'!$AI43>='Input-Gen'!$M$33,AC127,0) + AC206 + AC364 -AC443 -> 0
G49: ='Input-Infra'!G44 -> Spare 19 | I49: $'000 | K49: 0 | Q49: 0 | S49: =IF('Input-Infra'!$AI44>='Input-Gen'!$M$33,S128,0) + S207 + S365 -S444 -> 0 | T49: =IF('Input-Infra'!$AI44>='Input-Gen'!$M$33,T128,0) + T207 + T365 -T444 -> 0 | U49: =IF('Input-Infra'!$AI44>='Input-Gen'!$M$33,U128,0) + U207 + U365 -U444 -> 0 | V49: =IF('Input-Infra'!$AI44>='Input-Gen'!$M$33,V128,0) + V207 + V365 -V444 -> 0 | W49: =IF('Input-Infra'!$AI44>='Input-Gen'!$M$33,W128,0) + W207 + W365 -W444 -> 0 | X49: =IF('Input-Infra'!$AI44>='Input-Gen'!$M$33,X128,0) + X207 + X365 -X444 -> 0 | Y49: =IF('Input-Infra'!$AI44>='Input-Gen'!$M$33,Y128,0) + Y207 + Y365 -Y444 -> 0 | Z49: =IF('Input-Infra'!$AI44>='Input-Gen'!$M$33,Z128,0) + Z207 + Z365 -Z444 -> 0 | AA49: =IF('Input-Infra'!$AI44>='Input-Gen'!$M$33,AA128,0) + AA207 + AA365 -AA444 -> 0 | AB49: =IF('Input-Infra'!$AI44>='Input-Gen'!$M$33,AB128,0) + AB207 + AB365 -AB444 -> 0 | AC49: =IF('Input-Infra'!$AI44>='Input-Gen'!$M$33,AC128,0) + AC207 + AC365 -AC444 -> 0
G50: ='Input-Infra'!G45 -> Spare 20 | I50: $'000 | K50: 0 | Q50: 0 | S50: =IF('Input-Infra'!$AI45>='Input-Gen'!$M$33,S129,0) + S208 + S366 -S445 -> 0 | T50: =IF('Input-Infra'!$AI45>='Input-Gen'!$M$33,T129,0) + T208 + T366 -T445 -> 0 | U50: =IF('Input-Infra'!$AI45>='Input-Gen'!$M$33,U129,0) + U208 + U366 -U445 -> 0 | V50: =IF('Input-Infra'!$AI45>='Input-Gen'!$M$33,V129,0) + V208 + V366 -V445 -> 0 | W50: =IF('Input-Infra'!$AI45>='Input-Gen'!$M$33,W129,0) + W208 + W366 -W445 -> 0 | X50: =IF('Input-Infra'!$AI45>='Input-Gen'!$M$33,X129,0) + X208 + X366 -X445 -> 0 | Y50: =IF('Input-Infra'!$AI45>='Input-Gen'!$M$33,Y129,0) + Y208 + Y366 -Y445 -> 0 | Z50: =IF('Input-Infra'!$AI45>='Input-Gen'!$M$33,Z129,0) + Z208 + Z366 -Z445 -> 0 | AA50: =IF('Input-Infra'!$AI45>='Input-Gen'!$M$33,AA129,0) + AA208 + AA366 -AA445 -> 0 | AB50: =IF('Input-Infra'!$AI45>='Input-Gen'!$M$33,AB129,0) + AB208 + AB366 -AB445 -> 0 | AC50: =IF('Input-Infra'!$AI45>='Input-Gen'!$M$33,AC129,0) + AC208 + AC366 -AC445 -> 0
G51: ='Input-Infra'!G46 -> Spare 21 | I51: $'000 | K51: 0 | Q51: 0 | S51: =IF('Input-Infra'!$AI46>='Input-Gen'!$M$33,S130,0) + S209 + S367 -S446 -> 0 | T51: =IF('Input-Infra'!$AI46>='Input-Gen'!$M$33,T130,0) + T209 + T367 -T446 -> 0 | U51: =IF('Input-Infra'!$AI46>='Input-Gen'!$M$33,U130,0) + U209 + U367 -U446 -> 0 | V51: =IF('Input-Infra'!$AI46>='Input-Gen'!$M$33,V130,0) + V209 + V367 -V446 -> 0 | W51: =IF('Input-Infra'!$AI46>='Input-Gen'!$M$33,W130,0) + W209 + W367 -W446 -> 0 | X51: =IF('Input-Infra'!$AI46>='Input-Gen'!$M$33,X130,0) + X209 + X367 -X446 -> 0 | Y51: =IF('Input-Infra'!$AI46>='Input-Gen'!$M$33,Y130,0) + Y209 + Y367 -Y446 -> 0 | Z51: =IF('Input-Infra'!$AI46>='Input-Gen'!$M$33,Z130,0) + Z209 + Z367 -Z446 -> 0 | AA51: =IF('Input-Infra'!$AI46>='Input-Gen'!$M$33,AA130,0) + AA209 + AA367 -AA446 -> 0 | AB51: =IF('Input-Infra'!$AI46>='Input-Gen'!$M$33,AB130,0) + AB209 + AB367 -AB446 -> 0 | AC51: =IF('Input-Infra'!$AI46>='Input-Gen'!$M$33,AC130,0) + AC209 + AC367 -AC446 -> 0
G52: ='Input-Infra'!G47 -> Spare 22 | I52: $'000 | K52: 0 | Q52: 0 | S52: =IF('Input-Infra'!$AI47>='Input-Gen'!$M$33,S131,0) + S210 + S368 -S447 -> 0 | T52: =IF('Input-Infra'!$AI47>='Input-Gen'!$M$33,T131,0) + T210 + T368 -T447 -> 0 | U52: =IF('Input-Infra'!$AI47>='Input-Gen'!$M$33,U131,0) + U210 + U368 -U447 -> 0 | V52: =IF('Input-Infra'!$AI47>='Input-Gen'!$M$33,V131,0) + V210 + V368 -V447 -> 0 | W52: =IF('Input-Infra'!$AI47>='Input-Gen'!$M$33,W131,0) + W210 + W368 -W447 -> 0 | X52: =IF('Input-Infra'!$AI47>='Input-Gen'!$M$33,X131,0) + X210 + X368 -X447 -> 0 | Y52: =IF('Input-Infra'!$AI47>='Input-Gen'!$M$33,Y131,0) + Y210 + Y368 -Y447 -> 0 | Z52: =IF('Input-Infra'!$AI47>='Input-Gen'!$M$33,Z131,0) + Z210 + Z368 -Z447 -> 0 | AA52: =IF('Input-Infra'!$AI47>='Input-Gen'!$M$33,AA131,0) + AA210 + AA368 -AA447 -> 0 | AB52: =IF('Input-Infra'!$AI47>='Input-Gen'!$M$33,AB131,0) + AB210 + AB368 -AB447 -> 0 | AC52: =IF('Input-Infra'!$AI47>='Input-Gen'!$M$33,AC131,0) + AC210 + AC368 -AC447 -> 0
G53: ='Input-Infra'!G48 -> Spare 23 | I53: $'000 | K53: 0 | Q53: 0 | S53: =IF('Input-Infra'!$AI48>='Input-Gen'!$M$33,S132,0) + S211 + S369 -S448 -> 0 | T53: =IF('Input-Infra'!$AI48>='Input-Gen'!$M$33,T132,0) + T211 + T369 -T448 -> 0 | U53: =IF('Input-Infra'!$AI48>='Input-Gen'!$M$33,U132,0) + U211 + U369 -U448 -> 0 | V53: =IF('Input-Infra'!$AI48>='Input-Gen'!$M$33,V132,0) + V211 + V369 -V448 -> 0 | W53: =IF('Input-Infra'!$AI48>='Input-Gen'!$M$33,W132,0) + W211 + W369 -W448 -> 0 | X53: =IF('Input-Infra'!$AI48>='Input-Gen'!$M$33,X132,0) + X211 + X369 -X448 -> 0 | Y53: =IF('Input-Infra'!$AI48>='Input-Gen'!$M$33,Y132,0) + Y211 + Y369 -Y448 -> 0 | Z53: =IF('Input-Infra'!$AI48>='Input-Gen'!$M$33,Z132,0) + Z211 + Z369 -Z448 -> 0 | AA53: =IF('Input-Infra'!$AI48>='Input-Gen'!$M$33,AA132,0) + AA211 + AA369 -AA448 -> 0 | AB53: =IF('Input-Infra'!$AI48>='Input-Gen'!$M$33,AB132,0) + AB211 + AB369 -AB448 -> 0 | AC53: =IF('Input-Infra'!$AI48>='Input-Gen'!$M$33,AC132,0) + AC211 + AC369 -AC448 -> 0
G54: ='Input-Infra'!G49 -> Spare 24 | I54: $'000 | K54: 0 | Q54: 0 | S54: =IF('Input-Infra'!$AI49>='Input-Gen'!$M$33,S133,0) + S212 + S370 -S449 -> 0 | T54: =IF('Input-Infra'!$AI49>='Input-Gen'!$M$33,T133,0) + T212 + T370 -T449 -> 0 | U54: =IF('Input-Infra'!$AI49>='Input-Gen'!$M$33,U133,0) + U212 + U370 -U449 -> 0 | V54: =IF('Input-Infra'!$AI49>='Input-Gen'!$M$33,V133,0) + V212 + V370 -V449 -> 0 | W54: =IF('Input-Infra'!$AI49>='Input-Gen'!$M$33,W133,0) + W212 + W370 -W449 -> 0 | X54: =IF('Input-Infra'!$AI49>='Input-Gen'!$M$33,X133,0) + X212 + X370 -X449 -> 0 | Y54: =IF('Input-Infra'!$AI49>='Input-Gen'!$M$33,Y133,0) + Y212 + Y370 -Y449 -> 0 | Z54: =IF('Input-Infra'!$AI49>='Input-Gen'!$M$33,Z133,0) + Z212 + Z370 -Z449 -> 0 | AA54: =IF('Input-Infra'!$AI49>='Input-Gen'!$M$33,AA133,0) + AA212 + AA370 -AA449 -> 0 | AB54: =IF('Input-Infra'!$AI49>='Input-Gen'!$M$33,AB133,0) + AB212 + AB370 -AB449 -> 0 | AC54: =IF('Input-Infra'!$AI49>='Input-Gen'!$M$33,AC133,0) + AC212 + AC370 -AC449 -> 0
G55: ='Input-Infra'!G50 -> Spare 25 | I55: $'000 | K55: 0 | Q55: 0 | S55: =IF('Input-Infra'!$AI50>='Input-Gen'!$M$33,S134,0) + S213 + S371 -S450 -> 0 | T55: =IF('Input-Infra'!$AI50>='Input-Gen'!$M$33,T134,0) + T213 + T371 -T450 -> 0 | U55: =IF('Input-Infra'!$AI50>='Input-Gen'!$M$33,U134,0) + U213 + U371 -U450 -> 0 | V55: =IF('Input-Infra'!$AI50>='Input-Gen'!$M$33,V134,0) + V213 + V371 -V450 -> 0 | W55: =IF('Input-Infra'!$AI50>='Input-Gen'!$M$33,W134,0) + W213 + W371 -W450 -> 0 | X55: =IF('Input-Infra'!$AI50>='Input-Gen'!$M$33,X134,0) + X213 + X371 -X450 -> 0 | Y55: =IF('Input-Infra'!$AI50>='Input-Gen'!$M$33,Y134,0) + Y213 + Y371 -Y450 -> 0 | Z55: =IF('Input-Infra'!$AI50>='Input-Gen'!$M$33,Z134,0) + Z213 + Z371 -Z450 -> 0 | AA55: =IF('Input-Infra'!$AI50>='Input-Gen'!$M$33,AA134,0) + AA213 + AA371 -AA450 -> 0 | AB55: =IF('Input-Infra'!$AI50>='Input-Gen'!$M$33,AB134,0) + AB213 + AB371 -AB450 -> 0 | AC55: =IF('Input-Infra'!$AI50>='Input-Gen'!$M$33,AC134,0) + AC213 + AC371 -AC450 -> 0
G56: ='Input-Infra'!G51 -> Spare 26 | I56: $'000 | K56: 0 | Q56: 0 | S56: =IF('Input-Infra'!$AI51>='Input-Gen'!$M$33,S135,0) + S214 + S372 -S451 -> 0 | T56: =IF('Input-Infra'!$AI51>='Input-Gen'!$M$33,T135,0) + T214 + T372 -T451 -> 0 | U56: =IF('Input-Infra'!$AI51>='Input-Gen'!$M$33,U135,0) + U214 + U372 -U451 -> 0 | V56: =IF('Input-Infra'!$AI51>='Input-Gen'!$M$33,V135,0) + V214 + V372 -V451 -> 0 | W56: =IF('Input-Infra'!$AI51>='Input-Gen'!$M$33,W135,0) + W214 + W372 -W451 -> 0 | X56: =IF('Input-Infra'!$AI51>='Input-Gen'!$M$33,X135,0) + X214 + X372 -X451 -> 0 | Y56: =IF('Input-Infra'!$AI51>='Input-Gen'!$M$33,Y135,0) + Y214 + Y372 -Y451 -> 0 | Z56: =IF('Input-Infra'!$AI51>='Input-Gen'!$M$33,Z135,0) + Z214 + Z372 -Z451 -> 0 | AA56: =IF('Input-Infra'!$AI51>='Input-Gen'!$M$33,AA135,0) + AA214 + AA372 -AA451 -> 0 | AB56: =IF('Input-Infra'!$AI51>='Input-Gen'!$M$33,AB135,0) + AB214 + AB372 -AB451 -> 0 | AC56: =IF('Input-Infra'!$AI51>='Input-Gen'!$M$33,AC135,0) + AC214 + AC372 -AC451 -> 0
G57: ='Input-Infra'!G52 -> Spare 27 | I57: $'000 | K57: 0 | Q57: 0 | S57: =IF('Input-Infra'!$AI52>='Input-Gen'!$M$33,S136,0) + S215 + S373 -S452 -> 0 | T57: =IF('Input-Infra'!$AI52>='Input-Gen'!$M$33,T136,0) + T215 + T373 -T452 -> 0 | U57: =IF('Input-Infra'!$AI52>='Input-Gen'!$M$33,U136,0) + U215 + U373 -U452 -> 0 | V57: =IF('Input-Infra'!$AI52>='Input-Gen'!$M$33,V136,0) + V215 + V373 -V452 -> 0 | W57: =IF('Input-Infra'!$AI52>='Input-Gen'!$M$33,W136,0) + W215 + W373 -W452 -> 0 | X57: =IF('Input-Infra'!$AI52>='Input-Gen'!$M$33,X136,0) + X215 + X373 -X452 -> 0 | Y57: =IF('Input-Infra'!$AI52>='Input-Gen'!$M$33,Y136,0) + Y215 + Y373 -Y452 -> 0 | Z57: =IF('Input-Infra'!$AI52>='Input-Gen'!$M$33,Z136,0) + Z215 + Z373 -Z452 -> 0 | AA57: =IF('Input-Infra'!$AI52>='Input-Gen'!$M$33,AA136,0) + AA215 + AA373 -AA452 -> 0 | AB57: =IF('Input-Infra'!$AI52>='Input-Gen'!$M$33,AB136,0) + AB215 + AB373 -AB452 -> 0 | AC57: =IF('Input-Infra'!$AI52>='Input-Gen'!$M$33,AC136,0) + AC215 + AC373 -AC452 -> 0
G58: ='Input-Infra'!G53 -> Spare 28 | I58: $'000 | K58: 0 | Q58: 0 | S58: =IF('Input-Infra'!$AI53>='Input-Gen'!$M$33,S137,0) + S216 + S374 -S453 -> 0 | T58: =IF('Input-Infra'!$AI53>='Input-Gen'!$M$33,T137,0) + T216 + T374 -T453 -> 0 | U58: =IF('Input-Infra'!$AI53>='Input-Gen'!$M$33,U137,0) + U216 + U374 -U453 -> 0 | V58: =IF('Input-Infra'!$AI53>='Input-Gen'!$M$33,V137,0) + V216 + V374 -V453 -> 0 | W58: =IF('Input-Infra'!$AI53>='Input-Gen'!$M$33,W137,0) + W216 + W374 -W453 -> 0 | X58: =IF('Input-Infra'!$AI53>='Input-Gen'!$M$33,X137,0) + X216 + X374 -X453 -> 0 | Y58: =IF('Input-Infra'!$AI53>='Input-Gen'!$M$33,Y137,0) + Y216 + Y374 -Y453 -> 0 | Z58: =IF('Input-Infra'!$AI53>='Input-Gen'!$M$33,Z137,0) + Z216 + Z374 -Z453 -> 0 | AA58: =IF('Input-Infra'!$AI53>='Input-Gen'!$M$33,AA137,0) + AA216 + AA374 -AA453 -> 0 | AB58: =IF('Input-Infra'!$AI53>='Input-Gen'!$M$33,AB137,0) + AB216 + AB374 -AB453 -> 0 | AC58: =IF('Input-Infra'!$AI53>='Input-Gen'!$M$33,AC137,0) + AC216 + AC374 -AC453 -> 0
G59: ='Input-Infra'!G54 -> Spare 29 | I59: $'000 | K59: 0 | Q59: 0 | S59: =IF('Input-Infra'!$AI54>='Input-Gen'!$M$33,S138,0) + S217 + S375 -S454 -> 0 | T59: =IF('Input-Infra'!$AI54>='Input-Gen'!$M$33,T138,0) + T217 + T375 -T454 -> 0 | U59: =IF('Input-Infra'!$AI54>='Input-Gen'!$M$33,U138,0) + U217 + U375 -U454 -> 0 | V59: =IF('Input-Infra'!$AI54>='Input-Gen'!$M$33,V138,0) + V217 + V375 -V454 -> 0 | W59: =IF('Input-Infra'!$AI54>='Input-Gen'!$M$33,W138,0) + W217 + W375 -W454 -> 0 | X59: =IF('Input-Infra'!$AI54>='Input-Gen'!$M$33,X138,0) + X217 + X375 -X454 -> 0 | Y59: =IF('Input-Infra'!$AI54>='Input-Gen'!$M$33,Y138,0) + Y217 + Y375 -Y454 -> 0 | Z59: =IF('Input-Infra'!$AI54>='Input-Gen'!$M$33,Z138,0) + Z217 + Z375 -Z454 -> 0 | AA59: =IF('Input-Infra'!$AI54>='Input-Gen'!$M$33,AA138,0) + AA217 + AA375 -AA454 -> 0 | AB59: =IF('Input-Infra'!$AI54>='Input-Gen'!$M$33,AB138,0) + AB217 + AB375 -AB454 -> 0 | AC59: =IF('Input-Infra'!$AI54>='Input-Gen'!$M$33,AC138,0) + AC217 + AC375 -AC454 -> 0
G60: ='Input-Infra'!G55 -> Spare 30 | I60: $'000 | K60: 0 | Q60: 0 | S60: =IF('Input-Infra'!$AI55>='Input-Gen'!$M$33,S139,0) + S218 + S376 -S455 -> 0 | T60: =IF('Input-Infra'!$AI55>='Input-Gen'!$M$33,T139,0) + T218 + T376 -T455 -> 0 | U60: =IF('Input-Infra'!$AI55>='Input-Gen'!$M$33,U139,0) + U218 + U376 -U455 -> 0 | V60: =IF('Input-Infra'!$AI55>='Input-Gen'!$M$33,V139,0) + V218 + V376 -V455 -> 0 | W60: =IF('Input-Infra'!$AI55>='Input-Gen'!$M$33,W139,0) + W218 + W376 -W455 -> 0 | X60: =IF('Input-Infra'!$AI55>='Input-Gen'!$M$33,X139,0) + X218 + X376 -X455 -> 0 | Y60: =IF('Input-Infra'!$AI55>='Input-Gen'!$M$33,Y139,0) + Y218 + Y376 -Y455 -> 0 | Z60: =IF('Input-Infra'!$AI55>='Input-Gen'!$M$33,Z139,0) + Z218 + Z376 -Z455 -> 0 | AA60: =IF('Input-Infra'!$AI55>='Input-Gen'!$M$33,AA139,0) + AA218 + AA376 -AA455 -> 0 | AB60: =IF('Input-Infra'!$AI55>='Input-Gen'!$M$33,AB139,0) + AB218 + AB376 -AB455 -> 0 | AC60: =IF('Input-Infra'!$AI55>='Input-Gen'!$M$33,AC139,0) + AC218 + AC376 -AC455 -> 0
G61: ='Input-Infra'!G56 -> Spare 31 | I61: $'000 | K61: 0 | Q61: 0 | S61: =IF('Input-Infra'!$AI56>='Input-Gen'!$M$33,S140,0) + S219 + S377 -S456 -> 0 | T61: =IF('Input-Infra'!$AI56>='Input-Gen'!$M$33,T140,0) + T219 + T377 -T456 -> 0 | U61: =IF('Input-Infra'!$AI56>='Input-Gen'!$M$33,U140,0) + U219 + U377 -U456 -> 0 | V61: =IF('Input-Infra'!$AI56>='Input-Gen'!$M$33,V140,0) + V219 + V377 -V456 -> 0 | W61: =IF('Input-Infra'!$AI56>='Input-Gen'!$M$33,W140,0) + W219 + W377 -W456 -> 0 | X61: =IF('Input-Infra'!$AI56>='Input-Gen'!$M$33,X140,0) + X219 + X377 -X456 -> 0 | Y61: =IF('Input-Infra'!$AI56>='Input-Gen'!$M$33,Y140,0) + Y219 + Y377 -Y456 -> 0 | Z61: =IF('Input-Infra'!$AI56>='Input-Gen'!$M$33,Z140,0) + Z219 + Z377 -Z456 -> 0 | AA61: =IF('Input-Infra'!$AI56>='Input-Gen'!$M$33,AA140,0) + AA219 + AA377 -AA456 -> 0 | AB61: =IF('Input-Infra'!$AI56>='Input-Gen'!$M$33,AB140,0) + AB219 + AB377 -AB456 -> 0 | AC61: =IF('Input-Infra'!$AI56>='Input-Gen'!$M$33,AC140,0) + AC219 + AC377 -AC456 -> 0
G62: ='Input-Infra'!G57 -> Spare 32 | I62: $'000 | K62: 0 | Q62: 0 | S62: =IF('Input-Infra'!$AI57>='Input-Gen'!$M$33,S141,0) + S220 + S378 -S457 -> 0 | T62: =IF('Input-Infra'!$AI57>='Input-Gen'!$M$33,T141,0) + T220 + T378 -T457 -> 0 | U62: =IF('Input-Infra'!$AI57>='Input-Gen'!$M$33,U141,0) + U220 + U378 -U457 -> 0 | V62: =IF('Input-Infra'!$AI57>='Input-Gen'!$M$33,V141,0) + V220 + V378 -V457 -> 0 | W62: =IF('Input-Infra'!$AI57>='Input-Gen'!$M$33,W141,0) + W220 + W378 -W457 -> 0 | X62: =IF('Input-Infra'!$AI57>='Input-Gen'!$M$33,X141,0) + X220 + X378 -X457 -> 0 | Y62: =IF('Input-Infra'!$AI57>='Input-Gen'!$M$33,Y141,0) + Y220 + Y378 -Y457 -> 0 | Z62: =IF('Input-Infra'!$AI57>='Input-Gen'!$M$33,Z141,0) + Z220 + Z378 -Z457 -> 0 | AA62: =IF('Input-Infra'!$AI57>='Input-Gen'!$M$33,AA141,0) + AA220 + AA378 -AA457 -> 0 | AB62: =IF('Input-Infra'!$AI57>='Input-Gen'!$M$33,AB141,0) + AB220 + AB378 -AB457 -> 0 | AC62: =IF('Input-Infra'!$AI57>='Input-Gen'!$M$33,AC141,0) + AC220 + AC378 -AC457 -> 0
G63: ='Input-Infra'!G58 -> Spare 33 | I63: $'000 | K63: 0 | Q63: 0 | S63: =IF('Input-Infra'!$AI58>='Input-Gen'!$M$33,S142,0) + S221 + S379 -S458 -> 0 | T63: =IF('Input-Infra'!$AI58>='Input-Gen'!$M$33,T142,0) + T221 + T379 -T458 -> 0 | U63: =IF('Input-Infra'!$AI58>='Input-Gen'!$M$33,U142,0) + U221 + U379 -U458 -> 0 | V63: =IF('Input-Infra'!$AI58>='Input-Gen'!$M$33,V142,0) + V221 + V379 -V458 -> 0 | W63: =IF('Input-Infra'!$AI58>='Input-Gen'!$M$33,W142,0) + W221 + W379 -W458 -> 0 | X63: =IF('Input-Infra'!$AI58>='Input-Gen'!$M$33,X142,0) + X221 + X379 -X458 -> 0 | Y63: =IF('Input-Infra'!$AI58>='Input-Gen'!$M$33,Y142,0) + Y221 + Y379 -Y458 -> 0 | Z63: =IF('Input-Infra'!$AI58>='Input-Gen'!$M$33,Z142,0) + Z221 + Z379 -Z458 -> 0 | AA63: =IF('Input-Infra'!$AI58>='Input-Gen'!$M$33,AA142,0) + AA221 + AA379 -AA458 -> 0 | AB63: =IF('Input-Infra'!$AI58>='Input-Gen'!$M$33,AB142,0) + AB221 + AB379 -AB458 -> 0 | AC63: =IF('Input-Infra'!$AI58>='Input-Gen'!$M$33,AC142,0) + AC221 + AC379 -AC458 -> 0
G64: ='Input-Infra'!G59 -> Spare 34 | I64: $'000 | K64: 0 | Q64: 0 | S64: =IF('Input-Infra'!$AI59>='Input-Gen'!$M$33,S143,0) + S222 + S380 -S459 -> 0 | T64: =IF('Input-Infra'!$AI59>='Input-Gen'!$M$33,T143,0) + T222 + T380 -T459 -> 0 | U64: =IF('Input-Infra'!$AI59>='Input-Gen'!$M$33,U143,0) + U222 + U380 -U459 -> 0 | V64: =IF('Input-Infra'!$AI59>='Input-Gen'!$M$33,V143,0) + V222 + V380 -V459 -> 0 | W64: =IF('Input-Infra'!$AI59>='Input-Gen'!$M$33,W143,0) + W222 + W380 -W459 -> 0 | X64: =IF('Input-Infra'!$AI59>='Input-Gen'!$M$33,X143,0) + X222 + X380 -X459 -> 0 | Y64: =IF('Input-Infra'!$AI59>='Input-Gen'!$M$33,Y143,0) + Y222 + Y380 -Y459 -> 0 | Z64: =IF('Input-Infra'!$AI59>='Input-Gen'!$M$33,Z143,0) + Z222 + Z380 -Z459 -> 0 | AA64: =IF('Input-Infra'!$AI59>='Input-Gen'!$M$33,AA143,0) + AA222 + AA380 -AA459 -> 0 | AB64: =IF('Input-Infra'!$AI59>='Input-Gen'!$M$33,AB143,0) + AB222 + AB380 -AB459 -> 0 | AC64: =IF('Input-Infra'!$AI59>='Input-Gen'!$M$33,AC143,0) + AC222 + AC380 -AC459 -> 0
G65: ='Input-Infra'!G60 -> Spare 35 | I65: $'000 | K65: 0 | Q65: 0 | S65: =IF('Input-Infra'!$AI60>='Input-Gen'!$M$33,S144,0) + S223 + S381 -S460 -> 0 | T65: =IF('Input-Infra'!$AI60>='Input-Gen'!$M$33,T144,0) + T223 + T381 -T460 -> 0 | U65: =IF('Input-Infra'!$AI60>='Input-Gen'!$M$33,U144,0) + U223 + U381 -U460 -> 0 | V65: =IF('Input-Infra'!$AI60>='Input-Gen'!$M$33,V144,0) + V223 + V381 -V460 -> 0 | W65: =IF('Input-Infra'!$AI60>='Input-Gen'!$M$33,W144,0) + W223 + W381 -W460 -> 0 | X65: =IF('Input-Infra'!$AI60>='Input-Gen'!$M$33,X144,0) + X223 + X381 -X460 -> 0 | Y65: =IF('Input-Infra'!$AI60>='Input-Gen'!$M$33,Y144,0) + Y223 + Y381 -Y460 -> 0 | Z65: =IF('Input-Infra'!$AI60>='Input-Gen'!$M$33,Z144,0) + Z223 + Z381 -Z460 -> 0 | AA65: =IF('Input-Infra'!$AI60>='Input-Gen'!$M$33,AA144,0) + AA223 + AA381 -AA460 -> 0 | AB65: =IF('Input-Infra'!$AI60>='Input-Gen'!$M$33,AB144,0) + AB223 + AB381 -AB460 -> 0 | AC65: =IF('Input-Infra'!$AI60>='Input-Gen'!$M$33,AC144,0) + AC223 + AC381 -AC460 -> 0
G66: ='Input-Infra'!G61 -> Spare 36 | I66: $'000 | K66: 0 | Q66: 0 | S66: =IF('Input-Infra'!$AI61>='Input-Gen'!$M$33,S145,0) + S224 + S382 -S461 -> 0 | T66: =IF('Input-Infra'!$AI61>='Input-Gen'!$M$33,T145,0) + T224 + T382 -T461 -> 0 | U66: =IF('Input-Infra'!$AI61>='Input-Gen'!$M$33,U145,0) + U224 + U382 -U461 -> 0 | V66: =IF('Input-Infra'!$AI61>='Input-Gen'!$M$33,V145,0) + V224 + V382 -V461 -> 0 | W66: =IF('Input-Infra'!$AI61>='Input-Gen'!$M$33,W145,0) + W224 + W382 -W461 -> 0 | X66: =IF('Input-Infra'!$AI61>='Input-Gen'!$M$33,X145,0) + X224 + X382 -X461 -> 0 | Y66: =IF('Input-Infra'!$AI61>='Input-Gen'!$M$33,Y145,0) + Y224 + Y382 -Y461 -> 0 | Z66: =IF('Input-Infra'!$AI61>='Input-Gen'!$M$33,Z145,0) + Z224 + Z382 -Z461 -> 0 | AA66: =IF('Input-Infra'!$AI61>='Input-Gen'!$M$33,AA145,0) + AA224 + AA382 -AA461 -> 0 | AB66: =IF('Input-Infra'!$AI61>='Input-Gen'!$M$33,AB145,0) + AB224 + AB382 -AB461 -> 0 | AC66: =IF('Input-Infra'!$AI61>='Input-Gen'!$M$33,AC145,0) + AC224 + AC382 -AC461 -> 0
G67: ='Input-Infra'!G62 -> Spare 37 | I67: $'000 | K67: 0 | Q67: 0 | S67: =IF('Input-Infra'!$AI62>='Input-Gen'!$M$33,S146,0) + S225 + S383 -S462 -> 0 | T67: =IF('Input-Infra'!$AI62>='Input-Gen'!$M$33,T146,0) + T225 + T383 -T462 -> 0 | U67: =IF('Input-Infra'!$AI62>='Input-Gen'!$M$33,U146,0) + U225 + U383 -U462 -> 0 | V67: =IF('Input-Infra'!$AI62>='Input-Gen'!$M$33,V146,0) + V225 + V383 -V462 -> 0 | W67: =IF('Input-Infra'!$AI62>='Input-Gen'!$M$33,W146,0) + W225 + W383 -W462 -> 0 | X67: =IF('Input-Infra'!$AI62>='Input-Gen'!$M$33,X146,0) + X225 + X383 -X462 -> 0 | Y67: =IF('Input-Infra'!$AI62>='Input-Gen'!$M$33,Y146,0) + Y225 + Y383 -Y462 -> 0 | Z67: =IF('Input-Infra'!$AI62>='Input-Gen'!$M$33,Z146,0) + Z225 + Z383 -Z462 -> 0 | AA67: =IF('Input-Infra'!$AI62>='Input-Gen'!$M$33,AA146,0) + AA225 + AA383 -AA462 -> 0 | AB67: =IF('Input-Infra'!$AI62>='Input-Gen'!$M$33,AB146,0) + AB225 + AB383 -AB462 -> 0 | AC67: =IF('Input-Infra'!$AI62>='Input-Gen'!$M$33,AC146,0) + AC225 + AC383 -AC462 -> 0
G68: ='Input-Infra'!G63 -> Spare 38 | I68: $'000 | K68: 0 | Q68: 0 | S68: =IF('Input-Infra'!$AI63>='Input-Gen'!$M$33,S147,0) + S226 + S384 -S463 -> 0 | T68: =IF('Input-Infra'!$AI63>='Input-Gen'!$M$33,T147,0) + T226 + T384 -T463 -> 0 | U68: =IF('Input-Infra'!$AI63>='Input-Gen'!$M$33,U147,0) + U226 + U384 -U463 -> 0 | V68: =IF('Input-Infra'!$AI63>='Input-Gen'!$M$33,V147,0) + V226 + V384 -V463 -> 0 | W68: =IF('Input-Infra'!$AI63>='Input-Gen'!$M$33,W147,0) + W226 + W384 -W463 -> 0 | X68: =IF('Input-Infra'!$AI63>='Input-Gen'!$M$33,X147,0) + X226 + X384 -X463 -> 0 | Y68: =IF('Input-Infra'!$AI63>='Input-Gen'!$M$33,Y147,0) + Y226 + Y384 -Y463 -> 0 | Z68: =IF('Input-Infra'!$AI63>='Input-Gen'!$M$33,Z147,0) + Z226 + Z384 -Z463 -> 0 | AA68: =IF('Input-Infra'!$AI63>='Input-Gen'!$M$33,AA147,0) + AA226 + AA384 -AA463 -> 0 | AB68: =IF('Input-Infra'!$AI63>='Input-Gen'!$M$33,AB147,0) + AB226 + AB384 -AB463 -> 0 | AC68: =IF('Input-Infra'!$AI63>='Input-Gen'!$M$33,AC147,0) + AC226 + AC384 -AC463 -> 0
G69: ='Input-Infra'!G64 -> Spare 39 | I69: $'000 | K69: 0 | Q69: 0 | S69: =IF('Input-Infra'!$AI64>='Input-Gen'!$M$33,S148,0) + S227 + S385 -S464 -> 0 | T69: =IF('Input-Infra'!$AI64>='Input-Gen'!$M$33,T148,0) + T227 + T385 -T464 -> 0 | U69: =IF('Input-Infra'!$AI64>='Input-Gen'!$M$33,U148,0) + U227 + U385 -U464 -> 0 | V69: =IF('Input-Infra'!$AI64>='Input-Gen'!$M$33,V148,0) + V227 + V385 -V464 -> 0 | W69: =IF('Input-Infra'!$AI64>='Input-Gen'!$M$33,W148,0) + W227 + W385 -W464 -> 0 | X69: =IF('Input-Infra'!$AI64>='Input-Gen'!$M$33,X148,0) + X227 + X385 -X464 -> 0 | Y69: =IF('Input-Infra'!$AI64>='Input-Gen'!$M$33,Y148,0) + Y227 + Y385 -Y464 -> 0 | Z69: =IF('Input-Infra'!$AI64>='Input-Gen'!$M$33,Z148,0) + Z227 + Z385 -Z464 -> 0 | AA69: =IF('Input-Infra'!$AI64>='Input-Gen'!$M$33,AA148,0) + AA227 + AA385 -AA464 -> 0 | AB69: =IF('Input-Infra'!$AI64>='Input-Gen'!$M$33,AB148,0) + AB227 + AB385 -AB464 -> 0 | AC69: =IF('Input-Infra'!$AI64>='Input-Gen'!$M$33,AC148,0) + AC227 + AC385 -AC464 -> 0
G70: ='Input-Infra'!G65 -> Spare 40 | I70: $'000 | K70: 0 | Q70: 0 | S70: =IF('Input-Infra'!$AI65>='Input-Gen'!$M$33,S149,0) + S228 + S386 -S465 -> 0 | T70: =IF('Input-Infra'!$AI65>='Input-Gen'!$M$33,T149,0) + T228 + T386 -T465 -> 0 | U70: =IF('Input-Infra'!$AI65>='Input-Gen'!$M$33,U149,0) + U228 + U386 -U465 -> 0 | V70: =IF('Input-Infra'!$AI65>='Input-Gen'!$M$33,V149,0) + V228 + V386 -V465 -> 0 | W70: =IF('Input-Infra'!$AI65>='Input-Gen'!$M$33,W149,0) + W228 + W386 -W465 -> 0 | X70: =IF('Input-Infra'!$AI65>='Input-Gen'!$M$33,X149,0) + X228 + X386 -X465 -> 0 | Y70: =IF('Input-Infra'!$AI65>='Input-Gen'!$M$33,Y149,0) + Y228 + Y386 -Y465 -> 0 | Z70: =IF('Input-Infra'!$AI65>='Input-Gen'!$M$33,Z149,0) + Z228 + Z386 -Z465 -> 0 | AA70: =IF('Input-Infra'!$AI65>='Input-Gen'!$M$33,AA149,0) + AA228 + AA386 -AA465 -> 0 | AB70: =IF('Input-Infra'!$AI65>='Input-Gen'!$M$33,AB149,0) + AB228 + AB386 -AB465 -> 0 | AC70: =IF('Input-Infra'!$AI65>='Input-Gen'!$M$33,AC149,0) + AC228 + AC386 -AC465 -> 0
G71: ='Input-Infra'!G66 -> Spare 41 | I71: $'000 | K71: 0 | Q71: 0 | S71: =IF('Input-Infra'!$AI66>='Input-Gen'!$M$33,S150,0) + S229 + S387 -S466 -> 0 | T71: =IF('Input-Infra'!$AI66>='Input-Gen'!$M$33,T150,0) + T229 + T387 -T466 -> 0 | U71: =IF('Input-Infra'!$AI66>='Input-Gen'!$M$33,U150,0) + U229 + U387 -U466 -> 0 | V71: =IF('Input-Infra'!$AI66>='Input-Gen'!$M$33,V150,0) + V229 + V387 -V466 -> 0 | W71: =IF('Input-Infra'!$AI66>='Input-Gen'!$M$33,W150,0) + W229 + W387 -W466 -> 0 | X71: =IF('Input-Infra'!$AI66>='Input-Gen'!$M$33,X150,0) + X229 + X387 -X466 -> 0 | Y71: =IF('Input-Infra'!$AI66>='Input-Gen'!$M$33,Y150,0) + Y229 + Y387 -Y466 -> 0 | Z71: =IF('Input-Infra'!$AI66>='Input-Gen'!$M$33,Z150,0) + Z229 + Z387 -Z466 -> 0 | AA71: =IF('Input-Infra'!$AI66>='Input-Gen'!$M$33,AA150,0) + AA229 + AA387 -AA466 -> 0 | AB71: =IF('Input-Infra'!$AI66>='Input-Gen'!$M$33,AB150,0) + AB229 + AB387 -AB466 -> 0 | AC71: =IF('Input-Infra'!$AI66>='Input-Gen'!$M$33,AC150,0) + AC229 + AC387 -AC466 -> 0
G72: ='Input-Infra'!G67 -> Spare 42 | I72: $'000 | K72: 0 | Q72: 0 | S72: =IF('Input-Infra'!$AI67>='Input-Gen'!$M$33,S151,0) + S230 + S388 -S467 -> 0 | T72: =IF('Input-Infra'!$AI67>='Input-Gen'!$M$33,T151,0) + T230 + T388 -T467 -> 0 | U72: =IF('Input-Infra'!$AI67>='Input-Gen'!$M$33,U151,0) + U230 + U388 -U467 -> 0 | V72: =IF('Input-Infra'!$AI67>='Input-Gen'!$M$33,V151,0) + V230 + V388 -V467 -> 0 | W72: =IF('Input-Infra'!$AI67>='Input-Gen'!$M$33,W151,0) + W230 + W388 -W467 -> 0 | X72: =IF('Input-Infra'!$AI67>='Input-Gen'!$M$33,X151,0) + X230 + X388 -X467 -> 0 | Y72: =IF('Input-Infra'!$AI67>='Input-Gen'!$M$33,Y151,0) + Y230 + Y388 -Y467 -> 0 | Z72: =IF('Input-Infra'!$AI67>='Input-Gen'!$M$33,Z151,0) + Z230 + Z388 -Z467 -> 0 | AA72: =IF('Input-Infra'!$AI67>='Input-Gen'!$M$33,AA151,0) + AA230 + AA388 -AA467 -> 0 | AB72: =IF('Input-Infra'!$AI67>='Input-Gen'!$M$33,AB151,0) + AB230 + AB388 -AB467 -> 0 | AC72: =IF('Input-Infra'!$AI67>='Input-Gen'!$M$33,AC151,0) + AC230 + AC388 -AC467 -> 0
G73: ='Input-Infra'!G68 -> Spare 43 | I73: $'000 | K73: 0 | Q73: 0 | S73: =IF('Input-Infra'!$AI68>='Input-Gen'!$M$33,S152,0) + S231 + S389 -S468 -> 0 | T73: =IF('Input-Infra'!$AI68>='Input-Gen'!$M$33,T152,0) + T231 + T389 -T468 -> 0 | U73: =IF('Input-Infra'!$AI68>='Input-Gen'!$M$33,U152,0) + U231 + U389 -U468 -> 0 | V73: =IF('Input-Infra'!$AI68>='Input-Gen'!$M$33,V152,0) + V231 + V389 -V468 -> 0 | W73: =IF('Input-Infra'!$AI68>='Input-Gen'!$M$33,W152,0) + W231 + W389 -W468 -> 0 | X73: =IF('Input-Infra'!$AI68>='Input-Gen'!$M$33,X152,0) + X231 + X389 -X468 -> 0 | Y73: =IF('Input-Infra'!$AI68>='Input-Gen'!$M$33,Y152,0) + Y231 + Y389 -Y468 -> 0 | Z73: =IF('Input-Infra'!$AI68>='Input-Gen'!$M$33,Z152,0) + Z231 + Z389 -Z468 -> 0 | AA73: =IF('Input-Infra'!$AI68>='Input-Gen'!$M$33,AA152,0) + AA231 + AA389 -AA468 -> 0 | AB73: =IF('Input-Infra'!$AI68>='Input-Gen'!$M$33,AB152,0) + AB231 + AB389 -AB468 -> 0 | AC73: =IF('Input-Infra'!$AI68>='Input-Gen'!$M$33,AC152,0) + AC231 + AC389 -AC468 -> 0
G74: ='Input-Infra'!G69 -> Spare 44 | I74: $'000 | K74: 0 | Q74: 0 | S74: =IF('Input-Infra'!$AI69>='Input-Gen'!$M$33,S153,0) + S232 + S390 -S469 -> 0 | T74: =IF('Input-Infra'!$AI69>='Input-Gen'!$M$33,T153,0) + T232 + T390 -T469 -> 0 | U74: =IF('Input-Infra'!$AI69>='Input-Gen'!$M$33,U153,0) + U232 + U390 -U469 -> 0 | V74: =IF('Input-Infra'!$AI69>='Input-Gen'!$M$33,V153,0) + V232 + V390 -V469 -> 0 | W74: =IF('Input-Infra'!$AI69>='Input-Gen'!$M$33,W153,0) + W232 + W390 -W469 -> 0 | X74: =IF('Input-Infra'!$AI69>='Input-Gen'!$M$33,X153,0) + X232 + X390 -X469 -> 0 | Y74: =IF('Input-Infra'!$AI69>='Input-Gen'!$M$33,Y153,0) + Y232 + Y390 -Y469 -> 0 | Z74: =IF('Input-Infra'!$AI69>='Input-Gen'!$M$33,Z153,0) + Z232 + Z390 -Z469 -> 0 | AA74: =IF('Input-Infra'!$AI69>='Input-Gen'!$M$33,AA153,0) + AA232 + AA390 -AA469 -> 0 | AB74: =IF('Input-Infra'!$AI69>='Input-Gen'!$M$33,AB153,0) + AB232 + AB390 -AB469 -> 0 | AC74: =IF('Input-Infra'!$AI69>='Input-Gen'!$M$33,AC153,0) + AC232 + AC390 -AC469 -> 0
G75: ='Input-Infra'!G70 -> Spare 45 | I75: $'000 | K75: 0 | Q75: 0 | S75: =IF('Input-Infra'!$AI70>='Input-Gen'!$M$33,S154,0) + S233 + S391 -S470 -> 0 | T75: =IF('Input-Infra'!$AI70>='Input-Gen'!$M$33,T154,0) + T233 + T391 -T470 -> 0 | U75: =IF('Input-Infra'!$AI70>='Input-Gen'!$M$33,U154,0) + U233 + U391 -U470 -> 0 | V75: =IF('Input-Infra'!$AI70>='Input-Gen'!$M$33,V154,0) + V233 + V391 -V470 -> 0 | W75: =IF('Input-Infra'!$AI70>='Input-Gen'!$M$33,W154,0) + W233 + W391 -W470 -> 0 | X75: =IF('Input-Infra'!$AI70>='Input-Gen'!$M$33,X154,0) + X233 + X391 -X470 -> 0 | Y75: =IF('Input-Infra'!$AI70>='Input-Gen'!$M$33,Y154,0) + Y233 + Y391 -Y470 -> 0 | Z75: =IF('Input-Infra'!$AI70>='Input-Gen'!$M$33,Z154,0) + Z233 + Z391 -Z470 -> 0 | AA75: =IF('Input-Infra'!$AI70>='Input-Gen'!$M$33,AA154,0) + AA233 + AA391 -AA470 -> 0 | AB75: =IF('Input-Infra'!$AI70>='Input-Gen'!$M$33,AB154,0) + AB233 + AB391 -AB470 -> 0 | AC75: =IF('Input-Infra'!$AI70>='Input-Gen'!$M$33,AC154,0) + AC233 + AC391 -AC470 -> 0
G76: ='Input-Infra'!G71 -> Spare 46 | I76: $'000 | K76: 0 | Q76: 0 | S76: =IF('Input-Infra'!$AI71>='Input-Gen'!$M$33,S155,0) + S234 + S392 -S471 -> 0 | T76: =IF('Input-Infra'!$AI71>='Input-Gen'!$M$33,T155,0) + T234 + T392 -T471 -> 0 | U76: =IF('Input-Infra'!$AI71>='Input-Gen'!$M$33,U155,0) + U234 + U392 -U471 -> 0 | V76: =IF('Input-Infra'!$AI71>='Input-Gen'!$M$33,V155,0) + V234 + V392 -V471 -> 0 | W76: =IF('Input-Infra'!$AI71>='Input-Gen'!$M$33,W155,0) + W234 + W392 -W471 -> 0 | X76: =IF('Input-Infra'!$AI71>='Input-Gen'!$M$33,X155,0) + X234 + X392 -X471 -> 0 | Y76: =IF('Input-Infra'!$AI71>='Input-Gen'!$M$33,Y155,0) + Y234 + Y392 -Y471 -> 0 | Z76: =IF('Input-Infra'!$AI71>='Input-Gen'!$M$33,Z155,0) + Z234 + Z392 -Z471 -> 0 | AA76: =IF('Input-Infra'!$AI71>='Input-Gen'!$M$33,AA155,0) + AA234 + AA392 -AA471 -> 0 | AB76: =IF('Input-Infra'!$AI71>='Input-Gen'!$M$33,AB155,0) + AB234 + AB392 -AB471 -> 0 | AC76: =IF('Input-Infra'!$AI71>='Input-Gen'!$M$33,AC155,0) + AC234 + AC392 -AC471 -> 0
G78: Subtotal | I78: $'000 | K78: =SUM(K30:K76) -> 136452.5 | Q78: =SUM(Q30:Q76) -> 136452.5 | S78: =SUM(S30:S76) -> 136452.5 | T78: 0 | U78: 0 | V78: 0 | W78: 0 | X78: 0 | Y78: 0 | Z78: 0 | AA78: 0 | AB78: 0 | AC78: 0
G80: Future Infrastructure
G82: ='Input-Infra'!G78 -> BNE-FT-004 | I82: $'000 | K82: =NPV(WACC_nom,T82:AC82)+S82 -> 10143.97474 | Q82: =SUM(S82:AC82) -> 12050.88836 | S82: =IF('Input-Infra'!$AI78>='Input-Gen'!$M$33,S161,0) + S240 + S398 - S477 -> 0 | T82: =IF('Input-Infra'!$AI78>='Input-Gen'!$M$33,T161,0) + T240 + T398 - T477 -> 0 | U82: =IF('Input-Infra'!$AI78>='Input-Gen'!$M$33,U161,0) + U240 + U398 - U477 -> 0 | V82: =IF('Input-Infra'!$AI78>='Input-Gen'!$M$33,V161,0) + V240 + V398 - V477 -> 12050.88836 | W82: =IF('Input-Infra'!$AI78>='Input-Gen'!$M$33,W161,0) + W240 + W398 - W477 -> 0 | X82: =IF('Input-Infra'!$AI78>='Input-Gen'!$M$33,X161,0) + X240 + X398 - X477 -> 0 | Y82: =IF('Input-Infra'!$AI78>='Input-Gen'!$M$33,Y161,0) + Y240 + Y398 - Y477 -> 0 | Z82: =IF('Input-Infra'!$AI78>='Input-Gen'!$M$33,Z161,0) + Z240 + Z398 - Z477 -> 0 | AA82: =IF('Input-Infra'!$AI78>='Input-Gen'!$M$33,AA161,0) + AA240 + AA398 - AA477 -> 0 | AB82: =IF('Input-Infra'!$AI78>='Input-Gen'!$M$33,AB161,0) + AB240 + AB398 - AB477 -> 0 | AC82: =IF('Input-Infra'!$AI78>='Input-Gen'!$M$33,AC161,0) + AC240 + AC398 - AC477 -> 0
G83: ='Input-Infra'!G79 -> EAB-FT-001 | I83: $'000 | K83: 5136.843932 | Q83: =SUM(S83:AC83) -> 8131.901611 | S83: =IF('Input-Infra'!$AI79>='Input-Gen'!$M$33,S162,0) + S241 + S399 - S478 -> 0 | T83: =IF('Input-Infra'!$AI79>='Input-Gen'!$M$33,T162,0) + T241 + T399 - T478 -> 0 | U83: =IF('Input-Infra'!$AI79>='Input-Gen'!$M$33,U162,0) + U241 + U399 - U478 -> 0 | V83: =IF('Input-Infra'!$AI79>='Input-Gen'!$M$33,V162,0) + V241 + V399 - V478 -> 0 | W83: =IF('Input-Infra'!$AI79>='Input-Gen'!$M$33,W162,0) + W241 + W399 - W478 -> 0 | X83: =IF('Input-Infra'!$AI79>='Input-Gen'!$M$33,X162,0) + X241 + X399 - X478 -> 0 | Y83: =IF('Input-Infra'!$AI79>='Input-Gen'!$M$33,Y162,0) + Y241 + Y399 - Y478 -> 0 | Z83: =IF('Input-Infra'!$AI79>='Input-Gen'!$M$33,Z162,0) + Z241 + Z399 - Z478 -> 0 | AA83: =IF('Input-Infra'!$AI79>='Input-Gen'!$M$33,AA162,0) + AA241 + AA399 - AA478 -> 8131.901611 | AB83: =IF('Input-Infra'!$AI79>='Input-Gen'!$M$33,AB162,0) + AB241 + AB399 - AB478 -> 0 | AC83: =IF('Input-Infra'!$AI79>='Input-Gen'!$M$33,AC162,0) + AC241 + AC399 - AC478 -> 0
G84: ='Input-Infra'!G80 -> KAN-FT-002 | I84: $'000 | K84: 10972.44182 | Q84: 13035.0947 | S84: =IF('Input-Infra'!$AI80>='Input-Gen'!$M$33,S163,0) + S242 + S400 - S479 -> 0 | T84: =IF('Input-Infra'!$AI80>='Input-Gen'!$M$33,T163,0) + T242 + T400 - T479 -> 0 | U84: =IF('Input-Infra'!$AI80>='Input-Gen'!$M$33,U163,0) + U242 + U400 - U479 -> 0 | V84: =IF('Input-Infra'!$AI80>='Input-Gen'!$M$33,V163,0) + V242 + V400 - V479 -> 13035.0947 | W84: =IF('Input-Infra'!$AI80>='Input-Gen'!$M$33,W163,0) + W242 + W400 - W479 -> 0 | X84: =IF('Input-Infra'!$AI80>='Input-Gen'!$M$33,X163,0) + X242 + X400 - X479 -> 0 | Y84: =IF('Input-Infra'!$AI80>='Input-Gen'!$M$33,Y163,0) + Y242 + Y400 - Y479 -> 0 | Z84: =IF('Input-Infra'!$AI80>='Input-Gen'!$M$33,Z163,0) + Z242 + Z400 - Z479 -> 0 | AA84: =IF('Input-Infra'!$AI80>='Input-Gen'!$M$33,AA163,0) + AA242 + AA400 - AA479 -> 0 | AB84: =IF('Input-Infra'!$AI80>='Input-Gen'!$M$33,AB163,0) + AB242 + AB400 - AB479 -> 0 | AC84: =IF('Input-Infra'!$AI80>='Input-Gen'!$M$33,AC163,0) + AC242 + AC400 - AC479 -> 0
G85: ='Input-Infra'!G81 -> KAN-FT-003 | I85: $'000 | K85: 10213.5414 | Q85: 12133.5325 | S85: =IF('Input-Infra'!$AI81>='Input-Gen'!$M$33,S164,0) + S243 + S401 - S480 -> 0 | T85: =IF('Input-Infra'!$AI81>='Input-Gen'!$M$33,T164,0) + T243 + T401 - T480 -> 0 | U85: =IF('Input-Infra'!$AI81>='Input-Gen'!$M$33,U164,0) + U243 + U401 - U480 -> 0 | V85: =IF('Input-Infra'!$AI81>='Input-Gen'!$M$33,V164,0) + V243 + V401 - V480 -> 12133.5325 | W85: =IF('Input-Infra'!$AI81>='Input-Gen'!$M$33,W164,0) + W243 + W401 - W480 -> 0 | X85: =IF('Input-Infra'!$AI81>='Input-Gen'!$M$33,X164,0) + X243 + X401 - X480 -> 0 | Y85: =IF('Input-Infra'!$AI81>='Input-Gen'!$M$33,Y164,0) + Y243 + Y401 - Y480 -> 0 | Z85: =IF('Input-Infra'!$AI81>='Input-Gen'!$M$33,Z164,0) + Z243 + Z401 - Z480 -> 0 | AA85: =IF('Input-Infra'!$AI81>='Input-Gen'!$M$33,AA164,0) + AA243 + AA401 - AA480 -> 0 | AB85: =IF('Input-Infra'!$AI81>='Input-Gen'!$M$33,AB164,0) + AB243 + AB401 - AB480 -> 0 | AC85: =IF('Input-Infra'!$AI81>='Input-Gen'!$M$33,AC164,0) + AC243 + AC401 - AC480 -> 0
G86: ='Input-Infra'!G82 -> NRP-FT-001 | I86: $'000 | K86: 9947.926162 | Q86: 11817.98562 | S86: =IF('Input-Infra'!$AI82>='Input-Gen'!$M$33,S165,0) + S244 + S402 - S481 -> 0 | T86: =IF('Input-Infra'!$AI82>='Input-Gen'!$M$33,T165,0) + T244 + T402 - T481 -> 0 | U86: =IF('Input-Infra'!$AI82>='Input-Gen'!$M$33,U165,0) + U244 + U402 - U481 -> 0 | V86: =IF('Input-Infra'!$AI82>='Input-Gen'!$M$33,V165,0) + V244 + V402 - V481 -> 11817.98562 | W86: =IF('Input-Infra'!$AI82>='Input-Gen'!$M$33,W165,0) + W244 + W402 - W481 -> 0 | X86: =IF('Input-Infra'!$AI82>='Input-Gen'!$M$33,X165,0) + X244 + X402 - X481 -> 0 | Y86: =IF('Input-Infra'!$AI82>='Input-Gen'!$M$33,Y165,0) + Y244 + Y402 - Y481 -> 0 | Z86: =IF('Input-Infra'!$AI82>='Input-Gen'!$M$33,Z165,0) + Z244 + Z402 - Z481 -> 0 | AA86: =IF('Input-Infra'!$AI82>='Input-Gen'!$M$33,AA165,0) + AA244 + AA402 - AA481 -> 0 | AB86: =IF('Input-Infra'!$AI82>='Input-Gen'!$M$33,AB165,0) + AB244 + AB402 - AB481 -> 0 | AC86: =IF('Input-Infra'!$AI82>='Input-Gen'!$M$33,AC165,0) + AC244 + AC402 - AC481 -> 0
G87: ='Input-Infra'!G83 -> NWF-FT-002 | I87: $'000 | K87: 4937.74167 | Q87: 7816.711969 | S87: =IF('Input-Infra'!$AI83>='Input-Gen'!$M$33,S166,0) + S245 + S403 - S482 -> 0 | T87: =IF('Input-Infra'!$AI83>='Input-Gen'!$M$33,T166,0) + T245 + T403 - T482 -> 0 | U87: =IF('Input-Infra'!$AI83>='Input-Gen'!$M$33,U166,0) + U245 + U403 - U482 -> 0 | V87: =IF('Input-Infra'!$AI83>='Input-Gen'!$M$33,V166,0) + V245 + V403 - V482 -> 0 | W87: =IF('Input-Infra'!$AI83>='Input-Gen'!$M$33,W166,0) + W245 + W403 - W482 -> 0 | X87: =IF('Input-Infra'!$AI83>='Input-Gen'!$M$33,X166,0) + X245 + X403 - X482 -> 0 | Y87: =IF('Input-Infra'!$AI83>='Input-Gen'!$M$33,Y166,0) + Y245 + Y403 - Y482 -> 0 | Z87: =IF('Input-Infra'!$AI83>='Input-Gen'!$M$33,Z166,0) + Z245 + Z403 - Z482 -> 0 | AA87: =IF('Input-Infra'!$AI83>='Input-Gen'!$M$33,AA166,0) + AA245 + AA403 - AA482 -> 7816.711969 | AB87: =IF('Input-Infra'!$AI83>='Input-Gen'!$M$33,AB166,0) + AB245 + AB403 - AB482 -> 0 | AC87: =IF('Input-Infra'!$AI83>='Input-Gen'!$M$33,AC166,0) + AC245 + AC403 - AC482 -> 0
G88: ='Input-Infra'!G84 -> SBR-FT-002 | I88: $'000 | K88: 12142.41381 | Q88: 14425.00371 | S88: =IF('Input-Infra'!$AI84>='Input-Gen'!$M$33,S167,0) + S246 + S404 - S483 -> 0 | T88: =IF('Input-Infra'!$AI84>='Input-Gen'!$M$33,T167,0) + T246 + T404 - T483 -> 0 | U88: =IF('Input-Infra'!$AI84>='Input-Gen'!$M$33,U167,0) + U246 + U404 - U483 -> 0 | V88: =IF('Input-Infra'!$AI84>='Input-Gen'!$M$33,V167,0) + V246 + V404 - V483 -> 14425.00371 | W88: =IF('Input-Infra'!$AI84>='Input-Gen'!$M$33,W167,0) + W246 + W404 - W483 -> 0 | X88: =IF('Input-Infra'!$AI84>='Input-Gen'!$M$33,X167,0) + X246 + X404 - X483 -> 0 | Y88: =IF('Input-Infra'!$AI84>='Input-Gen'!$M$33,Y167,0) + Y246 + Y404 - Y483 -> 0 | Z88: =IF('Input-Infra'!$AI84>='Input-Gen'!$M$33,Z167,0) + Z246 + Z404 - Z483 -> 0 | AA88: =IF('Input-Infra'!$AI84>='Input-Gen'!$M$33,AA167,0) + AA246 + AA404 - AA483 -> 0 | AB88: =IF('Input-Infra'!$AI84>='Input-Gen'!$M$33,AB167,0) + AB246 + AB404 - AB483 -> 0 | AC88: =IF('Input-Infra'!$AI84>='Input-Gen'!$M$33,AC167,0) + AC246 + AC404 - AC483 -> 0
G89: ='Input-Infra'!G85 -> SBR-FT-003 | I89: $'000 | K89: 10245.16188 | Q89: 12171.09715 | S89: =IF('Input-Infra'!$AI85>='Input-Gen'!$M$33,S168,0) + S247 + S405 - S484 -> 0 | T89: =IF('Input-Infra'!$AI85>='Input-Gen'!$M$33,T168,0) + T247 + T405 - T484 -> 0 | U89: =IF('Input-Infra'!$AI85>='Input-Gen'!$M$33,U168,0) + U247 + U405 - U484 -> 0 | V89: =IF('Input-Infra'!$AI85>='Input-Gen'!$M$33,V168,0) + V247 + V405 - V484 -> 12171.09715 | W89: =IF('Input-Infra'!$AI85>='Input-Gen'!$M$33,W168,0) + W247 + W405 - W484 -> 0 | X89: =IF('Input-Infra'!$AI85>='Input-Gen'!$M$33,X168,0) + X247 + X405 - X484 -> 0 | Y89: =IF('Input-Infra'!$AI85>='Input-Gen'!$M$33,Y168,0) + Y247 + Y405 - Y484 -> 0 | Z89: =IF('Input-Infra'!$AI85>='Input-Gen'!$M$33,Z168,0) + Z247 + Z405 - Z484 -> 0 | AA89: =IF('Input-Infra'!$AI85>='Input-Gen'!$M$33,AA168,0) + AA247 + AA405 - AA484 -> 0 | AB89: =IF('Input-Infra'!$AI85>='Input-Gen'!$M$33,AB168,0) + AB247 + AB405 - AB484 -> 0 | AC89: =IF('Input-Infra'!$AI85>='Input-Gen'!$M$33,AC168,0) + AC247 + AC405 - AC484 -> 0
G90: ='Input-Infra'!G86 -> SLU-FT-002 | I90: $'000 | K90: 5226.440473 | Q90: 8273.737779 | S90: =IF('Input-Infra'!$AI86>='Input-Gen'!$M$33,S169,0) + S248 + S406 - S485 -> 0 | T90: =IF('Input-Infra'!$AI86>='Input-Gen'!$M$33,T169,0) + T248 + T406 - T485 -> 0 | U90: =IF('Input-Infra'!$AI86>='Input-Gen'!$M$33,U169,0) + U248 + U406 - U485 -> 0 | V90: =IF('Input-Infra'!$AI86>='Input-Gen'!$M$33,V169,0) + V248 + V406 - V485 -> 0 | W90: =IF('Input-Infra'!$AI86>='Input-Gen'!$M$33,W169,0) + W248 + W406 - W485 -> 0 | X90: =IF('Input-Infra'!$AI86>='Input-Gen'!$M$33,X169,0) + X248 + X406 - X485 -> 0 | Y90: =IF('Input-Infra'!$AI86>='Input-Gen'!$M$33,Y169,0) + Y248 + Y406 - Y485 -> 0 | Z90: =IF('Input-Infra'!$AI86>='Input-Gen'!$M$33,Z169,0) + Z248 + Z406 - Z485 -> 0 | AA90: =IF('Input-Infra'!$AI86>='Input-Gen'!$M$33,AA169,0) + AA248 + AA406 - AA485 -> 8273.737779 | AB90: =IF('Input-Infra'!$AI86>='Input-Gen'!$M$33,AB169,0) + AB248 + AB406 - AB485 -> 0 | AC90: =IF('Input-Infra'!$AI86>='Input-Gen'!$M$33,AC169,0) + AC248 + AC406 - AC485 -> 0
G91: ='Input-Infra'!G87 -> Spare 1 | I91: $'000 | K91: 0 | Q91: 0 | S91: =IF('Input-Infra'!$AI87>='Input-Gen'!$M$33,S170,0) + S249 + S407 - S486 -> 0 | T91: =IF('Input-Infra'!$AI87>='Input-Gen'!$M$33,T170,0) + T249 + T407 - T486 -> 0 | U91: =IF('Input-Infra'!$AI87>='Input-Gen'!$M$33,U170,0) + U249 + U407 - U486 -> 0 | V91: =IF('Input-Infra'!$AI87>='Input-Gen'!$M$33,V170,0) + V249 + V407 - V486 -> 0 | W91: =IF('Input-Infra'!$AI87>='Input-Gen'!$M$33,W170,0) + W249 + W407 - W486 -> 0 | X91: =IF('Input-Infra'!$AI87>='Input-Gen'!$M$33,X170,0) + X249 + X407 - X486 -> 0 | Y91: =IF('Input-Infra'!$AI87>='Input-Gen'!$M$33,Y170,0) + Y249 + Y407 - Y486 -> 0 | Z91: =IF('Input-Infra'!$AI87>='Input-Gen'!$M$33,Z170,0) + Z249 + Z407 - Z486 -> 0 | AA91: =IF('Input-Infra'!$AI87>='Input-Gen'!$M$33,AA170,0) + AA249 + AA407 - AA486 -> 0 | AB91: =IF('Input-Infra'!$AI87>='Input-Gen'!$M$33,AB170,0) + AB249 + AB407 - AB486 -> 0 | AC91: =IF('Input-Infra'!$AI87>='Input-Gen'!$M$33,AC170,0) + AC249 + AC407 - AC486 -> 0
G92: ='Input-Infra'!G88 -> Spare 2 | I92: $'000 | K92: 0 | Q92: 0 | S92: =IF('Input-Infra'!$AI88>='Input-Gen'!$M$33,S171,0) + S250 + S408 - S487 -> 0 | T92: =IF('Input-Infra'!$AI88>='Input-Gen'!$M$33,T171,0) + T250 + T408 - T487 -> 0 | U92: =IF('Input-Infra'!$AI88>='Input-Gen'!$M$33,U171,0) + U250 + U408 - U487 -> 0 | V92: =IF('Input-Infra'!$AI88>='Input-Gen'!$M$33,V171,0) + V250 + V408 - V487 -> 0 | W92: =IF('Input-Infra'!$AI88>='Input-Gen'!$M$33,W171,0) + W250 + W408 - W487 -> 0 | X92: =IF('Input-Infra'!$AI88>='Input-Gen'!$M$33,X171,0) + X250 + X408 - X487 -> 0 | Y92: =IF('Input-Infra'!$AI88>='Input-Gen'!$M$33,Y171,0) + Y250 + Y408 - Y487 -> 0 | Z92: =IF('Input-Infra'!$AI88>='Input-Gen'!$M$33,Z171,0) + Z250 + Z408 - Z487 -> 0 | AA92: =IF('Input-Infra'!$AI88>='Input-Gen'!$M$33,AA171,0) + AA250 + AA408 - AA487 -> 0 | AB92: =IF('Input-Infra'!$AI88>='Input-Gen'!$M$33,AB171,0) + AB250 + AB408 - AB487 -> 0 | AC92: =IF('Input-Infra'!$AI88>='Input-Gen'!$M$33,AC171,0) + AC250 + AC408 - AC487 -> 0
G93: ='Input-Infra'!G89 -> Spare 3 | I93: $'000 | K93: 0 | Q93: 0 | S93: =IF('Input-Infra'!$AI89>='Input-Gen'!$M$33,S172,0) + S251 + S409 - S488 -> 0 | T93: =IF('Input-Infra'!$AI89>='Input-Gen'!$M$33,T172,0) + T251 + T409 - T488 -> 0 | U93: =IF('Input-Infra'!$AI89>='Input-Gen'!$M$33,U172,0) + U251 + U409 - U488 -> 0 | V93: =IF('Input-Infra'!$AI89>='Input-Gen'!$M$33,V172,0) + V251 + V409 - V488 -> 0 | W93: =IF('Input-Infra'!$AI89>='Input-Gen'!$M$33,W172,0) + W251 + W409 - W488 -> 0 | X93: =IF('Input-Infra'!$AI89>='Input-Gen'!$M$33,X172,0) + X251 + X409 - X488 -> 0 | Y93: =IF('Input-Infra'!$AI89>='Input-Gen'!$M$33,Y172,0) + Y251 + Y409 - Y488 -> 0 | Z93: =IF('Input-Infra'!$AI89>='Input-Gen'!$M$33,Z172,0) + Z251 + Z409 - Z488 -> 0 | AA93: =IF('Input-Infra'!$AI89>='Input-Gen'!$M$33,AA172,0) + AA251 + AA409 - AA488 -> 0 | AB93: =IF('Input-Infra'!$AI89>='Input-Gen'!$M$33,AB172,0) + AB251 + AB409 - AB488 -> 0 | AC93: =IF('Input-Infra'!$AI89>='Input-Gen'!$M$33,AC172,0) + AC251 + AC409 - AC488 -> 0
G94: ='Input-Infra'!G90 -> Spare 4 | I94: $'000 | K94: 0 | Q94: 0 | S94: =IF('Input-Infra'!$AI90>='Input-Gen'!$M$33,S173,0) + S252 + S410 - S489 -> 0 | T94: =IF('Input-Infra'!$AI90>='Input-Gen'!$M$33,T173,0) + T252 + T410 - T489 -> 0 | U94: =IF('Input-Infra'!$AI90>='Input-Gen'!$M$33,U173,0) + U252 + U410 - U489 -> 0 | V94: =IF('Input-Infra'!$AI90>='Input-Gen'!$M$33,V173,0) + V252 + V410 - V489 -> 0 | W94: =IF('Input-Infra'!$AI90>='Input-Gen'!$M$33,W173,0) + W252 + W410 - W489 -> 0 | X94: =IF('Input-Infra'!$AI90>='Input-Gen'!$M$33,X173,0) + X252 + X410 - X489 -> 0 | Y94: =IF('Input-Infra'!$AI90>='Input-Gen'!$M$33,Y173,0) + Y252 + Y410 - Y489 -> 0 | Z94: =IF('Input-Infra'!$AI90>='Input-Gen'!$M$33,Z173,0) + Z252 + Z410 - Z489 -> 0 | AA94: =IF('Input-Infra'!$AI90>='Input-Gen'!$M$33,AA173,0) + AA252 + AA410 - AA489 -> 0 | AB94: =IF('Input-Infra'!$AI90>='Input-Gen'!$M$33,AB173,0) + AB252 + AB410 - AB489 -> 0 | AC94: =IF('Input-Infra'!$AI90>='Input-Gen'!$M$33,AC173,0) + AC252 + AC410 - AC489 -> 0
G95: ='Input-Infra'!G91 -> Spare 5 | I95: $'000 | K95: 0 | Q95: 0 | S95: =IF('Input-Infra'!$AI91>='Input-Gen'!$M$33,S174,0) + S253 + S411 - S490 -> 0 | T95: =IF('Input-Infra'!$AI91>='Input-Gen'!$M$33,T174,0) + T253 + T411 - T490 -> 0 | U95: =IF('Input-Infra'!$AI91>='Input-Gen'!$M$33,U174,0) + U253 + U411 - U490 -> 0 | V95: =IF('Input-Infra'!$AI91>='Input-Gen'!$M$33,V174,0) + V253 + V411 - V490 -> 0 | W95: =IF('Input-Infra'!$AI91>='Input-Gen'!$M$33,W174,0) + W253 + W411 - W490 -> 0 | X95: =IF('Input-Infra'!$AI91>='Input-Gen'!$M$33,X174,0) + X253 + X411 - X490 -> 0 | Y95: =IF('Input-Infra'!$AI91>='Input-Gen'!$M$33,Y174,0) + Y253 + Y411 - Y490 -> 0 | Z95: =IF('Input-Infra'!$AI91>='Input-Gen'!$M$33,Z174,0) + Z253 + Z411 - Z490 -> 0 | AA95: =IF('Input-Infra'!$AI91>='Input-Gen'!$M$33,AA174,0) + AA253 + AA411 - AA490 -> 0 | AB95: =IF('Input-Infra'!$AI91>='Input-Gen'!$M$33,AB174,0) + AB253 + AB411 - AB490 -> 0 | AC95: =IF('Input-Infra'!$AI91>='Input-Gen'!$M$33,AC174,0) + AC253 + AC411 - AC490 -> 0
G96: ='Input-Infra'!G92 -> Spare 6 | I96: $'000 | K96: 0 | Q96: 0 | S96: =IF('Input-Infra'!$AI92>='Input-Gen'!$M$33,S175,0) + S254 + S412 - S491 -> 0 | T96: =IF('Input-Infra'!$AI92>='Input-Gen'!$M$33,T175,0) + T254 + T412 - T491 -> 0 | U96: =IF('Input-Infra'!$AI92>='Input-Gen'!$M$33,U175,0) + U254 + U412 - U491 -> 0 | V96: =IF('Input-Infra'!$AI92>='Input-Gen'!$M$33,V175,0) + V254 + V412 - V491 -> 0 | W96: =IF('Input-Infra'!$AI92>='Input-Gen'!$M$33,W175,0) + W254 + W412 - W491 -> 0 | X96: =IF('Input-Infra'!$AI92>='Input-Gen'!$M$33,X175,0) + X254 + X412 - X491 -> 0 | Y96: =IF('Input-Infra'!$AI92>='Input-Gen'!$M$33,Y175,0) + Y254 + Y412 - Y491 -> 0 | Z96: =IF('Input-Infra'!$AI92>='Input-Gen'!$M$33,Z175,0) + Z254 + Z412 - Z491 -> 0 | AA96: =IF('Input-Infra'!$AI92>='Input-Gen'!$M$33,AA175,0) + AA254 + AA412 - AA491 -> 0 | AB96: =IF('Input-Infra'!$AI92>='Input-Gen'!$M$33,AB175,0) + AB254 + AB412 - AB491 -> 0 | AC96: =IF('Input-Infra'!$AI92>='Input-Gen'!$M$33,AC175,0) + AC254 + AC412 - AC491 -> 0
G97: ='Input-Infra'!G93 -> Spare 7 | I97: $'000 | K97: 0 | Q97: 0 | S97: =IF('Input-Infra'!$AI93>='Input-Gen'!$M$33,S176,0) + S255 + S413 - S492 -> 0 | T97: =IF('Input-Infra'!$AI93>='Input-Gen'!$M$33,T176,0) + T255 + T413 - T492 -> 0 | U97: =IF('Input-Infra'!$AI93>='Input-Gen'!$M$33,U176,0) + U255 + U413 - U492 -> 0 | V97: =IF('Input-Infra'!$AI93>='Input-Gen'!$M$33,V176,0) + V255 + V413 - V492 -> 0 | W97: =IF('Input-Infra'!$AI93>='Input-Gen'!$M$33,W176,0) + W255 + W413 - W492 -> 0 | X97: =IF('Input-Infra'!$AI93>='Input-Gen'!$M$33,X176,0) + X255 + X413 - X492 -> 0 | Y97: =IF('Input-Infra'!$AI93>='Input-Gen'!$M$33,Y176,0) + Y255 + Y413 - Y492 -> 0 | Z97: =IF('Input-Infra'!$AI93>='Input-Gen'!$M$33,Z176,0) + Z255 + Z413 - Z492 -> 0 | AA97: =IF('Input-Infra'!$AI93>='Input-Gen'!$M$33,AA176,0) + AA255 + AA413 - AA492 -> 0 | AB97: =IF('Input-Infra'!$AI93>='Input-Gen'!$M$33,AB176,0) + AB255 + AB413 - AB492 -> 0 | AC97: =IF('Input-Infra'!$AI93>='Input-Gen'!$M$33,AC176,0) + AC255 + AC413 - AC492 -> 0
G98: ='Input-Infra'!G94 -> Spare 8 | I98: $'000 | K98: 0 | Q98: 0 | S98: =IF('Input-Infra'!$AI94>='Input-Gen'!$M$33,S177,0) + S256 + S414 - S493 -> 0 | T98: =IF('Input-Infra'!$AI94>='Input-Gen'!$M$33,T177,0) + T256 + T414 - T493 -> 0 | U98: =IF('Input-Infra'!$AI94>='Input-Gen'!$M$33,U177,0) + U256 + U414 - U493 -> 0 | V98: =IF('Input-Infra'!$AI94>='Input-Gen'!$M$33,V177,0) + V256 + V414 - V493 -> 0 | W98: =IF('Input-Infra'!$AI94>='Input-Gen'!$M$33,W177,0) + W256 + W414 - W493 -> 0 | X98: =IF('Input-Infra'!$AI94>='Input-Gen'!$M$33,X177,0) + X256 + X414 - X493 -> 0 | Y98: =IF('Input-Infra'!$AI94>='Input-Gen'!$M$33,Y177,0) + Y256 + Y414 - Y493 -> 0 | Z98: =IF('Input-Infra'!$AI94>='Input-Gen'!$M$33,Z177,0) + Z256 + Z414 - Z493 -> 0 | AA98: =IF('Input-Infra'!$AI94>='Input-Gen'!$M$33,AA177,0) + AA256 + AA414 - AA493 -> 0 | AB98: =IF('Input-Infra'!$AI94>='Input-Gen'!$M$33,AB177,0) + AB256 + AB414 - AB493 -> 0 | AC98: =IF('Input-Infra'!$AI94>='Input-Gen'!$M$33,AC177,0) + AC256 + AC414 - AC493 -> 0
G100: =G78 -> Subtotal | I100: $'000 | K100: =SUM(K82:K98) -> 78966.48588 | Q100: =SUM(S100:AC100) -> 99855.9534 | S100: =SUM(S82:S98) -> 0 | T100: =SUM(T82:T98) -> 0 | U100: 0 | V100: 75633.60204 | W100: 0 | X100: 0 | Y100: 0 | Z100: 0 | AA100: 24222.35136 | AB100: 0 | AC100: 0
G102: Total | I102: $'000 | K102: =SUM(K78,K100) -> 215418.9859 | Q102: =SUM(Q78,Q100) -> 236308.4534 | S102: =SUM(S78,S100) -> 136452.5 | T102: 0 | U102: 0 | V102: 75633.60204 | W102: 0 | X102: 0 | Y102: 0 | Z102: 0 | AA102: 24222.35136 | AB102: 0 | AC102: 0
F105: Land Costs (Nominal)
G107: Existing Infrastructure
G109: =Existing -> Citywide Total | I109: $'000 | K109: =NPV(WACC_nom,T109:AC109)+S109 -> 0 | M109: ='Input-Infra'!AK25-Q109 -> 0 | Q109: =SUM(S109:AC109) -> 0 | S109: =IF(S$9=0,'Input-Infra'!$AN25*(1-'Input-Infra'!$U25)*(1-'Input-Infra'!$W25)*S$20,0) -> 0 | T109: =IF(T$9=0,'Input-Infra'!$AN25*(1-'Input-Infra'!$U25)*(1-'Input-Infra'!$W25)*T$20,0) -> 0 | U109: =IF(U$9=0,'Input-Infra'!$AN25*(1-'Input-Infra'!$U25)*(1-'Input-Infra'!$W25)*U$20,0) -> 0 | V109: =IF(V$9=0,'Input-Infra'!$AN25*(1-'Input-Infra'!$U25)*(1-'Input-Infra'!$W25)*V$20,0) -> 0 | W109: =IF(W$9=0,'Input-Infra'!$AN25*(1-'Input-Infra'!$U25)*(1-'Input-Infra'!$W25)*W$20,0) -> 0 | X109: =IF(X$9=0,'Input-Infra'!$AN25*(1-'Input-Infra'!$U25)*(1-'Input-Infra'!$W25)*X$20,0) -> 0 | Y109: =IF(Y$9=0,'Input-Infra'!$AN25*(1-'Input-Infra'!$U25)*(1-'Input-Infra'!$W25)*Y$20,0) -> 0 | Z109: =IF(Z$9=0,'Input-Infra'!$AN25*(1-'Input-Infra'!$U25)*(1-'Input-Infra'!$W25)*Z$20,0) -> 0 | AA109: =IF(AA$9=0,'Input-Infra'!$AN25*(1-'Input-Infra'!$U25)*(1-'Input-Infra'!$W25)*AA$20,0) -> 0 | AB109: =IF(AB$9=0,'Input-Infra'!$AN25*(1-'Input-Infra'!$U25)*(1-'Input-Infra'!$W25)*AB$20,0) -> 0 | AC109: =IF(AC$9=0,'Input-Infra'!$AN25*(1-'Input-Infra'!$U25)*(1-'Input-Infra'!$W25)*AC$20,0) -> 0
G110: Spare 1 | I110: $'000 | K110: 0 | M110: ='Input-Infra'!AK26-Q110 -> 0 | Q110: =SUM(S110:AC110) -> 0 | S110: =IF(S$9=0,'Input-Infra'!$AN26*(1-'Input-Infra'!$U26)*(1-'Input-Infra'!$W26)*S$20,0) -> 0 | T110: =IF(T$9=0,'Input-Infra'!$AN26*(1-'Input-Infra'!$U26)*(1-'Input-Infra'!$W26)*T$20,0) -> 0 | U110: =IF(U$9=0,'Input-Infra'!$AN26*(1-'Input-Infra'!$U26)*(1-'Input-Infra'!$W26)*U$20,0) -> 0 | V110: =IF(V$9=0,'Input-Infra'!$AN26*(1-'Input-Infra'!$U26)*(1-'Input-Infra'!$W26)*V$20,0) -> 0 | W110: =IF(W$9=0,'Input-Infra'!$AN26*(1-'Input-Infra'!$U26)*(1-'Input-Infra'!$W26)*W$20,0) -> 0 | X110: =IF(X$9=0,'Input-Infra'!$AN26*(1-'Input-Infra'!$U26)*(1-'Input-Infra'!$W26)*X$20,0) -> 0 | Y110: =IF(Y$9=0,'Input-Infra'!$AN26*(1-'Input-Infra'!$U26)*(1-'Input-Infra'!$W26)*Y$20,0) -> 0 | Z110: =IF(Z$9=0,'Input-Infra'!$AN26*(1-'Input-Infra'!$U26)*(1-'Input-Infra'!$W26)*Z$20,0) -> 0 | AA110: =IF(AA$9=0,'Input-Infra'!$AN26*(1-'Input-Infra'!$U26)*(1-'Input-Infra'!$W26)*AA$20,0) -> 0 | AB110: =IF(AB$9=0,'Input-Infra'!$AN26*(1-'Input-Infra'!$U26)*(1-'Input-Infra'!$W26)*AB$20,0) -> 0 | AC110: =IF(AC$9=0,'Input-Infra'!$AN26*(1-'Input-Infra'!$U26)*(1-'Input-Infra'!$W26)*AC$20,0) -> 0
G111: Spare 2 | I111: $'000 | K111: 0 | M111: ='Input-Infra'!AK27-Q111 -> 0 | Q111: 0 | S111: =IF(S$9=0,'Input-Infra'!$AN27*(1-'Input-Infra'!$U27)*(1-'Input-Infra'!$W27)*S$20,0) -> 0 | T111: =IF(T$9=0,'Input-Infra'!$AN27*(1-'Input-Infra'!$U27)*(1-'Input-Infra'!$W27)*T$20,0) -> 0 | U111: =IF(U$9=0,'Input-Infra'!$AN27*(1-'Input-Infra'!$U27)*(1-'Input-Infra'!$W27)*U$20,0) -> 0 | V111: =IF(V$9=0,'Input-Infra'!$AN27*(1-'Input-Infra'!$U27)*(1-'Input-Infra'!$W27)*V$20,0) -> 0 | W111: =IF(W$9=0,'Input-Infra'!$AN27*(1-'Input-Infra'!$U27)*(1-'Input-Infra'!$W27)*W$20,0) -> 0 | X111: =IF(X$9=0,'Input-Infra'!$AN27*(1-'Input-Infra'!$U27)*(1-'Input-Infra'!$W27)*X$20,0) -> 0 | Y111: =IF(Y$9=0,'Input-Infra'!$AN27*(1-'Input-Infra'!$U27)*(1-'Input-Infra'!$W27)*Y$20,0) -> 0 | Z111: =IF(Z$9=0,'Input-Infra'!$AN27*(1-'Input-Infra'!$U27)*(1-'Input-Infra'!$W27)*Z$20,0) -> 0 | AA111: =IF(AA$9=0,'Input-Infra'!$AN27*(1-'Input-Infra'!$U27)*(1-'Input-Infra'!$W27)*AA$20,0) -> 0 | AB111: =IF(AB$9=0,'Input-Infra'!$AN27*(1-'Input-Infra'!$U27)*(1-'Input-Infra'!$W27)*AB$20,0) -> 0 | AC111: =IF(AC$9=0,'Input-Infra'!$AN27*(1-'Input-Infra'!$U27)*(1-'Input-Infra'!$W27)*AC$20,0) -> 0
G112: Spare 3 | I112: $'000 | K112: 0 | M112: ='Input-Infra'!AK28-Q112 -> 0 | Q112: 0 | S112: =IF(S$9=0,'Input-Infra'!$AN28*(1-'Input-Infra'!$U28)*(1-'Input-Infra'!$W28)*S$20,0) -> 0 | T112: =IF(T$9=0,'Input-Infra'!$AN28*(1-'Input-Infra'!$U28)*(1-'Input-Infra'!$W28)*T$20,0) -> 0 | U112: =IF(U$9=0,'Input-Infra'!$AN28*(1-'Input-Infra'!$U28)*(1-'Input-Infra'!$W28)*U$20,0) -> 0 | V112: =IF(V$9=0,'Input-Infra'!$AN28*(1-'Input-Infra'!$U28)*(1-'Input-Infra'!$W28)*V$20,0) -> 0 | W112: =IF(W$9=0,'Input-Infra'!$AN28*(1-'Input-Infra'!$U28)*(1-'Input-Infra'!$W28)*W$20,0) -> 0 | X112: =IF(X$9=0,'Input-Infra'!$AN28*(1-'Input-Infra'!$U28)*(1-'Input-Infra'!$W28)*X$20,0) -> 0 | Y112: =IF(Y$9=0,'Input-Infra'!$AN28*(1-'Input-Infra'!$U28)*(1-'Input-Infra'!$W28)*Y$20,0) -> 0 | Z112: =IF(Z$9=0,'Input-Infra'!$AN28*(1-'Input-Infra'!$U28)*(1-'Input-Infra'!$W28)*Z$20,0) -> 0 | AA112: =IF(AA$9=0,'Input-Infra'!$AN28*(1-'Input-Infra'!$U28)*(1-'Input-Infra'!$W28)*AA$20,0) -> 0 | AB112: =IF(AB$9=0,'Input-Infra'!$AN28*(1-'Input-Infra'!$U28)*(1-'Input-Infra'!$W28)*AB$20,0) -> 0 | AC112: =IF(AC$9=0,'Input-Infra'!$AN28*(1-'Input-Infra'!$U28)*(1-'Input-Infra'!$W28)*AC$20,0) -> 0
G113: Spare 4 | I113: $'000 | K113: 0 | M113: ='Input-Infra'!AK29-Q113 -> 0 | Q113: 0 | S113: =IF(S$9=0,'Input-Infra'!$AN29*(1-'Input-Infra'!$U29)*(1-'Input-Infra'!$W29)*S$20,0) -> 0 | T113: =IF(T$9=0,'Input-Infra'!$AN29*(1-'Input-Infra'!$U29)*(1-'Input-Infra'!$W29)*T$20,0) -> 0 | U113: =IF(U$9=0,'Input-Infra'!$AN29*(1-'Input-Infra'!$U29)*(1-'Input-Infra'!$W29)*U$20,0) -> 0 | V113: =IF(V$9=0,'Input-Infra'!$AN29*(1-'Input-Infra'!$U29)*(1-'Input-Infra'!$W29)*V$20,0) -> 0 | W113: =IF(W$9=0,'Input-Infra'!$AN29*(1-'Input-Infra'!$U29)*(1-'Input-Infra'!$W29)*W$20,0) -> 0 | X113: =IF(X$9=0,'Input-Infra'!$AN29*(1-'Input-Infra'!$U29)*(1-'Input-Infra'!$W29)*X$20,0) -> 0 | Y113: =IF(Y$9=0,'Input-Infra'!$AN29*(1-'Input-Infra'!$U29)*(1-'Input-Infra'!$W29)*Y$20,0) -> 0 | Z113: =IF(Z$9=0,'Input-Infra'!$AN29*(1-'Input-Infra'!$U29)*(1-'Input-Infra'!$W29)*Z$20,0) -> 0 | AA113: =IF(AA$9=0,'Input-Infra'!$AN29*(1-'Input-Infra'!$U29)*(1-'Input-Infra'!$W29)*AA$20,0) -> 0 | AB113: =IF(AB$9=0,'Input-Infra'!$AN29*(1-'Input-Infra'!$U29)*(1-'Input-Infra'!$W29)*AB$20,0) -> 0 | AC113: =IF(AC$9=0,'Input-Infra'!$AN29*(1-'Input-Infra'!$U29)*(1-'Input-Infra'!$W29)*AC$20,0) -> 0
G114: Spare 5 | I114: $'000 | K114: 0 | M114: ='Input-Infra'!AK30-Q114 -> 0 | Q114: 0 | S114: =IF(S$9=0,'Input-Infra'!$AN30*(1-'Input-Infra'!$U30)*(1-'Input-Infra'!$W30)*S$20,0) -> 0 | T114: =IF(T$9=0,'Input-Infra'!$AN30*(1-'Input-Infra'!$U30)*(1-'Input-Infra'!$W30)*T$20,0) -> 0 | U114: =IF(U$9=0,'Input-Infra'!$AN30*(1-'Input-Infra'!$U30)*(1-'Input-Infra'!$W30)*U$20,0) -> 0 | V114: =IF(V$9=0,'Input-Infra'!$AN30*(1-'Input-Infra'!$U30)*(1-'Input-Infra'!$W30)*V$20,0) -> 0 | W114: =IF(W$9=0,'Input-Infra'!$AN30*(1-'Input-Infra'!$U30)*(1-'Input-Infra'!$W30)*W$20,0) -> 0 | X114: =IF(X$9=0,'Input-Infra'!$AN30*(1-'Input-Infra'!$U30)*(1-'Input-Infra'!$W30)*X$20,0) -> 0 | Y114: =IF(Y$9=0,'Input-Infra'!$AN30*(1-'Input-Infra'!$U30)*(1-'Input-Infra'!$W30)*Y$20,0) -> 0 | Z114: =IF(Z$9=0,'Input-Infra'!$AN30*(1-'Input-Infra'!$U30)*(1-'Input-Infra'!$W30)*Z$20,0) -> 0 | AA114: =IF(AA$9=0,'Input-Infra'!$AN30*(1-'Input-Infra'!$U30)*(1-'Input-Infra'!$W30)*AA$20,0) -> 0 | AB114: =IF(AB$9=0,'Input-Infra'!$AN30*(1-'Input-Infra'!$U30)*(1-'Input-Infra'!$W30)*AB$20,0) -> 0 | AC114: =IF(AC$9=0,'Input-Infra'!$AN30*(1-'Input-Infra'!$U30)*(1-'Input-Infra'!$W30)*AC$20,0) -> 0
G115: Spare 6 | I115: $'000 | K115: 0 | M115: ='Input-Infra'!AK31-Q115 -> 0 | Q115: 0 | S115: =IF(S$9=0,'Input-Infra'!$AN31*(1-'Input-Infra'!$U31)*(1-'Input-Infra'!$W31)*S$20,0) -> 0 | T115: =IF(T$9=0,'Input-Infra'!$AN31*(1-'Input-Infra'!$U31)*(1-'Input-Infra'!$W31)*T$20,0) -> 0 | U115: =IF(U$9=0,'Input-Infra'!$AN31*(1-'Input-Infra'!$U31)*(1-'Input-Infra'!$W31)*U$20,0) -> 0 | V115: =IF(V$9=0,'Input-Infra'!$AN31*(1-'Input-Infra'!$U31)*(1-'Input-Infra'!$W31)*V$20,0) -> 0 | W115: =IF(W$9=0,'Input-Infra'!$AN31*(1-'Input-Infra'!$U31)*(1-'Input-Infra'!$W31)*W$20,0) -> 0 | X115: =IF(X$9=0,'Input-Infra'!$AN31*(1-'Input-Infra'!$U31)*(1-'Input-Infra'!$W31)*X$20,0) -> 0 | Y115: =IF(Y$9=0,'Input-Infra'!$AN31*(1-'Input-Infra'!$U31)*(1-'Input-Infra'!$W31)*Y$20,0) -> 0 | Z115: =IF(Z$9=0,'Input-Infra'!$AN31*(1-'Input-Infra'!$U31)*(1-'Input-Infra'!$W31)*Z$20,0) -> 0 | AA115: =IF(AA$9=0,'Input-Infra'!$AN31*(1-'Input-Infra'!$U31)*(1-'Input-Infra'!$W31)*AA$20,0) -> 0 | AB115: =IF(AB$9=0,'Input-Infra'!$AN31*(1-'Input-Infra'!$U31)*(1-'Input-Infra'!$W31)*AB$20,0) -> 0 | AC115: =IF(AC$9=0,'Input-Infra'!$AN31*(1-'Input-Infra'!$U31)*(1-'Input-Infra'!$W31)*AC$20,0) -> 0
G116: Spare 7 | I116: $'000 | K116: 0 | M116: ='Input-Infra'!AK32-Q116 -> 0 | Q116: 0 | S116: =IF(S$9=0,'Input-Infra'!$AN32*(1-'Input-Infra'!$U32)*(1-'Input-Infra'!$W32)*S$20,0) -> 0 | T116: =IF(T$9=0,'Input-Infra'!$AN32*(1-'Input-Infra'!$U32)*(1-'Input-Infra'!$W32)*T$20,0) -> 0 | U116: =IF(U$9=0,'Input-Infra'!$AN32*(1-'Input-Infra'!$U32)*(1-'Input-Infra'!$W32)*U$20,0) -> 0 | V116: =IF(V$9=0,'Input-Infra'!$AN32*(1-'Input-Infra'!$U32)*(1-'Input-Infra'!$W32)*V$20,0) -> 0 | W116: =IF(W$9=0,'Input-Infra'!$AN32*(1-'Input-Infra'!$U32)*(1-'Input-Infra'!$W32)*W$20,0) -> 0 | X116: =IF(X$9=0,'Input-Infra'!$AN32*(1-'Input-Infra'!$U32)*(1-'Input-Infra'!$W32)*X$20,0) -> 0 | Y116: =IF(Y$9=0,'Input-Infra'!$AN32*(1-'Input-Infra'!$U32)*(1-'Input-Infra'!$W32)*Y$20,0) -> 0 | Z116: =IF(Z$9=0,'Input-Infra'!$AN32*(1-'Input-Infra'!$U32)*(1-'Input-Infra'!$W32)*Z$20,0) -> 0 | AA116: =IF(AA$9=0,'Input-Infra'!$AN32*(1-'Input-Infra'!$U32)*(1-'Input-Infra'!$W32)*AA$20,0) -> 0 | AB116: =IF(AB$9=0,'Input-Infra'!$AN32*(1-'Input-Infra'!$U32)*(1-'Input-Infra'!$W32)*AB$20,0) -> 0 | AC116: =IF(AC$9=0,'Input-Infra'!$AN32*(1-'Input-Infra'!$U32)*(1-'Input-Infra'!$W32)*AC$20,0) -> 0
G117: Spare 8 | I117: $'000 | K117: 0 | M117: ='Input-Infra'!AK33-Q117 -> 0 | Q117: 0 | S117: =IF(S$9=0,'Input-Infra'!$AN33*(1-'Input-Infra'!$U33)*(1-'Input-Infra'!$W33)*S$20,0) -> 0 | T117: =IF(T$9=0,'Input-Infra'!$AN33*(1-'Input-Infra'!$U33)*(1-'Input-Infra'!$W33)*T$20,0) -> 0 | U117: =IF(U$9=0,'Input-Infra'!$AN33*(1-'Input-Infra'!$U33)*(1-'Input-Infra'!$W33)*U$20,0) -> 0 | V117: =IF(V$9=0,'Input-Infra'!$AN33*(1-'Input-Infra'!$U33)*(1-'Input-Infra'!$W33)*V$20,0) -> 0 | W117: =IF(W$9=0,'Input-Infra'!$AN33*(1-'Input-Infra'!$U33)*(1-'Input-Infra'!$W33)*W$20,0) -> 0 | X117: =IF(X$9=0,'Input-Infra'!$AN33*(1-'Input-Infra'!$U33)*(1-'Input-Infra'!$W33)*X$20,0) -> 0 | Y117: =IF(Y$9=0,'Input-Infra'!$AN33*(1-'Input-Infra'!$U33)*(1-'Input-Infra'!$W33)*Y$20,0) -> 0 | Z117: =IF(Z$9=0,'Input-Infra'!$AN33*(1-'Input-Infra'!$U33)*(1-'Input-Infra'!$W33)*Z$20,0) -> 0 | AA117: =IF(AA$9=0,'Input-Infra'!$AN33*(1-'Input-Infra'!$U33)*(1-'Input-Infra'!$W33)*AA$20,0) -> 0 | AB117: =IF(AB$9=0,'Input-Infra'!$AN33*(1-'Input-Infra'!$U33)*(1-'Input-Infra'!$W33)*AB$20,0) -> 0 | AC117: =IF(AC$9=0,'Input-Infra'!$AN33*(1-'Input-Infra'!$U33)*(1-'Input-Infra'!$W33)*AC$20,0) -> 0
G118: Spare 9 | I118: $'000 | K118: 0 | M118: ='Input-Infra'!AK34-Q118 -> 0 | Q118: 0 | S118: =IF(S$9=0,'Input-Infra'!$AN34*(1-'Input-Infra'!$U34)*(1-'Input-Infra'!$W34)*S$20,0) -> 0 | T118: =IF(T$9=0,'Input-Infra'!$AN34*(1-'Input-Infra'!$U34)*(1-'Input-Infra'!$W34)*T$20,0) -> 0 | U118: =IF(U$9=0,'Input-Infra'!$AN34*(1-'Input-Infra'!$U34)*(1-'Input-Infra'!$W34)*U$20,0) -> 0 | V118: =IF(V$9=0,'Input-Infra'!$AN34*(1-'Input-Infra'!$U34)*(1-'Input-Infra'!$W34)*V$20,0) -> 0 | W118: =IF(W$9=0,'Input-Infra'!$AN34*(1-'Input-Infra'!$U34)*(1-'Input-Infra'!$W34)*W$20,0) -> 0 | X118: =IF(X$9=0,'Input-Infra'!$AN34*(1-'Input-Infra'!$U34)*(1-'Input-Infra'!$W34)*X$20,0) -> 0 | Y118: =IF(Y$9=0,'Input-Infra'!$AN34*(1-'Input-Infra'!$U34)*(1-'Input-Infra'!$W34)*Y$20,0) -> 0 | Z118: =IF(Z$9=0,'Input-Infra'!$AN34*(1-'Input-Infra'!$U34)*(1-'Input-Infra'!$W34)*Z$20,0) -> 0 | AA118: =IF(AA$9=0,'Input-Infra'!$AN34*(1-'Input-Infra'!$U34)*(1-'Input-Infra'!$W34)*AA$20,0) -> 0 | AB118: =IF(AB$9=0,'Input-Infra'!$AN34*(1-'Input-Infra'!$U34)*(1-'Input-Infra'!$W34)*AB$20,0) -> 0 | AC118: =IF(AC$9=0,'Input-Infra'!$AN34*(1-'Input-Infra'!$U34)*(1-'Input-Infra'!$W34)*AC$20,0) -> 0
G119: Spare 10 | I119: $'000 | K119: 0 | M119: ='Input-Infra'!AK35-Q119 -> 0 | Q119: 0 | S119: =IF(S$9=0,'Input-Infra'!$AN35*(1-'Input-Infra'!$U35)*(1-'Input-Infra'!$W35)*S$20,0) -> 0 | T119: =IF(T$9=0,'Input-Infra'!$AN35*(1-'Input-Infra'!$U35)*(1-'Input-Infra'!$W35)*T$20,0) -> 0 | U119: =IF(U$9=0,'Input-Infra'!$AN35*(1-'Input-Infra'!$U35)*(1-'Input-Infra'!$W35)*U$20,0) -> 0 | V119: =IF(V$9=0,'Input-Infra'!$AN35*(1-'Input-Infra'!$U35)*(1-'Input-Infra'!$W35)*V$20,0) -> 0 | W119: =IF(W$9=0,'Input-Infra'!$AN35*(1-'Input-Infra'!$U35)*(1-'Input-Infra'!$W35)*W$20,0) -> 0 | X119: =IF(X$9=0,'Input-Infra'!$AN35*(1-'Input-Infra'!$U35)*(1-'Input-Infra'!$W35)*X$20,0) -> 0 | Y119: =IF(Y$9=0,'Input-Infra'!$AN35*(1-'Input-Infra'!$U35)*(1-'Input-Infra'!$W35)*Y$20,0) -> 0 | Z119: =IF(Z$9=0,'Input-Infra'!$AN35*(1-'Input-Infra'!$U35)*(1-'Input-Infra'!$W35)*Z$20,0) -> 0 | AA119: =IF(AA$9=0,'Input-Infra'!$AN35*(1-'Input-Infra'!$U35)*(1-'Input-Infra'!$W35)*AA$20,0) -> 0 | AB119: =IF(AB$9=0,'Input-Infra'!$AN35*(1-'Input-Infra'!$U35)*(1-'Input-Infra'!$W35)*AB$20,0) -> 0 | AC119: =IF(AC$9=0,'Input-Infra'!$AN35*(1-'Input-Infra'!$U35)*(1-'Input-Infra'!$W35)*AC$20,0) -> 0
G120: Spare 11 | I120: $'000 | K120: 0 | M120: ='Input-Infra'!AK36-Q120 -> 0 | Q120: 0 | S120: =IF(S$9=0,'Input-Infra'!$AN36*(1-'Input-Infra'!$U36)*(1-'Input-Infra'!$W36)*S$20,0) -> 0 | T120: =IF(T$9=0,'Input-Infra'!$AN36*(1-'Input-Infra'!$U36)*(1-'Input-Infra'!$W36)*T$20,0) -> 0 | U120: =IF(U$9=0,'Input-Infra'!$AN36*(1-'Input-Infra'!$U36)*(1-'Input-Infra'!$W36)*U$20,0) -> 0 | V120: =IF(V$9=0,'Input-Infra'!$AN36*(1-'Input-Infra'!$U36)*(1-'Input-Infra'!$W36)*V$20,0) -> 0 | W120: =IF(W$9=0,'Input-Infra'!$AN36*(1-'Input-Infra'!$U36)*(1-'Input-Infra'!$W36)*W$20,0) -> 0 | X120: =IF(X$9=0,'Input-Infra'!$AN36*(1-'Input-Infra'!$U36)*(1-'Input-Infra'!$W36)*X$20,0) -> 0 | Y120: =IF(Y$9=0,'Input-Infra'!$AN36*(1-'Input-Infra'!$U36)*(1-'Input-Infra'!$W36)*Y$20,0) -> 0 | Z120: =IF(Z$9=0,'Input-Infra'!$AN36*(1-'Input-Infra'!$U36)*(1-'Input-Infra'!$W36)*Z$20,0) -> 0 | AA120: =IF(AA$9=0,'Input-Infra'!$AN36*(1-'Input-Infra'!$U36)*(1-'Input-Infra'!$W36)*AA$20,0) -> 0 | AB120: =IF(AB$9=0,'Input-Infra'!$AN36*(1-'Input-Infra'!$U36)*(1-'Input-Infra'!$W36)*AB$20,0) -> 0 | AC120: =IF(AC$9=0,'Input-Infra'!$AN36*(1-'Input-Infra'!$U36)*(1-'Input-Infra'!$W36)*AC$20,0) -> 0
G121: Spare 12 | I121: $'000 | K121: 0 | M121: ='Input-Infra'!AK37-Q121 -> 0 | Q121: 0 | S121: =IF(S$9=0,'Input-Infra'!$AN37*(1-'Input-Infra'!$U37)*(1-'Input-Infra'!$W37)*S$20,0) -> 0 | T121: =IF(T$9=0,'Input-Infra'!$AN37*(1-'Input-Infra'!$U37)*(1-'Input-Infra'!$W37)*T$20,0) -> 0 | U121: =IF(U$9=0,'Input-Infra'!$AN37*(1-'Input-Infra'!$U37)*(1-'Input-Infra'!$W37)*U$20,0) -> 0 | V121: =IF(V$9=0,'Input-Infra'!$AN37*(1-'Input-Infra'!$U37)*(1-'Input-Infra'!$W37)*V$20,0) -> 0 | W121: =IF(W$9=0,'Input-Infra'!$AN37*(1-'Input-Infra'!$U37)*(1-'Input-Infra'!$W37)*W$20,0) -> 0 | X121: =IF(X$9=0,'Input-Infra'!$AN37*(1-'Input-Infra'!$U37)*(1-'Input-Infra'!$W37)*X$20,0) -> 0 | Y121: =IF(Y$9=0,'Input-Infra'!$AN37*(1-'Input-Infra'!$U37)*(1-'Input-Infra'!$W37)*Y$20,0) -> 0 | Z121: =IF(Z$9=0,'Input-Infra'!$AN37*(1-'Input-Infra'!$U37)*(1-'Input-Infra'!$W37)*Z$20,0) -> 0 | AA121: =IF(AA$9=0,'Input-Infra'!$AN37*(1-'Input-Infra'!$U37)*(1-'Input-Infra'!$W37)*AA$20,0) -> 0 | AB121: =IF(AB$9=0,'Input-Infra'!$AN37*(1-'Input-Infra'!$U37)*(1-'Input-Infra'!$W37)*AB$20,0) -> 0 | AC121: =IF(AC$9=0,'Input-Infra'!$AN37*(1-'Input-Infra'!$U37)*(1-'Input-Infra'!$W37)*AC$20,0) -> 0
G122: Spare 13 | I122: $'000 | K122: 0 | M122: ='Input-Infra'!AK38-Q122 -> 0 | Q122: 0 | S122: =IF(S$9=0,'Input-Infra'!$AN38*(1-'Input-Infra'!$U38)*(1-'Input-Infra'!$W38)*S$20,0) -> 0 | T122: =IF(T$9=0,'Input-Infra'!$AN38*(1-'Input-Infra'!$U38)*(1-'Input-Infra'!$W38)*T$20,0) -> 0 | U122: =IF(U$9=0,'Input-Infra'!$AN38*(1-'Input-Infra'!$U38)*(1-'Input-Infra'!$W38)*U$20,0) -> 0 | V122: =IF(V$9=0,'Input-Infra'!$AN38*(1-'Input-Infra'!$U38)*(1-'Input-Infra'!$W38)*V$20,0) -> 0 | W122: =IF(W$9=0,'Input-Infra'!$AN38*(1-'Input-Infra'!$U38)*(1-'Input-Infra'!$W38)*W$20,0) -> 0 | X122: =IF(X$9=0,'Input-Infra'!$AN38*(1-'Input-Infra'!$U38)*(1-'Input-Infra'!$W38)*X$20,0) -> 0 | Y122: =IF(Y$9=0,'Input-Infra'!$AN38*(1-'Input-Infra'!$U38)*(1-'Input-Infra'!$W38)*Y$20,0) -> 0 | Z122: =IF(Z$9=0,'Input-Infra'!$AN38*(1-'Input-Infra'!$U38)*(1-'Input-Infra'!$W38)*Z$20,0) -> 0 | AA122: =IF(AA$9=0,'Input-Infra'!$AN38*(1-'Input-Infra'!$U38)*(1-'Input-Infra'!$W38)*AA$20,0) -> 0 | AB122: =IF(AB$9=0,'Input-Infra'!$AN38*(1-'Input-Infra'!$U38)*(1-'Input-Infra'!$W38)*AB$20,0) -> 0 | AC122: =IF(AC$9=0,'Input-Infra'!$AN38*(1-'Input-Infra'!$U38)*(1-'Input-Infra'!$W38)*AC$20,0) -> 0
G123: Spare 14 | I123: $'000 | K123: 0 | M123: ='Input-Infra'!AK39-Q123 -> 0 | Q123: 0 | S123: =IF(S$9=0,'Input-Infra'!$AN39*(1-'Input-Infra'!$U39)*(1-'Input-Infra'!$W39)*S$20,0) -> 0 | T123: =IF(T$9=0,'Input-Infra'!$AN39*(1-'Input-Infra'!$U39)*(1-'Input-Infra'!$W39)*T$20,0) -> 0 | U123: =IF(U$9=0,'Input-Infra'!$AN39*(1-'Input-Infra'!$U39)*(1-'Input-Infra'!$W39)*U$20,0) -> 0 | V123: =IF(V$9=0,'Input-Infra'!$AN39*(1-'Input-Infra'!$U39)*(1-'Input-Infra'!$W39)*V$20,0) -> 0 | W123: =IF(W$9=0,'Input-Infra'!$AN39*(1-'Input-Infra'!$U39)*(1-'Input-Infra'!$W39)*W$20,0) -> 0 | X123: =IF(X$9=0,'Input-Infra'!$AN39*(1-'Input-Infra'!$U39)*(1-'Input-Infra'!$W39)*X$20,0) -> 0 | Y123: =IF(Y$9=0,'Input-Infra'!$AN39*(1-'Input-Infra'!$U39)*(1-'Input-Infra'!$W39)*Y$20,0) -> 0 | Z123: =IF(Z$9=0,'Input-Infra'!$AN39*(1-'Input-Infra'!$U39)*(1-'Input-Infra'!$W39)*Z$20,0) -> 0 | AA123: =IF(AA$9=0,'Input-Infra'!$AN39*(1-'Input-Infra'!$U39)*(1-'Input-Infra'!$W39)*AA$20,0) -> 0 | AB123: =IF(AB$9=0,'Input-Infra'!$AN39*(1-'Input-Infra'!$U39)*(1-'Input-Infra'!$W39)*AB$20,0) -> 0 | AC123: =IF(AC$9=0,'Input-Infra'!$AN39*(1-'Input-Infra'!$U39)*(1-'Input-Infra'!$W39)*AC$20,0) -> 0
G124: Spare 15 | I124: $'000 | K124: 0 | M124: ='Input-Infra'!AK40-Q124 -> 0 | Q124: 0 | S124: =IF(S$9=0,'Input-Infra'!$AN40*(1-'Input-Infra'!$U40)*(1-'Input-Infra'!$W40)*S$20,0) -> 0 | T124: =IF(T$9=0,'Input-Infra'!$AN40*(1-'Input-Infra'!$U40)*(1-'Input-Infra'!$W40)*T$20,0) -> 0 | U124: =IF(U$9=0,'Input-Infra'!$AN40*(1-'Input-Infra'!$U40)*(1-'Input-Infra'!$W40)*U$20,0) -> 0 | V124: =IF(V$9=0,'Input-Infra'!$AN40*(1-'Input-Infra'!$U40)*(1-'Input-Infra'!$W40)*V$20,0) -> 0 | W124: =IF(W$9=0,'Input-Infra'!$AN40*(1-'Input-Infra'!$U40)*(1-'Input-Infra'!$W40)*W$20,0) -> 0 | X124: =IF(X$9=0,'Input-Infra'!$AN40*(1-'Input-Infra'!$U40)*(1-'Input-Infra'!$W40)*X$20,0) -> 0 | Y124: =IF(Y$9=0,'Input-Infra'!$AN40*(1-'Input-Infra'!$U40)*(1-'Input-Infra'!$W40)*Y$20,0) -> 0 | Z124: =IF(Z$9=0,'Input-Infra'!$AN40*(1-'Input-Infra'!$U40)*(1-'Input-Infra'!$W40)*Z$20,0) -> 0 | AA124: =IF(AA$9=0,'Input-Infra'!$AN40*(1-'Input-Infra'!$U40)*(1-'Input-Infra'!$W40)*AA$20,0) -> 0 | AB124: =IF(AB$9=0,'Input-Infra'!$AN40*(1-'Input-Infra'!$U40)*(1-'Input-Infra'!$W40)*AB$20,0) -> 0 | AC124: =IF(AC$9=0,'Input-Infra'!$AN40*(1-'Input-Infra'!$U40)*(1-'Input-Infra'!$W40)*AC$20,0) -> 0
G125: Spare 16 | I125: $'000 | K125: 0 | M125: ='Input-Infra'!AK41-Q125 -> 0 | Q125: 0 | S125: =IF(S$9=0,'Input-Infra'!$AN41*(1-'Input-Infra'!$U41)*(1-'Input-Infra'!$W41)*S$20,0) -> 0 | T125: =IF(T$9=0,'Input-Infra'!$AN41*(1-'Input-Infra'!$U41)*(1-'Input-Infra'!$W41)*T$20,0) -> 0 | U125: =IF(U$9=0,'Input-Infra'!$AN41*(1-'Input-Infra'!$U41)*(1-'Input-Infra'!$W41)*U$20,0) -> 0 | V125: =IF(V$9=0,'Input-Infra'!$AN41*(1-'Input-Infra'!$U41)*(1-'Input-Infra'!$W41)*V$20,0) -> 0 | W125: =IF(W$9=0,'Input-Infra'!$AN41*(1-'Input-Infra'!$U41)*(1-'Input-Infra'!$W41)*W$20,0) -> 0 | X125: =IF(X$9=0,'Input-Infra'!$AN41*(1-'Input-Infra'!$U41)*(1-'Input-Infra'!$W41)*X$20,0) -> 0 | Y125: =IF(Y$9=0,'Input-Infra'!$AN41*(1-'Input-Infra'!$U41)*(1-'Input-Infra'!$W41)*Y$20,0) -> 0 | Z125: =IF(Z$9=0,'Input-Infra'!$AN41*(1-'Input-Infra'!$U41)*(1-'Input-Infra'!$W41)*Z$20,0) -> 0 | AA125: =IF(AA$9=0,'Input-Infra'!$AN41*(1-'Input-Infra'!$U41)*(1-'Input-Infra'!$W41)*AA$20,0) -> 0 | AB125: =IF(AB$9=0,'Input-Infra'!$AN41*(1-'Input-Infra'!$U41)*(1-'Input-Infra'!$W41)*AB$20,0) -> 0 | AC125: =IF(AC$9=0,'Input-Infra'!$AN41*(1-'Input-Infra'!$U41)*(1-'Input-Infra'!$W41)*AC$20,0) -> 0
G126: Spare 17 | I126: $'000 | K126: 0 | M126: ='Input-Infra'!AK42-Q126 -> 0 | Q126: 0 | S126: =IF(S$9=0,'Input-Infra'!$AN42*(1-'Input-Infra'!$U42)*(1-'Input-Infra'!$W42)*S$20,0) -> 0 | T126: =IF(T$9=0,'Input-Infra'!$AN42*(1-'Input-Infra'!$U42)*(1-'Input-Infra'!$W42)*T$20,0) -> 0 | U126: =IF(U$9=0,'Input-Infra'!$AN42*(1-'Input-Infra'!$U42)*(1-'Input-Infra'!$W42)*U$20,0) -> 0 | V126: =IF(V$9=0,'Input-Infra'!$AN42*(1-'Input-Infra'!$U42)*(1-'Input-Infra'!$W42)*V$20,0) -> 0 | W126: =IF(W$9=0,'Input-Infra'!$AN42*(1-'Input-Infra'!$U42)*(1-'Input-Infra'!$W42)*W$20,0) -> 0 | X126: =IF(X$9=0,'Input-Infra'!$AN42*(1-'Input-Infra'!$U42)*(1-'Input-Infra'!$W42)*X$20,0) -> 0 | Y126: =IF(Y$9=0,'Input-Infra'!$AN42*(1-'Input-Infra'!$U42)*(1-'Input-Infra'!$W42)*Y$20,0) -> 0 | Z126: =IF(Z$9=0,'Input-Infra'!$AN42*(1-'Input-Infra'!$U42)*(1-'Input-Infra'!$W42)*Z$20,0) -> 0 | AA126: =IF(AA$9=0,'Input-Infra'!$AN42*(1-'Input-Infra'!$U42)*(1-'Input-Infra'!$W42)*AA$20,0) -> 0 | AB126: =IF(AB$9=0,'Input-Infra'!$AN42*(1-'Input-Infra'!$U42)*(1-'Input-Infra'!$W42)*AB$20,0) -> 0 | AC126: =IF(AC$9=0,'Input-Infra'!$AN42*(1-'Input-Infra'!$U42)*(1-'Input-Infra'!$W42)*AC$20,0) -> 0
G127: Spare 18 | I127: $'000 | K127: 0 | M127: ='Input-Infra'!AK43-Q127 -> 0 | Q127: 0 | S127: =IF(S$9=0,'Input-Infra'!$AN43*(1-'Input-Infra'!$U43)*(1-'Input-Infra'!$W43)*S$20,0) -> 0 | T127: =IF(T$9=0,'Input-Infra'!$AN43*(1-'Input-Infra'!$U43)*(1-'Input-Infra'!$W43)*T$20,0) -> 0 | U127: =IF(U$9=0,'Input-Infra'!$AN43*(1-'Input-Infra'!$U43)*(1-'Input-Infra'!$W43)*U$20,0) -> 0 | V127: =IF(V$9=0,'Input-Infra'!$AN43*(1-'Input-Infra'!$U43)*(1-'Input-Infra'!$W43)*V$20,0) -> 0 | W127: =IF(W$9=0,'Input-Infra'!$AN43*(1-'Input-Infra'!$U43)*(1-'Input-Infra'!$W43)*W$20,0) -> 0 | X127: =IF(X$9=0,'Input-Infra'!$AN43*(1-'Input-Infra'!$U43)*(1-'Input-Infra'!$W43)*X$20,0) -> 0 | Y127: =IF(Y$9=0,'Input-Infra'!$AN43*(1-'Input-Infra'!$U43)*(1-'Input-Infra'!$W43)*Y$20,0) -> 0 | Z127: =IF(Z$9=0,'Input-Infra'!$AN43*(1-'Input-Infra'!$U43)*(1-'Input-Infra'!$W43)*Z$20,0) -> 0 | AA127: =IF(AA$9=0,'Input-Infra'!$AN43*(1-'Input-Infra'!$U43)*(1-'Input-Infra'!$W43)*AA$20,0) -> 0 | AB127: =IF(AB$9=0,'Input-Infra'!$AN43*(1-'Input-Infra'!$U43)*(1-'Input-Infra'!$W43)*AB$20,0) -> 0 | AC127: =IF(AC$9=0,'Input-Infra'!$AN43*(1-'Input-Infra'!$U43)*(1-'Input-Infra'!$W43)*AC$20,0) -> 0
G128: Spare 19 | I128: $'000 | K128: 0 | M128: ='Input-Infra'!AK44-Q128 -> 0 | Q128: 0 | S128: =IF(S$9=0,'Input-Infra'!$AN44*(1-'Input-Infra'!$U44)*(1-'Input-Infra'!$W44)*S$20,0) -> 0 | T128: =IF(T$9=0,'Input-Infra'!$AN44*(1-'Input-Infra'!$U44)*(1-'Input-Infra'!$W44)*T$20,0) -> 0 | U128: =IF(U$9=0,'Input-Infra'!$AN44*(1-'Input-Infra'!$U44)*(1-'Input-Infra'!$W44)*U$20,0) -> 0 | V128: =IF(V$9=0,'Input-Infra'!$AN44*(1-'Input-Infra'!$U44)*(1-'Input-Infra'!$W44)*V$20,0) -> 0 | W128: =IF(W$9=0,'Input-Infra'!$AN44*(1-'Input-Infra'!$U44)*(1-'Input-Infra'!$W44)*W$20,0) -> 0 | X128: =IF(X$9=0,'Input-Infra'!$AN44*(1-'Input-Infra'!$U44)*(1-'Input-Infra'!$W44)*X$20,0) -> 0 | Y128: =IF(Y$9=0,'Input-Infra'!$AN44*(1-'Input-Infra'!$U44)*(1-'Input-Infra'!$W44)*Y$20,0) -> 0 | Z128: =IF(Z$9=0,'Input-Infra'!$AN44*(1-'Input-Infra'!$U44)*(1-'Input-Infra'!$W44)*Z$20,0) -> 0 | AA128: =IF(AA$9=0,'Input-Infra'!$AN44*(1-'Input-Infra'!$U44)*(1-'Input-Infra'!$W44)*AA$20,0) -> 0 | AB128: =IF(AB$9=0,'Input-Infra'!$AN44*(1-'Input-Infra'!$U44)*(1-'Input-Infra'!$W44)*AB$20,0) -> 0 | AC128: =IF(AC$9=0,'Input-Infra'!$AN44*(1-'Input-Infra'!$U44)*(1-'Input-Infra'!$W44)*AC$20,0) -> 0
G129: Spare 20 | I129: $'000 | K129: 0 | M129: ='Input-Infra'!AK45-Q129 -> 0 | Q129: 0 | S129: =IF(S$9=0,'Input-Infra'!$AN45*(1-'Input-Infra'!$U45)*(1-'Input-Infra'!$W45)*S$20,0) -> 0 | T129: =IF(T$9=0,'Input-Infra'!$AN45*(1-'Input-Infra'!$U45)*(1-'Input-Infra'!$W45)*T$20,0) -> 0 | U129: =IF(U$9=0,'Input-Infra'!$AN45*(1-'Input-Infra'!$U45)*(1-'Input-Infra'!$W45)*U$20,0) -> 0 | V129: =IF(V$9=0,'Input-Infra'!$AN45*(1-'Input-Infra'!$U45)*(1-'Input-Infra'!$W45)*V$20,0) -> 0 | W129: =IF(W$9=0,'Input-Infra'!$AN45*(1-'Input-Infra'!$U45)*(1-'Input-Infra'!$W45)*W$20,0) -> 0 | X129: =IF(X$9=0,'Input-Infra'!$AN45*(1-'Input-Infra'!$U45)*(1-'Input-Infra'!$W45)*X$20,0) -> 0 | Y129: =IF(Y$9=0,'Input-Infra'!$AN45*(1-'Input-Infra'!$U45)*(1-'Input-Infra'!$W45)*Y$20,0) -> 0 | Z129: =IF(Z$9=0,'Input-Infra'!$AN45*(1-'Input-Infra'!$U45)*(1-'Input-Infra'!$W45)*Z$20,0) -> 0 | AA129: =IF(AA$9=0,'Input-Infra'!$AN45*(1-'Input-Infra'!$U45)*(1-'Input-Infra'!$W45)*AA$20,0) -> 0 | AB129: =IF(AB$9=0,'Input-Infra'!$AN45*(1-'Input-Infra'!$U45)*(1-'Input-Infra'!$W45)*AB$20,0) -> 0 | AC129: =IF(AC$9=0,'Input-Infra'!$AN45*(1-'Input-Infra'!$U45)*(1-'Input-Infra'!$W45)*AC$20,0) -> 0
G130: Spare 21 | I130: $'000 | K130: 0 | M130: ='Input-Infra'!AK46-Q130 -> 0 | Q130: 0 | S130: =IF(S$9=0,'Input-Infra'!$AN46*(1-'Input-Infra'!$U46)*(1-'Input-Infra'!$W46)*S$20,0) -> 0 | T130: =IF(T$9=0,'Input-Infra'!$AN46*(1-'Input-Infra'!$U46)*(1-'Input-Infra'!$W46)*T$20,0) -> 0 | U130: =IF(U$9=0,'Input-Infra'!$AN46*(1-'Input-Infra'!$U46)*(1-'Input-Infra'!$W46)*U$20,0) -> 0 | V130: =IF(V$9=0,'Input-Infra'!$AN46*(1-'Input-Infra'!$U46)*(1-'Input-Infra'!$W46)*V$20,0) -> 0 | W130: =IF(W$9=0,'Input-Infra'!$AN46*(1-'Input-Infra'!$U46)*(1-'Input-Infra'!$W46)*W$20,0) -> 0 | X130: =IF(X$9=0,'Input-Infra'!$AN46*(1-'Input-Infra'!$U46)*(1-'Input-Infra'!$W46)*X$20,0) -> 0 | Y130: =IF(Y$9=0,'Input-Infra'!$AN46*(1-'Input-Infra'!$U46)*(1-'Input-Infra'!$W46)*Y$20,0) -> 0 | Z130: =IF(Z$9=0,'Input-Infra'!$AN46*(1-'Input-Infra'!$U46)*(1-'Input-Infra'!$W46)*Z$20,0) -> 0 | AA130: =IF(AA$9=0,'Input-Infra'!$AN46*(1-'Input-Infra'!$U46)*(1-'Input-Infra'!$W46)*AA$20,0) -> 0 | AB130: =IF(AB$9=0,'Input-Infra'!$AN46*(1-'Input-Infra'!$U46)*(1-'Input-Infra'!$W46)*AB$20,0) -> 0 | AC130: =IF(AC$9=0,'Input-Infra'!$AN46*(1-'Input-Infra'!$U46)*(1-'Input-Infra'!$W46)*AC$20,0) -> 0
G131: Spare 22 | I131: $'000 | K131: 0 | M131: ='Input-Infra'!AK47-Q131 -> 0 | Q131: 0 | S131: =IF(S$9=0,'Input-Infra'!$AN47*(1-'Input-Infra'!$U47)*(1-'Input-Infra'!$W47)*S$20,0) -> 0 | T131: =IF(T$9=0,'Input-Infra'!$AN47*(1-'Input-Infra'!$U47)*(1-'Input-Infra'!$W47)*T$20,0) -> 0 | U131: =IF(U$9=0,'Input-Infra'!$AN47*(1-'Input-Infra'!$U47)*(1-'Input-Infra'!$W47)*U$20,0) -> 0 | V131: =IF(V$9=0,'Input-Infra'!$AN47*(1-'Input-Infra'!$U47)*(1-'Input-Infra'!$W47)*V$20,0) -> 0 | W131: =IF(W$9=0,'Input-Infra'!$AN47*(1-'Input-Infra'!$U47)*(1-'Input-Infra'!$W47)*W$20,0) -> 0 | X131: =IF(X$9=0,'Input-Infra'!$AN47*(1-'Input-Infra'!$U47)*(1-'Input-Infra'!$W47)*X$20,0) -> 0 | Y131: =IF(Y$9=0,'Input-Infra'!$AN47*(1-'Input-Infra'!$U47)*(1-'Input-Infra'!$W47)*Y$20,0) -> 0 | Z131: =IF(Z$9=0,'Input-Infra'!$AN47*(1-'Input-Infra'!$U47)*(1-'Input-Infra'!$W47)*Z$20,0) -> 0 | AA131: =IF(AA$9=0,'Input-Infra'!$AN47*(1-'Input-Infra'!$U47)*(1-'Input-Infra'!$W47)*AA$20,0) -> 0 | AB131: =IF(AB$9=0,'Input-Infra'!$AN47*(1-'Input-Infra'!$U47)*(1-'Input-Infra'!$W47)*AB$20,0) -> 0 | AC131: =IF(AC$9=0,'Input-Infra'!$AN47*(1-'Input-Infra'!$U47)*(1-'Input-Infra'!$W47)*AC$20,0) -> 0
G132: Spare 23 | I132: $'000 | K132: 0 | M132: ='Input-Infra'!AK48-Q132 -> 0 | Q132: 0 | S132: =IF(S$9=0,'Input-Infra'!$AN48*(1-'Input-Infra'!$U48)*(1-'Input-Infra'!$W48)*S$20,0) -> 0 | T132: =IF(T$9=0,'Input-Infra'!$AN48*(1-'Input-Infra'!$U48)*(1-'Input-Infra'!$W48)*T$20,0) -> 0 | U132: =IF(U$9=0,'Input-Infra'!$AN48*(1-'Input-Infra'!$U48)*(1-'Input-Infra'!$W48)*U$20,0) -> 0 | V132: =IF(V$9=0,'Input-Infra'!$AN48*(1-'Input-Infra'!$U48)*(1-'Input-Infra'!$W48)*V$20,0) -> 0 | W132: =IF(W$9=0,'Input-Infra'!$AN48*(1-'Input-Infra'!$U48)*(1-'Input-Infra'!$W48)*W$20,0) -> 0 | X132: =IF(X$9=0,'Input-Infra'!$AN48*(1-'Input-Infra'!$U48)*(1-'Input-Infra'!$W48)*X$20,0) -> 0 | Y132: =IF(Y$9=0,'Input-Infra'!$AN48*(1-'Input-Infra'!$U48)*(1-'Input-Infra'!$W48)*Y$20,0) -> 0 | Z132: =IF(Z$9=0,'Input-Infra'!$AN48*(1-'Input-Infra'!$U48)*(1-'Input-Infra'!$W48)*Z$20,0) -> 0 | AA132: =IF(AA$9=0,'Input-Infra'!$AN48*(1-'Input-Infra'!$U48)*(1-'Input-Infra'!$W48)*AA$20,0) -> 0 | AB132: =IF(AB$9=0,'Input-Infra'!$AN48*(1-'Input-Infra'!$U48)*(1-'Input-Infra'!$W48)*AB$20,0) -> 0 | AC132: =IF(AC$9=0,'Input-Infra'!$AN48*(1-'Input-Infra'!$U48)*(1-'Input-Infra'!$W48)*AC$20,0) -> 0
G133: Spare 24 | I133: $'000 | K133: 0 | M133: ='Input-Infra'!AK49-Q133 -> 0 | Q133: 0 | S133: =IF(S$9=0,'Input-Infra'!$AN49*(1-'Input-Infra'!$U49)*(1-'Input-Infra'!$W49)*S$20,0) -> 0 | T133: =IF(T$9=0,'Input-Infra'!$AN49*(1-'Input-Infra'!$U49)*(1-'Input-Infra'!$W49)*T$20,0) -> 0 | U133: =IF(U$9=0,'Input-Infra'!$AN49*(1-'Input-Infra'!$U49)*(1-'Input-Infra'!$W49)*U$20,0) -> 0 | V133: =IF(V$9=0,'Input-Infra'!$AN49*(1-'Input-Infra'!$U49)*(1-'Input-Infra'!$W49)*V$20,0) -> 0 | W133: =IF(W$9=0,'Input-Infra'!$AN49*(1-'Input-Infra'!$U49)*(1-'Input-Infra'!$W49)*W$20,0) -> 0 | X133: =IF(X$9=0,'Input-Infra'!$AN49*(1-'Input-Infra'!$U49)*(1-'Input-Infra'!$W49)*X$20,0) -> 0 | Y133: =IF(Y$9=0,'Input-Infra'!$AN49*(1-'Input-Infra'!$U49)*(1-'Input-Infra'!$W49)*Y$20,0) -> 0 | Z133: =IF(Z$9=0,'Input-Infra'!$AN49*(1-'Input-Infra'!$U49)*(1-'Input-Infra'!$W49)*Z$20,0) -> 0 | AA133: =IF(AA$9=0,'Input-Infra'!$AN49*(1-'Input-Infra'!$U49)*(1-'Input-Infra'!$W49)*AA$20,0) -> 0 | AB133: =IF(AB$9=0,'Input-Infra'!$AN49*(1-'Input-Infra'!$U49)*(1-'Input-Infra'!$W49)*AB$20,0) -> 0 | AC133: =IF(AC$9=0,'Input-Infra'!$AN49*(1-'Input-Infra'!$U49)*(1-'Input-Infra'!$W49)*AC$20,0) -> 0
G134: Spare 25 | I134: $'000 | K134: 0 | M134: ='Input-Infra'!AK50-Q134 -> 0 | Q134: 0 | S134: =IF(S$9=0,'Input-Infra'!$AN50*(1-'Input-Infra'!$U50)*(1-'Input-Infra'!$W50)*S$20,0) -> 0 | T134: =IF(T$9=0,'Input-Infra'!$AN50*(1-'Input-Infra'!$U50)*(1-'Input-Infra'!$W50)*T$20,0) -> 0 | U134: =IF(U$9=0,'Input-Infra'!$AN50*(1-'Input-Infra'!$U50)*(1-'Input-Infra'!$W50)*U$20,0) -> 0 | V134: =IF(V$9=0,'Input-Infra'!$AN50*(1-'Input-Infra'!$U50)*(1-'Input-Infra'!$W50)*V$20,0) -> 0 | W134: =IF(W$9=0,'Input-Infra'!$AN50*(1-'Input-Infra'!$U50)*(1-'Input-Infra'!$W50)*W$20,0) -> 0 | X134: =IF(X$9=0,'Input-Infra'!$AN50*(1-'Input-Infra'!$U50)*(1-'Input-Infra'!$W50)*X$20,0) -> 0 | Y134: =IF(Y$9=0,'Input-Infra'!$AN50*(1-'Input-Infra'!$U50)*(1-'Input-Infra'!$W50)*Y$20,0) -> 0 | Z134: =IF(Z$9=0,'Input-Infra'!$AN50*(1-'Input-Infra'!$U50)*(1-'Input-Infra'!$W50)*Z$20,0) -> 0 | AA134: =IF(AA$9=0,'Input-Infra'!$AN50*(1-'Input-Infra'!$U50)*(1-'Input-Infra'!$W50)*AA$20,0) -> 0 | AB134: =IF(AB$9=0,'Input-Infra'!$AN50*(1-'Input-Infra'!$U50)*(1-'Input-Infra'!$W50)*AB$20,0) -> 0 | AC134: =IF(AC$9=0,'Input-Infra'!$AN50*(1-'Input-Infra'!$U50)*(1-'Input-Infra'!$W50)*AC$20,0) -> 0
G135: Spare 26 | I135: $'000 | K135: 0 | M135: ='Input-Infra'!AK51-Q135 -> 0 | Q135: 0 | S135: =IF(S$9=0,'Input-Infra'!$AN51*(1-'Input-Infra'!$U51)*(1-'Input-Infra'!$W51)*S$20,0) -> 0 | T135: =IF(T$9=0,'Input-Infra'!$AN51*(1-'Input-Infra'!$U51)*(1-'Input-Infra'!$W51)*T$20,0) -> 0 | U135: =IF(U$9=0,'Input-Infra'!$AN51*(1-'Input-Infra'!$U51)*(1-'Input-Infra'!$W51)*U$20,0) -> 0 | V135: =IF(V$9=0,'Input-Infra'!$AN51*(1-'Input-Infra'!$U51)*(1-'Input-Infra'!$W51)*V$20,0) -> 0 | W135: =IF(W$9=0,'Input-Infra'!$AN51*(1-'Input-Infra'!$U51)*(1-'Input-Infra'!$W51)*W$20,0) -> 0 | X135: =IF(X$9=0,'Input-Infra'!$AN51*(1-'Input-Infra'!$U51)*(1-'Input-Infra'!$W51)*X$20,0) -> 0 | Y135: =IF(Y$9=0,'Input-Infra'!$AN51*(1-'Input-Infra'!$U51)*(1-'Input-Infra'!$W51)*Y$20,0) -> 0 | Z135: =IF(Z$9=0,'Input-Infra'!$AN51*(1-'Input-Infra'!$U51)*(1-'Input-Infra'!$W51)*Z$20,0) -> 0 | AA135: =IF(AA$9=0,'Input-Infra'!$AN51*(1-'Input-Infra'!$U51)*(1-'Input-Infra'!$W51)*AA$20,0) -> 0 | AB135: =IF(AB$9=0,'Input-Infra'!$AN51*(1-'Input-Infra'!$U51)*(1-'Input-Infra'!$W51)*AB$20,0) -> 0 | AC135: =IF(AC$9=0,'Input-Infra'!$AN51*(1-'Input-Infra'!$U51)*(1-'Input-Infra'!$W51)*AC$20,0) -> 0
G136: Spare 27 | I136: $'000 | K136: 0 | M136: ='Input-Infra'!AK52-Q136 -> 0 | Q136: 0 | S136: =IF(S$9=0,'Input-Infra'!$AN52*(1-'Input-Infra'!$U52)*(1-'Input-Infra'!$W52)*S$20,0) -> 0 | T136: =IF(T$9=0,'Input-Infra'!$AN52*(1-'Input-Infra'!$U52)*(1-'Input-Infra'!$W52)*T$20,0) -> 0 | U136: =IF(U$9=0,'Input-Infra'!$AN52*(1-'Input-Infra'!$U52)*(1-'Input-Infra'!$W52)*U$20,0) -> 0 | V136: =IF(V$9=0,'Input-Infra'!$AN52*(1-'Input-Infra'!$U52)*(1-'Input-Infra'!$W52)*V$20,0) -> 0 | W136: =IF(W$9=0,'Input-Infra'!$AN52*(1-'Input-Infra'!$U52)*(1-'Input-Infra'!$W52)*W$20,0) -> 0 | X136: =IF(X$9=0,'Input-Infra'!$AN52*(1-'Input-Infra'!$U52)*(1-'Input-Infra'!$W52)*X$20,0) -> 0 | Y136: =IF(Y$9=0,'Input-Infra'!$AN52*(1-'Input-Infra'!$U52)*(1-'Input-Infra'!$W52)*Y$20,0) -> 0 | Z136: =IF(Z$9=0,'Input-Infra'!$AN52*(1-'Input-Infra'!$U52)*(1-'Input-Infra'!$W52)*Z$20,0) -> 0 | AA136: =IF(AA$9=0,'Input-Infra'!$AN52*(1-'Input-Infra'!$U52)*(1-'Input-Infra'!$W52)*AA$20,0) -> 0 | AB136: =IF(AB$9=0,'Input-Infra'!$AN52*(1-'Input-Infra'!$U52)*(1-'Input-Infra'!$W52)*AB$20,0) -> 0 | AC136: =IF(AC$9=0,'Input-Infra'!$AN52*(1-'Input-Infra'!$U52)*(1-'Input-Infra'!$W52)*AC$20,0) -> 0
G137: Spare 28 | I137: $'000 | K137: 0 | M137: ='Input-Infra'!AK53-Q137 -> 0 | Q137: 0 | S137: =IF(S$9=0,'Input-Infra'!$AN53*(1-'Input-Infra'!$U53)*(1-'Input-Infra'!$W53)*S$20,0) -> 0 | T137: =IF(T$9=0,'Input-Infra'!$AN53*(1-'Input-Infra'!$U53)*(1-'Input-Infra'!$W53)*T$20,0) -> 0 | U137: =IF(U$9=0,'Input-Infra'!$AN53*(1-'Input-Infra'!$U53)*(1-'Input-Infra'!$W53)*U$20,0) -> 0 | V137: =IF(V$9=0,'Input-Infra'!$AN53*(1-'Input-Infra'!$U53)*(1-'Input-Infra'!$W53)*V$20,0) -> 0 | W137: =IF(W$9=0,'Input-Infra'!$AN53*(1-'Input-Infra'!$U53)*(1-'Input-Infra'!$W53)*W$20,0) -> 0 | X137: =IF(X$9=0,'Input-Infra'!$AN53*(1-'Input-Infra'!$U53)*(1-'Input-Infra'!$W53)*X$20,0) -> 0 | Y137: =IF(Y$9=0,'Input-Infra'!$AN53*(1-'Input-Infra'!$U53)*(1-'Input-Infra'!$W53)*Y$20,0) -> 0 | Z137: =IF(Z$9=0,'Input-Infra'!$AN53*(1-'Input-Infra'!$U53)*(1-'Input-Infra'!$W53)*Z$20,0) -> 0 | AA137: =IF(AA$9=0,'Input-Infra'!$AN53*(1-'Input-Infra'!$U53)*(1-'Input-Infra'!$W53)*AA$20,0) -> 0 | AB137: =IF(AB$9=0,'Input-Infra'!$AN53*(1-'Input-Infra'!$U53)*(1-'Input-Infra'!$W53)*AB$20,0) -> 0 | AC137: =IF(AC$9=0,'Input-Infra'!$AN53*(1-'Input-Infra'!$U53)*(1-'Input-Infra'!$W53)*AC$20,0) -> 0
G138: Spare 29 | I138: $'000 | K138: 0 | M138: ='Input-Infra'!AK54-Q138 -> 0 | Q138: 0 | S138: =IF(S$9=0,'Input-Infra'!$AN54*(1-'Input-Infra'!$U54)*(1-'Input-Infra'!$W54)*S$20,0) -> 0 | T138: =IF(T$9=0,'Input-Infra'!$AN54*(1-'Input-Infra'!$U54)*(1-'Input-Infra'!$W54)*T$20,0) -> 0 | U138: =IF(U$9=0,'Input-Infra'!$AN54*(1-'Input-Infra'!$U54)*(1-'Input-Infra'!$W54)*U$20,0) -> 0 | V138: =IF(V$9=0,'Input-Infra'!$AN54*(1-'Input-Infra'!$U54)*(1-'Input-Infra'!$W54)*V$20,0) -> 0 | W138: =IF(W$9=0,'Input-Infra'!$AN54*(1-'Input-Infra'!$U54)*(1-'Input-Infra'!$W54)*W$20,0) -> 0 | X138: =IF(X$9=0,'Input-Infra'!$AN54*(1-'Input-Infra'!$U54)*(1-'Input-Infra'!$W54)*X$20,0) -> 0 | Y138: =IF(Y$9=0,'Input-Infra'!$AN54*(1-'Input-Infra'!$U54)*(1-'Input-Infra'!$W54)*Y$20,0) -> 0 | Z138: =IF(Z$9=0,'Input-Infra'!$AN54*(1-'Input-Infra'!$U54)*(1-'Input-Infra'!$W54)*Z$20,0) -> 0 | AA138: =IF(AA$9=0,'Input-Infra'!$AN54*(1-'Input-Infra'!$U54)*(1-'Input-Infra'!$W54)*AA$20,0) -> 0 | AB138: =IF(AB$9=0,'Input-Infra'!$AN54*(1-'Input-Infra'!$U54)*(1-'Input-Infra'!$W54)*AB$20,0) -> 0 | AC138: =IF(AC$9=0,'Input-Infra'!$AN54*(1-'Input-Infra'!$U54)*(1-'Input-Infra'!$W54)*AC$20,0) -> 0
G139: Spare 30 | I139: $'000 | K139: 0 | M139: ='Input-Infra'!AK55-Q139 -> 0 | Q139: 0 | S139: =IF(S$9=0,'Input-Infra'!$AN55*(1-'Input-Infra'!$U55)*(1-'Input-Infra'!$W55)*S$20,0) -> 0 | T139: =IF(T$9=0,'Input-Infra'!$AN55*(1-'Input-Infra'!$U55)*(1-'Input-Infra'!$W55)*T$20,0) -> 0 | U139: =IF(U$9=0,'Input-Infra'!$AN55*(1-'Input-Infra'!$U55)*(1-'Input-Infra'!$W55)*U$20,0) -> 0 | V139: =IF(V$9=0,'Input-Infra'!$AN55*(1-'Input-Infra'!$U55)*(1-'Input-Infra'!$W55)*V$20,0) -> 0 | W139: =IF(W$9=0,'Input-Infra'!$AN55*(1-'Input-Infra'!$U55)*(1-'Input-Infra'!$W55)*W$20,0) -> 0 | X139: =IF(X$9=0,'Input-Infra'!$AN55*(1-'Input-Infra'!$U55)*(1-'Input-Infra'!$W55)*X$20,0) -> 0 | Y139: =IF(Y$9=0,'Input-Infra'!$AN55*(1-'Input-Infra'!$U55)*(1-'Input-Infra'!$W55)*Y$20,0) -> 0 | Z139: =IF(Z$9=0,'Input-Infra'!$AN55*(1-'Input-Infra'!$U55)*(1-'Input-Infra'!$W55)*Z$20,0) -> 0 | AA139: =IF(AA$9=0,'Input-Infra'!$AN55*(1-'Input-Infra'!$U55)*(1-'Input-Infra'!$W55)*AA$20,0) -> 0 | AB139: =IF(AB$9=0,'Input-Infra'!$AN55*(1-'Input-Infra'!$U55)*(1-'Input-Infra'!$W55)*AB$20,0) -> 0 | AC139: =IF(AC$9=0,'Input-Infra'!$AN55*(1-'Input-Infra'!$U55)*(1-'Input-Infra'!$W55)*AC$20,0) -> 0
G140: Spare 31 | I140: $'000 | K140: 0 | M140: ='Input-Infra'!AK56-Q140 -> 0 | Q140: 0 | S140: =IF(S$9=0,'Input-Infra'!$AN56*(1-'Input-Infra'!$U56)*(1-'Input-Infra'!$W56)*S$20,0) -> 0 | T140: =IF(T$9=0,'Input-Infra'!$AN56*(1-'Input-Infra'!$U56)*(1-'Input-Infra'!$W56)*T$20,0) -> 0 | U140: =IF(U$9=0,'Input-Infra'!$AN56*(1-'Input-Infra'!$U56)*(1-'Input-Infra'!$W56)*U$20,0) -> 0 | V140: =IF(V$9=0,'Input-Infra'!$AN56*(1-'Input-Infra'!$U56)*(1-'Input-Infra'!$W56)*V$20,0) -> 0 | W140: =IF(W$9=0,'Input-Infra'!$AN56*(1-'Input-Infra'!$U56)*(1-'Input-Infra'!$W56)*W$20,0) -> 0 | X140: =IF(X$9=0,'Input-Infra'!$AN56*(1-'Input-Infra'!$U56)*(1-'Input-Infra'!$W56)*X$20,0) -> 0 | Y140: =IF(Y$9=0,'Input-Infra'!$AN56*(1-'Input-Infra'!$U56)*(1-'Input-Infra'!$W56)*Y$20,0) -> 0 | Z140: =IF(Z$9=0,'Input-Infra'!$AN56*(1-'Input-Infra'!$U56)*(1-'Input-Infra'!$W56)*Z$20,0) -> 0 | AA140: =IF(AA$9=0,'Input-Infra'!$AN56*(1-'Input-Infra'!$U56)*(1-'Input-Infra'!$W56)*AA$20,0) -> 0 | AB140: =IF(AB$9=0,'Input-Infra'!$AN56*(1-'Input-Infra'!$U56)*(1-'Input-Infra'!$W56)*AB$20,0) -> 0 | AC140: =IF(AC$9=0,'Input-Infra'!$AN56*(1-'Input-Infra'!$U56)*(1-'Input-Infra'!$W56)*AC$20,0) -> 0
G141: Spare 32 | I141: $'000 | K141: 0 | M141: ='Input-Infra'!AK57-Q141 -> 0 | Q141: 0 | S141: =IF(S$9=0,'Input-Infra'!$AN57*(1-'Input-Infra'!$U57)*(1-'Input-Infra'!$W57)*S$20,0) -> 0 | T141: =IF(T$9=0,'Input-Infra'!$AN57*(1-'Input-Infra'!$U57)*(1-'Input-Infra'!$W57)*T$20,0) -> 0 | U141: =IF(U$9=0,'Input-Infra'!$AN57*(1-'Input-Infra'!$U57)*(1-'Input-Infra'!$W57)*U$20,0) -> 0 | V141: =IF(V$9=0,'Input-Infra'!$AN57*(1-'Input-Infra'!$U57)*(1-'Input-Infra'!$W57)*V$20,0) -> 0 | W141: =IF(W$9=0,'Input-Infra'!$AN57*(1-'Input-Infra'!$U57)*(1-'Input-Infra'!$W57)*W$20,0) -> 0 | X141: =IF(X$9=0,'Input-Infra'!$AN57*(1-'Input-Infra'!$U57)*(1-'Input-Infra'!$W57)*X$20,0) -> 0 | Y141: =IF(Y$9=0,'Input-Infra'!$AN57*(1-'Input-Infra'!$U57)*(1-'Input-Infra'!$W57)*Y$20,0) -> 0 | Z141: =IF(Z$9=0,'Input-Infra'!$AN57*(1-'Input-Infra'!$U57)*(1-'Input-Infra'!$W57)*Z$20,0) -> 0 | AA141: =IF(AA$9=0,'Input-Infra'!$AN57*(1-'Input-Infra'!$U57)*(1-'Input-Infra'!$W57)*AA$20,0) -> 0 | AB141: =IF(AB$9=0,'Input-Infra'!$AN57*(1-'Input-Infra'!$U57)*(1-'Input-Infra'!$W57)*AB$20,0) -> 0 | AC141: =IF(AC$9=0,'Input-Infra'!$AN57*(1-'Input-Infra'!$U57)*(1-'Input-Infra'!$W57)*AC$20,0) -> 0
G142: Spare 33 | I142: $'000 | K142: 0 | M142: ='Input-Infra'!AK58-Q142 -> 0 | Q142: 0 | S142: =IF(S$9=0,'Input-Infra'!$AN58*(1-'Input-Infra'!$U58)*(1-'Input-Infra'!$W58)*S$20,0) -> 0 | T142: =IF(T$9=0,'Input-Infra'!$AN58*(1-'Input-Infra'!$U58)*(1-'Input-Infra'!$W58)*T$20,0) -> 0 | U142: =IF(U$9=0,'Input-Infra'!$AN58*(1-'Input-Infra'!$U58)*(1-'Input-Infra'!$W58)*U$20,0) -> 0 | V142: =IF(V$9=0,'Input-Infra'!$AN58*(1-'Input-Infra'!$U58)*(1-'Input-Infra'!$W58)*V$20,0) -> 0 | W142: =IF(W$9=0,'Input-Infra'!$AN58*(1-'Input-Infra'!$U58)*(1-'Input-Infra'!$W58)*W$20,0) -> 0 | X142: =IF(X$9=0,'Input-Infra'!$AN58*(1-'Input-Infra'!$U58)*(1-'Input-Infra'!$W58)*X$20,0) -> 0 | Y142: =IF(Y$9=0,'Input-Infra'!$AN58*(1-'Input-Infra'!$U58)*(1-'Input-Infra'!$W58)*Y$20,0) -> 0 | Z142: =IF(Z$9=0,'Input-Infra'!$AN58*(1-'Input-Infra'!$U58)*(1-'Input-Infra'!$W58)*Z$20,0) -> 0 | AA142: =IF(AA$9=0,'Input-Infra'!$AN58*(1-'Input-Infra'!$U58)*(1-'Input-Infra'!$W58)*AA$20,0) -> 0 | AB142: =IF(AB$9=0,'Input-Infra'!$AN58*(1-'Input-Infra'!$U58)*(1-'Input-Infra'!$W58)*AB$20,0) -> 0 | AC142: =IF(AC$9=0,'Input-Infra'!$AN58*(1-'Input-Infra'!$U58)*(1-'Input-Infra'!$W58)*AC$20,0) -> 0
G143: Spare 34 | I143: $'000 | K143: 0 | M143: ='Input-Infra'!AK59-Q143 -> 0 | Q143: 0 | S143: =IF(S$9=0,'Input-Infra'!$AN59*(1-'Input-Infra'!$U59)*(1-'Input-Infra'!$W59)*S$20,0) -> 0 | T143: =IF(T$9=0,'Input-Infra'!$AN59*(1-'Input-Infra'!$U59)*(1-'Input-Infra'!$W59)*T$20,0) -> 0 | U143: =IF(U$9=0,'Input-Infra'!$AN59*(1-'Input-Infra'!$U59)*(1-'Input-Infra'!$W59)*U$20,0) -> 0 | V143: =IF(V$9=0,'Input-Infra'!$AN59*(1-'Input-Infra'!$U59)*(1-'Input-Infra'!$W59)*V$20,0) -> 0 | W143: =IF(W$9=0,'Input-Infra'!$AN59*(1-'Input-Infra'!$U59)*(1-'Input-Infra'!$W59)*W$20,0) -> 0 | X143: =IF(X$9=0,'Input-Infra'!$AN59*(1-'Input-Infra'!$U59)*(1-'Input-Infra'!$W59)*X$20,0) -> 0 | Y143: =IF(Y$9=0,'Input-Infra'!$AN59*(1-'Input-Infra'!$U59)*(1-'Input-Infra'!$W59)*Y$20,0) -> 0 | Z143: =IF(Z$9=0,'Input-Infra'!$AN59*(1-'Input-Infra'!$U59)*(1-'Input-Infra'!$W59)*Z$20,0) -> 0 | AA143: =IF(AA$9=0,'Input-Infra'!$AN59*(1-'Input-Infra'!$U59)*(1-'Input-Infra'!$W59)*AA$20,0) -> 0 | AB143: =IF(AB$9=0,'Input-Infra'!$AN59*(1-'Input-Infra'!$U59)*(1-'Input-Infra'!$W59)*AB$20,0) -> 0 | AC143: =IF(AC$9=0,'Input-Infra'!$AN59*(1-'Input-Infra'!$U59)*(1-'Input-Infra'!$W59)*AC$20,0) -> 0
G144: Spare 35 | I144: $'000 | K144: 0 | M144: ='Input-Infra'!AK60-Q144 -> 0 | Q144: 0 | S144: =IF(S$9=0,'Input-Infra'!$AN60*(1-'Input-Infra'!$U60)*(1-'Input-Infra'!$W60)*S$20,0) -> 0 | T144: =IF(T$9=0,'Input-Infra'!$AN60*(1-'Input-Infra'!$U60)*(1-'Input-Infra'!$W60)*T$20,0) -> 0 | U144: =IF(U$9=0,'Input-Infra'!$AN60*(1-'Input-Infra'!$U60)*(1-'Input-Infra'!$W60)*U$20,0) -> 0 | V144: =IF(V$9=0,'Input-Infra'!$AN60*(1-'Input-Infra'!$U60)*(1-'Input-Infra'!$W60)*V$20,0) -> 0 | W144: =IF(W$9=0,'Input-Infra'!$AN60*(1-'Input-Infra'!$U60)*(1-'Input-Infra'!$W60)*W$20,0) -> 0 | X144: =IF(X$9=0,'Input-Infra'!$AN60*(1-'Input-Infra'!$U60)*(1-'Input-Infra'!$W60)*X$20,0) -> 0 | Y144: =IF(Y$9=0,'Input-Infra'!$AN60*(1-'Input-Infra'!$U60)*(1-'Input-Infra'!$W60)*Y$20,0) -> 0 | Z144: =IF(Z$9=0,'Input-Infra'!$AN60*(1-'Input-Infra'!$U60)*(1-'Input-Infra'!$W60)*Z$20,0) -> 0 | AA144: =IF(AA$9=0,'Input-Infra'!$AN60*(1-'Input-Infra'!$U60)*(1-'Input-Infra'!$W60)*AA$20,0) -> 0 | AB144: =IF(AB$9=0,'Input-Infra'!$AN60*(1-'Input-Infra'!$U60)*(1-'Input-Infra'!$W60)*AB$20,0) -> 0 | AC144: =IF(AC$9=0,'Input-Infra'!$AN60*(1-'Input-Infra'!$U60)*(1-'Input-Infra'!$W60)*AC$20,0) -> 0
G145: Spare 36 | I145: $'000 | K145: 0 | M145: ='Input-Infra'!AK61-Q145 -> 0 | Q145: 0 | S145: =IF(S$9=0,'Input-Infra'!$AN61*(1-'Input-Infra'!$U61)*(1-'Input-Infra'!$W61)*S$20,0) -> 0 | T145: =IF(T$9=0,'Input-Infra'!$AN61*(1-'Input-Infra'!$U61)*(1-'Input-Infra'!$W61)*T$20,0) -> 0 | U145: =IF(U$9=0,'Input-Infra'!$AN61*(1-'Input-Infra'!$U61)*(1-'Input-Infra'!$W61)*U$20,0) -> 0 | V145: =IF(V$9=0,'Input-Infra'!$AN61*(1-'Input-Infra'!$U61)*(1-'Input-Infra'!$W61)*V$20,0) -> 0 | W145: =IF(W$9=0,'Input-Infra'!$AN61*(1-'Input-Infra'!$U61)*(1-'Input-Infra'!$W61)*W$20,0) -> 0 | X145: =IF(X$9=0,'Input-Infra'!$AN61*(1-'Input-Infra'!$U61)*(1-'Input-Infra'!$W61)*X$20,0) -> 0 | Y145: =IF(Y$9=0,'Input-Infra'!$AN61*(1-'Input-Infra'!$U61)*(1-'Input-Infra'!$W61)*Y$20,0) -> 0 | Z145: =IF(Z$9=0,'Input-Infra'!$AN61*(1-'Input-Infra'!$U61)*(1-'Input-Infra'!$W61)*Z$20,0) -> 0 | AA145: =IF(AA$9=0,'Input-Infra'!$AN61*(1-'Input-Infra'!$U61)*(1-'Input-Infra'!$W61)*AA$20,0) -> 0 | AB145: =IF(AB$9=0,'Input-Infra'!$AN61*(1-'Input-Infra'!$U61)*(1-'Input-Infra'!$W61)*AB$20,0) -> 0 | AC145: =IF(AC$9=0,'Input-Infra'!$AN61*(1-'Input-Infra'!$U61)*(1-'Input-Infra'!$W61)*AC$20,0) -> 0
G146: Spare 37 | I146: $'000 | K146: 0 | M146: ='Input-Infra'!AK62-Q146 -> 0 | Q146: 0 | S146: =IF(S$9=0,'Input-Infra'!$AN62*(1-'Input-Infra'!$U62)*(1-'Input-Infra'!$W62)*S$20,0) -> 0 | T146: =IF(T$9=0,'Input-Infra'!$AN62*(1-'Input-Infra'!$U62)*(1-'Input-Infra'!$W62)*T$20,0) -> 0 | U146: =IF(U$9=0,'Input-Infra'!$AN62*(1-'Input-Infra'!$U62)*(1-'Input-Infra'!$W62)*U$20,0) -> 0 | V146: =IF(V$9=0,'Input-Infra'!$AN62*(1-'Input-Infra'!$U62)*(1-'Input-Infra'!$W62)*V$20,0) -> 0 | W146: =IF(W$9=0,'Input-Infra'!$AN62*(1-'Input-Infra'!$U62)*(1-'Input-Infra'!$W62)*W$20,0) -> 0 | X146: =IF(X$9=0,'Input-Infra'!$AN62*(1-'Input-Infra'!$U62)*(1-'Input-Infra'!$W62)*X$20,0) -> 0 | Y146: =IF(Y$9=0,'Input-Infra'!$AN62*(1-'Input-Infra'!$U62)*(1-'Input-Infra'!$W62)*Y$20,0) -> 0 | Z146: =IF(Z$9=0,'Input-Infra'!$AN62*(1-'Input-Infra'!$U62)*(1-'Input-Infra'!$W62)*Z$20,0) -> 0 | AA146: =IF(AA$9=0,'Input-Infra'!$AN62*(1-'Input-Infra'!$U62)*(1-'Input-Infra'!$W62)*AA$20,0) -> 0 | AB146: =IF(AB$9=0,'Input-Infra'!$AN62*(1-'Input-Infra'!$U62)*(1-'Input-Infra'!$W62)*AB$20,0) -> 0 | AC146: =IF(AC$9=0,'Input-Infra'!$AN62*(1-'Input-Infra'!$U62)*(1-'Input-Infra'!$W62)*AC$20,0) -> 0
G147: Spare 38 | I147: $'000 | K147: 0 | M147: ='Input-Infra'!AK63-Q147 -> 0 | Q147: 0 | S147: =IF(S$9=0,'Input-Infra'!$AN63*(1-'Input-Infra'!$U63)*(1-'Input-Infra'!$W63)*S$20,0) -> 0 | T147: =IF(T$9=0,'Input-Infra'!$AN63*(1-'Input-Infra'!$U63)*(1-'Input-Infra'!$W63)*T$20,0) -> 0 | U147: =IF(U$9=0,'Input-Infra'!$AN63*(1-'Input-Infra'!$U63)*(1-'Input-Infra'!$W63)*U$20,0) -> 0 | V147: =IF(V$9=0,'Input-Infra'!$AN63*(1-'Input-Infra'!$U63)*(1-'Input-Infra'!$W63)*V$20,0) -> 0 | W147: =IF(W$9=0,'Input-Infra'!$AN63*(1-'Input-Infra'!$U63)*(1-'Input-Infra'!$W63)*W$20,0) -> 0 | X147: =IF(X$9=0,'Input-Infra'!$AN63*(1-'Input-Infra'!$U63)*(1-'Input-Infra'!$W63)*X$20,0) -> 0 | Y147: =IF(Y$9=0,'Input-Infra'!$AN63*(1-'Input-Infra'!$U63)*(1-'Input-Infra'!$W63)*Y$20,0) -> 0 | Z147: =IF(Z$9=0,'Input-Infra'!$AN63*(1-'Input-Infra'!$U63)*(1-'Input-Infra'!$W63)*Z$20,0) -> 0 | AA147: =IF(AA$9=0,'Input-Infra'!$AN63*(1-'Input-Infra'!$U63)*(1-'Input-Infra'!$W63)*AA$20,0) -> 0 | AB147: =IF(AB$9=0,'Input-Infra'!$AN63*(1-'Input-Infra'!$U63)*(1-'Input-Infra'!$W63)*AB$20,0) -> 0 | AC147: =IF(AC$9=0,'Input-Infra'!$AN63*(1-'Input-Infra'!$U63)*(1-'Input-Infra'!$W63)*AC$20,0) -> 0
G148: Spare 39 | I148: $'000 | K148: 0 | M148: ='Input-Infra'!AK64-Q148 -> 0 | Q148: 0 | S148: =IF(S$9=0,'Input-Infra'!$AN64*(1-'Input-Infra'!$U64)*(1-'Input-Infra'!$W64)*S$20,0) -> 0 | T148: =IF(T$9=0,'Input-Infra'!$AN64*(1-'Input-Infra'!$U64)*(1-'Input-Infra'!$W64)*T$20,0) -> 0 | U148: =IF(U$9=0,'Input-Infra'!$AN64*(1-'Input-Infra'!$U64)*(1-'Input-Infra'!$W64)*U$20,0) -> 0 | V148: =IF(V$9=0,'Input-Infra'!$AN64*(1-'Input-Infra'!$U64)*(1-'Input-Infra'!$W64)*V$20,0) -> 0 | W148: =IF(W$9=0,'Input-Infra'!$AN64*(1-'Input-Infra'!$U64)*(1-'Input-Infra'!$W64)*W$20,0) -> 0 | X148: =IF(X$9=0,'Input-Infra'!$AN64*(1-'Input-Infra'!$U64)*(1-'Input-Infra'!$W64)*X$20,0) -> 0 | Y148: =IF(Y$9=0,'Input-Infra'!$AN64*(1-'Input-Infra'!$U64)*(1-'Input-Infra'!$W64)*Y$20,0) -> 0 | Z148: =IF(Z$9=0,'Input-Infra'!$AN64*(1-'Input-Infra'!$U64)*(1-'Input-Infra'!$W64)*Z$20,0) -> 0 | AA148: =IF(AA$9=0,'Input-Infra'!$AN64*(1-'Input-Infra'!$U64)*(1-'Input-Infra'!$W64)*AA$20,0) -> 0 | AB148: =IF(AB$9=0,'Input-Infra'!$AN64*(1-'Input-Infra'!$U64)*(1-'Input-Infra'!$W64)*AB$20,0) -> 0 | AC148: =IF(AC$9=0,'Input-Infra'!$AN64*(1-'Input-Infra'!$U64)*(1-'Input-Infra'!$W64)*AC$20,0) -> 0
G149: Spare 40 | I149: $'000 | K149: 0 | M149: ='Input-Infra'!AK65-Q149 -> 0 | Q149: 0 | S149: =IF(S$9=0,'Input-Infra'!$AN65*(1-'Input-Infra'!$U65)*(1-'Input-Infra'!$W65)*S$20,0) -> 0 | T149: =IF(T$9=0,'Input-Infra'!$AN65*(1-'Input-Infra'!$U65)*(1-'Input-Infra'!$W65)*T$20,0) -> 0 | U149: =IF(U$9=0,'Input-Infra'!$AN65*(1-'Input-Infra'!$U65)*(1-'Input-Infra'!$W65)*U$20,0) -> 0 | V149: =IF(V$9=0,'Input-Infra'!$AN65*(1-'Input-Infra'!$U65)*(1-'Input-Infra'!$W65)*V$20,0) -> 0 | W149: =IF(W$9=0,'Input-Infra'!$AN65*(1-'Input-Infra'!$U65)*(1-'Input-Infra'!$W65)*W$20,0) -> 0 | X149: =IF(X$9=0,'Input-Infra'!$AN65*(1-'Input-Infra'!$U65)*(1-'Input-Infra'!$W65)*X$20,0) -> 0 | Y149: =IF(Y$9=0,'Input-Infra'!$AN65*(1-'Input-Infra'!$U65)*(1-'Input-Infra'!$W65)*Y$20,0) -> 0 | Z149: =IF(Z$9=0,'Input-Infra'!$AN65*(1-'Input-Infra'!$U65)*(1-'Input-Infra'!$W65)*Z$20,0) -> 0 | AA149: =IF(AA$9=0,'Input-Infra'!$AN65*(1-'Input-Infra'!$U65)*(1-'Input-Infra'!$W65)*AA$20,0) -> 0 | AB149: =IF(AB$9=0,'Input-Infra'!$AN65*(1-'Input-Infra'!$U65)*(1-'Input-Infra'!$W65)*AB$20,0) -> 0 | AC149: =IF(AC$9=0,'Input-Infra'!$AN65*(1-'Input-Infra'!$U65)*(1-'Input-Infra'!$W65)*AC$20,0) -> 0
G150: Spare 41 | I150: $'000 | K150: 0 | M150: ='Input-Infra'!AK66-Q150 -> 0 | Q150: 0 | S150: =IF(S$9=0,'Input-Infra'!$AN66*(1-'Input-Infra'!$U66)*(1-'Input-Infra'!$W66)*S$20,0) -> 0 | T150: =IF(T$9=0,'Input-Infra'!$AN66*(1-'Input-Infra'!$U66)*(1-'Input-Infra'!$W66)*T$20,0) -> 0 | U150: =IF(U$9=0,'Input-Infra'!$AN66*(1-'Input-Infra'!$U66)*(1-'Input-Infra'!$W66)*U$20,0) -> 0 | V150: =IF(V$9=0,'Input-Infra'!$AN66*(1-'Input-Infra'!$U66)*(1-'Input-Infra'!$W66)*V$20,0) -> 0 | W150: =IF(W$9=0,'Input-Infra'!$AN66*(1-'Input-Infra'!$U66)*(1-'Input-Infra'!$W66)*W$20,0) -> 0 | X150: =IF(X$9=0,'Input-Infra'!$AN66*(1-'Input-Infra'!$U66)*(1-'Input-Infra'!$W66)*X$20,0) -> 0 | Y150: =IF(Y$9=0,'Input-Infra'!$AN66*(1-'Input-Infra'!$U66)*(1-'Input-Infra'!$W66)*Y$20,0) -> 0 | Z150: =IF(Z$9=0,'Input-Infra'!$AN66*(1-'Input-Infra'!$U66)*(1-'Input-Infra'!$W66)*Z$20,0) -> 0 | AA150: =IF(AA$9=0,'Input-Infra'!$AN66*(1-'Input-Infra'!$U66)*(1-'Input-Infra'!$W66)*AA$20,0) -> 0 | AB150: =IF(AB$9=0,'Input-Infra'!$AN66*(1-'Input-Infra'!$U66)*(1-'Input-Infra'!$W66)*AB$20,0) -> 0 | AC150: =IF(AC$9=0,'Input-Infra'!$AN66*(1-'Input-Infra'!$U66)*(1-'Input-Infra'!$W66)*AC$20,0) -> 0
G151: Spare 42 | I151: $'000 | K151: 0 | M151: ='Input-Infra'!AK67-Q151 -> 0 | Q151: 0 | S151: =IF(S$9=0,'Input-Infra'!$AN67*(1-'Input-Infra'!$U67)*(1-'Input-Infra'!$W67)*S$20,0) -> 0 | T151: =IF(T$9=0,'Input-Infra'!$AN67*(1-'Input-Infra'!$U67)*(1-'Input-Infra'!$W67)*T$20,0) -> 0 | U151: =IF(U$9=0,'Input-Infra'!$AN67*(1-'Input-Infra'!$U67)*(1-'Input-Infra'!$W67)*U$20,0) -> 0 | V151: =IF(V$9=0,'Input-Infra'!$AN67*(1-'Input-Infra'!$U67)*(1-'Input-Infra'!$W67)*V$20,0) -> 0 | W151: =IF(W$9=0,'Input-Infra'!$AN67*(1-'Input-Infra'!$U67)*(1-'Input-Infra'!$W67)*W$20,0) -> 0 | X151: =IF(X$9=0,'Input-Infra'!$AN67*(1-'Input-Infra'!$U67)*(1-'Input-Infra'!$W67)*X$20,0) -> 0 | Y151: =IF(Y$9=0,'Input-Infra'!$AN67*(1-'Input-Infra'!$U67)*(1-'Input-Infra'!$W67)*Y$20,0) -> 0 | Z151: =IF(Z$9=0,'Input-Infra'!$AN67*(1-'Input-Infra'!$U67)*(1-'Input-Infra'!$W67)*Z$20,0) -> 0 | AA151: =IF(AA$9=0,'Input-Infra'!$AN67*(1-'Input-Infra'!$U67)*(1-'Input-Infra'!$W67)*AA$20,0) -> 0 | AB151: =IF(AB$9=0,'Input-Infra'!$AN67*(1-'Input-Infra'!$U67)*(1-'Input-Infra'!$W67)*AB$20,0) -> 0 | AC151: =IF(AC$9=0,'Input-Infra'!$AN67*(1-'Input-Infra'!$U67)*(1-'Input-Infra'!$W67)*AC$20,0) -> 0
G152: Spare 43 | I152: $'000 | K152: 0 | M152: ='Input-Infra'!AK68-Q152 -> 0 | Q152: 0 | S152: =IF(S$9=0,'Input-Infra'!$AN68*(1-'Input-Infra'!$U68)*(1-'Input-Infra'!$W68)*S$20,0) -> 0 | T152: =IF(T$9=0,'Input-Infra'!$AN68*(1-'Input-Infra'!$U68)*(1-'Input-Infra'!$W68)*T$20,0) -> 0 | U152: =IF(U$9=0,'Input-Infra'!$AN68*(1-'Input-Infra'!$U68)*(1-'Input-Infra'!$W68)*U$20,0) -> 0 | V152: =IF(V$9=0,'Input-Infra'!$AN68*(1-'Input-Infra'!$U68)*(1-'Input-Infra'!$W68)*V$20,0) -> 0 | W152: =IF(W$9=0,'Input-Infra'!$AN68*(1-'Input-Infra'!$U68)*(1-'Input-Infra'!$W68)*W$20,0) -> 0 | X152: =IF(X$9=0,'Input-Infra'!$AN68*(1-'Input-Infra'!$U68)*(1-'Input-Infra'!$W68)*X$20,0) -> 0 | Y152: =IF(Y$9=0,'Input-Infra'!$AN68*(1-'Input-Infra'!$U68)*(1-'Input-Infra'!$W68)*Y$20,0) -> 0 | Z152: =IF(Z$9=0,'Input-Infra'!$AN68*(1-'Input-Infra'!$U68)*(1-'Input-Infra'!$W68)*Z$20,0) -> 0 | AA152: =IF(AA$9=0,'Input-Infra'!$AN68*(1-'Input-Infra'!$U68)*(1-'Input-Infra'!$W68)*AA$20,0) -> 0 | AB152: =IF(AB$9=0,'Input-Infra'!$AN68*(1-'Input-Infra'!$U68)*(1-'Input-Infra'!$W68)*AB$20,0) -> 0 | AC152: =IF(AC$9=0,'Input-Infra'!$AN68*(1-'Input-Infra'!$U68)*(1-'Input-Infra'!$W68)*AC$20,0) -> 0
G153: Spare 44 | I153: $'000 | K153: 0 | M153: ='Input-Infra'!AK69-Q153 -> 0 | Q153: 0 | S153: =IF(S$9=0,'Input-Infra'!$AN69*(1-'Input-Infra'!$U69)*(1-'Input-Infra'!$W69)*S$20,0) -> 0 | T153: =IF(T$9=0,'Input-Infra'!$AN69*(1-'Input-Infra'!$U69)*(1-'Input-Infra'!$W69)*T$20,0) -> 0 | U153: =IF(U$9=0,'Input-Infra'!$AN69*(1-'Input-Infra'!$U69)*(1-'Input-Infra'!$W69)*U$20,0) -> 0 | V153: =IF(V$9=0,'Input-Infra'!$AN69*(1-'Input-Infra'!$U69)*(1-'Input-Infra'!$W69)*V$20,0) -> 0 | W153: =IF(W$9=0,'Input-Infra'!$AN69*(1-'Input-Infra'!$U69)*(1-'Input-Infra'!$W69)*W$20,0) -> 0 | X153: =IF(X$9=0,'Input-Infra'!$AN69*(1-'Input-Infra'!$U69)*(1-'Input-Infra'!$W69)*X$20,0) -> 0 | Y153: =IF(Y$9=0,'Input-Infra'!$AN69*(1-'Input-Infra'!$U69)*(1-'Input-Infra'!$W69)*Y$20,0) -> 0 | Z153: =IF(Z$9=0,'Input-Infra'!$AN69*(1-'Input-Infra'!$U69)*(1-'Input-Infra'!$W69)*Z$20,0) -> 0 | AA153: =IF(AA$9=0,'Input-Infra'!$AN69*(1-'Input-Infra'!$U69)*(1-'Input-Infra'!$W69)*AA$20,0) -> 0 | AB153: =IF(AB$9=0,'Input-Infra'!$AN69*(1-'Input-Infra'!$U69)*(1-'Input-Infra'!$W69)*AB$20,0) -> 0 | AC153: =IF(AC$9=0,'Input-Infra'!$AN69*(1-'Input-Infra'!$U69)*(1-'Input-Infra'!$W69)*AC$20,0) -> 0
G154: Spare 45 | I154: $'000 | K154: 0 | M154: ='Input-Infra'!AK70-Q154 -> 0 | Q154: 0 | S154: =IF(S$9=0,'Input-Infra'!$AN70*(1-'Input-Infra'!$U70)*(1-'Input-Infra'!$W70)*S$20,0) -> 0 | T154: =IF(T$9=0,'Input-Infra'!$AN70*(1-'Input-Infra'!$U70)*(1-'Input-Infra'!$W70)*T$20,0) -> 0 | U154: =IF(U$9=0,'Input-Infra'!$AN70*(1-'Input-Infra'!$U70)*(1-'Input-Infra'!$W70)*U$20,0) -> 0 | V154: =IF(V$9=0,'Input-Infra'!$AN70*(1-'Input-Infra'!$U70)*(1-'Input-Infra'!$W70)*V$20,0) -> 0 | W154: =IF(W$9=0,'Input-Infra'!$AN70*(1-'Input-Infra'!$U70)*(1-'Input-Infra'!$W70)*W$20,0) -> 0 | X154: =IF(X$9=0,'Input-Infra'!$AN70*(1-'Input-Infra'!$U70)*(1-'Input-Infra'!$W70)*X$20,0) -> 0 | Y154: =IF(Y$9=0,'Input-Infra'!$AN70*(1-'Input-Infra'!$U70)*(1-'Input-Infra'!$W70)*Y$20,0) -> 0 | Z154: =IF(Z$9=0,'Input-Infra'!$AN70*(1-'Input-Infra'!$U70)*(1-'Input-Infra'!$W70)*Z$20,0) -> 0 | AA154: =IF(AA$9=0,'Input-Infra'!$AN70*(1-'Input-Infra'!$U70)*(1-'Input-Infra'!$W70)*AA$20,0) -> 0 | AB154: =IF(AB$9=0,'Input-Infra'!$AN70*(1-'Input-Infra'!$U70)*(1-'Input-Infra'!$W70)*AB$20,0) -> 0 | AC154: =IF(AC$9=0,'Input-Infra'!$AN70*(1-'Input-Infra'!$U70)*(1-'Input-Infra'!$W70)*AC$20,0) -> 0
G155: Spare 46 | I155: $'000 | K155: 0 | M155: ='Input-Infra'!AK71-Q155 -> 0 | Q155: 0 | S155: =IF(S$9=0,'Input-Infra'!$AN71*(1-'Input-Infra'!$U71)*(1-'Input-Infra'!$W71)*S$20,0) -> 0 | T155: =IF(T$9=0,'Input-Infra'!$AN71*(1-'Input-Infra'!$U71)*(1-'Input-Infra'!$W71)*T$20,0) -> 0 | U155: =IF(U$9=0,'Input-Infra'!$AN71*(1-'Input-Infra'!$U71)*(1-'Input-Infra'!$W71)*U$20,0) -> 0 | V155: =IF(V$9=0,'Input-Infra'!$AN71*(1-'Input-Infra'!$U71)*(1-'Input-Infra'!$W71)*V$20,0) -> 0 | W155: =IF(W$9=0,'Input-Infra'!$AN71*(1-'Input-Infra'!$U71)*(1-'Input-Infra'!$W71)*W$20,0) -> 0 | X155: =IF(X$9=0,'Input-Infra'!$AN71*(1-'Input-Infra'!$U71)*(1-'Input-Infra'!$W71)*X$20,0) -> 0 | Y155: =IF(Y$9=0,'Input-Infra'!$AN71*(1-'Input-Infra'!$U71)*(1-'Input-Infra'!$W71)*Y$20,0) -> 0 | Z155: =IF(Z$9=0,'Input-Infra'!$AN71*(1-'Input-Infra'!$U71)*(1-'Input-Infra'!$W71)*Z$20,0) -> 0 | AA155: =IF(AA$9=0,'Input-Infra'!$AN71*(1-'Input-Infra'!$U71)*(1-'Input-Infra'!$W71)*AA$20,0) -> 0 | AB155: =IF(AB$9=0,'Input-Infra'!$AN71*(1-'Input-Infra'!$U71)*(1-'Input-Infra'!$W71)*AB$20,0) -> 0 | AC155: =IF(AC$9=0,'Input-Infra'!$AN71*(1-'Input-Infra'!$U71)*(1-'Input-Infra'!$W71)*AC$20,0) -> 0
G157: Subtotal | I157: $'000 | K157: =SUM(K109:K155) -> 0 | M157: =SUM(M109:M155) -> 0 | Q157: =SUM(S157:AC157) -> 0 | S157: =SUM(S109:S155) -> 0 | T157: 0 | U157: 0 | V157: 0 | W157: 0 | X157: 0 | Y157: 0 | Z157: 0 | AA157: 0 | AB157: 0 | AC157: 0
G159: Future Infrastructure
G161: =Future -> BNE-FT-004 | I161: $'000 | K161: =NPV(WACC_nom,T161:AC161)+S161 -> 0 | M161: ='Input-Infra'!AK78-Q161 -> 0 | Q161: =SUM(S161:AC161) -> 0 | S161: =IF(AND('Input-Infra'!$AI78>=S$10, 'Input-Infra'!$AI78<=S$11),'Input-Infra'!$AN78*(1-'Input-Infra'!$U78)*(1-'Input-Infra'!$W78)*S$20,0) -> 0 | T161: =IF(AND('Input-Infra'!$AI78>=T$10, 'Input-Infra'!$AI78<=T$11),'Input-Infra'!$AN78*(1-'Input-Infra'!$U78)*(1-'Input-Infra'!$W78)*T$20,0) -> 0 | U161: =IF(AND('Input-Infra'!$AI78>=U$10, 'Input-Infra'!$AI78<=U$11),'Input-Infra'!$AN78*(1-'Input-Infra'!$U78)*(1-'Input-Infra'!$W78)*U$20,0) -> 0 | V161: =IF(AND('Input-Infra'!$AI78>=V$10, 'Input-Infra'!$AI78<=V$11),'Input-Infra'!$AN78*(1-'Input-Infra'!$U78)*(1-'Input-Infra'!$W78)*V$20,0) -> 0 | W161: =IF(AND('Input-Infra'!$AI78>=W$10, 'Input-Infra'!$AI78<=W$11),'Input-Infra'!$AN78*(1-'Input-Infra'!$U78)*(1-'Input-Infra'!$W78)*W$20,0) -> 0 | X161: =IF(AND('Input-Infra'!$AI78>=X$10, 'Input-Infra'!$AI78<=X$11),'Input-Infra'!$AN78*(1-'Input-Infra'!$U78)*(1-'Input-Infra'!$W78)*X$20,0) -> 0 | Y161: =IF(AND('Input-Infra'!$AI78>=Y$10, 'Input-Infra'!$AI78<=Y$11),'Input-Infra'!$AN78*(1-'Input-Infra'!$U78)*(1-'Input-Infra'!$W78)*Y$20,0) -> 0 | Z161: =IF(AND('Input-Infra'!$AI78>=Z$10, 'Input-Infra'!$AI78<=Z$11),'Input-Infra'!$AN78*(1-'Input-Infra'!$U78)*(1-'Input-Infra'!$W78)*Z$20,0) -> 0 | AA161: =IF(AND('Input-Infra'!$AI78>=AA$10, 'Input-Infra'!$AI78<=AA$11),'Input-Infra'!$AN78*(1-'Input-Infra'!$U78)*(1-'Input-Infra'!$W78)*AA$20,0) -> 0 | AB161: =IF(AND('Input-Infra'!$AI78>=AB$10, 'Input-Infra'!$AI78<=AB$11),'Input-Infra'!$AN78*(1-'Input-Infra'!$U78)*(1-'Input-Infra'!$W78)*AB$20,0) -> 0 | AC161: =IF(AND('Input-Infra'!$AI78>=AC$10, 'Input-Infra'!$AI78<=AC$11),'Input-Infra'!$AN78*(1-'Input-Infra'!$U78)*(1-'Input-Infra'!$W78)*AC$20,0) -> 0
